Workbook

Sheet Contents
C2: Contents
F3: Colour Codes | K3: File Name: | M3: =IFERROR(File_name(),"") -> 
C4: Summary | G4: Inputs | I4: 1234567890
G5: Section Titles | I5: TITLE ROW | K5: Last Save Date | M5: =IFERROR(lastsaved(),"") -> 
C6: Control | G6: Sum Column | I6: 1000000000
G7: True or 1 | I7: =1=1 -> TRUE | K7: Last Save By | M7: =IFERROR(last_save_by(),"") -> 
C8: Scenarios | G8: False or 0 | I8: =1=2 -> FALSE
D9: General Assumptions | G9: Other Sheet Links | I9: |||||||||||||||||||
D10: Rate of Return Scenarios
D11: Growth Rate Scenarios
C13: Valuation Model
D14: Theoretical Long-term Model
D15: Net Income and Dividend
D16: Value Driver Method - V =NI x (1-g/ROE)/(k-g) - Black Box
D17: Value Driver Method - Sudden Change (Multiply by Inv Cap x ROIC)
D18: Value Driver Method - Incremental Change
D19: Graphs
C21: Steps for Incremental Method

Sheet Summary
F3: Theoretical Value | G3: Growth Rate | H3: Value Driver Basic | I3: Value Driver Sudden | J3: Value Driver Fade Period
C4: Value of Corporation | F4: ='Valuation Model'!E19 -> 154.8719274 | G4: ='Valuation Model'!E29 -> 268.5328482 | H4: ='Valuation Model'!E38 -> 214.8932707 | I4: ='Valuation Model'!E46 -> 139.7978622 | J4: ='Valuation Model'!E65 -> 155.0575259
C5: Driver (g or ROIC) | G5: ='Valuation Model'!F27 -> 0.025 | H5: ='Valuation Model'!H33 -> 0.06 | I5: ='Valuation Model'!H61 -> 0.06 | J5: =TEXT(Scenarios!H53,"0.00% -- ")&TEXT(Scenarios!I53,"0.00%") -> 013% -- 006%
C7: Price to Book | F7: ='Valuation Model'!E22 -> 1.548719274
C8: Price to Earnings | F8: ='Valuation Model'!E21 -> 11.91322518
C10: Explicit Period | F10: =Scenarios!D5 -> 10
C11: Fade Period | F11: =Scenarios!D6 -> 6
C13: Cost of Capital | F13: =Scenarios!D3 -> 0.068
C15: Terminal Period | F15: =Scenarios!H12 -> 2032-07-11 | G15: Value Driver Basic = Income * (1-g/ROI)/(k-g)
C16: End of Post Terminal | F16: =Scenarios!I12 -> 2038-07-11 | G16: Value Driver Basic = Capital * ROI * (1-g/ROI)/(k-g)
E23: 1

Sheet Control
D3: Scenario Code Number | F3: 4
K4: Theoretical Value | L4: Growth Rate | M4: Value Driver Basic | N4: Value Sudden | O4: Value Incremental
D5: Description | E5: Return | G5: Growth | I5: Cost of Capital
C6: 1 | D6: Constant Return, Growth | E6: =INDEX(Scenarios!C$16:C$25,F6) -> Flat Constant Return Case | F6: 1 | G6: =INDEX(Scenarios!$C$34:$C$42,H6) -> Flat Growth Case | H6: 1 | I6: 0.068 | K6: 159.090909 | L6: 159.0909091 | M6: 159.0909091 | N6: 159.0909091 | O6: 159.0909091
C7: 2 | D7: Higher Return, Constant Growth | E7: =INDEX(Scenarios!C$16:C$25,F7) -> High Constant Return Case | F7: 2 | G7: =INDEX(Scenarios!$C$34:$C$42,H7) -> Flat Growth Case | H7: 1 | I7: 0.068 | K7: 204.5454544 | L7: 204.5454545 | M7: 204.5454545 | N7: 204.5454545 | O7: 204.5454545
C8: 3 | D8: Constant Return, Higher Growth | E8: =INDEX(Scenarios!C$16:C$25,F8) -> Flat Constant Return Case | F8: 1 | G8: =INDEX(Scenarios!$C$34:$C$42,H8) -> High Flat Growth Case | H8: 2 | I8: 0.068 | K8: 236.8171148 | L8: 236.8421053 | M8: 236.8421053 | N8: 236.8421053 | O8: 236.8421053
C9: 4 | D9: Higher Return, Lower Growth | E9: =INDEX(Scenarios!C$16:C$25,F9) -> High Constant Return Case | F9: 2 | G9: =INDEX(Scenarios!$C$34:$C$42,H9) -> Low Flat Growth Case | H9: 3 | I9: 0.068 | K9: 171.875 | L9: 171.875 | M9: 171.875 | N9: 171.875 | O9: 171.875
C10: 5 | D10: Lower Return, Higher Growth | E10: =INDEX(Scenarios!C$16:C$25,F10) -> Low Constant Return Case | F10: 3 | G10: =INDEX(Scenarios!$C$34:$C$42,H10) -> High Flat Growth Case | H10: 2 | I10: 0.068 | K10: 78.93903827 | L10: 78.94736842 | M10: 78.94736842 | N10: 78.94736842 | O10: 78.94736842
C11: 6 | D11: Low Terminal Return | E11: =INDEX(Scenarios!C$16:C$25,F11) -> Lower Terminal Return | F11: 4 | G11: =INDEX(Scenarios!$C$34:$C$42,H11) -> Flat Growth Case | H11: 1 | I11: 0.068 | K11: 149.23168 | L11: 149.23168 | M11: 149.23168 | N11: 149.23168 | O11: 149.23168
C12: 7 | D12: Low Terminal Growth | E12: =INDEX(Scenarios!C$16:C$25,F12) -> Flat Constant Return Case | F12: 1 | G12: =INDEX(Scenarios!$C$34:$C$42,H12) -> Lower Terminal Growth Case | H12: 4 | I12: 0.068 | K12: 156.5393216 | L12: 156.5393216 | M12: 156.5393216 | N12: 156.5393216 | O12: 156.5393216
C13: 8 | D13: Low Terminal Growth and Return | E13: =INDEX(Scenarios!C$16:C$25,F13) -> Lower Terminal Return | F13: 4 | G13: =INDEX(Scenarios!$C$34:$C$42,H13) -> Lower Terminal Growth Case | H13: 4 | I13: 0.068 | K13: 147.9031792 | L13: 147.9031792 | M13: 147.9031792 | N13: 147.9031792 | O13: 147.9031792
C14: 9 | D14: Low Final-terminal Return | E14: =INDEX(Scenarios!C$16:C$25,F14) -> Lower Final Terminal Return | F14: 5 | G14: =INDEX(Scenarios!$C$34:$C$42,H14) -> Flat Growth Case | H14: 1 | I14: 0.068 | K14: 123.9701585 | L14: 186.1075297 | M14: 155.7945807 | N14: 115.3773153 | O14: 123.9701586
C15: 10 | D15: Low Final-terminal Growth | E15: =INDEX(Scenarios!C$16:C$25,F15) -> Flat Constant Return Case | F15: 1 | G15: =INDEX(Scenarios!$C$34:$C$42,H15) -> Lower Final Terminal Growth | H15: 5 | I15: 0.068 | K15: 147.658206 | L15: 156.5393216 | M15: 156.5393216 | N15: 156.5393216 | O15: 147.0191636
C16: 11 | D16: Low Final-terminal Growth and Return | E16: =INDEX(Scenarios!C$16:C$25,F16) -> Lower Final Terminal Return | F16: 5 | G16: =INDEX(Scenarios!$C$34:$C$42,H16) -> Lower Final Terminal Growth | H16: 5 | I16: 0.068 | K16: 126.5040899 | L16: 182.6551313 | M16: 158.9648208 | N16: 116.3222618 | O16: 126.2993027
C17: 12 | D17: Extremene Low Final-terminal Return | E17: =INDEX(Scenarios!C$16:C$25,F17) -> Lower Final Terminal Return Extreme | F17: 6 | G17: =INDEX(Scenarios!$C$34:$C$42,H17) -> Flat Growth Case | H17: 1 | I17: 0.068 | K17: 117.5991834 | L17: 227.2727273 | M17: 165.3837896 | N17: 103.494852 | O17: 117.5991834
C18: 13 | D18: Extreme Low Final Terminal Growth | E18: =INDEX(Scenarios!C$16:C$25,F18) -> Flat Constant Return Case | F18: 1 | G18: =INDEX(Scenarios!$C$34:$C$42,H18) -> Lower Final Terminal Growth | H18: 5 | I18: 0.068 | K18: 147.658206 | L18: 156.5393216 | M18: 156.5393216 | N18: 156.5393216 | O18: 147.0191636
C19: 14 | D19: Increasing Return Case | E19: =INDEX(Scenarios!C$16:C$25,F19) -> Increasing Return Case | F19: 7 | G19: =INDEX(Scenarios!$C$34:$C$42,H19) -> Flat Growth Case | H19: 1 | I19: 0.068 | K19: 178.9171155 | L19: 148.381156 | M19: 157.2224328 | N19: 183.7462632 | O19: 178.9171156
C20: 15 | D20: Extremene Increasing Return Case | E20: =INDEX(Scenarios!C$16:C$25,F20) -> Extreme Increasing Case | F20: 9 | G20: =INDEX(Scenarios!$C$34:$C$42,H20) -> Flat Growth Case | H20: 1 | I20: 0.068 | K20: 217.6227665 | L20: 171.8701 | M20: 182.4796322 | N20: 224.9177608 | O20: 217.6227666
C21: 16 | D21: Decreasing Return Case | E21: =INDEX(Scenarios!C$16:C$25,F21) -> Decreasing Return Case | F21: 8 | G21: =INDEX(Scenarios!$C$34:$C$42,H21) -> Flat Growth Case | H21: 1 | I21: 0.068 | K21: 188.6198379 | L21: 219.4622442 | M21: 208.852712 | N21: 184.097137 | O21: 188.6198379
C22: 17 | D22: Decreasing Growth Case | E22: =INDEX(Scenarios!C$16:C$25,F22) -> Flat Constant Return Case | F22: 1 | G22: =INDEX(Scenarios!$C$34:$C$42,H22) -> Decreasing Growth Case | H22: 7 | I22: 0.068 | K22: 158.1475531 | L22: 158.1475531 | M22: 158.1475531 | N22: 158.1475531 | O22: 158.1475531
C23: 18 | D23: Extreme Decreasing Return Case | E23: =INDEX(Scenarios!C$16:C$25,F23) -> Extreme Decreasing Case | F23: 10 | G23: =INDEX(Scenarios!$C$34:$C$42,H23) -> Flat Growth Case | H23: 1 | I23: 0.068 | K23: 155.3231638 | L23: 233.176465 | M23: 195.2852787 | N23: 144.763697 | O23: 155.3231639
C24: 19 | D24: Return = WACC, Flat Growth | E24: =INDEX(Scenarios!C$16:C$26,F24) -> Return =WACC | F24: 11 | G24: =INDEX(Scenarios!$C$34:$C$42,H24) -> Flat Growth Case | H24: 1 | I24: 0.068 | K24: 99.99999995 | L24: 100 | M24: 100 | N24: 100 | O24: 100
C25: 20 | D25: Return = WACC, Flat Growth | E25: =INDEX(Scenarios!C$16:C$26,F25) -> Return =WACC | F25: 11 | G25: =INDEX(Scenarios!$C$34:$C$42,H25) -> High Flat Growth Case | H25: 2 | I25: 0.068 | K25: 99.98944847 | L25: 100 | M25: 100 | N25: 100 | O25: 100
C26: 21 | D26: Return = WACC, Flat Growth | E26: =INDEX(Scenarios!C$16:C$26,F26) -> Return =WACC | F26: 11 | G26: =INDEX(Scenarios!$C$34:$C$42,H26) -> Low Flat Growth Case | H26: 3 | I26: 0.068 | K26: 100 | L26: 100 | M26: 100 | N26: 100 | O26: 100
C27: 22 | D27: Constant Return, Zero Growth | E27: =INDEX(Scenarios!C$16:C$26,F27) -> Flat Constant Return Case | F27: 1 | G27: =INDEX(Scenarios!$C$34:$C$43,H27) -> Zero Growth | H27: 10 | I27: 0.068 | K27: 135.1351351 | L27: 135.1351351 | M27: 135.1351351 | N27: 135.1351351 | O27: 135.1351351
C28: 23 | D28: High Return, Zero Growth | E28: =INDEX(Scenarios!C$16:C$26,F28) -> High Constant Return Case | F28: 2 | G28: =INDEX(Scenarios!$C$34:$C$43,H28) -> Zero Growth | H28: 10 | I28: 0.068 | K28: 162.1621622 | L28: 162.1621622 | M28: 162.1621622 | N28: 162.1621622 | O28: 162.1621622
C29: 24 | D29: Low Return, Zero Growth | E29: =INDEX(Scenarios!C$16:C$26,F29) -> Low Constant Return Case | F29: 3 | G29: =INDEX(Scenarios!$C$34:$C$43,H29) -> Zero Growth | H29: 10 | I29: 0.068 | K29: 94.59459459 | L29: 94.59459459 | M29: 94.59459459 | N29: 94.59459459 | O29: 94.59459459
D31: =INDEX(D6:D30,$F$3) -> Higher Return, Lower Growth | E31: =INDEX(E6:E30,$F$3) -> High Constant Return Case | F31: =INDEX(F6:F30,$F$3) -> 2 | G31: =INDEX(G6:G30,$F$3) -> Low Flat Growth Case | H31: =INDEX(H6:H30,$F$3) -> 3 | I31: =INDEX(I6:I30,$F$3) -> 0.068 | J31: Index
D33: Higher Return, Lower Growth | E33: High Constant Return Case | F33: 6 | G33: Low Flat Growth Case | H33: 7 | I33: 68 | J33: Applied
K56: Applied | L56: =Control!$D$33:$I$33
K57: Growth_Rate | L57: =Summary!$G$4
K58: Index | L58: =Control!$D$31:$I$31
K59: output | L59: =Control!$K$6:$O$29
K60: scenario_code | L60: =Control!$F$3
K61: Theoretical_Value | L61: =Summary!$F$4
K62: Value_Driver_Basic | L62: =Summary!$H$4
K63: Value_Incremental | L63: =Summary!$J$4
K64: Value_Sudden | L64: =Summary!$I$4

Sheet Scenarios
B2: General Assumptions
C3: Cost of Equity Capital | D3: =Control!I33/1000 -> 0.068
C4: Starting Book Value of Equity | D4: 100
C5: Terminal Period | D5: 10
C6: Fade Period | D6: 6
C8: Apply Stable Adjustment to Growth Rate | D8: TRUE
C10: P/E Ratio | D10: =(1-D54/D53)/(D3-D54) -> -32.05128205
C12: Date | D12: =TODAY() -> 2021-07-11 | E12: =EDATE($D$12,E51*12) -> 2026-07-11 | F12: =EDATE($D$12,F51*12) -> 2029-07-11 | G12: =EDATE($D$12,G51*12) -> 2031-07-11 | H12: 2032-07-11 | I12: =EDATE($D$12,I51*12) -> 2038-07-11
B13: Rate of Return Scenarios | D13: =Control!F33 -> 6 | G13: Pre | H13: Intial | I13: Final
D14: Short-term | E14: Intermediate | F14: Long-term | G14: Terminal | H14: Terminal | I14: Terminal
D15: =D51 -> 1 | E15: =E51 -> 5 | F15: 8 | G15: 10 | H15: 11 | I15: 17
B16: 1 | C16: Flat Constant Return Case | D16: 0.1 | E16: 0.1 | F16: 0.1 | G16: 0.1 | H16: 0.1 | I16: 0.1
B17: 2 | C17: High Constant Return Case | D17: 0.12 | E17: 0.12 | F17: 0.12 | G17: 0.12 | H17: 0.12 | I17: 0.12
B18: 3 | C18: Low Constant Return Case | D18: 0.07 | E18: 0.07 | F18: 0.07 | G18: 0.07 | H18: 0.07 | I18: 0.07
B19: 4 | C19: Lower Terminal Return | D19: 0.12 | E19: 0.12 | F19: 0.12 | G19: 0.12 | H19: 0.09 | I19: 0.09
B20: 5 | C20: Lower Final Terminal Return | D20: 0.12 | E20: 0.12 | F20: 0.12 | G20: 0.12 | H20: 0.11 | I20: 0.07
B21: 6 | C21: Lower Final Terminal Return Extreme | D21: 0.13 | E21: 0.13 | F21: 0.13 | G21: 0.13 | H21: 0.13 | I21: 0.06
B22: 7 | C22: Increasing Return Case | D22: 0.05 | E22: 0.07 | F22: 0.09 | G22: 0.09 | H22: 0.1 | I22: 0.1
B23: 8 | C23: Decreasing Return Case | D23: 0.18 | E23: 0.16 | F23: 0.14 | G23: 0.14 | H23: 0.12 | I23: 0.1
B24: 9 | C24: Extreme Increasing Case | D24: 0.01 | E24: 0.03 | F24: 0.07 | G24: 0.07 | H24: 0.12 | I24: 0.09
B25: 10 | C25: Extreme Decreasing Case | D25: 0.25 | E25: 0.2 | F25: 0.15 | G25: 0.15 | H25: 0.12 | I25: 0.07
B26: 11 | C26: Return =WACC | D26: =D3 -> 0.068 | E26: =$D$26 -> 0.068 | F26: =$D$26 -> 0.068 | G26: 0.068 | H26: 0.068 | I26: =$D$26 -> 0.068
C28: =INDEX(C16:C27,$D$13) -> Lower Final Terminal Return Extreme | D28: =INDEX(D16:D27,$D$13) -> 0.13 | E28: =INDEX(E16:E27,$D$13) -> 0.13 | F28: =INDEX(F16:F27,$D$13) -> 0.13 | G28: =INDEX(G16:G27,$D$13) -> 0.13 | H28: =INDEX(H16:H27,$D$13) -> 0.13 | I28: =INDEX(I16:I27,$D$13) -> 0.06
B31: Growth Rate Scenarios | D31: =Control!H33 -> 7 | G31: Pre | H31: Initial | I31: Final
D32: Short-term | E32: Intermediate | F32: Long-term | G32: Terminal | H32: Terminal | I32: Terminal
D33: =D51 -> 1 | E33: =E51 -> 5 | F33: 8 | G33: 10 | H33: 11 | I33: 17
C34: Flat Growth Case | D34: 0.03 | E34: 0.03 | F34: 0.03 | G34: 0.03 | H34: 0.03 | I34: 0.03
C35: High Flat Growth Case | D35: 0.055 | E35: 0.055 | F35: 0.055 | G35: 0.055 | H35: 0.055 | I35: 0.055
C36: Low Flat Growth Case | D36: 0.01 | E36: 0.01 | F36: 0.01 | G36: 0.01 | H36: 0.01 | I36: 0.01
C37: Lower Terminal Growth Case | D37: 0.04 | E37: 0.04 | F37: 0.04 | G37: 0.04 | H37: 0.025 | I37: 0.025
C38: Lower Final Terminal Growth | D38: 0.04 | E38: 0.04 | F38: 0.04 | G38: 0.04 | H38: 0.025 | I38: 0.01
C39: Increasing Growth Case | D39: 0 | E39: 0.04 | F39: 0.08 | G39: 0.08 | H39: 0.025 | I39: 0.025
C40: Decreasing Growth Case | D40: 0.08 | E40: 0.05 | F40: 0.03 | G40: 0.03 | H40: 0.025 | I40: 0.025
C41: Extreme Increasing Growth Case | D41: -0.04 | E41: 0.05 | F41: 0.15 | G41: 0.15 | H41: 0.025 | I41: 0.025
C42: Extreme Decreasing Growth Case | D42: 0.15 | E42: 0.1 | F42: 0.05 | G42: 0.05 | H42: 0.025 | I42: 0.025
C43: Zero Growth | D43: 0 | E43: =D43 -> 0 | F43: =E43 -> 0 | G43: 0 | H43: 0 | I43: 0
C45: =INDEX(C34:C44,$D$31) -> Decreasing Growth Case | D45: =INDEX(D34:D44,$D$31) -> 0.08 | E45: =INDEX(E34:E44,$D$31) -> 0.05 | F45: =INDEX(F34:F44,$D$31) -> 0.03 | G45: =INDEX(G34:G44,$D$31) -> 0.03 | H45: =INDEX(H34:H44,$D$31) -> 0.025 | I45: =INDEX(I34:I44,$D$31) -> 0.025
G49: Pre | I49: Final
D50: Short-term | E50: Intermediate | F50: Long-term | G50: Terminal | H50: Terminal | I50: Terminal
D51: 1 | E51: =ROUND((G51-D51)/2,0) -> 5 | F51: =ROUND((G51-D51)/1.1,0) -> 8 | G51: =D5 -> 10 | H51: =G51+1 -> 11 | I51: =H51+D6 -> 17
C53: Rate of Return | D53: =Scenarios!D28 -> 0.13 | E53: =Scenarios!E28 -> 0.13 | F53: =Scenarios!F28 -> 0.13 | G53: =Scenarios!G28 -> 0.13 | H53: =Scenarios!H28 -> 0.13 | I53: =Scenarios!I28 -> 0.06
C54: Growth Rate | D54: =Scenarios!D45 -> 0.08 | E54: =Scenarios!E45 -> 0.05 | F54: =Scenarios!F45 -> 0.03 | G54: =Scenarios!G45 -> 0.03 | H54: =Scenarios!H45 -> 0.025 | I54: =Scenarios!I45 -> 0.025

Sheet Valuation Model
B1: Time Line | F1: Driver 1 | G1: Driver2 | H1: Driver 3 | J1: Cost of Capital | L1: =Scenarios!$D$3 -> 0.068
J3: 0 | K3: 1 | L3: 2 | M3: 3 | N3: 4 | O3: 5 | P3: 6 | Q3: 7 | R3: 8 | S3: 9 | T3: 10 | U3: 11 | V3: 12 | W3: 13 | X3: 14 | Y3: 15 | Z3: 16 | AA3: 17 | AB3: 18 | AC3: 19 | AD3: 20 | AE3: 21 | AF3: 22 | AG3: 23 | AH3: 24 | AI3: 25 | AJ3: 26 | AK3: 27 | AL3: 28 | AM3: 29 | AN3: 30 | AO3: 31 | AP3: 32 | AQ3: 33 | AR3: 34 | AS3: 35 | AT3: 36 | AU3: 37 | AV3: 38 | AW3: 39 | AX3: 40 | AY3: 41 | AZ3: 42 | BA3: 43 | BB3: 44 | BC3: 45 | BD3: 46 | BE3: 47 | BF3: 48 | BG3: 49 | BH3: 50 | BI3: 51 | BJ3: 52 | BK3: 53 | BL3: 54 | BM3: 55 | BN3: 56 | BO3: 57 | BP3: 58 | BQ3: 59 | BR3: 60 | BS3: 61 | BT3: 62 | BU3: 63 | BV3: 64 | BW3: 65 | BX3: 66 | BY3: 67 | BZ3: 68 | CA3: 69 | CB3: 70 | CC3: 71 | CD3: 72 | CE3: 73 | CF3: 74 | CG3: 75 | CH3: 76 | CI3: 77 | CJ3: 78 | CK3: 79 | CL3: 80 | CM3: 81 | CN3: 82 | CO3: 83 | CP3: 84 | CQ3: 85 | CR3: 86 | CS3: 87 | CT3: 88 | CU3: 89 | CV3: 90 | CW3: 91 | CX3: 92 | CY3: 93 | CZ3: 94 | DA3: 95 | DB3: 96 | DC3: 97 | DD3: 98 | DE3: 99 | DF3: 100 | DG3: 101 | DH3: 102 | DI3: 103 | DJ3: 104 | DK3: 105 | DL3: 106 | DM3: 107 | DN3: 108 | DO3: 109 | DP3: 110 | DQ3: 111 | DR3: 112 | DS3: 113 | DT3: 114 | DU3: 115 | DV3: 116 | DW3: 117 | DX3: 118 | DY3: 119 | DZ3: 120 | EA3: 121 | EB3: 122 | EC3: 123 | ED3: 124 | EE3: 125 | EF3: 126 | EG3: 127 | EH3: 128 | EI3: 129 | EJ3: 130 | EK3: 131 | EL3: 132 | EM3: 133 | EN3: 134 | EO3: 135 | EP3: 136 | EQ3: 137 | ER3: 138 | ES3: 139 | ET3: 140 | EU3: 141 | EV3: 142 | EW3: 143 | EX3: 144 | EY3: 145 | EZ3: 146 | FA3: 147 | FB3: 148 | FC3: 149 | FD3: 150 | FE3: 151 | FF3: 152 | FG3: 153 | FH3: 154 | FI3: 155 | FJ3: 156 | FK3: 157 | FL3: 158 | FM3: 159 | FN3: 160 | FO3: 161 | FP3: 162 | FQ3: 163 | FR3: 164 | FS3: 165 | FT3: 166 | FU3: 167 | FV3: 168 | FW3: 169 | FX3: 170 | FY3: 171 | FZ3: 172 | GA3: 173 | GB3: 174 | GC3: 175 | GD3: 176 | GE3: 177 | GF3: 178 | GG3: 179 | GH3: 180 | GI3: 181 | GJ3: 182 | GK3: 183 | GL3: 184 | GM3: 185 | GN3: 186 | GO3: 187 | GP3: 188 | GQ3: 189 | GR3: 190 | GS3: 191 | GT3: 192 | GU3: 193 | GV3: 194 | GW3: 195 | GX3: 196 | GY3: 197 | GZ3: 198 | HA3: 199 | HB3: 200 | HC3: 201 | HD3: 202 | HE3: 203 | HF3: 204 | HG3: 205 | HH3: 206 | HI3: 207 | HJ3: 208 | HK3: 209 | HL3: 210 | HM3: 211 | HN3: 212 | HO3: 213 | HP3: 214 | HQ3: 215 | HR3: 216 | HS3: 217 | HT3: 218 | HU3: 219 | HV3: 220 | HW3: 221 | HX3: 222 | HY3: 223 | HZ3: 224 | IA3: 225 | IB3: 226 | IC3: 227 | ID3: 228 | IE3: 229 | IF3: 230 | IG3: 231 | IH3: 232 | II3: 233 | IJ3: 234 | IK3: 235 | IL3: 236 | IM3: 237 | IN3: 238 | IO3: 239 | IP3: 240 | IQ3: 241 | IR3: 242 | IS3: 243 | IT3: 244 | IU3: 245 | IV3: 246 | IW3: 247 | IX3: 248 | IY3: 249 | IZ3: 250 | JA3: 251 | JB3: 252 | JC3: 253 | JD3: 254 | JE3: 255 | JF3: 256 | JG3: 257 | JH3: 258 | JI3: 259 | JJ3: 260 | JK3: 261 | JL3: 262 | JM3: 263 | JN3: 264 | JO3: 265 | JP3: 266 | JQ3: 267 | JR3: 268 | JS3: 269 | JT3: 270 | JU3: 271 | JV3: 272 | JW3: 273 | JX3: 274 | JY3: 275 | JZ3: 276 | KA3: 277 | KB3: 278 | KC3: 279 | KD3: 280 | KE3: 281 | KF3: 282 | KG3: 283 | KH3: 284 | KI3: 285 | KJ3: 286 | KK3: 287 | KL3: 288 | KM3: 289 | KN3: 290 | KO3: 291 | KP3: 292 | KQ3: 293 | KR3: 294 | KS3: 295 | KT3: 296 | KU3: 297 | KV3: 298 | KW3: 299 | KX3: 300 | KY3: 301 | KZ3: 302 | LA3: 303 | LB3: 304 | LC3: 305 | LD3: 306 | LE3: 307 | LF3: 308 | LG3: 309 | LH3: 310 | LI3: 311 | LJ3: 312 | LK3: 313 | LL3: 314 | LM3: 315 | LN3: 316 | LO3: 317 | LP3: 318 | LQ3: 319 | LR3: 320 | LS3: 321 | LT3: 322 | LU3: 323 | LV3: 324 | LW3: 325 | LX3: 326 | LY3: 327 | LZ3: 328 | MA3: 329 | MB3: 330 | MC3: 331 | MD3: 332 | ME3: 333 | MF3: 334 | MG3: 335 | MH3: 336 | MI3: 337 | MJ3: 338 | MK3: 339 | ML3: 340 | MM3: 341 | MN3: 342 | MO3: 343 | MP3: 344 | MQ3: 345 | MR3: 346 | MS3: 347 | MT3: 348 | MU3: 349 | MV3: 350 | MW3: 351 | MX3: 352 | MY3: 353 | MZ3: 354 | NA3: 355 | NB3: 356 | NC3: 357 | ND3: 358 | NE3: 359 | NF3: 360 | NG3: 361 | NH3: 362 | NI3: 363 | NJ3: 364 | NK3: 365 | NL3: 366 | NM3: 367 | NN3: 368 | NO3: 369 | NP3: 370 | NQ3: 371 | NR3: 372 | NS3: 373 | NT3: 374 | NU3: 375 | NV3: 376 | NW3: 377 | NX3: 378 | NY3: 379 | NZ3: 380 | OA3: 381 | OB3: 382 | OC3: 383 | OD3: 384 | OE3: 385 | OF3: 386 | OG3: 387 | OH3: 388 | OI3: 389 | OJ3: 390 | OK3: 391 | OL3: 392 | OM3: 393 | ON3: 394 | OO3: 395 | OP3: 396 | OQ3: 397 | OR3: 398 | OS3: 399 | OT3: 400 | OU3: 401 | OV3: 402 | OW3: 403 | OX3: 404 | OY3: 405 | OZ3: 406 | PA3: 407 | PB3: 408 | PC3: 409 | PD3: 410 | PE3: 411 | PF3: 412 | PG3: 413 | PH3: 414 | PI3: 415 | PJ3: 416 | PK3: 417 | PL3: 418 | PM3: 419 | PN3: 420 | PO3: 421 | PP3: 422 | PQ3: 423 | PR3: 424 | PS3: 425 | PT3: 426 | PU3: 427 | PV3: 428 | PW3: 429 | PX3: 430 | PY3: 431 | PZ3: 432 | QA3: 433 | QB3: 434 | QC3: 435 | QD3: 436 | QE3: 437 | QF3: 438 | QG3: 439 | QH3: 440 | QI3: 441 | QJ3: 442 | QK3: 443 | QL3: 444 | QM3: 445 | QN3: 446 | QO3: 447 | QP3: 448 | QQ3: 449 | QR3: 450 | QS3: 451 | QT3: 452 | QU3: 453 | QV3: 454 | QW3: 455 | QX3: 456 | QY3: 457 | QZ3: 458 | RA3: 459 | RB3: 460 | RC3: 461 | RD3: 462 | RE3: 463 | RF3: 464 | RG3: 465 | RH3: 466 | RI3: 467 | RJ3: 468 | RK3: 469 | RL3: 470 | RM3: 471 | RN3: 472 | RO3: 473 | RP3: 474 | RQ3: 475 | RR3: 476 | RS3: 477 | RT3: 478 | RU3: 479 | RV3: 480 | RW3: 481 | RX3: 482 | RY3: 483 | RZ3: 484 | SA3: 485 | SB3: 486 | SC3: 487 | SD3: 488 | SE3: 489 | SF3: 490 | SG3: 491 | SH3: 492 | SI3: 493 | SJ3: 494 | SK3: 495 | SL3: 496 | SM3: 497 | SN3: 498 | SO3: 499 | SP3: 500 | SQ3: 501 | SR3: 502 | SS3: 503 | ST3: 504 | SU3: 505 | SV3: 506 | SW3: 507 | SX3: 508 | SY3: 509 | SZ3: 510 | TA3: 511 | TB3: 512 | TC3: 513
C4: Holding Period | F4: =Scenarios!D5 -> 10 | J4: =J23<=Scenarios!$D$5 -> TRUE | K4: =K23<=Scenarios!$D$5 -> TRUE | L4: =L23<=Scenarios!$D$5 -> TRUE | M4: =M23<=Scenarios!$D$5 -> TRUE | N4: =N23<=Scenarios!$D$5 -> TRUE | O4: =O23<=Scenarios!$D$5 -> TRUE | P4: =P23<=Scenarios!$D$5 -> TRUE | Q4: =Q23<=Scenarios!$D$5 -> TRUE | R4: =R23<=Scenarios!$D$5 -> TRUE | S4: =S23<=Scenarios!$D$5 -> TRUE | T4: =T23<=Scenarios!$D$5 -> TRUE | U4: =U23<=Scenarios!$D$5 -> FALSE | V4: =V23<=Scenarios!$D$5 -> FALSE | W4: =W23<=Scenarios!$D$5 -> FALSE | X4: =X23<=Scenarios!$D$5 -> FALSE | Y4: =Y23<=Scenarios!$D$5 -> FALSE | Z4: =Z23<=Scenarios!$D$5 -> FALSE | AA4: =AA23<=Scenarios!$D$5 -> FALSE | AB4: =AB23<=Scenarios!$D$5 -> FALSE | AC4: =AC23<=Scenarios!$D$5 -> FALSE | AD4: =AD23<=Scenarios!$D$5 -> FALSE | AE4: =AE23<=Scenarios!$D$5 -> FALSE | AF4: =AF23<=Scenarios!$D$5 -> FALSE | AG4: =AG23<=Scenarios!$D$5 -> FALSE | AH4: =AH23<=Scenarios!$D$5 -> FALSE | AI4: =AI23<=Scenarios!$D$5 -> FALSE | AJ4: =AJ23<=Scenarios!$D$5 -> FALSE | AK4: =AK23<=Scenarios!$D$5 -> FALSE | AL4: =AL23<=Scenarios!$D$5 -> FALSE | AM4: =AM23<=Scenarios!$D$5 -> FALSE | AN4: =AN23<=Scenarios!$D$5 -> FALSE | AO4: =AO23<=Scenarios!$D$5 -> FALSE | AP4: =AP23<=Scenarios!$D$5 -> FALSE | AQ4: =AQ23<=Scenarios!$D$5 -> FALSE | AR4: =AR23<=Scenarios!$D$5 -> FALSE | AS4: =AS23<=Scenarios!$D$5 -> FALSE | AT4: =AT23<=Scenarios!$D$5 -> FALSE | AU4: =AU23<=Scenarios!$D$5 -> FALSE | AV4: =AV23<=Scenarios!$D$5 -> FALSE | AW4: =AW23<=Scenarios!$D$5 -> FALSE | AX4: =AX23<=Scenarios!$D$5 -> FALSE | AY4: =AY23<=Scenarios!$D$5 -> FALSE | AZ4: =AZ23<=Scenarios!$D$5 -> FALSE | BA4: =BA23<=Scenarios!$D$5 -> FALSE | BB4: =BB23<=Scenarios!$D$5 -> FALSE | BC4: =BC23<=Scenarios!$D$5 -> FALSE | BD4: =BD23<=Scenarios!$D$5 -> FALSE | BE4: =BE23<=Scenarios!$D$5 -> FALSE | BF4: =BF23<=Scenarios!$D$5 -> FALSE | BG4: =BG23<=Scenarios!$D$5 -> FALSE | BH4: =BH23<=Scenarios!$D$5 -> FALSE | BI4: =BI23<=Scenarios!$D$5 -> FALSE | BJ4: =BJ23<=Scenarios!$D$5 -> FALSE | BK4: =BK23<=Scenarios!$D$5 -> FALSE | BL4: =BL23<=Scenarios!$D$5 -> FALSE | BM4: =BM23<=Scenarios!$D$5 -> FALSE | BN4: =BN23<=Scenarios!$D$5 -> FALSE | BO4: =BO23<=Scenarios!$D$5 -> FALSE | BP4: =BP23<=Scenarios!$D$5 -> FALSE | BQ4: =BQ23<=Scenarios!$D$5 -> FALSE | BR4: =BR23<=Scenarios!$D$5 -> FALSE | BS4: =BS23<=Scenarios!$D$5 -> FALSE | BT4: =BT23<=Scenarios!$D$5 -> FALSE | BU4: =BU23<=Scenarios!$D$5 -> FALSE | BV4: =BV23<=Scenarios!$D$5 -> FALSE | BW4: =BW23<=Scenarios!$D$5 -> FALSE | BX4: =BX23<=Scenarios!$D$5 -> FALSE | BY4: =BY23<=Scenarios!$D$5 -> FALSE | BZ4: =BZ23<=Scenarios!$D$5 -> FALSE | CA4: =CA23<=Scenarios!$D$5 -> FALSE | CB4: =CB23<=Scenarios!$D$5 -> FALSE | CC4: =CC23<=Scenarios!$D$5 -> FALSE | CD4: =CD23<=Scenarios!$D$5 -> FALSE | CE4: =CE23<=Scenarios!$D$5 -> FALSE | CF4: =CF23<=Scenarios!$D$5 -> FALSE | CG4: =CG23<=Scenarios!$D$5 -> FALSE | CH4: =CH23<=Scenarios!$D$5 -> FALSE | CI4: =CI23<=Scenarios!$D$5 -> FALSE | CJ4: =CJ23<=Scenarios!$D$5 -> FALSE | CK4: =CK23<=Scenarios!$D$5 -> FALSE | CL4: =CL23<=Scenarios!$D$5 -> FALSE | CM4: =CM23<=Scenarios!$D$5 -> FALSE | CN4: =CN23<=Scenarios!$D$5 -> FALSE | CO4: =CO23<=Scenarios!$D$5 -> FALSE | CP4: =CP23<=Scenarios!$D$5 -> FALSE | CQ4: =CQ23<=Scenarios!$D$5 -> FALSE | CR4: =CR23<=Scenarios!$D$5 -> FALSE | CS4: =CS23<=Scenarios!$D$5 -> FALSE | CT4: =CT23<=Scenarios!$D$5 -> FALSE | CU4: =CU23<=Scenarios!$D$5 -> FALSE | CV4: =CV23<=Scenarios!$D$5 -> FALSE | CW4: =CW23<=Scenarios!$D$5 -> FALSE | CX4: =CX23<=Scenarios!$D$5 -> FALSE | CY4: =CY23<=Scenarios!$D$5 -> FALSE | CZ4: =CZ23<=Scenarios!$D$5 -> FALSE | DA4: =DA23<=Scenarios!$D$5 -> FALSE | DB4: =DB23<=Scenarios!$D$5 -> FALSE | DC4: =DC23<=Scenarios!$D$5 -> FALSE | DD4: =DD23<=Scenarios!$D$5 -> FALSE | DE4: =DE23<=Scenarios!$D$5 -> FALSE | DF4: =DF23<=Scenarios!$D$5 -> FALSE | DG4: =DG23<=Scenarios!$D$5 -> FALSE | DH4: =DH23<=Scenarios!$D$5 -> FALSE | DI4: =DI23<=Scenarios!$D$5 -> FALSE | DJ4: =DJ23<=Scenarios!$D$5 -> FALSE | DK4: =DK23<=Scenarios!$D$5 -> FALSE | DL4: =DL23<=Scenarios!$D$5 -> FALSE | DM4: =DM23<=Scenarios!$D$5 -> FALSE | DN4: =DN23<=Scenarios!$D$5 -> FALSE | DO4: =DO23<=Scenarios!$D$5 -> FALSE | DP4: =DP23<=Scenarios!$D$5 -> FALSE | DQ4: =DQ23<=Scenarios!$D$5 -> FALSE | DR4: =DR23<=Scenarios!$D$5 -> FALSE | DS4: =DS23<=Scenarios!$D$5 -> FALSE | DT4: =DT23<=Scenarios!$D$5 -> FALSE | DU4: =DU23<=Scenarios!$D$5 -> FALSE | DV4: =DV23<=Scenarios!$D$5 -> FALSE | DW4: =DW23<=Scenarios!$D$5 -> FALSE | DX4: =DX23<=Scenarios!$D$5 -> FALSE | DY4: =DY23<=Scenarios!$D$5 -> FALSE | DZ4: =DZ23<=Scenarios!$D$5 -> FALSE | EA4: =EA23<=Scenarios!$D$5 -> FALSE | EB4: =EB23<=Scenarios!$D$5 -> FALSE | EC4: =EC23<=Scenarios!$D$5 -> FALSE | ED4: =ED23<=Scenarios!$D$5 -> FALSE | EE4: =EE23<=Scenarios!$D$5 -> FALSE | EF4: =EF23<=Scenarios!$D$5 -> FALSE | EG4: =EG23<=Scenarios!$D$5 -> FALSE | EH4: =EH23<=Scenarios!$D$5 -> FALSE | EI4: =EI23<=Scenarios!$D$5 -> FALSE | EJ4: =EJ23<=Scenarios!$D$5 -> FALSE | EK4: =EK23<=Scenarios!$D$5 -> FALSE | EL4: =EL23<=Scenarios!$D$5 -> FALSE | EM4: =EM23<=Scenarios!$D$5 -> FALSE | EN4: =EN23<=Scenarios!$D$5 -> FALSE | EO4: =EO23<=Scenarios!$D$5 -> FALSE | EP4: =EP23<=Scenarios!$D$5 -> FALSE | EQ4: =EQ23<=Scenarios!$D$5 -> FALSE | ER4: =ER23<=Scenarios!$D$5 -> FALSE | ES4: =ES23<=Scenarios!$D$5 -> FALSE | ET4: =ET23<=Scenarios!$D$5 -> FALSE | EU4: =EU23<=Scenarios!$D$5 -> FALSE | EV4: =EV23<=Scenarios!$D$5 -> FALSE | EW4: =EW23<=Scenarios!$D$5 -> FALSE | EX4: =EX23<=Scenarios!$D$5 -> FALSE | EY4: =EY23<=Scenarios!$D$5 -> FALSE | EZ4: =EZ23<=Scenarios!$D$5 -> FALSE | FA4: =FA23<=Scenarios!$D$5 -> FALSE | FB4: =FB23<=Scenarios!$D$5 -> FALSE | FC4: =FC23<=Scenarios!$D$5 -> FALSE | FD4: =FD23<=Scenarios!$D$5 -> FALSE | FE4: =FE23<=Scenarios!$D$5 -> FALSE | FF4: =FF23<=Scenarios!$D$5 -> FALSE | FG4: =FG23<=Scenarios!$D$5 -> FALSE | FH4: =FH23<=Scenarios!$D$5 -> FALSE | FI4: =FI23<=Scenarios!$D$5 -> FALSE | FJ4: =FJ23<=Scenarios!$D$5 -> FALSE | FK4: =FK23<=Scenarios!$D$5 -> FALSE | FL4: =FL23<=Scenarios!$D$5 -> FALSE | FM4: =FM23<=Scenarios!$D$5 -> FALSE | FN4: =FN23<=Scenarios!$D$5 -> FALSE | FO4: =FO23<=Scenarios!$D$5 -> FALSE | FP4: =FP23<=Scenarios!$D$5 -> FALSE | FQ4: =FQ23<=Scenarios!$D$5 -> FALSE | FR4: =FR23<=Scenarios!$D$5 -> FALSE | FS4: =FS23<=Scenarios!$D$5 -> FALSE | FT4: =FT23<=Scenarios!$D$5 -> FALSE | FU4: =FU23<=Scenarios!$D$5 -> FALSE | FV4: =FV23<=Scenarios!$D$5 -> FALSE | FW4: =FW23<=Scenarios!$D$5 -> FALSE | FX4: =FX23<=Scenarios!$D$5 -> FALSE | FY4: =FY23<=Scenarios!$D$5 -> FALSE | FZ4: =FZ23<=Scenarios!$D$5 -> FALSE | GA4: =GA23<=Scenarios!$D$5 -> FALSE | GB4: =GB23<=Scenarios!$D$5 -> FALSE | GC4: =GC23<=Scenarios!$D$5 -> FALSE | GD4: =GD23<=Scenarios!$D$5 -> FALSE | GE4: =GE23<=Scenarios!$D$5 -> FALSE | GF4: =GF23<=Scenarios!$D$5 -> FALSE | GG4: =GG23<=Scenarios!$D$5 -> FALSE | GH4: =GH23<=Scenarios!$D$5 -> FALSE | GI4: =GI23<=Scenarios!$D$5 -> FALSE | GJ4: =GJ23<=Scenarios!$D$5 -> FALSE | GK4: =GK23<=Scenarios!$D$5 -> FALSE | GL4: =GL23<=Scenarios!$D$5 -> FALSE | GM4: =GM23<=Scenarios!$D$5 -> FALSE | GN4: =GN23<=Scenarios!$D$5 -> FALSE | GO4: =GO23<=Scenarios!$D$5 -> FALSE | GP4: =GP23<=Scenarios!$D$5 -> FALSE | GQ4: =GQ23<=Scenarios!$D$5 -> FALSE | GR4: =GR23<=Scenarios!$D$5 -> FALSE | GS4: =GS23<=Scenarios!$D$5 -> FALSE | GT4: =GT23<=Scenarios!$D$5 -> FALSE | GU4: =GU23<=Scenarios!$D$5 -> FALSE | GV4: =GV23<=Scenarios!$D$5 -> FALSE | GW4: =GW23<=Scenarios!$D$5 -> FALSE | GX4: =GX23<=Scenarios!$D$5 -> FALSE | GY4: =GY23<=Scenarios!$D$5 -> FALSE | GZ4: =GZ23<=Scenarios!$D$5 -> FALSE | HA4: =HA23<=Scenarios!$D$5 -> FALSE | HB4: =HB23<=Scenarios!$D$5 -> FALSE | HC4: =HC23<=Scenarios!$D$5 -> FALSE | HD4: =HD23<=Scenarios!$D$5 -> FALSE | HE4: =HE23<=Scenarios!$D$5 -> FALSE | HF4: =HF23<=Scenarios!$D$5 -> FALSE | HG4: =HG23<=Scenarios!$D$5 -> FALSE | HH4: =HH23<=Scenarios!$D$5 -> FALSE | HI4: =HI23<=Scenarios!$D$5 -> FALSE | HJ4: =HJ23<=Scenarios!$D$5 -> FALSE | HK4: =HK23<=Scenarios!$D$5 -> FALSE | HL4: =HL23<=Scenarios!$D$5 -> FALSE | HM4: =HM23<=Scenarios!$D$5 -> FALSE | HN4: =HN23<=Scenarios!$D$5 -> FALSE | HO4: =HO23<=Scenarios!$D$5 -> FALSE | HP4: =HP23<=Scenarios!$D$5 -> FALSE | HQ4: =HQ23<=Scenarios!$D$5 -> FALSE | HR4: =HR23<=Scenarios!$D$5 -> FALSE | HS4: =HS23<=Scenarios!$D$5 -> FALSE | HT4: =HT23<=Scenarios!$D$5 -> FALSE | HU4: =HU23<=Scenarios!$D$5 -> FALSE | HV4: =HV23<=Scenarios!$D$5 -> FALSE | HW4: =HW23<=Scenarios!$D$5 -> FALSE | HX4: =HX23<=Scenarios!$D$5 -> FALSE | HY4: =HY23<=Scenarios!$D$5 -> FALSE | HZ4: =HZ23<=Scenarios!$D$5 -> FALSE | IA4: =IA23<=Scenarios!$D$5 -> FALSE | IB4: =IB23<=Scenarios!$D$5 -> FALSE | IC4: =IC23<=Scenarios!$D$5 -> FALSE | ID4: =ID23<=Scenarios!$D$5 -> FALSE | IE4: =IE23<=Scenarios!$D$5 -> FALSE | IF4: =IF23<=Scenarios!$D$5 -> FALSE | IG4: =IG23<=Scenarios!$D$5 -> FALSE | IH4: =IH23<=Scenarios!$D$5 -> FALSE | II4: =II23<=Scenarios!$D$5 -> FALSE | IJ4: =IJ23<=Scenarios!$D$5 -> FALSE | IK4: =IK23<=Scenarios!$D$5 -> FALSE | IL4: =IL23<=Scenarios!$D$5 -> FALSE | IM4: =IM23<=Scenarios!$D$5 -> FALSE | IN4: =IN23<=Scenarios!$D$5 -> FALSE | IO4: =IO23<=Scenarios!$D$5 -> FALSE | IP4: =IP23<=Scenarios!$D$5 -> FALSE | IQ4: =IQ23<=Scenarios!$D$5 -> FALSE | IR4: =IR23<=Scenarios!$D$5 -> FALSE | IS4: =IS23<=Scenarios!$D$5 -> FALSE | IT4: =IT23<=Scenarios!$D$5 -> FALSE | IU4: =IU23<=Scenarios!$D$5 -> FALSE | IV4: =IV23<=Scenarios!$D$5 -> FALSE | IW4: =IW23<=Scenarios!$D$5 -> FALSE | IX4: =IX23<=Scenarios!$D$5 -> FALSE | IY4: =IY23<=Scenarios!$D$5 -> FALSE | IZ4: =IZ23<=Scenarios!$D$5 -> FALSE | JA4: =JA23<=Scenarios!$D$5 -> FALSE | JB4: =JB23<=Scenarios!$D$5 -> FALSE | JC4: =JC23<=Scenarios!$D$5 -> FALSE | JD4: =JD23<=Scenarios!$D$5 -> FALSE | JE4: =JE23<=Scenarios!$D$5 -> FALSE | JF4: =JF23<=Scenarios!$D$5 -> FALSE | JG4: =JG23<=Scenarios!$D$5 -> FALSE | JH4: =JH23<=Scenarios!$D$5 -> FALSE | JI4: =JI23<=Scenarios!$D$5 -> FALSE | JJ4: =JJ23<=Scenarios!$D$5 -> FALSE | JK4: =JK23<=Scenarios!$D$5 -> FALSE | JL4: =JL23<=Scenarios!$D$5 -> FALSE | JM4: =JM23<=Scenarios!$D$5 -> FALSE | JN4: =JN23<=Scenarios!$D$5 -> FALSE | JO4: =JO23<=Scenarios!$D$5 -> FALSE | JP4: =JP23<=Scenarios!$D$5 -> FALSE | JQ4: =JQ23<=Scenarios!$D$5 -> FALSE | JR4: =JR23<=Scenarios!$D$5 -> FALSE | JS4: =JS23<=Scenarios!$D$5 -> FALSE | JT4: =JT23<=Scenarios!$D$5 -> FALSE | JU4: =JU23<=Scenarios!$D$5 -> FALSE | JV4: =JV23<=Scenarios!$D$5 -> FALSE | JW4: =JW23<=Scenarios!$D$5 -> FALSE | JX4: =JX23<=Scenarios!$D$5 -> FALSE | JY4: =JY23<=Scenarios!$D$5 -> FALSE | JZ4: =JZ23<=Scenarios!$D$5 -> FALSE | KA4: =KA23<=Scenarios!$D$5 -> FALSE | KB4: =KB23<=Scenarios!$D$5 -> FALSE | KC4: =KC23<=Scenarios!$D$5 -> FALSE | KD4: =KD23<=Scenarios!$D$5 -> FALSE | KE4: =KE23<=Scenarios!$D$5 -> FALSE | KF4: =KF23<=Scenarios!$D$5 -> FALSE | KG4: =KG23<=Scenarios!$D$5 -> FALSE | KH4: =KH23<=Scenarios!$D$5 -> FALSE | KI4: =KI23<=Scenarios!$D$5 -> FALSE | KJ4: =KJ23<=Scenarios!$D$5 -> FALSE | KK4: =KK23<=Scenarios!$D$5 -> FALSE | KL4: =KL23<=Scenarios!$D$5 -> FALSE | KM4: =KM23<=Scenarios!$D$5 -> FALSE | KN4: =KN23<=Scenarios!$D$5 -> FALSE | KO4: =KO23<=Scenarios!$D$5 -> FALSE | KP4: =KP23<=Scenarios!$D$5 -> FALSE | KQ4: =KQ23<=Scenarios!$D$5 -> FALSE | KR4: =KR23<=Scenarios!$D$5 -> FALSE | KS4: =KS23<=Scenarios!$D$5 -> FALSE | KT4: =KT23<=Scenarios!$D$5 -> FALSE | KU4: =KU23<=Scenarios!$D$5 -> FALSE | KV4: =KV23<=Scenarios!$D$5 -> FALSE | KW4: =KW23<=Scenarios!$D$5 -> FALSE | KX4: =KX23<=Scenarios!$D$5 -> FALSE | KY4: =KY23<=Scenarios!$D$5 -> FALSE | KZ4: =KZ23<=Scenarios!$D$5 -> FALSE | LA4: =LA23<=Scenarios!$D$5 -> FALSE | LB4: =LB23<=Scenarios!$D$5 -> FALSE | LC4: =LC23<=Scenarios!$D$5 -> FALSE | LD4: =LD23<=Scenarios!$D$5 -> FALSE | LE4: =LE23<=Scenarios!$D$5 -> FALSE | LF4: =LF23<=Scenarios!$D$5 -> FALSE | LG4: =LG23<=Scenarios!$D$5 -> FALSE | LH4: =LH23<=Scenarios!$D$5 -> FALSE | LI4: =LI23<=Scenarios!$D$5 -> FALSE | LJ4: =LJ23<=Scenarios!$D$5 -> FALSE | LK4: =LK23<=Scenarios!$D$5 -> FALSE | LL4: =LL23<=Scenarios!$D$5 -> FALSE | LM4: =LM23<=Scenarios!$D$5 -> FALSE | LN4: =LN23<=Scenarios!$D$5 -> FALSE | LO4: =LO23<=Scenarios!$D$5 -> FALSE | LP4: =LP23<=Scenarios!$D$5 -> FALSE | LQ4: =LQ23<=Scenarios!$D$5 -> FALSE | LR4: =LR23<=Scenarios!$D$5 -> FALSE | LS4: =LS23<=Scenarios!$D$5 -> FALSE | LT4: =LT23<=Scenarios!$D$5 -> FALSE | LU4: =LU23<=Scenarios!$D$5 -> FALSE | LV4: =LV23<=Scenarios!$D$5 -> FALSE | LW4: =LW23<=Scenarios!$D$5 -> FALSE | LX4: =LX23<=Scenarios!$D$5 -> FALSE | LY4: =LY23<=Scenarios!$D$5 -> FALSE | LZ4: =LZ23<=Scenarios!$D$5 -> FALSE | MA4: =MA23<=Scenarios!$D$5 -> FALSE | MB4: =MB23<=Scenarios!$D$5 -> FALSE | MC4: =MC23<=Scenarios!$D$5 -> FALSE | MD4: =MD23<=Scenarios!$D$5 -> FALSE | ME4: =ME23<=Scenarios!$D$5 -> FALSE | MF4: =MF23<=Scenarios!$D$5 -> FALSE | MG4: =MG23<=Scenarios!$D$5 -> FALSE | MH4: =MH23<=Scenarios!$D$5 -> FALSE | MI4: =MI23<=Scenarios!$D$5 -> FALSE | MJ4: =MJ23<=Scenarios!$D$5 -> FALSE | MK4: =MK23<=Scenarios!$D$5 -> FALSE | ML4: =ML23<=Scenarios!$D$5 -> FALSE | MM4: =MM23<=Scenarios!$D$5 -> FALSE | MN4: =MN23<=Scenarios!$D$5 -> FALSE | MO4: =MO23<=Scenarios!$D$5 -> FALSE | MP4: =MP23<=Scenarios!$D$5 -> FALSE | MQ4: =MQ23<=Scenarios!$D$5 -> FALSE | MR4: =MR23<=Scenarios!$D$5 -> FALSE | MS4: =MS23<=Scenarios!$D$5 -> FALSE | MT4: =MT23<=Scenarios!$D$5 -> FALSE | MU4: =MU23<=Scenarios!$D$5 -> FALSE | MV4: =MV23<=Scenarios!$D$5 -> FALSE | MW4: =MW23<=Scenarios!$D$5 -> FALSE | MX4: =MX23<=Scenarios!$D$5 -> FALSE | MY4: =MY23<=Scenarios!$D$5 -> FALSE | MZ4: =MZ23<=Scenarios!$D$5 -> FALSE | NA4: =NA23<=Scenarios!$D$5 -> FALSE | NB4: =NB23<=Scenarios!$D$5 -> FALSE | NC4: =NC23<=Scenarios!$D$5 -> FALSE | ND4: =ND23<=Scenarios!$D$5 -> FALSE | NE4: =NE23<=Scenarios!$D$5 -> FALSE | NF4: =NF23<=Scenarios!$D$5 -> FALSE | NG4: =NG23<=Scenarios!$D$5 -> FALSE | NH4: =NH23<=Scenarios!$D$5 -> FALSE | NI4: =NI23<=Scenarios!$D$5 -> FALSE | NJ4: =NJ23<=Scenarios!$D$5 -> FALSE | NK4: =NK23<=Scenarios!$D$5 -> FALSE | NL4: =NL23<=Scenarios!$D$5 -> FALSE | NM4: =NM23<=Scenarios!$D$5 -> FALSE | NN4: =NN23<=Scenarios!$D$5 -> FALSE | NO4: =NO23<=Scenarios!$D$5 -> FALSE | NP4: =NP23<=Scenarios!$D$5 -> FALSE | NQ4: =NQ23<=Scenarios!$D$5 -> FALSE | NR4: =NR23<=Scenarios!$D$5 -> FALSE | NS4: =NS23<=Scenarios!$D$5 -> FALSE | NT4: =NT23<=Scenarios!$D$5 -> FALSE | NU4: =NU23<=Scenarios!$D$5 -> FALSE | NV4: =NV23<=Scenarios!$D$5 -> FALSE | NW4: =NW23<=Scenarios!$D$5 -> FALSE | NX4: =NX23<=Scenarios!$D$5 -> FALSE | NY4: =NY23<=Scenarios!$D$5 -> FALSE | NZ4: =NZ23<=Scenarios!$D$5 -> FALSE | OA4: =OA23<=Scenarios!$D$5 -> FALSE | OB4: =OB23<=Scenarios!$D$5 -> FALSE | OC4: =OC23<=Scenarios!$D$5 -> FALSE | OD4: =OD23<=Scenarios!$D$5 -> FALSE | OE4: =OE23<=Scenarios!$D$5 -> FALSE | OF4: =OF23<=Scenarios!$D$5 -> FALSE | OG4: =OG23<=Scenarios!$D$5 -> FALSE | OH4: =OH23<=Scenarios!$D$5 -> FALSE | OI4: =OI23<=Scenarios!$D$5 -> FALSE | OJ4: =OJ23<=Scenarios!$D$5 -> FALSE | OK4: =OK23<=Scenarios!$D$5 -> FALSE | OL4: =OL23<=Scenarios!$D$5 -> FALSE | OM4: =OM23<=Scenarios!$D$5 -> FALSE | ON4: =ON23<=Scenarios!$D$5 -> FALSE | OO4: =OO23<=Scenarios!$D$5 -> FALSE | OP4: =OP23<=Scenarios!$D$5 -> FALSE | OQ4: =OQ23<=Scenarios!$D$5 -> FALSE | OR4: =OR23<=Scenarios!$D$5 -> FALSE | OS4: =OS23<=Scenarios!$D$5 -> FALSE | OT4: =OT23<=Scenarios!$D$5 -> FALSE | OU4: =OU23<=Scenarios!$D$5 -> FALSE | OV4: =OV23<=Scenarios!$D$5 -> FALSE | OW4: =OW23<=Scenarios!$D$5 -> FALSE | OX4: =OX23<=Scenarios!$D$5 -> FALSE | OY4: =OY23<=Scenarios!$D$5 -> FALSE | OZ4: =OZ23<=Scenarios!$D$5 -> FALSE | PA4: =PA23<=Scenarios!$D$5 -> FALSE | PB4: =PB23<=Scenarios!$D$5 -> FALSE | PC4: =PC23<=Scenarios!$D$5 -> FALSE | PD4: =PD23<=Scenarios!$D$5 -> FALSE | PE4: =PE23<=Scenarios!$D$5 -> FALSE | PF4: =PF23<=Scenarios!$D$5 -> FALSE | PG4: =PG23<=Scenarios!$D$5 -> FALSE | PH4: =PH23<=Scenarios!$D$5 -> FALSE | PI4: =PI23<=Scenarios!$D$5 -> FALSE | PJ4: =PJ23<=Scenarios!$D$5 -> FALSE | PK4: =PK23<=Scenarios!$D$5 -> FALSE | PL4: =PL23<=Scenarios!$D$5 -> FALSE | PM4: =PM23<=Scenarios!$D$5 -> FALSE | PN4: =PN23<=Scenarios!$D$5 -> FALSE | PO4: =PO23<=Scenarios!$D$5 -> FALSE | PP4: =PP23<=Scenarios!$D$5 -> FALSE | PQ4: =PQ23<=Scenarios!$D$5 -> FALSE | PR4: =PR23<=Scenarios!$D$5 -> FALSE | PS4: =PS23<=Scenarios!$D$5 -> FALSE | PT4: =PT23<=Scenarios!$D$5 -> FALSE | PU4: =PU23<=Scenarios!$D$5 -> FALSE | PV4: =PV23<=Scenarios!$D$5 -> FALSE | PW4: =PW23<=Scenarios!$D$5 -> FALSE | PX4: =PX23<=Scenarios!$D$5 -> FALSE | PY4: =PY23<=Scenarios!$D$5 -> FALSE | PZ4: =PZ23<=Scenarios!$D$5 -> FALSE | QA4: =QA23<=Scenarios!$D$5 -> FALSE | QB4: =QB23<=Scenarios!$D$5 -> FALSE | QC4: =QC23<=Scenarios!$D$5 -> FALSE | QD4: =QD23<=Scenarios!$D$5 -> FALSE | QE4: =QE23<=Scenarios!$D$5 -> FALSE | QF4: =QF23<=Scenarios!$D$5 -> FALSE | QG4: =QG23<=Scenarios!$D$5 -> FALSE | QH4: =QH23<=Scenarios!$D$5 -> FALSE | QI4: =QI23<=Scenarios!$D$5 -> FALSE | QJ4: =QJ23<=Scenarios!$D$5 -> FALSE | QK4: =QK23<=Scenarios!$D$5 -> FALSE | QL4: =QL23<=Scenarios!$D$5 -> FALSE | QM4: =QM23<=Scenarios!$D$5 -> FALSE | QN4: =QN23<=Scenarios!$D$5 -> FALSE | QO4: =QO23<=Scenarios!$D$5 -> FALSE | QP4: =QP23<=Scenarios!$D$5 -> FALSE | QQ4: =QQ23<=Scenarios!$D$5 -> FALSE | QR4: =QR23<=Scenarios!$D$5 -> FALSE | QS4: =QS23<=Scenarios!$D$5 -> FALSE | QT4: =QT23<=Scenarios!$D$5 -> FALSE | QU4: =QU23<=Scenarios!$D$5 -> FALSE | QV4: =QV23<=Scenarios!$D$5 -> FALSE | QW4: =QW23<=Scenarios!$D$5 -> FALSE | QX4: =QX23<=Scenarios!$D$5 -> FALSE | QY4: =QY23<=Scenarios!$D$5 -> FALSE | QZ4: =QZ23<=Scenarios!$D$5 -> FALSE | RA4: =RA23<=Scenarios!$D$5 -> FALSE | RB4: =RB23<=Scenarios!$D$5 -> FALSE | RC4: =RC23<=Scenarios!$D$5 -> FALSE | RD4: =RD23<=Scenarios!$D$5 -> FALSE | RE4: =RE23<=Scenarios!$D$5 -> FALSE | RF4: =RF23<=Scenarios!$D$5 -> FALSE | RG4: =RG23<=Scenarios!$D$5 -> FALSE | RH4: =RH23<=Scenarios!$D$5 -> FALSE | RI4: =RI23<=Scenarios!$D$5 -> FALSE | RJ4: =RJ23<=Scenarios!$D$5 -> FALSE | RK4: =RK23<=Scenarios!$D$5 -> FALSE | RL4: =RL23<=Scenarios!$D$5 -> FALSE | RM4: =RM23<=Scenarios!$D$5 -> FALSE | RN4: =RN23<=Scenarios!$D$5 -> FALSE | RO4: =RO23<=Scenarios!$D$5 -> FALSE | RP4: =RP23<=Scenarios!$D$5 -> FALSE | RQ4: =RQ23<=Scenarios!$D$5 -> FALSE | RR4: =RR23<=Scenarios!$D$5 -> FALSE | RS4: =RS23<=Scenarios!$D$5 -> FALSE | RT4: =RT23<=Scenarios!$D$5 -> FALSE | RU4: =RU23<=Scenarios!$D$5 -> FALSE | RV4: =RV23<=Scenarios!$D$5 -> FALSE | RW4: =RW23<=Scenarios!$D$5 -> FALSE | RX4: =RX23<=Scenarios!$D$5 -> FALSE | RY4: =RY23<=Scenarios!$D$5 -> FALSE | RZ4: =RZ23<=Scenarios!$D$5 -> FALSE | SA4: =SA23<=Scenarios!$D$5 -> FALSE | SB4: =SB23<=Scenarios!$D$5 -> FALSE | SC4: =SC23<=Scenarios!$D$5 -> FALSE | SD4: =SD23<=Scenarios!$D$5 -> FALSE | SE4: =SE23<=Scenarios!$D$5 -> FALSE | SF4: =SF23<=Scenarios!$D$5 -> FALSE | SG4: =SG23<=Scenarios!$D$5 -> FALSE | SH4: =SH23<=Scenarios!$D$5 -> FALSE | SI4: =SI23<=Scenarios!$D$5 -> FALSE | SJ4: =SJ23<=Scenarios!$D$5 -> FALSE | SK4: =SK23<=Scenarios!$D$5 -> FALSE | SL4: =SL23<=Scenarios!$D$5 -> FALSE | SM4: =SM23<=Scenarios!$D$5 -> FALSE | SN4: =SN23<=Scenarios!$D$5 -> FALSE | SO4: =SO23<=Scenarios!$D$5 -> FALSE | SP4: =SP23<=Scenarios!$D$5 -> FALSE | SQ4: =SQ23<=Scenarios!$D$5 -> FALSE | SR4: =SR23<=Scenarios!$D$5 -> FALSE | SS4: =SS23<=Scenarios!$D$5 -> FALSE | ST4: =ST23<=Scenarios!$D$5 -> FALSE | SU4: =SU23<=Scenarios!$D$5 -> FALSE | SV4: =SV23<=Scenarios!$D$5 -> FALSE | SW4: =SW23<=Scenarios!$D$5 -> FALSE | SX4: =SX23<=Scenarios!$D$5 -> FALSE | SY4: =SY23<=Scenarios!$D$5 -> FALSE | SZ4: =SZ23<=Scenarios!$D$5 -> FALSE | TA4: =TA23<=Scenarios!$D$5 -> FALSE | TB4: =TB23<=Scenarios!$D$5 -> FALSE | TC4: =TC23<=Scenarios!$D$5 -> FALSE
C5: Exit Period | F5: =Scenarios!D5 -> 10 | J5: =J23=Scenarios!$D$5 -> FALSE | K5: =K23=Scenarios!$D$5 -> FALSE | L5: =L23=Scenarios!$D$5 -> FALSE | M5: =M23=Scenarios!$D$5 -> FALSE | N5: =N23=Scenarios!$D$5 -> FALSE | O5: =O23=Scenarios!$D$5 -> FALSE | P5: =P23=Scenarios!$D$5 -> FALSE | Q5: =Q23=Scenarios!$D$5 -> FALSE | R5: =R23=Scenarios!$D$5 -> FALSE | S5: =S23=Scenarios!$D$5 -> FALSE | T5: =T23=Scenarios!$D$5 -> TRUE | U5: =U23=Scenarios!$D$5 -> FALSE | V5: =V23=Scenarios!$D$5 -> FALSE | W5: =W23=Scenarios!$D$5 -> FALSE | X5: =X23=Scenarios!$D$5 -> FALSE | Y5: =Y23=Scenarios!$D$5 -> FALSE | Z5: =Z23=Scenarios!$D$5 -> FALSE | AA5: =AA23=Scenarios!$D$5 -> FALSE | AB5: =AB23=Scenarios!$D$5 -> FALSE | AC5: =AC23=Scenarios!$D$5 -> FALSE | AD5: =AD23=Scenarios!$D$5 -> FALSE | AE5: =AE23=Scenarios!$D$5 -> FALSE | AF5: =AF23=Scenarios!$D$5 -> FALSE | AG5: =AG23=Scenarios!$D$5 -> FALSE | AH5: =AH23=Scenarios!$D$5 -> FALSE | AI5: =AI23=Scenarios!$D$5 -> FALSE | AJ5: =AJ23=Scenarios!$D$5 -> FALSE | AK5: =AK23=Scenarios!$D$5 -> FALSE | AL5: =AL23=Scenarios!$D$5 -> FALSE | AM5: =AM23=Scenarios!$D$5 -> FALSE | AN5: =AN23=Scenarios!$D$5 -> FALSE | AO5: =AO23=Scenarios!$D$5 -> FALSE | AP5: =AP23=Scenarios!$D$5 -> FALSE | AQ5: =AQ23=Scenarios!$D$5 -> FALSE | AR5: =AR23=Scenarios!$D$5 -> FALSE | AS5: =AS23=Scenarios!$D$5 -> FALSE | AT5: =AT23=Scenarios!$D$5 -> FALSE | AU5: =AU23=Scenarios!$D$5 -> FALSE | AV5: =AV23=Scenarios!$D$5 -> FALSE | AW5: =AW23=Scenarios!$D$5 -> FALSE | AX5: =AX23=Scenarios!$D$5 -> FALSE | AY5: =AY23=Scenarios!$D$5 -> FALSE | AZ5: =AZ23=Scenarios!$D$5 -> FALSE | BA5: =BA23=Scenarios!$D$5 -> FALSE | BB5: =BB23=Scenarios!$D$5 -> FALSE | BC5: =BC23=Scenarios!$D$5 -> FALSE | BD5: =BD23=Scenarios!$D$5 -> FALSE | BE5: =BE23=Scenarios!$D$5 -> FALSE | BF5: =BF23=Scenarios!$D$5 -> FALSE | BG5: =BG23=Scenarios!$D$5 -> FALSE | BH5: =BH23=Scenarios!$D$5 -> FALSE | BI5: =BI23=Scenarios!$D$5 -> FALSE | BJ5: =BJ23=Scenarios!$D$5 -> FALSE | BK5: =BK23=Scenarios!$D$5 -> FALSE | BL5: =BL23=Scenarios!$D$5 -> FALSE | BM5: =BM23=Scenarios!$D$5 -> FALSE | BN5: =BN23=Scenarios!$D$5 -> FALSE | BO5: =BO23=Scenarios!$D$5 -> FALSE | BP5: =BP23=Scenarios!$D$5 -> FALSE | BQ5: =BQ23=Scenarios!$D$5 -> FALSE | BR5: =BR23=Scenarios!$D$5 -> FALSE | BS5: =BS23=Scenarios!$D$5 -> FALSE | BT5: =BT23=Scenarios!$D$5 -> FALSE | BU5: =BU23=Scenarios!$D$5 -> FALSE | BV5: =BV23=Scenarios!$D$5 -> FALSE | BW5: =BW23=Scenarios!$D$5 -> FALSE | BX5: =BX23=Scenarios!$D$5 -> FALSE | BY5: =BY23=Scenarios!$D$5 -> FALSE | BZ5: =BZ23=Scenarios!$D$5 -> FALSE | CA5: =CA23=Scenarios!$D$5 -> FALSE | CB5: =CB23=Scenarios!$D$5 -> FALSE | CC5: =CC23=Scenarios!$D$5 -> FALSE | CD5: =CD23=Scenarios!$D$5 -> FALSE | CE5: =CE23=Scenarios!$D$5 -> FALSE | CF5: =CF23=Scenarios!$D$5 -> FALSE | CG5: =CG23=Scenarios!$D$5 -> FALSE | CH5: =CH23=Scenarios!$D$5 -> FALSE | CI5: =CI23=Scenarios!$D$5 -> FALSE | CJ5: =CJ23=Scenarios!$D$5 -> FALSE | CK5: =CK23=Scenarios!$D$5 -> FALSE | CL5: =CL23=Scenarios!$D$5 -> FALSE | CM5: =CM23=Scenarios!$D$5 -> FALSE | CN5: =CN23=Scenarios!$D$5 -> FALSE | CO5: =CO23=Scenarios!$D$5 -> FALSE | CP5: =CP23=Scenarios!$D$5 -> FALSE | CQ5: =CQ23=Scenarios!$D$5 -> FALSE | CR5: =CR23=Scenarios!$D$5 -> FALSE | CS5: =CS23=Scenarios!$D$5 -> FALSE | CT5: =CT23=Scenarios!$D$5 -> FALSE | CU5: =CU23=Scenarios!$D$5 -> FALSE | CV5: =CV23=Scenarios!$D$5 -> FALSE | CW5: =CW23=Scenarios!$D$5 -> FALSE | CX5: =CX23=Scenarios!$D$5 -> FALSE | CY5: =CY23=Scenarios!$D$5 -> FALSE | CZ5: =CZ23=Scenarios!$D$5 -> FALSE | DA5: =DA23=Scenarios!$D$5 -> FALSE | DB5: =DB23=Scenarios!$D$5 -> FALSE | DC5: =DC23=Scenarios!$D$5 -> FALSE | DD5: =DD23=Scenarios!$D$5 -> FALSE | DE5: =DE23=Scenarios!$D$5 -> FALSE | DF5: =DF23=Scenarios!$D$5 -> FALSE | DG5: =DG23=Scenarios!$D$5 -> FALSE | DH5: =DH23=Scenarios!$D$5 -> FALSE | DI5: =DI23=Scenarios!$D$5 -> FALSE | DJ5: =DJ23=Scenarios!$D$5 -> FALSE | DK5: =DK23=Scenarios!$D$5 -> FALSE | DL5: =DL23=Scenarios!$D$5 -> FALSE | DM5: =DM23=Scenarios!$D$5 -> FALSE | DN5: =DN23=Scenarios!$D$5 -> FALSE | DO5: =DO23=Scenarios!$D$5 -> FALSE | DP5: =DP23=Scenarios!$D$5 -> FALSE | DQ5: =DQ23=Scenarios!$D$5 -> FALSE | DR5: =DR23=Scenarios!$D$5 -> FALSE | DS5: =DS23=Scenarios!$D$5 -> FALSE | DT5: =DT23=Scenarios!$D$5 -> FALSE | DU5: =DU23=Scenarios!$D$5 -> FALSE | DV5: =DV23=Scenarios!$D$5 -> FALSE | DW5: =DW23=Scenarios!$D$5 -> FALSE | DX5: =DX23=Scenarios!$D$5 -> FALSE | DY5: =DY23=Scenarios!$D$5 -> FALSE | DZ5: =DZ23=Scenarios!$D$5 -> FALSE | EA5: =EA23=Scenarios!$D$5 -> FALSE | EB5: =EB23=Scenarios!$D$5 -> FALSE | EC5: =EC23=Scenarios!$D$5 -> FALSE | ED5: =ED23=Scenarios!$D$5 -> FALSE | EE5: =EE23=Scenarios!$D$5 -> FALSE | EF5: =EF23=Scenarios!$D$5 -> FALSE | EG5: =EG23=Scenarios!$D$5 -> FALSE | EH5: =EH23=Scenarios!$D$5 -> FALSE | EI5: =EI23=Scenarios!$D$5 -> FALSE | EJ5: =EJ23=Scenarios!$D$5 -> FALSE | EK5: =EK23=Scenarios!$D$5 -> FALSE | EL5: =EL23=Scenarios!$D$5 -> FALSE | EM5: =EM23=Scenarios!$D$5 -> FALSE | EN5: =EN23=Scenarios!$D$5 -> FALSE | EO5: =EO23=Scenarios!$D$5 -> FALSE | EP5: =EP23=Scenarios!$D$5 -> FALSE | EQ5: =EQ23=Scenarios!$D$5 -> FALSE | ER5: =ER23=Scenarios!$D$5 -> FALSE | ES5: =ES23=Scenarios!$D$5 -> FALSE | ET5: =ET23=Scenarios!$D$5 -> FALSE | EU5: =EU23=Scenarios!$D$5 -> FALSE | EV5: =EV23=Scenarios!$D$5 -> FALSE | EW5: =EW23=Scenarios!$D$5 -> FALSE | EX5: =EX23=Scenarios!$D$5 -> FALSE | EY5: =EY23=Scenarios!$D$5 -> FALSE | EZ5: =EZ23=Scenarios!$D$5 -> FALSE | FA5: =FA23=Scenarios!$D$5 -> FALSE | FB5: =FB23=Scenarios!$D$5 -> FALSE | FC5: =FC23=Scenarios!$D$5 -> FALSE | FD5: =FD23=Scenarios!$D$5 -> FALSE | FE5: =FE23=Scenarios!$D$5 -> FALSE | FF5: =FF23=Scenarios!$D$5 -> FALSE | FG5: =FG23=Scenarios!$D$5 -> FALSE | FH5: =FH23=Scenarios!$D$5 -> FALSE | FI5: =FI23=Scenarios!$D$5 -> FALSE | FJ5: =FJ23=Scenarios!$D$5 -> FALSE | FK5: =FK23=Scenarios!$D$5 -> FALSE | FL5: =FL23=Scenarios!$D$5 -> FALSE | FM5: =FM23=Scenarios!$D$5 -> FALSE | FN5: =FN23=Scenarios!$D$5 -> FALSE | FO5: =FO23=Scenarios!$D$5 -> FALSE | FP5: =FP23=Scenarios!$D$5 -> FALSE | FQ5: =FQ23=Scenarios!$D$5 -> FALSE | FR5: =FR23=Scenarios!$D$5 -> FALSE | FS5: =FS23=Scenarios!$D$5 -> FALSE | FT5: =FT23=Scenarios!$D$5 -> FALSE | FU5: =FU23=Scenarios!$D$5 -> FALSE | FV5: =FV23=Scenarios!$D$5 -> FALSE | FW5: =FW23=Scenarios!$D$5 -> FALSE | FX5: =FX23=Scenarios!$D$5 -> FALSE | FY5: =FY23=Scenarios!$D$5 -> FALSE | FZ5: =FZ23=Scenarios!$D$5 -> FALSE | GA5: =GA23=Scenarios!$D$5 -> FALSE | GB5: =GB23=Scenarios!$D$5 -> FALSE | GC5: =GC23=Scenarios!$D$5 -> FALSE | GD5: =GD23=Scenarios!$D$5 -> FALSE | GE5: =GE23=Scenarios!$D$5 -> FALSE | GF5: =GF23=Scenarios!$D$5 -> FALSE | GG5: =GG23=Scenarios!$D$5 -> FALSE | GH5: =GH23=Scenarios!$D$5 -> FALSE | GI5: =GI23=Scenarios!$D$5 -> FALSE | GJ5: =GJ23=Scenarios!$D$5 -> FALSE | GK5: =GK23=Scenarios!$D$5 -> FALSE | GL5: =GL23=Scenarios!$D$5 -> FALSE | GM5: =GM23=Scenarios!$D$5 -> FALSE | GN5: =GN23=Scenarios!$D$5 -> FALSE | GO5: =GO23=Scenarios!$D$5 -> FALSE | GP5: =GP23=Scenarios!$D$5 -> FALSE | GQ5: =GQ23=Scenarios!$D$5 -> FALSE | GR5: =GR23=Scenarios!$D$5 -> FALSE | GS5: =GS23=Scenarios!$D$5 -> FALSE | GT5: =GT23=Scenarios!$D$5 -> FALSE | GU5: =GU23=Scenarios!$D$5 -> FALSE | GV5: =GV23=Scenarios!$D$5 -> FALSE | GW5: =GW23=Scenarios!$D$5 -> FALSE | GX5: =GX23=Scenarios!$D$5 -> FALSE | GY5: =GY23=Scenarios!$D$5 -> FALSE | GZ5: =GZ23=Scenarios!$D$5 -> FALSE | HA5: =HA23=Scenarios!$D$5 -> FALSE | HB5: =HB23=Scenarios!$D$5 -> FALSE | HC5: =HC23=Scenarios!$D$5 -> FALSE | HD5: =HD23=Scenarios!$D$5 -> FALSE | HE5: =HE23=Scenarios!$D$5 -> FALSE | HF5: =HF23=Scenarios!$D$5 -> FALSE | HG5: =HG23=Scenarios!$D$5 -> FALSE | HH5: =HH23=Scenarios!$D$5 -> FALSE | HI5: =HI23=Scenarios!$D$5 -> FALSE | HJ5: =HJ23=Scenarios!$D$5 -> FALSE | HK5: =HK23=Scenarios!$D$5 -> FALSE | HL5: =HL23=Scenarios!$D$5 -> FALSE | HM5: =HM23=Scenarios!$D$5 -> FALSE | HN5: =HN23=Scenarios!$D$5 -> FALSE | HO5: =HO23=Scenarios!$D$5 -> FALSE | HP5: =HP23=Scenarios!$D$5 -> FALSE | HQ5: =HQ23=Scenarios!$D$5 -> FALSE | HR5: =HR23=Scenarios!$D$5 -> FALSE | HS5: =HS23=Scenarios!$D$5 -> FALSE | HT5: =HT23=Scenarios!$D$5 -> FALSE | HU5: =HU23=Scenarios!$D$5 -> FALSE | HV5: =HV23=Scenarios!$D$5 -> FALSE | HW5: =HW23=Scenarios!$D$5 -> FALSE | HX5: =HX23=Scenarios!$D$5 -> FALSE | HY5: =HY23=Scenarios!$D$5 -> FALSE | HZ5: =HZ23=Scenarios!$D$5 -> FALSE | IA5: =IA23=Scenarios!$D$5 -> FALSE | IB5: =IB23=Scenarios!$D$5 -> FALSE | IC5: =IC23=Scenarios!$D$5 -> FALSE | ID5: =ID23=Scenarios!$D$5 -> FALSE | IE5: =IE23=Scenarios!$D$5 -> FALSE | IF5: =IF23=Scenarios!$D$5 -> FALSE | IG5: =IG23=Scenarios!$D$5 -> FALSE | IH5: =IH23=Scenarios!$D$5 -> FALSE | II5: =II23=Scenarios!$D$5 -> FALSE | IJ5: =IJ23=Scenarios!$D$5 -> FALSE | IK5: =IK23=Scenarios!$D$5 -> FALSE | IL5: =IL23=Scenarios!$D$5 -> FALSE | IM5: =IM23=Scenarios!$D$5 -> FALSE | IN5: =IN23=Scenarios!$D$5 -> FALSE | IO5: =IO23=Scenarios!$D$5 -> FALSE | IP5: =IP23=Scenarios!$D$5 -> FALSE | IQ5: =IQ23=Scenarios!$D$5 -> FALSE | IR5: =IR23=Scenarios!$D$5 -> FALSE | IS5: =IS23=Scenarios!$D$5 -> FALSE | IT5: =IT23=Scenarios!$D$5 -> FALSE | IU5: =IU23=Scenarios!$D$5 -> FALSE | IV5: =IV23=Scenarios!$D$5 -> FALSE | IW5: =IW23=Scenarios!$D$5 -> FALSE | IX5: =IX23=Scenarios!$D$5 -> FALSE | IY5: =IY23=Scenarios!$D$5 -> FALSE | IZ5: =IZ23=Scenarios!$D$5 -> FALSE | JA5: =JA23=Scenarios!$D$5 -> FALSE | JB5: =JB23=Scenarios!$D$5 -> FALSE | JC5: =JC23=Scenarios!$D$5 -> FALSE | JD5: =JD23=Scenarios!$D$5 -> FALSE | JE5: =JE23=Scenarios!$D$5 -> FALSE | JF5: =JF23=Scenarios!$D$5 -> FALSE | JG5: =JG23=Scenarios!$D$5 -> FALSE | JH5: =JH23=Scenarios!$D$5 -> FALSE | JI5: =JI23=Scenarios!$D$5 -> FALSE | JJ5: =JJ23=Scenarios!$D$5 -> FALSE | JK5: =JK23=Scenarios!$D$5 -> FALSE | JL5: =JL23=Scenarios!$D$5 -> FALSE | JM5: =JM23=Scenarios!$D$5 -> FALSE | JN5: =JN23=Scenarios!$D$5 -> FALSE | JO5: =JO23=Scenarios!$D$5 -> FALSE | JP5: =JP23=Scenarios!$D$5 -> FALSE | JQ5: =JQ23=Scenarios!$D$5 -> FALSE | JR5: =JR23=Scenarios!$D$5 -> FALSE | JS5: =JS23=Scenarios!$D$5 -> FALSE | JT5: =JT23=Scenarios!$D$5 -> FALSE | JU5: =JU23=Scenarios!$D$5 -> FALSE | JV5: =JV23=Scenarios!$D$5 -> FALSE | JW5: =JW23=Scenarios!$D$5 -> FALSE | JX5: =JX23=Scenarios!$D$5 -> FALSE | JY5: =JY23=Scenarios!$D$5 -> FALSE | JZ5: =JZ23=Scenarios!$D$5 -> FALSE | KA5: =KA23=Scenarios!$D$5 -> FALSE | KB5: =KB23=Scenarios!$D$5 -> FALSE | KC5: =KC23=Scenarios!$D$5 -> FALSE | KD5: =KD23=Scenarios!$D$5 -> FALSE | KE5: =KE23=Scenarios!$D$5 -> FALSE | KF5: =KF23=Scenarios!$D$5 -> FALSE | KG5: =KG23=Scenarios!$D$5 -> FALSE | KH5: =KH23=Scenarios!$D$5 -> FALSE | KI5: =KI23=Scenarios!$D$5 -> FALSE | KJ5: =KJ23=Scenarios!$D$5 -> FALSE | KK5: =KK23=Scenarios!$D$5 -> FALSE | KL5: =KL23=Scenarios!$D$5 -> FALSE | KM5: =KM23=Scenarios!$D$5 -> FALSE | KN5: =KN23=Scenarios!$D$5 -> FALSE | KO5: =KO23=Scenarios!$D$5 -> FALSE | KP5: =KP23=Scenarios!$D$5 -> FALSE | KQ5: =KQ23=Scenarios!$D$5 -> FALSE | KR5: =KR23=Scenarios!$D$5 -> FALSE | KS5: =KS23=Scenarios!$D$5 -> FALSE | KT5: =KT23=Scenarios!$D$5 -> FALSE | KU5: =KU23=Scenarios!$D$5 -> FALSE | KV5: =KV23=Scenarios!$D$5 -> FALSE | KW5: =KW23=Scenarios!$D$5 -> FALSE | KX5: =KX23=Scenarios!$D$5 -> FALSE | KY5: =KY23=Scenarios!$D$5 -> FALSE | KZ5: =KZ23=Scenarios!$D$5 -> FALSE | LA5: =LA23=Scenarios!$D$5 -> FALSE | LB5: =LB23=Scenarios!$D$5 -> FALSE | LC5: =LC23=Scenarios!$D$5 -> FALSE | LD5: =LD23=Scenarios!$D$5 -> FALSE | LE5: =LE23=Scenarios!$D$5 -> FALSE | LF5: =LF23=Scenarios!$D$5 -> FALSE | LG5: =LG23=Scenarios!$D$5 -> FALSE | LH5: =LH23=Scenarios!$D$5 -> FALSE | LI5: =LI23=Scenarios!$D$5 -> FALSE | LJ5: =LJ23=Scenarios!$D$5 -> FALSE | LK5: =LK23=Scenarios!$D$5 -> FALSE | LL5: =LL23=Scenarios!$D$5 -> FALSE | LM5: =LM23=Scenarios!$D$5 -> FALSE | LN5: =LN23=Scenarios!$D$5 -> FALSE | LO5: =LO23=Scenarios!$D$5 -> FALSE | LP5: =LP23=Scenarios!$D$5 -> FALSE | LQ5: =LQ23=Scenarios!$D$5 -> FALSE | LR5: =LR23=Scenarios!$D$5 -> FALSE | LS5: =LS23=Scenarios!$D$5 -> FALSE | LT5: =LT23=Scenarios!$D$5 -> FALSE | LU5: =LU23=Scenarios!$D$5 -> FALSE | LV5: =LV23=Scenarios!$D$5 -> FALSE | LW5: =LW23=Scenarios!$D$5 -> FALSE | LX5: =LX23=Scenarios!$D$5 -> FALSE | LY5: =LY23=Scenarios!$D$5 -> FALSE | LZ5: =LZ23=Scenarios!$D$5 -> FALSE | MA5: =MA23=Scenarios!$D$5 -> FALSE | MB5: =MB23=Scenarios!$D$5 -> FALSE | MC5: =MC23=Scenarios!$D$5 -> FALSE | MD5: =MD23=Scenarios!$D$5 -> FALSE | ME5: =ME23=Scenarios!$D$5 -> FALSE | MF5: =MF23=Scenarios!$D$5 -> FALSE | MG5: =MG23=Scenarios!$D$5 -> FALSE | MH5: =MH23=Scenarios!$D$5 -> FALSE | MI5: =MI23=Scenarios!$D$5 -> FALSE | MJ5: =MJ23=Scenarios!$D$5 -> FALSE | MK5: =MK23=Scenarios!$D$5 -> FALSE | ML5: =ML23=Scenarios!$D$5 -> FALSE | MM5: =MM23=Scenarios!$D$5 -> FALSE | MN5: =MN23=Scenarios!$D$5 -> FALSE | MO5: =MO23=Scenarios!$D$5 -> FALSE | MP5: =MP23=Scenarios!$D$5 -> FALSE | MQ5: =MQ23=Scenarios!$D$5 -> FALSE | MR5: =MR23=Scenarios!$D$5 -> FALSE | MS5: =MS23=Scenarios!$D$5 -> FALSE | MT5: =MT23=Scenarios!$D$5 -> FALSE | MU5: =MU23=Scenarios!$D$5 -> FALSE | MV5: =MV23=Scenarios!$D$5 -> FALSE | MW5: =MW23=Scenarios!$D$5 -> FALSE | MX5: =MX23=Scenarios!$D$5 -> FALSE | MY5: =MY23=Scenarios!$D$5 -> FALSE | MZ5: =MZ23=Scenarios!$D$5 -> FALSE | NA5: =NA23=Scenarios!$D$5 -> FALSE | NB5: =NB23=Scenarios!$D$5 -> FALSE | NC5: =NC23=Scenarios!$D$5 -> FALSE | ND5: =ND23=Scenarios!$D$5 -> FALSE | NE5: =NE23=Scenarios!$D$5 -> FALSE | NF5: =NF23=Scenarios!$D$5 -> FALSE | NG5: =NG23=Scenarios!$D$5 -> FALSE | NH5: =NH23=Scenarios!$D$5 -> FALSE | NI5: =NI23=Scenarios!$D$5 -> FALSE | NJ5: =NJ23=Scenarios!$D$5 -> FALSE | NK5: =NK23=Scenarios!$D$5 -> FALSE | NL5: =NL23=Scenarios!$D$5 -> FALSE | NM5: =NM23=Scenarios!$D$5 -> FALSE | NN5: =NN23=Scenarios!$D$5 -> FALSE | NO5: =NO23=Scenarios!$D$5 -> FALSE | NP5: =NP23=Scenarios!$D$5 -> FALSE | NQ5: =NQ23=Scenarios!$D$5 -> FALSE | NR5: =NR23=Scenarios!$D$5 -> FALSE | NS5: =NS23=Scenarios!$D$5 -> FALSE | NT5: =NT23=Scenarios!$D$5 -> FALSE | NU5: =NU23=Scenarios!$D$5 -> FALSE | NV5: =NV23=Scenarios!$D$5 -> FALSE | NW5: =NW23=Scenarios!$D$5 -> FALSE | NX5: =NX23=Scenarios!$D$5 -> FALSE | NY5: =NY23=Scenarios!$D$5 -> FALSE | NZ5: =NZ23=Scenarios!$D$5 -> FALSE | OA5: =OA23=Scenarios!$D$5 -> FALSE | OB5: =OB23=Scenarios!$D$5 -> FALSE | OC5: =OC23=Scenarios!$D$5 -> FALSE | OD5: =OD23=Scenarios!$D$5 -> FALSE | OE5: =OE23=Scenarios!$D$5 -> FALSE | OF5: =OF23=Scenarios!$D$5 -> FALSE | OG5: =OG23=Scenarios!$D$5 -> FALSE | OH5: =OH23=Scenarios!$D$5 -> FALSE | OI5: =OI23=Scenarios!$D$5 -> FALSE | OJ5: =OJ23=Scenarios!$D$5 -> FALSE | OK5: =OK23=Scenarios!$D$5 -> FALSE | OL5: =OL23=Scenarios!$D$5 -> FALSE | OM5: =OM23=Scenarios!$D$5 -> FALSE | ON5: =ON23=Scenarios!$D$5 -> FALSE | OO5: =OO23=Scenarios!$D$5 -> FALSE | OP5: =OP23=Scenarios!$D$5 -> FALSE | OQ5: =OQ23=Scenarios!$D$5 -> FALSE | OR5: =OR23=Scenarios!$D$5 -> FALSE | OS5: =OS23=Scenarios!$D$5 -> FALSE | OT5: =OT23=Scenarios!$D$5 -> FALSE | OU5: =OU23=Scenarios!$D$5 -> FALSE | OV5: =OV23=Scenarios!$D$5 -> FALSE | OW5: =OW23=Scenarios!$D$5 -> FALSE | OX5: =OX23=Scenarios!$D$5 -> FALSE | OY5: =OY23=Scenarios!$D$5 -> FALSE | OZ5: =OZ23=Scenarios!$D$5 -> FALSE | PA5: =PA23=Scenarios!$D$5 -> FALSE | PB5: =PB23=Scenarios!$D$5 -> FALSE | PC5: =PC23=Scenarios!$D$5 -> FALSE | PD5: =PD23=Scenarios!$D$5 -> FALSE | PE5: =PE23=Scenarios!$D$5 -> FALSE | PF5: =PF23=Scenarios!$D$5 -> FALSE | PG5: =PG23=Scenarios!$D$5 -> FALSE | PH5: =PH23=Scenarios!$D$5 -> FALSE | PI5: =PI23=Scenarios!$D$5 -> FALSE | PJ5: =PJ23=Scenarios!$D$5 -> FALSE | PK5: =PK23=Scenarios!$D$5 -> FALSE | PL5: =PL23=Scenarios!$D$5 -> FALSE | PM5: =PM23=Scenarios!$D$5 -> FALSE | PN5: =PN23=Scenarios!$D$5 -> FALSE | PO5: =PO23=Scenarios!$D$5 -> FALSE | PP5: =PP23=Scenarios!$D$5 -> FALSE | PQ5: =PQ23=Scenarios!$D$5 -> FALSE | PR5: =PR23=Scenarios!$D$5 -> FALSE | PS5: =PS23=Scenarios!$D$5 -> FALSE | PT5: =PT23=Scenarios!$D$5 -> FALSE | PU5: =PU23=Scenarios!$D$5 -> FALSE | PV5: =PV23=Scenarios!$D$5 -> FALSE | PW5: =PW23=Scenarios!$D$5 -> FALSE | PX5: =PX23=Scenarios!$D$5 -> FALSE | PY5: =PY23=Scenarios!$D$5 -> FALSE | PZ5: =PZ23=Scenarios!$D$5 -> FALSE | QA5: =QA23=Scenarios!$D$5 -> FALSE | QB5: =QB23=Scenarios!$D$5 -> FALSE | QC5: =QC23=Scenarios!$D$5 -> FALSE | QD5: =QD23=Scenarios!$D$5 -> FALSE | QE5: =QE23=Scenarios!$D$5 -> FALSE | QF5: =QF23=Scenarios!$D$5 -> FALSE | QG5: =QG23=Scenarios!$D$5 -> FALSE | QH5: =QH23=Scenarios!$D$5 -> FALSE | QI5: =QI23=Scenarios!$D$5 -> FALSE | QJ5: =QJ23=Scenarios!$D$5 -> FALSE | QK5: =QK23=Scenarios!$D$5 -> FALSE | QL5: =QL23=Scenarios!$D$5 -> FALSE | QM5: =QM23=Scenarios!$D$5 -> FALSE | QN5: =QN23=Scenarios!$D$5 -> FALSE | QO5: =QO23=Scenarios!$D$5 -> FALSE | QP5: =QP23=Scenarios!$D$5 -> FALSE | QQ5: =QQ23=Scenarios!$D$5 -> FALSE | QR5: =QR23=Scenarios!$D$5 -> FALSE | QS5: =QS23=Scenarios!$D$5 -> FALSE | QT5: =QT23=Scenarios!$D$5 -> FALSE | QU5: =QU23=Scenarios!$D$5 -> FALSE | QV5: =QV23=Scenarios!$D$5 -> FALSE | QW5: =QW23=Scenarios!$D$5 -> FALSE | QX5: =QX23=Scenarios!$D$5 -> FALSE | QY5: =QY23=Scenarios!$D$5 -> FALSE | QZ5: =QZ23=Scenarios!$D$5 -> FALSE | RA5: =RA23=Scenarios!$D$5 -> FALSE | RB5: =RB23=Scenarios!$D$5 -> FALSE | RC5: =RC23=Scenarios!$D$5 -> FALSE | RD5: =RD23=Scenarios!$D$5 -> FALSE | RE5: =RE23=Scenarios!$D$5 -> FALSE | RF5: =RF23=Scenarios!$D$5 -> FALSE | RG5: =RG23=Scenarios!$D$5 -> FALSE | RH5: =RH23=Scenarios!$D$5 -> FALSE | RI5: =RI23=Scenarios!$D$5 -> FALSE | RJ5: =RJ23=Scenarios!$D$5 -> FALSE | RK5: =RK23=Scenarios!$D$5 -> FALSE | RL5: =RL23=Scenarios!$D$5 -> FALSE | RM5: =RM23=Scenarios!$D$5 -> FALSE | RN5: =RN23=Scenarios!$D$5 -> FALSE | RO5: =RO23=Scenarios!$D$5 -> FALSE | RP5: =RP23=Scenarios!$D$5 -> FALSE | RQ5: =RQ23=Scenarios!$D$5 -> FALSE | RR5: =RR23=Scenarios!$D$5 -> FALSE | RS5: =RS23=Scenarios!$D$5 -> FALSE | RT5: =RT23=Scenarios!$D$5 -> FALSE | RU5: =RU23=Scenarios!$D$5 -> FALSE | RV5: =RV23=Scenarios!$D$5 -> FALSE | RW5: =RW23=Scenarios!$D$5 -> FALSE | RX5: =RX23=Scenarios!$D$5 -> FALSE | RY5: =RY23=Scenarios!$D$5 -> FALSE | RZ5: =RZ23=Scenarios!$D$5 -> FALSE | SA5: =SA23=Scenarios!$D$5 -> FALSE | SB5: =SB23=Scenarios!$D$5 -> FALSE | SC5: =SC23=Scenarios!$D$5 -> FALSE | SD5: =SD23=Scenarios!$D$5 -> FALSE | SE5: =SE23=Scenarios!$D$5 -> FALSE | SF5: =SF23=Scenarios!$D$5 -> FALSE | SG5: =SG23=Scenarios!$D$5 -> FALSE | SH5: =SH23=Scenarios!$D$5 -> FALSE | SI5: =SI23=Scenarios!$D$5 -> FALSE | SJ5: =SJ23=Scenarios!$D$5 -> FALSE | SK5: =SK23=Scenarios!$D$5 -> FALSE | SL5: =SL23=Scenarios!$D$5 -> FALSE | SM5: =SM23=Scenarios!$D$5 -> FALSE | SN5: =SN23=Scenarios!$D$5 -> FALSE | SO5: =SO23=Scenarios!$D$5 -> FALSE | SP5: =SP23=Scenarios!$D$5 -> FALSE | SQ5: =SQ23=Scenarios!$D$5 -> FALSE | SR5: =SR23=Scenarios!$D$5 -> FALSE | SS5: =SS23=Scenarios!$D$5 -> FALSE | ST5: =ST23=Scenarios!$D$5 -> FALSE | SU5: =SU23=Scenarios!$D$5 -> FALSE | SV5: =SV23=Scenarios!$D$5 -> FALSE | SW5: =SW23=Scenarios!$D$5 -> FALSE | SX5: =SX23=Scenarios!$D$5 -> FALSE | SY5: =SY23=Scenarios!$D$5 -> FALSE | SZ5: =SZ23=Scenarios!$D$5 -> FALSE | TA5: =TA23=Scenarios!$D$5 -> FALSE | TB5: =TB23=Scenarios!$D$5 -> FALSE | TC5: =TC23=Scenarios!$D$5 -> FALSE
D6: Rate of Return Earned on Capital (Equity or Total) | K6: =interpolate_look_up(K3,Scenarios!51:51,Scenarios!53:53) -> 0.13 | L6: =interpolate_look_up(L3,Scenarios!51:51,Scenarios!53:53) -> 0.13 | M6: =interpolate_look_up(M3,Scenarios!51:51,Scenarios!53:53) -> 0.13 | N6: =interpolate_look_up(N3,Scenarios!51:51,Scenarios!53:53) -> 0.13 | O6: =interpolate_look_up(O3,Scenarios!51:51,Scenarios!53:53) -> 0.13 | P6: =interpolate_look_up(P3,Scenarios!51:51,Scenarios!53:53) -> 0.13 | Q6: =interpolate_look_up(Q3,Scenarios!51:51,Scenarios!53:53) -> 0.13 | R6: =interpolate_look_up(R3,Scenarios!51:51,Scenarios!53:53) -> 0.13 | S6: =interpolate_look_up(S3,Scenarios!51:51,Scenarios!53:53) -> 0.13 | T6: =interpolate_look_up(T3,Scenarios!51:51,Scenarios!53:53) -> 0.13 | U6: =interpolate_look_up(U3,Scenarios!51:51,Scenarios!53:53) -> 0.13 | V6: =interpolate_look_up(V3,Scenarios!51:51,Scenarios!53:53) -> 0.1142820447 | W6: =interpolate_look_up(W3,Scenarios!51:51,Scenarios!53:53) -> 0.1004645057 | X6: =interpolate_look_up(X3,Scenarios!51:51,Scenarios!53:53) -> 0.08831760866 | Y6: =interpolate_look_up(Y3,Scenarios!51:51,Scenarios!53:53) -> 0.07763936077 | Z6: =interpolate_look_up(Z3,Scenarios!51:51,Scenarios!53:53) -> 0.06825219151 | AA6: =interpolate_look_up(AA3,Scenarios!51:51,Scenarios!53:53) -> 0.06 | AB6: =interpolate_look_up(AB3,Scenarios!51:51,Scenarios!53:53) -> 0.06 | AC6: =interpolate_look_up(AC3,Scenarios!51:51,Scenarios!53:53) -> 0.06 | AD6: =interpolate_look_up(AD3,Scenarios!51:51,Scenarios!53:53) -> 0.06 | AE6: =interpolate_look_up(AE3,Scenarios!51:51,Scenarios!53:53) -> 0.06 | AF6: =interpolate_look_up(AF3,Scenarios!51:51,Scenarios!53:53) -> 0.06 | AG6: =interpolate_look_up(AG3,Scenarios!51:51,Scenarios!53:53) -> 0.06 | AH6: =interpolate_look_up(AH3,Scenarios!51:51,Scenarios!53:53) -> 0.06 | AI6: =interpolate_look_up(AI3,Scenarios!51:51,Scenarios!53:53) -> 0.06 | AJ6: =interpolate_look_up(AJ3,Scenarios!51:51,Scenarios!53:53) -> 0.06 | AK6: =interpolate_look_up(AK3,Scenarios!51:51,Scenarios!53:53) -> 0.06 | AL6: =interpolate_look_up(AL3,Scenarios!51:51,Scenarios!53:53) -> 0.06 | AM6: =interpolate_look_up(AM3,Scenarios!51:51,Scenarios!53:53) -> 0.06 | AN6: =interpolate_look_up(AN3,Scenarios!51:51,Scenarios!53:53) -> 0.06 | AO6: =interpolate_look_up(AO3,Scenarios!51:51,Scenarios!53:53) -> 0.06 | AP6: =interpolate_look_up(AP3,Scenarios!51:51,Scenarios!53:53) -> 0.06 | AQ6: =interpolate_look_up(AQ3,Scenarios!51:51,Scenarios!53:53) -> 0.06 | AR6: =interpolate_look_up(AR3,Scenarios!51:51,Scenarios!53:53) -> 0.06 | AS6: =interpolate_look_up(AS3,Scenarios!51:51,Scenarios!53:53) -> 0.06 | AT6: =interpolate_look_up(AT3,Scenarios!51:51,Scenarios!53:53) -> 0.06 | AU6: =interpolate_look_up(AU3,Scenarios!51:51,Scenarios!53:53) -> 0.06 | AV6: =interpolate_look_up(AV3,Scenarios!51:51,Scenarios!53:53) -> 0.06 | AW6: =interpolate_look_up(AW3,Scenarios!51:51,Scenarios!53:53) -> 0.06 | AX6: =interpolate_look_up(AX3,Scenarios!51:51,Scenarios!53:53) -> 0.06 | AY6: =interpolate_look_up(AY3,Scenarios!51:51,Scenarios!53:53) -> 0.06 | AZ6: =interpolate_look_up(AZ3,Scenarios!51:51,Scenarios!53:53) -> 0.06 | BA6: =interpolate_look_up(BA3,Scenarios!51:51,Scenarios!53:53) -> 0.06 | BB6: =interpolate_look_up(BB3,Scenarios!51:51,Scenarios!53:53) -> 0.06 | BC6: =interpolate_look_up(BC3,Scenarios!51:51,Scenarios!53:53) -> 0.06 | BD6: =interpolate_look_up(BD3,Scenarios!51:51,Scenarios!53:53) -> 0.06 | BE6: =interpolate_look_up(BE3,Scenarios!51:51,Scenarios!53:53) -> 0.06 | BF6: =interpolate_look_up(BF3,Scenarios!51:51,Scenarios!53:53) -> 0.06 | BG6: =interpolate_look_up(BG3,Scenarios!51:51,Scenarios!53:53) -> 0.06 | BH6: =interpolate_look_up(BH3,Scenarios!51:51,Scenarios!53:53) -> 0.06 | BI6: =interpolate_look_up(BI3,Scenarios!51:51,Scenarios!53:53) -> 0.06 | BJ6: =interpolate_look_up(BJ3,Scenarios!51:51,Scenarios!53:53) -> 0.06 | BK6: =interpolate_look_up(BK3,Scenarios!51:51,Scenarios!53:53) -> 0.06 | BL6: =interpolate_look_up(BL3,Scenarios!51:51,Scenarios!53:53) -> 0.06 | BM6: =interpolate_look_up(BM3,Scenarios!51:51,Scenarios!53:53) -> 0.06 | BN6: =interpolate_look_up(BN3,Scenarios!51:51,Scenarios!53:53) -> 0.06 | BO6: =interpolate_look_up(BO3,Scenarios!51:51,Scenarios!53:53) -> 0.06 | BP6: =interpolate_look_up(BP3,Scenarios!51:51,Scenarios!53:53) -> 0.06 | BQ6: =interpolate_look_up(BQ3,Scenarios!51:51,Scenarios!53:53) -> 0.06 | BR6: =interpolate_look_up(BR3,Scenarios!51:51,Scenarios!53:53) -> 0.06 | BS6: =interpolate_look_up(BS3,Scenarios!51:51,Scenarios!53:53) -> 0.06 | BT6: =interpolate_look_up(BT3,Scenarios!51:51,Scenarios!53:53) -> 0.06 | BU6: =interpolate_look_up(BU3,Scenarios!51:51,Scenarios!53:53) -> 0.06 | BV6: =interpolate_look_up(BV3,Scenarios!51:51,Scenarios!53:53) -> 0.06 | BW6: =interpolate_look_up(BW3,Scenarios!51:51,Scenarios!53:53) -> 0.06 | BX6: =interpolate_look_up(BX3,Scenarios!51:51,Scenarios!53:53) -> 0.06 | BY6: =interpolate_look_up(BY3,Scenarios!51:51,Scenarios!53:53) -> 0.06 | BZ6: =interpolate_look_up(BZ3,Scenarios!51:51,Scenarios!53:53) -> 0.06 | CA6: =interpolate_look_up(CA3,Scenarios!51:51,Scenarios!53:53) -> 0.06 | CB6: =interpolate_look_up(CB3,Scenarios!51:51,Scenarios!53:53) -> 0.06 | CC6: =interpolate_look_up(CC3,Scenarios!51:51,Scenarios!53:53) -> 0.06 | CD6: =interpolate_look_up(CD3,Scenarios!51:51,Scenarios!53:53) -> 0.06 | CE6: =interpolate_look_up(CE3,Scenarios!51:51,Scenarios!53:53) -> 0.06 | CF6: =interpolate_look_up(CF3,Scenarios!51:51,Scenarios!53:53) -> 0.06 | CG6: =interpolate_look_up(CG3,Scenarios!51:51,Scenarios!53:53) -> 0.06 | CH6: =interpolate_look_up(CH3,Scenarios!51:51,Scenarios!53:53) -> 0.06 | CI6: =interpolate_look_up(CI3,Scenarios!51:51,Scenarios!53:53) -> 0.06 | CJ6: =interpolate_look_up(CJ3,Scenarios!51:51,Scenarios!53:53) -> 0.06 | CK6: =interpolate_look_up(CK3,Scenarios!51:51,Scenarios!53:53) -> 0.06 | CL6: =interpolate_look_up(CL3,Scenarios!51:51,Scenarios!53:53) -> 0.06 | CM6: =interpolate_look_up(CM3,Scenarios!51:51,Scenarios!53:53) -> 0.06 | CN6: =interpolate_look_up(CN3,Scenarios!51:51,Scenarios!53:53) -> 0.06 | CO6: =interpolate_look_up(CO3,Scenarios!51:51,Scenarios!53:53) -> 0.06 | CP6: =interpolate_look_up(CP3,Scenarios!51:51,Scenarios!53:53) -> 0.06 | CQ6: =interpolate_look_up(CQ3,Scenarios!51:51,Scenarios!53:53) -> 0.06 | CR6: =interpolate_look_up(CR3,Scenarios!51:51,Scenarios!53:53) -> 0.06 | CS6: =interpolate_look_up(CS3,Scenarios!51:51,Scenarios!53:53) -> 0.06 | CT6: =interpolate_look_up(CT3,Scenarios!51:51,Scenarios!53:53) -> 0.06 | CU6: =interpolate_look_up(CU3,Scenarios!51:51,Scenarios!53:53) -> 0.06 | CV6: =interpolate_look_up(CV3,Scenarios!51:51,Scenarios!53:53) -> 0.06 | CW6: =interpolate_look_up(CW3,Scenarios!51:51,Scenarios!53:53) -> 0.06 | CX6: =interpolate_look_up(CX3,Scenarios!51:51,Scenarios!53:53) -> 0.06 | CY6: =interpolate_look_up(CY3,Scenarios!51:51,Scenarios!53:53) -> 0.06 | CZ6: =interpolate_look_up(CZ3,Scenarios!51:51,Scenarios!53:53) -> 0.06 | DA6: =interpolate_look_up(DA3,Scenarios!51:51,Scenarios!53:53) -> 0.06 | DB6: =interpolate_look_up(DB3,Scenarios!51:51,Scenarios!53:53) -> 0.06 | DC6: =interpolate_look_up(DC3,Scenarios!51:51,Scenarios!53:53) -> 0.06 | DD6: =interpolate_look_up(DD3,Scenarios!51:51,Scenarios!53:53) -> 0.06 | DE6: =interpolate_look_up(DE3,Scenarios!51:51,Scenarios!53:53) -> 0.06 | DF6: =interpolate_look_up(DF3,Scenarios!51:51,Scenarios!53:53) -> 0.06 | DG6: =interpolate_look_up(DG3,Scenarios!51:51,Scenarios!53:53) -> 0.06 | DH6: =interpolate_look_up(DH3,Scenarios!51:51,Scenarios!53:53) -> 0.06 | DI6: =interpolate_look_up(DI3,Scenarios!51:51,Scenarios!53:53) -> 0.06 | DJ6: =interpolate_look_up(DJ3,Scenarios!51:51,Scenarios!53:53) -> 0.06 | DK6: =interpolate_look_up(DK3,Scenarios!51:51,Scenarios!53:53) -> 0.06 | DL6: =interpolate_look_up(DL3,Scenarios!51:51,Scenarios!53:53) -> 0.06 | DM6: =interpolate_look_up(DM3,Scenarios!51:51,Scenarios!53:53) -> 0.06 | DN6: =interpolate_look_up(DN3,Scenarios!51:51,Scenarios!53:53) -> 0.06 | DO6: =interpolate_look_up(DO3,Scenarios!51:51,Scenarios!53:53) -> 0.06 | DP6: =interpolate_look_up(DP3,Scenarios!51:51,Scenarios!53:53) -> 0.06 | DQ6: =interpolate_look_up(DQ3,Scenarios!51:51,Scenarios!53:53) -> 0.06 | DR6: =interpolate_look_up(DR3,Scenarios!51:51,Scenarios!53:53) -> 0.06 | DS6: =interpolate_look_up(DS3,Scenarios!51:51,Scenarios!53:53) -> 0.06 | DT6: =interpolate_look_up(DT3,Scenarios!51:51,Scenarios!53:53) -> 0.06 | DU6: =interpolate_look_up(DU3,Scenarios!51:51,Scenarios!53:53) -> 0.06 | DV6: =interpolate_look_up(DV3,Scenarios!51:51,Scenarios!53:53) -> 0.06 | DW6: =interpolate_look_up(DW3,Scenarios!51:51,Scenarios!53:53) -> 0.06 | DX6: =interpolate_look_up(DX3,Scenarios!51:51,Scenarios!53:53) -> 0.06 | DY6: =interpolate_look_up(DY3,Scenarios!51:51,Scenarios!53:53) -> 0.06 | DZ6: =interpolate_look_up(DZ3,Scenarios!51:51,Scenarios!53:53) -> 0.06 | EA6: =interpolate_look_up(EA3,Scenarios!51:51,Scenarios!53:53) -> 0.06 | EB6: =interpolate_look_up(EB3,Scenarios!51:51,Scenarios!53:53) -> 0.06 | EC6: =interpolate_look_up(EC3,Scenarios!51:51,Scenarios!53:53) -> 0.06 | ED6: =interpolate_look_up(ED3,Scenarios!51:51,Scenarios!53:53) -> 0.06 | EE6: =interpolate_look_up(EE3,Scenarios!51:51,Scenarios!53:53) -> 0.06 | EF6: =interpolate_look_up(EF3,Scenarios!51:51,Scenarios!53:53) -> 0.06 | EG6: =interpolate_look_up(EG3,Scenarios!51:51,Scenarios!53:53) -> 0.06 | EH6: =interpolate_look_up(EH3,Scenarios!51:51,Scenarios!53:53) -> 0.06 | EI6: =interpolate_look_up(EI3,Scenarios!51:51,Scenarios!53:53) -> 0.06 | EJ6: =interpolate_look_up(EJ3,Scenarios!51:51,Scenarios!53:53) -> 0.06 | EK6: =interpolate_look_up(EK3,Scenarios!51:51,Scenarios!53:53) -> 0.06 | EL6: =interpolate_look_up(EL3,Scenarios!51:51,Scenarios!53:53) -> 0.06 | EM6: =interpolate_look_up(EM3,Scenarios!51:51,Scenarios!53:53) -> 0.06 | EN6: =interpolate_look_up(EN3,Scenarios!51:51,Scenarios!53:53) -> 0.06 | EO6: =interpolate_look_up(EO3,Scenarios!51:51,Scenarios!53:53) -> 0.06 | EP6: =interpolate_look_up(EP3,Scenarios!51:51,Scenarios!53:53) -> 0.06 | EQ6: =interpolate_look_up(EQ3,Scenarios!51:51,Scenarios!53:53) -> 0.06 | ER6: =interpolate_look_up(ER3,Scenarios!51:51,Scenarios!53:53) -> 0.06 | ES6: =interpolate_look_up(ES3,Scenarios!51:51,Scenarios!53:53) -> 0.06 | ET6: =interpolate_look_up(ET3,Scenarios!51:51,Scenarios!53:53) -> 0.06 | EU6: =interpolate_look_up(EU3,Scenarios!51:51,Scenarios!53:53) -> 0.06 | EV6: =interpolate_look_up(EV3,Scenarios!51:51,Scenarios!53:53) -> 0.06 | EW6: =interpolate_look_up(EW3,Scenarios!51:51,Scenarios!53:53) -> 0.06 | EX6: =interpolate_look_up(EX3,Scenarios!51:51,Scenarios!53:53) -> 0.06 | EY6: =interpolate_look_up(EY3,Scenarios!51:51,Scenarios!53:53) -> 0.06 | EZ6: =interpolate_look_up(EZ3,Scenarios!51:51,Scenarios!53:53) -> 0.06 | FA6: =interpolate_look_up(FA3,Scenarios!51:51,Scenarios!53:53) -> 0.06 | FB6: =interpolate_look_up(FB3,Scenarios!51:51,Scenarios!53:53) -> 0.06 | FC6: =interpolate_look_up(FC3,Scenarios!51:51,Scenarios!53:53) -> 0.06 | FD6: =interpolate_look_up(FD3,Scenarios!51:51,Scenarios!53:53) -> 0.06 | FE6: =interpolate_look_up(FE3,Scenarios!51:51,Scenarios!53:53) -> 0.06 | FF6: =interpolate_look_up(FF3,Scenarios!51:51,Scenarios!53:53) -> 0.06 | FG6: =interpolate_look_up(FG3,Scenarios!51:51,Scenarios!53:53) -> 0.06 | FH6: =interpolate_look_up(FH3,Scenarios!51:51,Scenarios!53:53) -> 0.06 | FI6: =interpolate_look_up(FI3,Scenarios!51:51,Scenarios!53:53) -> 0.06 | FJ6: =interpolate_look_up(FJ3,Scenarios!51:51,Scenarios!53:53) -> 0.06 | FK6: =interpolate_look_up(FK3,Scenarios!51:51,Scenarios!53:53) -> 0.06 | FL6: =interpolate_look_up(FL3,Scenarios!51:51,Scenarios!53:53) -> 0.06 | FM6: =interpolate_look_up(FM3,Scenarios!51:51,Scenarios!53:53) -> 0.06 | FN6: =interpolate_look_up(FN3,Scenarios!51:51,Scenarios!53:53) -> 0.06 | FO6: =interpolate_look_up(FO3,Scenarios!51:51,Scenarios!53:53) -> 0.06 | FP6: =interpolate_look_up(FP3,Scenarios!51:51,Scenarios!53:53) -> 0.06 | FQ6: =interpolate_look_up(FQ3,Scenarios!51:51,Scenarios!53:53) -> 0.06 | FR6: =interpolate_look_up(FR3,Scenarios!51:51,Scenarios!53:53) -> 0.06 | FS6: =interpolate_look_up(FS3,Scenarios!51:51,Scenarios!53:53) -> 0.06 | FT6: =interpolate_look_up(FT3,Scenarios!51:51,Scenarios!53:53) -> 0.06 | FU6: =interpolate_look_up(FU3,Scenarios!51:51,Scenarios!53:53) -> 0.06 | FV6: =interpolate_look_up(FV3,Scenarios!51:51,Scenarios!53:53) -> 0.06 | FW6: =interpolate_look_up(FW3,Scenarios!51:51,Scenarios!53:53) -> 0.06 | FX6: =interpolate_look_up(FX3,Scenarios!51:51,Scenarios!53:53) -> 0.06 | FY6: =interpolate_look_up(FY3,Scenarios!51:51,Scenarios!53:53) -> 0.06 | FZ6: =interpolate_look_up(FZ3,Scenarios!51:51,Scenarios!53:53) -> 0.06 | GA6: =interpolate_look_up(GA3,Scenarios!51:51,Scenarios!53:53) -> 0.06 | GB6: =interpolate_look_up(GB3,Scenarios!51:51,Scenarios!53:53) -> 0.06 | GC6: =interpolate_look_up(GC3,Scenarios!51:51,Scenarios!53:53) -> 0.06 | GD6: =interpolate_look_up(GD3,Scenarios!51:51,Scenarios!53:53) -> 0.06 | GE6: =interpolate_look_up(GE3,Scenarios!51:51,Scenarios!53:53) -> 0.06 | GF6: =interpolate_look_up(GF3,Scenarios!51:51,Scenarios!53:53) -> 0.06 | GG6: =interpolate_look_up(GG3,Scenarios!51:51,Scenarios!53:53) -> 0.06 | GH6: =interpolate_look_up(GH3,Scenarios!51:51,Scenarios!53:53) -> 0.06 | GI6: =interpolate_look_up(GI3,Scenarios!51:51,Scenarios!53:53) -> 0.06 | GJ6: =interpolate_look_up(GJ3,Scenarios!51:51,Scenarios!53:53) -> 0.06 | GK6: =interpolate_look_up(GK3,Scenarios!51:51,Scenarios!53:53) -> 0.06 | GL6: =interpolate_look_up(GL3,Scenarios!51:51,Scenarios!53:53) -> 0.06 | GM6: =interpolate_look_up(GM3,Scenarios!51:51,Scenarios!53:53) -> 0.06 | GN6: =interpolate_look_up(GN3,Scenarios!51:51,Scenarios!53:53) -> 0.06 | GO6: =interpolate_look_up(GO3,Scenarios!51:51,Scenarios!53:53) -> 0.06 | GP6: =interpolate_look_up(GP3,Scenarios!51:51,Scenarios!53:53) -> 0.06 | GQ6: =interpolate_look_up(GQ3,Scenarios!51:51,Scenarios!53:53) -> 0.06 | GR6: =interpolate_look_up(GR3,Scenarios!51:51,Scenarios!53:53) -> 0.06 | GS6: =interpolate_look_up(GS3,Scenarios!51:51,Scenarios!53:53) -> 0.06 | GT6: =interpolate_look_up(GT3,Scenarios!51:51,Scenarios!53:53) -> 0.06 | GU6: =interpolate_look_up(GU3,Scenarios!51:51,Scenarios!53:53) -> 0.06 | GV6: =interpolate_look_up(GV3,Scenarios!51:51,Scenarios!53:53) -> 0.06 | GW6: =interpolate_look_up(GW3,Scenarios!51:51,Scenarios!53:53) -> 0.06 | GX6: =interpolate_look_up(GX3,Scenarios!51:51,Scenarios!53:53) -> 0.06 | GY6: =interpolate_look_up(GY3,Scenarios!51:51,Scenarios!53:53) -> 0.06 | GZ6: =interpolate_look_up(GZ3,Scenarios!51:51,Scenarios!53:53) -> 0.06 | HA6: =interpolate_look_up(HA3,Scenarios!51:51,Scenarios!53:53) -> 0.06 | HB6: =interpolate_look_up(HB3,Scenarios!51:51,Scenarios!53:53) -> 0.06 | HC6: =interpolate_look_up(HC3,Scenarios!51:51,Scenarios!53:53) -> 0.06 | HD6: =interpolate_look_up(HD3,Scenarios!51:51,Scenarios!53:53) -> 0.06 | HE6: =interpolate_look_up(HE3,Scenarios!51:51,Scenarios!53:53) -> 0.06 | HF6: =interpolate_look_up(HF3,Scenarios!51:51,Scenarios!53:53) -> 0.06 | HG6: =interpolate_look_up(HG3,Scenarios!51:51,Scenarios!53:53) -> 0.06 | HH6: =interpolate_look_up(HH3,Scenarios!51:51,Scenarios!53:53) -> 0.06 | HI6: =interpolate_look_up(HI3,Scenarios!51:51,Scenarios!53:53) -> 0.06 | HJ6: =interpolate_look_up(HJ3,Scenarios!51:51,Scenarios!53:53) -> 0.06 | HK6: =interpolate_look_up(HK3,Scenarios!51:51,Scenarios!53:53) -> 0.06 | HL6: =interpolate_look_up(HL3,Scenarios!51:51,Scenarios!53:53) -> 0.06 | HM6: =interpolate_look_up(HM3,Scenarios!51:51,Scenarios!53:53) -> 0.06 | HN6: =interpolate_look_up(HN3,Scenarios!51:51,Scenarios!53:53) -> 0.06 | HO6: =interpolate_look_up(HO3,Scenarios!51:51,Scenarios!53:53) -> 0.06 | HP6: =interpolate_look_up(HP3,Scenarios!51:51,Scenarios!53:53) -> 0.06 | HQ6: =interpolate_look_up(HQ3,Scenarios!51:51,Scenarios!53:53) -> 0.06 | HR6: =interpolate_look_up(HR3,Scenarios!51:51,Scenarios!53:53) -> 0.06 | HS6: =interpolate_look_up(HS3,Scenarios!51:51,Scenarios!53:53) -> 0.06 | HT6: =interpolate_look_up(HT3,Scenarios!51:51,Scenarios!53:53) -> 0.06 | HU6: =interpolate_look_up(HU3,Scenarios!51:51,Scenarios!53:53) -> 0.06 | HV6: =interpolate_look_up(HV3,Scenarios!51:51,Scenarios!53:53) -> 0.06 | HW6: =interpolate_look_up(HW3,Scenarios!51:51,Scenarios!53:53) -> 0.06 | HX6: =interpolate_look_up(HX3,Scenarios!51:51,Scenarios!53:53) -> 0.06 | HY6: =interpolate_look_up(HY3,Scenarios!51:51,Scenarios!53:53) -> 0.06 | HZ6: =interpolate_look_up(HZ3,Scenarios!51:51,Scenarios!53:53) -> 0.06 | IA6: =interpolate_look_up(IA3,Scenarios!51:51,Scenarios!53:53) -> 0.06 | IB6: =interpolate_look_up(IB3,Scenarios!51:51,Scenarios!53:53) -> 0.06 | IC6: =interpolate_look_up(IC3,Scenarios!51:51,Scenarios!53:53) -> 0.06 | ID6: =interpolate_look_up(ID3,Scenarios!51:51,Scenarios!53:53) -> 0.06 | IE6: =interpolate_look_up(IE3,Scenarios!51:51,Scenarios!53:53) -> 0.06 | IF6: =interpolate_look_up(IF3,Scenarios!51:51,Scenarios!53:53) -> 0.06 | IG6: =interpolate_look_up(IG3,Scenarios!51:51,Scenarios!53:53) -> 0.06 | IH6: =interpolate_look_up(IH3,Scenarios!51:51,Scenarios!53:53) -> 0.06 | II6: =interpolate_look_up(II3,Scenarios!51:51,Scenarios!53:53) -> 0.06 | IJ6: =interpolate_look_up(IJ3,Scenarios!51:51,Scenarios!53:53) -> 0.06 | IK6: =interpolate_look_up(IK3,Scenarios!51:51,Scenarios!53:53) -> 0.06 | IL6: =interpolate_look_up(IL3,Scenarios!51:51,Scenarios!53:53) -> 0.06 | IM6: =interpolate_look_up(IM3,Scenarios!51:51,Scenarios!53:53) -> 0.06 | IN6: =interpolate_look_up(IN3,Scenarios!51:51,Scenarios!53:53) -> 0.06 | IO6: =interpolate_look_up(IO3,Scenarios!51:51,Scenarios!53:53) -> 0.06 | IP6: =interpolate_look_up(IP3,Scenarios!51:51,Scenarios!53:53) -> 0.06 | IQ6: =interpolate_look_up(IQ3,Scenarios!51:51,Scenarios!53:53) -> 0.06 | IR6: =interpolate_look_up(IR3,Scenarios!51:51,Scenarios!53:53) -> 0.06 | IS6: =interpolate_look_up(IS3,Scenarios!51:51,Scenarios!53:53) -> 0.06 | IT6: =interpolate_look_up(IT3,Scenarios!51:51,Scenarios!53:53) -> 0.06 | IU6: =interpolate_look_up(IU3,Scenarios!51:51,Scenarios!53:53) -> 0.06 | IV6: =interpolate_look_up(IV3,Scenarios!51:51,Scenarios!53:53) -> 0.06 | IW6: =interpolate_look_up(IW3,Scenarios!51:51,Scenarios!53:53) -> 0.06 | IX6: =interpolate_look_up(IX3,Scenarios!51:51,Scenarios!53:53) -> 0.06 | IY6: =interpolate_look_up(IY3,Scenarios!51:51,Scenarios!53:53) -> 0.06 | IZ6: =interpolate_look_up(IZ3,Scenarios!51:51,Scenarios!53:53) -> 0.06 | JA6: =interpolate_look_up(JA3,Scenarios!51:51,Scenarios!53:53) -> 0.06 | JB6: =interpolate_look_up(JB3,Scenarios!51:51,Scenarios!53:53) -> 0.06 | JC6: =interpolate_look_up(JC3,Scenarios!51:51,Scenarios!53:53) -> 0.06 | JD6: =interpolate_look_up(JD3,Scenarios!51:51,Scenarios!53:53) -> 0.06 | JE6: =interpolate_look_up(JE3,Scenarios!51:51,Scenarios!53:53) -> 0.06 | JF6: =interpolate_look_up(JF3,Scenarios!51:51,Scenarios!53:53) -> 0.06 | JG6: =interpolate_look_up(JG3,Scenarios!51:51,Scenarios!53:53) -> 0.06 | JH6: =interpolate_look_up(JH3,Scenarios!51:51,Scenarios!53:53) -> 0.06 | JI6: =interpolate_look_up(JI3,Scenarios!51:51,Scenarios!53:53) -> 0.06 | JJ6: =interpolate_look_up(JJ3,Scenarios!51:51,Scenarios!53:53) -> 0.06 | JK6: =interpolate_look_up(JK3,Scenarios!51:51,Scenarios!53:53) -> 0.06 | JL6: =interpolate_look_up(JL3,Scenarios!51:51,Scenarios!53:53) -> 0.06 | JM6: =interpolate_look_up(JM3,Scenarios!51:51,Scenarios!53:53) -> 0.06 | JN6: =interpolate_look_up(JN3,Scenarios!51:51,Scenarios!53:53) -> 0.06 | JO6: =interpolate_look_up(JO3,Scenarios!51:51,Scenarios!53:53) -> 0.06 | JP6: =interpolate_look_up(JP3,Scenarios!51:51,Scenarios!53:53) -> 0.06 | JQ6: =interpolate_look_up(JQ3,Scenarios!51:51,Scenarios!53:53) -> 0.06 | JR6: =interpolate_look_up(JR3,Scenarios!51:51,Scenarios!53:53) -> 0.06 | JS6: =interpolate_look_up(JS3,Scenarios!51:51,Scenarios!53:53) -> 0.06 | JT6: =interpolate_look_up(JT3,Scenarios!51:51,Scenarios!53:53) -> 0.06 | JU6: =interpolate_look_up(JU3,Scenarios!51:51,Scenarios!53:53) -> 0.06 | JV6: =interpolate_look_up(JV3,Scenarios!51:51,Scenarios!53:53) -> 0.06 | JW6: =interpolate_look_up(JW3,Scenarios!51:51,Scenarios!53:53) -> 0.06 | JX6: =interpolate_look_up(JX3,Scenarios!51:51,Scenarios!53:53) -> 0.06 | JY6: =interpolate_look_up(JY3,Scenarios!51:51,Scenarios!53:53) -> 0.06 | JZ6: =interpolate_look_up(JZ3,Scenarios!51:51,Scenarios!53:53) -> 0.06 | KA6: =interpolate_look_up(KA3,Scenarios!51:51,Scenarios!53:53) -> 0.06 | KB6: =interpolate_look_up(KB3,Scenarios!51:51,Scenarios!53:53) -> 0.06 | KC6: =interpolate_look_up(KC3,Scenarios!51:51,Scenarios!53:53) -> 0.06 | KD6: =interpolate_look_up(KD3,Scenarios!51:51,Scenarios!53:53) -> 0.06 | KE6: =interpolate_look_up(KE3,Scenarios!51:51,Scenarios!53:53) -> 0.06 | KF6: =interpolate_look_up(KF3,Scenarios!51:51,Scenarios!53:53) -> 0.06 | KG6: =interpolate_look_up(KG3,Scenarios!51:51,Scenarios!53:53) -> 0.06 | KH6: =interpolate_look_up(KH3,Scenarios!51:51,Scenarios!53:53) -> 0.06 | KI6: =interpolate_look_up(KI3,Scenarios!51:51,Scenarios!53:53) -> 0.06 | KJ6: =interpolate_look_up(KJ3,Scenarios!51:51,Scenarios!53:53) -> 0.06 | KK6: =interpolate_look_up(KK3,Scenarios!51:51,Scenarios!53:53) -> 0.06 | KL6: =interpolate_look_up(KL3,Scenarios!51:51,Scenarios!53:53) -> 0.06 | KM6: =interpolate_look_up(KM3,Scenarios!51:51,Scenarios!53:53) -> 0.06 | KN6: =interpolate_look_up(KN3,Scenarios!51:51,Scenarios!53:53) -> 0.06 | KO6: =interpolate_look_up(KO3,Scenarios!51:51,Scenarios!53:53) -> 0.06 | KP6: =interpolate_look_up(KP3,Scenarios!51:51,Scenarios!53:53) -> 0.06 | KQ6: =interpolate_look_up(KQ3,Scenarios!51:51,Scenarios!53:53) -> 0.06 | KR6: =interpolate_look_up(KR3,Scenarios!51:51,Scenarios!53:53) -> 0.06 | KS6: =interpolate_look_up(KS3,Scenarios!51:51,Scenarios!53:53) -> 0.06 | KT6: =interpolate_look_up(KT3,Scenarios!51:51,Scenarios!53:53) -> 0.06 | KU6: =interpolate_look_up(KU3,Scenarios!51:51,Scenarios!53:53) -> 0.06 | KV6: =interpolate_look_up(KV3,Scenarios!51:51,Scenarios!53:53) -> 0.06 | KW6: =interpolate_look_up(KW3,Scenarios!51:51,Scenarios!53:53) -> 0.06 | KX6: =interpolate_look_up(KX3,Scenarios!51:51,Scenarios!53:53) -> 0.06 | KY6: =interpolate_look_up(KY3,Scenarios!51:51,Scenarios!53:53) -> 0.06 | KZ6: =interpolate_look_up(KZ3,Scenarios!51:51,Scenarios!53:53) -> 0.06 | LA6: =interpolate_look_up(LA3,Scenarios!51:51,Scenarios!53:53) -> 0.06 | LB6: =interpolate_look_up(LB3,Scenarios!51:51,Scenarios!53:53) -> 0.06 | LC6: =interpolate_look_up(LC3,Scenarios!51:51,Scenarios!53:53) -> 0.06 | LD6: =interpolate_look_up(LD3,Scenarios!51:51,Scenarios!53:53) -> 0.06 | LE6: =interpolate_look_up(LE3,Scenarios!51:51,Scenarios!53:53) -> 0.06 | LF6: =interpolate_look_up(LF3,Scenarios!51:51,Scenarios!53:53) -> 0.06 | LG6: =interpolate_look_up(LG3,Scenarios!51:51,Scenarios!53:53) -> 0.06 | LH6: =interpolate_look_up(LH3,Scenarios!51:51,Scenarios!53:53) -> 0.06 | LI6: =interpolate_look_up(LI3,Scenarios!51:51,Scenarios!53:53) -> 0.06 | LJ6: =interpolate_look_up(LJ3,Scenarios!51:51,Scenarios!53:53) -> 0.06 | LK6: =interpolate_look_up(LK3,Scenarios!51:51,Scenarios!53:53) -> 0.06 | LL6: =interpolate_look_up(LL3,Scenarios!51:51,Scenarios!53:53) -> 0.06 | LM6: =interpolate_look_up(LM3,Scenarios!51:51,Scenarios!53:53) -> 0.06 | LN6: =interpolate_look_up(LN3,Scenarios!51:51,Scenarios!53:53) -> 0.06 | LO6: =interpolate_look_up(LO3,Scenarios!51:51,Scenarios!53:53) -> 0.06 | LP6: =interpolate_look_up(LP3,Scenarios!51:51,Scenarios!53:53) -> 0.06 | LQ6: =interpolate_look_up(LQ3,Scenarios!51:51,Scenarios!53:53) -> 0.06 | LR6: =interpolate_look_up(LR3,Scenarios!51:51,Scenarios!53:53) -> 0.06 | LS6: =interpolate_look_up(LS3,Scenarios!51:51,Scenarios!53:53) -> 0.06 | LT6: =interpolate_look_up(LT3,Scenarios!51:51,Scenarios!53:53) -> 0.06 | LU6: =interpolate_look_up(LU3,Scenarios!51:51,Scenarios!53:53) -> 0.06 | LV6: =interpolate_look_up(LV3,Scenarios!51:51,Scenarios!53:53) -> 0.06 | LW6: =interpolate_look_up(LW3,Scenarios!51:51,Scenarios!53:53) -> 0.06 | LX6: =interpolate_look_up(LX3,Scenarios!51:51,Scenarios!53:53) -> 0.06 | LY6: =interpolate_look_up(LY3,Scenarios!51:51,Scenarios!53:53) -> 0.06 | LZ6: =interpolate_look_up(LZ3,Scenarios!51:51,Scenarios!53:53) -> 0.06 | MA6: =interpolate_look_up(MA3,Scenarios!51:51,Scenarios!53:53) -> 0.06 | MB6: =interpolate_look_up(MB3,Scenarios!51:51,Scenarios!53:53) -> 0.06 | MC6: =interpolate_look_up(MC3,Scenarios!51:51,Scenarios!53:53) -> 0.06 | MD6: =interpolate_look_up(MD3,Scenarios!51:51,Scenarios!53:53) -> 0.06 | ME6: =interpolate_look_up(ME3,Scenarios!51:51,Scenarios!53:53) -> 0.06 | MF6: =interpolate_look_up(MF3,Scenarios!51:51,Scenarios!53:53) -> 0.06 | MG6: =interpolate_look_up(MG3,Scenarios!51:51,Scenarios!53:53) -> 0.06 | MH6: =interpolate_look_up(MH3,Scenarios!51:51,Scenarios!53:53) -> 0.06 | MI6: =interpolate_look_up(MI3,Scenarios!51:51,Scenarios!53:53) -> 0.06 | MJ6: =interpolate_look_up(MJ3,Scenarios!51:51,Scenarios!53:53) -> 0.06 | MK6: =interpolate_look_up(MK3,Scenarios!51:51,Scenarios!53:53) -> 0.06 | ML6: =interpolate_look_up(ML3,Scenarios!51:51,Scenarios!53:53) -> 0.06 | MM6: =interpolate_look_up(MM3,Scenarios!51:51,Scenarios!53:53) -> 0.06 | MN6: =interpolate_look_up(MN3,Scenarios!51:51,Scenarios!53:53) -> 0.06 | MO6: =interpolate_look_up(MO3,Scenarios!51:51,Scenarios!53:53) -> 0.06 | MP6: =interpolate_look_up(MP3,Scenarios!51:51,Scenarios!53:53) -> 0.06 | MQ6: =interpolate_look_up(MQ3,Scenarios!51:51,Scenarios!53:53) -> 0.06 | MR6: =interpolate_look_up(MR3,Scenarios!51:51,Scenarios!53:53) -> 0.06 | MS6: =interpolate_look_up(MS3,Scenarios!51:51,Scenarios!53:53) -> 0.06 | MT6: =interpolate_look_up(MT3,Scenarios!51:51,Scenarios!53:53) -> 0.06 | MU6: =interpolate_look_up(MU3,Scenarios!51:51,Scenarios!53:53) -> 0.06 | MV6: =interpolate_look_up(MV3,Scenarios!51:51,Scenarios!53:53) -> 0.06 | MW6: =interpolate_look_up(MW3,Scenarios!51:51,Scenarios!53:53) -> 0.06 | MX6: =interpolate_look_up(MX3,Scenarios!51:51,Scenarios!53:53) -> 0.06 | MY6: =interpolate_look_up(MY3,Scenarios!51:51,Scenarios!53:53) -> 0.06 | MZ6: =interpolate_look_up(MZ3,Scenarios!51:51,Scenarios!53:53) -> 0.06 | NA6: =interpolate_look_up(NA3,Scenarios!51:51,Scenarios!53:53) -> 0.06 | NB6: =interpolate_look_up(NB3,Scenarios!51:51,Scenarios!53:53) -> 0.06 | NC6: =interpolate_look_up(NC3,Scenarios!51:51,Scenarios!53:53) -> 0.06 | ND6: =interpolate_look_up(ND3,Scenarios!51:51,Scenarios!53:53) -> 0.06 | NE6: =interpolate_look_up(NE3,Scenarios!51:51,Scenarios!53:53) -> 0.06 | NF6: =interpolate_look_up(NF3,Scenarios!51:51,Scenarios!53:53) -> 0.06 | NG6: =interpolate_look_up(NG3,Scenarios!51:51,Scenarios!53:53) -> 0.06 | NH6: =interpolate_look_up(NH3,Scenarios!51:51,Scenarios!53:53) -> 0.06 | NI6: =interpolate_look_up(NI3,Scenarios!51:51,Scenarios!53:53) -> 0.06 | NJ6: =interpolate_look_up(NJ3,Scenarios!51:51,Scenarios!53:53) -> 0.06 | NK6: =interpolate_look_up(NK3,Scenarios!51:51,Scenarios!53:53) -> 0.06 | NL6: =interpolate_look_up(NL3,Scenarios!51:51,Scenarios!53:53) -> 0.06 | NM6: =interpolate_look_up(NM3,Scenarios!51:51,Scenarios!53:53) -> 0.06 | NN6: =interpolate_look_up(NN3,Scenarios!51:51,Scenarios!53:53) -> 0.06 | NO6: =interpolate_look_up(NO3,Scenarios!51:51,Scenarios!53:53) -> 0.06 | NP6: =interpolate_look_up(NP3,Scenarios!51:51,Scenarios!53:53) -> 0.06 | NQ6: =interpolate_look_up(NQ3,Scenarios!51:51,Scenarios!53:53) -> 0.06 | NR6: =interpolate_look_up(NR3,Scenarios!51:51,Scenarios!53:53) -> 0.06 | NS6: =interpolate_look_up(NS3,Scenarios!51:51,Scenarios!53:53) -> 0.06 | NT6: =interpolate_look_up(NT3,Scenarios!51:51,Scenarios!53:53) -> 0.06 | NU6: =interpolate_look_up(NU3,Scenarios!51:51,Scenarios!53:53) -> 0.06 | NV6: =interpolate_look_up(NV3,Scenarios!51:51,Scenarios!53:53) -> 0.06 | NW6: =interpolate_look_up(NW3,Scenarios!51:51,Scenarios!53:53) -> 0.06 | NX6: =interpolate_look_up(NX3,Scenarios!51:51,Scenarios!53:53) -> 0.06 | NY6: =interpolate_look_up(NY3,Scenarios!51:51,Scenarios!53:53) -> 0.06 | NZ6: =interpolate_look_up(NZ3,Scenarios!51:51,Scenarios!53:53) -> 0.06 | OA6: =interpolate_look_up(OA3,Scenarios!51:51,Scenarios!53:53) -> 0.06 | OB6: =interpolate_look_up(OB3,Scenarios!51:51,Scenarios!53:53) -> 0.06 | OC6: =interpolate_look_up(OC3,Scenarios!51:51,Scenarios!53:53) -> 0.06 | OD6: =interpolate_look_up(OD3,Scenarios!51:51,Scenarios!53:53) -> 0.06 | OE6: =interpolate_look_up(OE3,Scenarios!51:51,Scenarios!53:53) -> 0.06 | OF6: =interpolate_look_up(OF3,Scenarios!51:51,Scenarios!53:53) -> 0.06 | OG6: =interpolate_look_up(OG3,Scenarios!51:51,Scenarios!53:53) -> 0.06 | OH6: =interpolate_look_up(OH3,Scenarios!51:51,Scenarios!53:53) -> 0.06 | OI6: =interpolate_look_up(OI3,Scenarios!51:51,Scenarios!53:53) -> 0.06 | OJ6: =interpolate_look_up(OJ3,Scenarios!51:51,Scenarios!53:53) -> 0.06 | OK6: =interpolate_look_up(OK3,Scenarios!51:51,Scenarios!53:53) -> 0.06 | OL6: =interpolate_look_up(OL3,Scenarios!51:51,Scenarios!53:53) -> 0.06 | OM6: =interpolate_look_up(OM3,Scenarios!51:51,Scenarios!53:53) -> 0.06 | ON6: =interpolate_look_up(ON3,Scenarios!51:51,Scenarios!53:53) -> 0.06 | OO6: =interpolate_look_up(OO3,Scenarios!51:51,Scenarios!53:53) -> 0.06 | OP6: =interpolate_look_up(OP3,Scenarios!51:51,Scenarios!53:53) -> 0.06 | OQ6: =interpolate_look_up(OQ3,Scenarios!51:51,Scenarios!53:53) -> 0.06 | OR6: =interpolate_look_up(OR3,Scenarios!51:51,Scenarios!53:53) -> 0.06 | OS6: =interpolate_look_up(OS3,Scenarios!51:51,Scenarios!53:53) -> 0.06 | OT6: =interpolate_look_up(OT3,Scenarios!51:51,Scenarios!53:53) -> 0.06 | OU6: =interpolate_look_up(OU3,Scenarios!51:51,Scenarios!53:53) -> 0.06 | OV6: =interpolate_look_up(OV3,Scenarios!51:51,Scenarios!53:53) -> 0.06 | OW6: =interpolate_look_up(OW3,Scenarios!51:51,Scenarios!53:53) -> 0.06 | OX6: =interpolate_look_up(OX3,Scenarios!51:51,Scenarios!53:53) -> 0.06 | OY6: =interpolate_look_up(OY3,Scenarios!51:51,Scenarios!53:53) -> 0.06 | OZ6: =interpolate_look_up(OZ3,Scenarios!51:51,Scenarios!53:53) -> 0.06 | PA6: =interpolate_look_up(PA3,Scenarios!51:51,Scenarios!53:53) -> 0.06 | PB6: =interpolate_look_up(PB3,Scenarios!51:51,Scenarios!53:53) -> 0.06 | PC6: =interpolate_look_up(PC3,Scenarios!51:51,Scenarios!53:53) -> 0.06 | PD6: =interpolate_look_up(PD3,Scenarios!51:51,Scenarios!53:53) -> 0.06 | PE6: =interpolate_look_up(PE3,Scenarios!51:51,Scenarios!53:53) -> 0.06 | PF6: =interpolate_look_up(PF3,Scenarios!51:51,Scenarios!53:53) -> 0.06 | PG6: =interpolate_look_up(PG3,Scenarios!51:51,Scenarios!53:53) -> 0.06 | PH6: =interpolate_look_up(PH3,Scenarios!51:51,Scenarios!53:53) -> 0.06 | PI6: =interpolate_look_up(PI3,Scenarios!51:51,Scenarios!53:53) -> 0.06 | PJ6: =interpolate_look_up(PJ3,Scenarios!51:51,Scenarios!53:53) -> 0.06 | PK6: =interpolate_look_up(PK3,Scenarios!51:51,Scenarios!53:53) -> 0.06 | PL6: =interpolate_look_up(PL3,Scenarios!51:51,Scenarios!53:53) -> 0.06 | PM6: =interpolate_look_up(PM3,Scenarios!51:51,Scenarios!53:53) -> 0.06 | PN6: =interpolate_look_up(PN3,Scenarios!51:51,Scenarios!53:53) -> 0.06 | PO6: =interpolate_look_up(PO3,Scenarios!51:51,Scenarios!53:53) -> 0.06 | PP6: =interpolate_look_up(PP3,Scenarios!51:51,Scenarios!53:53) -> 0.06 | PQ6: =interpolate_look_up(PQ3,Scenarios!51:51,Scenarios!53:53) -> 0.06 | PR6: =interpolate_look_up(PR3,Scenarios!51:51,Scenarios!53:53) -> 0.06 | PS6: =interpolate_look_up(PS3,Scenarios!51:51,Scenarios!53:53) -> 0.06 | PT6: =interpolate_look_up(PT3,Scenarios!51:51,Scenarios!53:53) -> 0.06 | PU6: =interpolate_look_up(PU3,Scenarios!51:51,Scenarios!53:53) -> 0.06 | PV6: =interpolate_look_up(PV3,Scenarios!51:51,Scenarios!53:53) -> 0.06 | PW6: =interpolate_look_up(PW3,Scenarios!51:51,Scenarios!53:53) -> 0.06 | PX6: =interpolate_look_up(PX3,Scenarios!51:51,Scenarios!53:53) -> 0.06 | PY6: =interpolate_look_up(PY3,Scenarios!51:51,Scenarios!53:53) -> 0.06 | PZ6: =interpolate_look_up(PZ3,Scenarios!51:51,Scenarios!53:53) -> 0.06 | QA6: =interpolate_look_up(QA3,Scenarios!51:51,Scenarios!53:53) -> 0.06 | QB6: =interpolate_look_up(QB3,Scenarios!51:51,Scenarios!53:53) -> 0.06 | QC6: =interpolate_look_up(QC3,Scenarios!51:51,Scenarios!53:53) -> 0.06 | QD6: =interpolate_look_up(QD3,Scenarios!51:51,Scenarios!53:53) -> 0.06 | QE6: =interpolate_look_up(QE3,Scenarios!51:51,Scenarios!53:53) -> 0.06 | QF6: =interpolate_look_up(QF3,Scenarios!51:51,Scenarios!53:53) -> 0.06 | QG6: =interpolate_look_up(QG3,Scenarios!51:51,Scenarios!53:53) -> 0.06 | QH6: =interpolate_look_up(QH3,Scenarios!51:51,Scenarios!53:53) -> 0.06 | QI6: =interpolate_look_up(QI3,Scenarios!51:51,Scenarios!53:53) -> 0.06 | QJ6: =interpolate_look_up(QJ3,Scenarios!51:51,Scenarios!53:53) -> 0.06 | QK6: =interpolate_look_up(QK3,Scenarios!51:51,Scenarios!53:53) -> 0.06 | QL6: =interpolate_look_up(QL3,Scenarios!51:51,Scenarios!53:53) -> 0.06 | QM6: =interpolate_look_up(QM3,Scenarios!51:51,Scenarios!53:53) -> 0.06 | QN6: =interpolate_look_up(QN3,Scenarios!51:51,Scenarios!53:53) -> 0.06 | QO6: =interpolate_look_up(QO3,Scenarios!51:51,Scenarios!53:53) -> 0.06 | QP6: =interpolate_look_up(QP3,Scenarios!51:51,Scenarios!53:53) -> 0.06 | QQ6: =interpolate_look_up(QQ3,Scenarios!51:51,Scenarios!53:53) -> 0.06 | QR6: =interpolate_look_up(QR3,Scenarios!51:51,Scenarios!53:53) -> 0.06 | QS6: =interpolate_look_up(QS3,Scenarios!51:51,Scenarios!53:53) -> 0.06 | QT6: =interpolate_look_up(QT3,Scenarios!51:51,Scenarios!53:53) -> 0.06 | QU6: =interpolate_look_up(QU3,Scenarios!51:51,Scenarios!53:53) -> 0.06 | QV6: =interpolate_look_up(QV3,Scenarios!51:51,Scenarios!53:53) -> 0.06 | QW6: =interpolate_look_up(QW3,Scenarios!51:51,Scenarios!53:53) -> 0.06 | QX6: =interpolate_look_up(QX3,Scenarios!51:51,Scenarios!53:53) -> 0.06 | QY6: =interpolate_look_up(QY3,Scenarios!51:51,Scenarios!53:53) -> 0.06 | QZ6: =interpolate_look_up(QZ3,Scenarios!51:51,Scenarios!53:53) -> 0.06 | RA6: =interpolate_look_up(RA3,Scenarios!51:51,Scenarios!53:53) -> 0.06 | RB6: =interpolate_look_up(RB3,Scenarios!51:51,Scenarios!53:53) -> 0.06 | RC6: =interpolate_look_up(RC3,Scenarios!51:51,Scenarios!53:53) -> 0.06 | RD6: =interpolate_look_up(RD3,Scenarios!51:51,Scenarios!53:53) -> 0.06 | RE6: =interpolate_look_up(RE3,Scenarios!51:51,Scenarios!53:53) -> 0.06 | RF6: =interpolate_look_up(RF3,Scenarios!51:51,Scenarios!53:53) -> 0.06 | RG6: =interpolate_look_up(RG3,Scenarios!51:51,Scenarios!53:53) -> 0.06 | RH6: =interpolate_look_up(RH3,Scenarios!51:51,Scenarios!53:53) -> 0.06 | RI6: =interpolate_look_up(RI3,Scenarios!51:51,Scenarios!53:53) -> 0.06 | RJ6: =interpolate_look_up(RJ3,Scenarios!51:51,Scenarios!53:53) -> 0.06 | RK6: =interpolate_look_up(RK3,Scenarios!51:51,Scenarios!53:53) -> 0.06 | RL6: =interpolate_look_up(RL3,Scenarios!51:51,Scenarios!53:53) -> 0.06 | RM6: =interpolate_look_up(RM3,Scenarios!51:51,Scenarios!53:53) -> 0.06 | RN6: =interpolate_look_up(RN3,Scenarios!51:51,Scenarios!53:53) -> 0.06 | RO6: =interpolate_look_up(RO3,Scenarios!51:51,Scenarios!53:53) -> 0.06 | RP6: =interpolate_look_up(RP3,Scenarios!51:51,Scenarios!53:53) -> 0.06 | RQ6: =interpolate_look_up(RQ3,Scenarios!51:51,Scenarios!53:53) -> 0.06 | RR6: =interpolate_look_up(RR3,Scenarios!51:51,Scenarios!53:53) -> 0.06 | RS6: =interpolate_look_up(RS3,Scenarios!51:51,Scenarios!53:53) -> 0.06 | RT6: =interpolate_look_up(RT3,Scenarios!51:51,Scenarios!53:53) -> 0.06 | RU6: =interpolate_look_up(RU3,Scenarios!51:51,Scenarios!53:53) -> 0.06 | RV6: =interpolate_look_up(RV3,Scenarios!51:51,Scenarios!53:53) -> 0.06 | RW6: =interpolate_look_up(RW3,Scenarios!51:51,Scenarios!53:53) -> 0.06 | RX6: =interpolate_look_up(RX3,Scenarios!51:51,Scenarios!53:53) -> 0.06 | RY6: =interpolate_look_up(RY3,Scenarios!51:51,Scenarios!53:53) -> 0.06 | RZ6: =interpolate_look_up(RZ3,Scenarios!51:51,Scenarios!53:53) -> 0.06 | SA6: =interpolate_look_up(SA3,Scenarios!51:51,Scenarios!53:53) -> 0.06 | SB6: =interpolate_look_up(SB3,Scenarios!51:51,Scenarios!53:53) -> 0.06 | SC6: =interpolate_look_up(SC3,Scenarios!51:51,Scenarios!53:53) -> 0.06 | SD6: =interpolate_look_up(SD3,Scenarios!51:51,Scenarios!53:53) -> 0.06 | SE6: =interpolate_look_up(SE3,Scenarios!51:51,Scenarios!53:53) -> 0.06 | SF6: =interpolate_look_up(SF3,Scenarios!51:51,Scenarios!53:53) -> 0.06 | SG6: =interpolate_look_up(SG3,Scenarios!51:51,Scenarios!53:53) -> 0.06 | SH6: =interpolate_look_up(SH3,Scenarios!51:51,Scenarios!53:53) -> 0.06 | SI6: =interpolate_look_up(SI3,Scenarios!51:51,Scenarios!53:53) -> 0.06 | SJ6: =interpolate_look_up(SJ3,Scenarios!51:51,Scenarios!53:53) -> 0.06 | SK6: =interpolate_look_up(SK3,Scenarios!51:51,Scenarios!53:53) -> 0.06 | SL6: =interpolate_look_up(SL3,Scenarios!51:51,Scenarios!53:53) -> 0.06 | SM6: =interpolate_look_up(SM3,Scenarios!51:51,Scenarios!53:53) -> 0.06 | SN6: =interpolate_look_up(SN3,Scenarios!51:51,Scenarios!53:53) -> 0.06 | SO6: =interpolate_look_up(SO3,Scenarios!51:51,Scenarios!53:53) -> 0.06 | SP6: =interpolate_look_up(SP3,Scenarios!51:51,Scenarios!53:53) -> 0.06 | SQ6: =interpolate_look_up(SQ3,Scenarios!51:51,Scenarios!53:53) -> 0.06 | SR6: =interpolate_look_up(SR3,Scenarios!51:51,Scenarios!53:53) -> 0.06 | SS6: =interpolate_look_up(SS3,Scenarios!51:51,Scenarios!53:53) -> 0.06 | ST6: =interpolate_look_up(ST3,Scenarios!51:51,Scenarios!53:53) -> 0.06 | SU6: =interpolate_look_up(SU3,Scenarios!51:51,Scenarios!53:53) -> 0.06 | SV6: =interpolate_look_up(SV3,Scenarios!51:51,Scenarios!53:53) -> 0.06 | SW6: =interpolate_look_up(SW3,Scenarios!51:51,Scenarios!53:53) -> 0.06 | SX6: =interpolate_look_up(SX3,Scenarios!51:51,Scenarios!53:53) -> 0.06 | SY6: =interpolate_look_up(SY3,Scenarios!51:51,Scenarios!53:53) -> 0.06 | SZ6: =interpolate_look_up(SZ3,Scenarios!51:51,Scenarios!53:53) -> 0.06 | TA6: =interpolate_look_up(TA3,Scenarios!51:51,Scenarios!53:53) -> 0.06 | TB6: =interpolate_look_up(TB3,Scenarios!51:51,Scenarios!53:53) -> 0.06 | TC6: =interpolate_look_up(TC3,Scenarios!51:51,Scenarios!53:53) -> 0.06
D7: Growth Rate | K7: =interpolate_look_up(K3,Scenarios!51:51,Scenarios!54:54) -> 0.08 | L7: =interpolate_look_up(L3,Scenarios!51:51,Scenarios!54:54) -> 0.0711311764 | M7: =interpolate_look_up(M3,Scenarios!51:51,Scenarios!54:54) -> 0.0632455532 | N7: =interpolate_look_up(N3,Scenarios!51:51,Scenarios!54:54) -> 0.05623413252 | O7: =interpolate_look_up(O3,Scenarios!51:51,Scenarios!54:54) -> 0.05 | P7: =interpolate_look_up(P3,Scenarios!51:51,Scenarios!54:54) -> 0.04217163327 | Q7: =interpolate_look_up(Q3,Scenarios!51:51,Scenarios!54:54) -> 0.03556893304 | R7: =interpolate_look_up(R3,Scenarios!51:51,Scenarios!54:54) -> 0.03 | S7: =interpolate_look_up(S3,Scenarios!51:51,Scenarios!54:54) -> 0.03 | T7: =interpolate_look_up(T3,Scenarios!51:51,Scenarios!54:54) -> 0.03 | U7: =interpolate_look_up(U3,Scenarios!51:51,Scenarios!54:54) -> 0.025 | V7: =interpolate_look_up(V3,Scenarios!51:51,Scenarios!54:54) -> 0.025 | W7: =interpolate_look_up(W3,Scenarios!51:51,Scenarios!54:54) -> 0.025 | X7: =interpolate_look_up(X3,Scenarios!51:51,Scenarios!54:54) -> 0.025 | Y7: =interpolate_look_up(Y3,Scenarios!51:51,Scenarios!54:54) -> 0.025 | Z7: =interpolate_look_up(Z3,Scenarios!51:51,Scenarios!54:54) -> 0.025 | AA7: =interpolate_look_up(AA3,Scenarios!51:51,Scenarios!54:54) -> 0.025 | AB7: =interpolate_look_up(AB3,Scenarios!51:51,Scenarios!54:54) -> 0.025 | AC7: =interpolate_look_up(AC3,Scenarios!51:51,Scenarios!54:54) -> 0.025 | AD7: =interpolate_look_up(AD3,Scenarios!51:51,Scenarios!54:54) -> 0.025 | AE7: =interpolate_look_up(AE3,Scenarios!51:51,Scenarios!54:54) -> 0.025 | AF7: =interpolate_look_up(AF3,Scenarios!51:51,Scenarios!54:54) -> 0.025 | AG7: =interpolate_look_up(AG3,Scenarios!51:51,Scenarios!54:54) -> 0.025 | AH7: =interpolate_look_up(AH3,Scenarios!51:51,Scenarios!54:54) -> 0.025 | AI7: =interpolate_look_up(AI3,Scenarios!51:51,Scenarios!54:54) -> 0.025 | AJ7: =interpolate_look_up(AJ3,Scenarios!51:51,Scenarios!54:54) -> 0.025 | AK7: =interpolate_look_up(AK3,Scenarios!51:51,Scenarios!54:54) -> 0.025 | AL7: =interpolate_look_up(AL3,Scenarios!51:51,Scenarios!54:54) -> 0.025 | AM7: =interpolate_look_up(AM3,Scenarios!51:51,Scenarios!54:54) -> 0.025 | AN7: =interpolate_look_up(AN3,Scenarios!51:51,Scenarios!54:54) -> 0.025 | AO7: =interpolate_look_up(AO3,Scenarios!51:51,Scenarios!54:54) -> 0.025 | AP7: =interpolate_look_up(AP3,Scenarios!51:51,Scenarios!54:54) -> 0.025 | AQ7: =interpolate_look_up(AQ3,Scenarios!51:51,Scenarios!54:54) -> 0.025 | AR7: =interpolate_look_up(AR3,Scenarios!51:51,Scenarios!54:54) -> 0.025 | AS7: =interpolate_look_up(AS3,Scenarios!51:51,Scenarios!54:54) -> 0.025 | AT7: =interpolate_look_up(AT3,Scenarios!51:51,Scenarios!54:54) -> 0.025 | AU7: =interpolate_look_up(AU3,Scenarios!51:51,Scenarios!54:54) -> 0.025 | AV7: =interpolate_look_up(AV3,Scenarios!51:51,Scenarios!54:54) -> 0.025 | AW7: =interpolate_look_up(AW3,Scenarios!51:51,Scenarios!54:54) -> 0.025 | AX7: =interpolate_look_up(AX3,Scenarios!51:51,Scenarios!54:54) -> 0.025 | AY7: =interpolate_look_up(AY3,Scenarios!51:51,Scenarios!54:54) -> 0.025 | AZ7: =interpolate_look_up(AZ3,Scenarios!51:51,Scenarios!54:54) -> 0.025 | BA7: =interpolate_look_up(BA3,Scenarios!51:51,Scenarios!54:54) -> 0.025 | BB7: =interpolate_look_up(BB3,Scenarios!51:51,Scenarios!54:54) -> 0.025 | BC7: =interpolate_look_up(BC3,Scenarios!51:51,Scenarios!54:54) -> 0.025 | BD7: =interpolate_look_up(BD3,Scenarios!51:51,Scenarios!54:54) -> 0.025 | BE7: =interpolate_look_up(BE3,Scenarios!51:51,Scenarios!54:54) -> 0.025 | BF7: =interpolate_look_up(BF3,Scenarios!51:51,Scenarios!54:54) -> 0.025 | BG7: =interpolate_look_up(BG3,Scenarios!51:51,Scenarios!54:54) -> 0.025 | BH7: =interpolate_look_up(BH3,Scenarios!51:51,Scenarios!54:54) -> 0.025 | BI7: =interpolate_look_up(BI3,Scenarios!51:51,Scenarios!54:54) -> 0.025 | BJ7: =interpolate_look_up(BJ3,Scenarios!51:51,Scenarios!54:54) -> 0.025 | BK7: =interpolate_look_up(BK3,Scenarios!51:51,Scenarios!54:54) -> 0.025 | BL7: =interpolate_look_up(BL3,Scenarios!51:51,Scenarios!54:54) -> 0.025 | BM7: =interpolate_look_up(BM3,Scenarios!51:51,Scenarios!54:54) -> 0.025 | BN7: =interpolate_look_up(BN3,Scenarios!51:51,Scenarios!54:54) -> 0.025 | BO7: =interpolate_look_up(BO3,Scenarios!51:51,Scenarios!54:54) -> 0.025 | BP7: =interpolate_look_up(BP3,Scenarios!51:51,Scenarios!54:54) -> 0.025 | BQ7: =interpolate_look_up(BQ3,Scenarios!51:51,Scenarios!54:54) -> 0.025 | BR7: =interpolate_look_up(BR3,Scenarios!51:51,Scenarios!54:54) -> 0.025 | BS7: =interpolate_look_up(BS3,Scenarios!51:51,Scenarios!54:54) -> 0.025 | BT7: =interpolate_look_up(BT3,Scenarios!51:51,Scenarios!54:54) -> 0.025 | BU7: =interpolate_look_up(BU3,Scenarios!51:51,Scenarios!54:54) -> 0.025 | BV7: =interpolate_look_up(BV3,Scenarios!51:51,Scenarios!54:54) -> 0.025 | BW7: =interpolate_look_up(BW3,Scenarios!51:51,Scenarios!54:54) -> 0.025 | BX7: =interpolate_look_up(BX3,Scenarios!51:51,Scenarios!54:54) -> 0.025 | BY7: =interpolate_look_up(BY3,Scenarios!51:51,Scenarios!54:54) -> 0.025 | BZ7: =interpolate_look_up(BZ3,Scenarios!51:51,Scenarios!54:54) -> 0.025 | CA7: =interpolate_look_up(CA3,Scenarios!51:51,Scenarios!54:54) -> 0.025 | CB7: =interpolate_look_up(CB3,Scenarios!51:51,Scenarios!54:54) -> 0.025 | CC7: =interpolate_look_up(CC3,Scenarios!51:51,Scenarios!54:54) -> 0.025 | CD7: =interpolate_look_up(CD3,Scenarios!51:51,Scenarios!54:54) -> 0.025 | CE7: =interpolate_look_up(CE3,Scenarios!51:51,Scenarios!54:54) -> 0.025 | CF7: =interpolate_look_up(CF3,Scenarios!51:51,Scenarios!54:54) -> 0.025 | CG7: =interpolate_look_up(CG3,Scenarios!51:51,Scenarios!54:54) -> 0.025 | CH7: =interpolate_look_up(CH3,Scenarios!51:51,Scenarios!54:54) -> 0.025 | CI7: =interpolate_look_up(CI3,Scenarios!51:51,Scenarios!54:54) -> 0.025 | CJ7: =interpolate_look_up(CJ3,Scenarios!51:51,Scenarios!54:54) -> 0.025 | CK7: =interpolate_look_up(CK3,Scenarios!51:51,Scenarios!54:54) -> 0.025 | CL7: =interpolate_look_up(CL3,Scenarios!51:51,Scenarios!54:54) -> 0.025 | CM7: =interpolate_look_up(CM3,Scenarios!51:51,Scenarios!54:54) -> 0.025 | CN7: =interpolate_look_up(CN3,Scenarios!51:51,Scenarios!54:54) -> 0.025 | CO7: =interpolate_look_up(CO3,Scenarios!51:51,Scenarios!54:54) -> 0.025 | CP7: =interpolate_look_up(CP3,Scenarios!51:51,Scenarios!54:54) -> 0.025 | CQ7: =interpolate_look_up(CQ3,Scenarios!51:51,Scenarios!54:54) -> 0.025 | CR7: =interpolate_look_up(CR3,Scenarios!51:51,Scenarios!54:54) -> 0.025 | CS7: =interpolate_look_up(CS3,Scenarios!51:51,Scenarios!54:54) -> 0.025 | CT7: =interpolate_look_up(CT3,Scenarios!51:51,Scenarios!54:54) -> 0.025 | CU7: =interpolate_look_up(CU3,Scenarios!51:51,Scenarios!54:54) -> 0.025 | CV7: =interpolate_look_up(CV3,Scenarios!51:51,Scenarios!54:54) -> 0.025 | CW7: =interpolate_look_up(CW3,Scenarios!51:51,Scenarios!54:54) -> 0.025 | CX7: =interpolate_look_up(CX3,Scenarios!51:51,Scenarios!54:54) -> 0.025 | CY7: =interpolate_look_up(CY3,Scenarios!51:51,Scenarios!54:54) -> 0.025 | CZ7: =interpolate_look_up(CZ3,Scenarios!51:51,Scenarios!54:54) -> 0.025 | DA7: =interpolate_look_up(DA3,Scenarios!51:51,Scenarios!54:54) -> 0.025 | DB7: =interpolate_look_up(DB3,Scenarios!51:51,Scenarios!54:54) -> 0.025 | DC7: =interpolate_look_up(DC3,Scenarios!51:51,Scenarios!54:54) -> 0.025 | DD7: =interpolate_look_up(DD3,Scenarios!51:51,Scenarios!54:54) -> 0.025 | DE7: =interpolate_look_up(DE3,Scenarios!51:51,Scenarios!54:54) -> 0.025 | DF7: =interpolate_look_up(DF3,Scenarios!51:51,Scenarios!54:54) -> 0.025 | DG7: =interpolate_look_up(DG3,Scenarios!51:51,Scenarios!54:54) -> 0.025 | DH7: =interpolate_look_up(DH3,Scenarios!51:51,Scenarios!54:54) -> 0.025 | DI7: =interpolate_look_up(DI3,Scenarios!51:51,Scenarios!54:54) -> 0.025 | DJ7: =interpolate_look_up(DJ3,Scenarios!51:51,Scenarios!54:54) -> 0.025 | DK7: =interpolate_look_up(DK3,Scenarios!51:51,Scenarios!54:54) -> 0.025 | DL7: =interpolate_look_up(DL3,Scenarios!51:51,Scenarios!54:54) -> 0.025 | DM7: =interpolate_look_up(DM3,Scenarios!51:51,Scenarios!54:54) -> 0.025 | DN7: =interpolate_look_up(DN3,Scenarios!51:51,Scenarios!54:54) -> 0.025 | DO7: =interpolate_look_up(DO3,Scenarios!51:51,Scenarios!54:54) -> 0.025 | DP7: =interpolate_look_up(DP3,Scenarios!51:51,Scenarios!54:54) -> 0.025 | DQ7: =interpolate_look_up(DQ3,Scenarios!51:51,Scenarios!54:54) -> 0.025 | DR7: =interpolate_look_up(DR3,Scenarios!51:51,Scenarios!54:54) -> 0.025 | DS7: =interpolate_look_up(DS3,Scenarios!51:51,Scenarios!54:54) -> 0.025 | DT7: =interpolate_look_up(DT3,Scenarios!51:51,Scenarios!54:54) -> 0.025 | DU7: =interpolate_look_up(DU3,Scenarios!51:51,Scenarios!54:54) -> 0.025 | DV7: =interpolate_look_up(DV3,Scenarios!51:51,Scenarios!54:54) -> 0.025 | DW7: =interpolate_look_up(DW3,Scenarios!51:51,Scenarios!54:54) -> 0.025 | DX7: =interpolate_look_up(DX3,Scenarios!51:51,Scenarios!54:54) -> 0.025 | DY7: =interpolate_look_up(DY3,Scenarios!51:51,Scenarios!54:54) -> 0.025 | DZ7: =interpolate_look_up(DZ3,Scenarios!51:51,Scenarios!54:54) -> 0.025 | EA7: =interpolate_look_up(EA3,Scenarios!51:51,Scenarios!54:54) -> 0.025 | EB7: =interpolate_look_up(EB3,Scenarios!51:51,Scenarios!54:54) -> 0.025 | EC7: =interpolate_look_up(EC3,Scenarios!51:51,Scenarios!54:54) -> 0.025 | ED7: =interpolate_look_up(ED3,Scenarios!51:51,Scenarios!54:54) -> 0.025 | EE7: =interpolate_look_up(EE3,Scenarios!51:51,Scenarios!54:54) -> 0.025 | EF7: =interpolate_look_up(EF3,Scenarios!51:51,Scenarios!54:54) -> 0.025 | EG7: =interpolate_look_up(EG3,Scenarios!51:51,Scenarios!54:54) -> 0.025 | EH7: =interpolate_look_up(EH3,Scenarios!51:51,Scenarios!54:54) -> 0.025 | EI7: =interpolate_look_up(EI3,Scenarios!51:51,Scenarios!54:54) -> 0.025 | EJ7: =interpolate_look_up(EJ3,Scenarios!51:51,Scenarios!54:54) -> 0.025 | EK7: =interpolate_look_up(EK3,Scenarios!51:51,Scenarios!54:54) -> 0.025 | EL7: =interpolate_look_up(EL3,Scenarios!51:51,Scenarios!54:54) -> 0.025 | EM7: =interpolate_look_up(EM3,Scenarios!51:51,Scenarios!54:54) -> 0.025 | EN7: =interpolate_look_up(EN3,Scenarios!51:51,Scenarios!54:54) -> 0.025 | EO7: =interpolate_look_up(EO3,Scenarios!51:51,Scenarios!54:54) -> 0.025 | EP7: =interpolate_look_up(EP3,Scenarios!51:51,Scenarios!54:54) -> 0.025 | EQ7: =interpolate_look_up(EQ3,Scenarios!51:51,Scenarios!54:54) -> 0.025 | ER7: =interpolate_look_up(ER3,Scenarios!51:51,Scenarios!54:54) -> 0.025 | ES7: =interpolate_look_up(ES3,Scenarios!51:51,Scenarios!54:54) -> 0.025 | ET7: =interpolate_look_up(ET3,Scenarios!51:51,Scenarios!54:54) -> 0.025 | EU7: =interpolate_look_up(EU3,Scenarios!51:51,Scenarios!54:54) -> 0.025 | EV7: =interpolate_look_up(EV3,Scenarios!51:51,Scenarios!54:54) -> 0.025 | EW7: =interpolate_look_up(EW3,Scenarios!51:51,Scenarios!54:54) -> 0.025 | EX7: =interpolate_look_up(EX3,Scenarios!51:51,Scenarios!54:54) -> 0.025 | EY7: =interpolate_look_up(EY3,Scenarios!51:51,Scenarios!54:54) -> 0.025 | EZ7: =interpolate_look_up(EZ3,Scenarios!51:51,Scenarios!54:54) -> 0.025 | FA7: =interpolate_look_up(FA3,Scenarios!51:51,Scenarios!54:54) -> 0.025 | FB7: =interpolate_look_up(FB3,Scenarios!51:51,Scenarios!54:54) -> 0.025 | FC7: =interpolate_look_up(FC3,Scenarios!51:51,Scenarios!54:54) -> 0.025 | FD7: =interpolate_look_up(FD3,Scenarios!51:51,Scenarios!54:54) -> 0.025 | FE7: =interpolate_look_up(FE3,Scenarios!51:51,Scenarios!54:54) -> 0.025 | FF7: =interpolate_look_up(FF3,Scenarios!51:51,Scenarios!54:54) -> 0.025 | FG7: =interpolate_look_up(FG3,Scenarios!51:51,Scenarios!54:54) -> 0.025 | FH7: =interpolate_look_up(FH3,Scenarios!51:51,Scenarios!54:54) -> 0.025 | FI7: =interpolate_look_up(FI3,Scenarios!51:51,Scenarios!54:54) -> 0.025 | FJ7: =interpolate_look_up(FJ3,Scenarios!51:51,Scenarios!54:54) -> 0.025 | FK7: =interpolate_look_up(FK3,Scenarios!51:51,Scenarios!54:54) -> 0.025 | FL7: =interpolate_look_up(FL3,Scenarios!51:51,Scenarios!54:54) -> 0.025 | FM7: =interpolate_look_up(FM3,Scenarios!51:51,Scenarios!54:54) -> 0.025 | FN7: =interpolate_look_up(FN3,Scenarios!51:51,Scenarios!54:54) -> 0.025 | FO7: =interpolate_look_up(FO3,Scenarios!51:51,Scenarios!54:54) -> 0.025 | FP7: =interpolate_look_up(FP3,Scenarios!51:51,Scenarios!54:54) -> 0.025 | FQ7: =interpolate_look_up(FQ3,Scenarios!51:51,Scenarios!54:54) -> 0.025 | FR7: =interpolate_look_up(FR3,Scenarios!51:51,Scenarios!54:54) -> 0.025 | FS7: =interpolate_look_up(FS3,Scenarios!51:51,Scenarios!54:54) -> 0.025 | FT7: =interpolate_look_up(FT3,Scenarios!51:51,Scenarios!54:54) -> 0.025 | FU7: =interpolate_look_up(FU3,Scenarios!51:51,Scenarios!54:54) -> 0.025 | FV7: =interpolate_look_up(FV3,Scenarios!51:51,Scenarios!54:54) -> 0.025 | FW7: =interpolate_look_up(FW3,Scenarios!51:51,Scenarios!54:54) -> 0.025 | FX7: =interpolate_look_up(FX3,Scenarios!51:51,Scenarios!54:54) -> 0.025 | FY7: =interpolate_look_up(FY3,Scenarios!51:51,Scenarios!54:54) -> 0.025 | FZ7: =interpolate_look_up(FZ3,Scenarios!51:51,Scenarios!54:54) -> 0.025 | GA7: =interpolate_look_up(GA3,Scenarios!51:51,Scenarios!54:54) -> 0.025 | GB7: =interpolate_look_up(GB3,Scenarios!51:51,Scenarios!54:54) -> 0.025 | GC7: =interpolate_look_up(GC3,Scenarios!51:51,Scenarios!54:54) -> 0.025 | GD7: =interpolate_look_up(GD3,Scenarios!51:51,Scenarios!54:54) -> 0.025 | GE7: =interpolate_look_up(GE3,Scenarios!51:51,Scenarios!54:54) -> 0.025 | GF7: =interpolate_look_up(GF3,Scenarios!51:51,Scenarios!54:54) -> 0.025 | GG7: =interpolate_look_up(GG3,Scenarios!51:51,Scenarios!54:54) -> 0.025 | GH7: =interpolate_look_up(GH3,Scenarios!51:51,Scenarios!54:54) -> 0.025 | GI7: =interpolate_look_up(GI3,Scenarios!51:51,Scenarios!54:54) -> 0.025 | GJ7: =interpolate_look_up(GJ3,Scenarios!51:51,Scenarios!54:54) -> 0.025 | GK7: =interpolate_look_up(GK3,Scenarios!51:51,Scenarios!54:54) -> 0.025 | GL7: =interpolate_look_up(GL3,Scenarios!51:51,Scenarios!54:54) -> 0.025 | GM7: =interpolate_look_up(GM3,Scenarios!51:51,Scenarios!54:54) -> 0.025 | GN7: =interpolate_look_up(GN3,Scenarios!51:51,Scenarios!54:54) -> 0.025 | GO7: =interpolate_look_up(GO3,Scenarios!51:51,Scenarios!54:54) -> 0.025 | GP7: =interpolate_look_up(GP3,Scenarios!51:51,Scenarios!54:54) -> 0.025 | GQ7: =interpolate_look_up(GQ3,Scenarios!51:51,Scenarios!54:54) -> 0.025 | GR7: =interpolate_look_up(GR3,Scenarios!51:51,Scenarios!54:54) -> 0.025 | GS7: =interpolate_look_up(GS3,Scenarios!51:51,Scenarios!54:54) -> 0.025 | GT7: =interpolate_look_up(GT3,Scenarios!51:51,Scenarios!54:54) -> 0.025 | GU7: =interpolate_look_up(GU3,Scenarios!51:51,Scenarios!54:54) -> 0.025 | GV7: =interpolate_look_up(GV3,Scenarios!51:51,Scenarios!54:54) -> 0.025 | GW7: =interpolate_look_up(GW3,Scenarios!51:51,Scenarios!54:54) -> 0.025 | GX7: =interpolate_look_up(GX3,Scenarios!51:51,Scenarios!54:54) -> 0.025 | GY7: =interpolate_look_up(GY3,Scenarios!51:51,Scenarios!54:54) -> 0.025 | GZ7: =interpolate_look_up(GZ3,Scenarios!51:51,Scenarios!54:54) -> 0.025 | HA7: =interpolate_look_up(HA3,Scenarios!51:51,Scenarios!54:54) -> 0.025 | HB7: =interpolate_look_up(HB3,Scenarios!51:51,Scenarios!54:54) -> 0.025 | HC7: =interpolate_look_up(HC3,Scenarios!51:51,Scenarios!54:54) -> 0.025 | HD7: =interpolate_look_up(HD3,Scenarios!51:51,Scenarios!54:54) -> 0.025 | HE7: =interpolate_look_up(HE3,Scenarios!51:51,Scenarios!54:54) -> 0.025 | HF7: =interpolate_look_up(HF3,Scenarios!51:51,Scenarios!54:54) -> 0.025 | HG7: =interpolate_look_up(HG3,Scenarios!51:51,Scenarios!54:54) -> 0.025 | HH7: =interpolate_look_up(HH3,Scenarios!51:51,Scenarios!54:54) -> 0.025 | HI7: =interpolate_look_up(HI3,Scenarios!51:51,Scenarios!54:54) -> 0.025 | HJ7: =interpolate_look_up(HJ3,Scenarios!51:51,Scenarios!54:54) -> 0.025 | HK7: =interpolate_look_up(HK3,Scenarios!51:51,Scenarios!54:54) -> 0.025 | HL7: =interpolate_look_up(HL3,Scenarios!51:51,Scenarios!54:54) -> 0.025 | HM7: =interpolate_look_up(HM3,Scenarios!51:51,Scenarios!54:54) -> 0.025 | HN7: =interpolate_look_up(HN3,Scenarios!51:51,Scenarios!54:54) -> 0.025 | HO7: =interpolate_look_up(HO3,Scenarios!51:51,Scenarios!54:54) -> 0.025 | HP7: =interpolate_look_up(HP3,Scenarios!51:51,Scenarios!54:54) -> 0.025 | HQ7: =interpolate_look_up(HQ3,Scenarios!51:51,Scenarios!54:54) -> 0.025 | HR7: =interpolate_look_up(HR3,Scenarios!51:51,Scenarios!54:54) -> 0.025 | HS7: =interpolate_look_up(HS3,Scenarios!51:51,Scenarios!54:54) -> 0.025 | HT7: =interpolate_look_up(HT3,Scenarios!51:51,Scenarios!54:54) -> 0.025 | HU7: =interpolate_look_up(HU3,Scenarios!51:51,Scenarios!54:54) -> 0.025 | HV7: =interpolate_look_up(HV3,Scenarios!51:51,Scenarios!54:54) -> 0.025 | HW7: =interpolate_look_up(HW3,Scenarios!51:51,Scenarios!54:54) -> 0.025 | HX7: =interpolate_look_up(HX3,Scenarios!51:51,Scenarios!54:54) -> 0.025 | HY7: =interpolate_look_up(HY3,Scenarios!51:51,Scenarios!54:54) -> 0.025 | HZ7: =interpolate_look_up(HZ3,Scenarios!51:51,Scenarios!54:54) -> 0.025 | IA7: =interpolate_look_up(IA3,Scenarios!51:51,Scenarios!54:54) -> 0.025 | IB7: =interpolate_look_up(IB3,Scenarios!51:51,Scenarios!54:54) -> 0.025 | IC7: =interpolate_look_up(IC3,Scenarios!51:51,Scenarios!54:54) -> 0.025 | ID7: =interpolate_look_up(ID3,Scenarios!51:51,Scenarios!54:54) -> 0.025 | IE7: =interpolate_look_up(IE3,Scenarios!51:51,Scenarios!54:54) -> 0.025 | IF7: =interpolate_look_up(IF3,Scenarios!51:51,Scenarios!54:54) -> 0.025 | IG7: =interpolate_look_up(IG3,Scenarios!51:51,Scenarios!54:54) -> 0.025 | IH7: =interpolate_look_up(IH3,Scenarios!51:51,Scenarios!54:54) -> 0.025 | II7: =interpolate_look_up(II3,Scenarios!51:51,Scenarios!54:54) -> 0.025 | IJ7: =interpolate_look_up(IJ3,Scenarios!51:51,Scenarios!54:54) -> 0.025 | IK7: =interpolate_look_up(IK3,Scenarios!51:51,Scenarios!54:54) -> 0.025 | IL7: =interpolate_look_up(IL3,Scenarios!51:51,Scenarios!54:54) -> 0.025 | IM7: =interpolate_look_up(IM3,Scenarios!51:51,Scenarios!54:54) -> 0.025 | IN7: =interpolate_look_up(IN3,Scenarios!51:51,Scenarios!54:54) -> 0.025 | IO7: =interpolate_look_up(IO3,Scenarios!51:51,Scenarios!54:54) -> 0.025 | IP7: =interpolate_look_up(IP3,Scenarios!51:51,Scenarios!54:54) -> 0.025 | IQ7: =interpolate_look_up(IQ3,Scenarios!51:51,Scenarios!54:54) -> 0.025 | IR7: =interpolate_look_up(IR3,Scenarios!51:51,Scenarios!54:54) -> 0.025 | IS7: =interpolate_look_up(IS3,Scenarios!51:51,Scenarios!54:54) -> 0.025 | IT7: =interpolate_look_up(IT3,Scenarios!51:51,Scenarios!54:54) -> 0.025 | IU7: =interpolate_look_up(IU3,Scenarios!51:51,Scenarios!54:54) -> 0.025 | IV7: =interpolate_look_up(IV3,Scenarios!51:51,Scenarios!54:54) -> 0.025 | IW7: =interpolate_look_up(IW3,Scenarios!51:51,Scenarios!54:54) -> 0.025 | IX7: =interpolate_look_up(IX3,Scenarios!51:51,Scenarios!54:54) -> 0.025 | IY7: =interpolate_look_up(IY3,Scenarios!51:51,Scenarios!54:54) -> 0.025 | IZ7: =interpolate_look_up(IZ3,Scenarios!51:51,Scenarios!54:54) -> 0.025 | JA7: =interpolate_look_up(JA3,Scenarios!51:51,Scenarios!54:54) -> 0.025 | JB7: =interpolate_look_up(JB3,Scenarios!51:51,Scenarios!54:54) -> 0.025 | JC7: =interpolate_look_up(JC3,Scenarios!51:51,Scenarios!54:54) -> 0.025 | JD7: =interpolate_look_up(JD3,Scenarios!51:51,Scenarios!54:54) -> 0.025 | JE7: =interpolate_look_up(JE3,Scenarios!51:51,Scenarios!54:54) -> 0.025 | JF7: =interpolate_look_up(JF3,Scenarios!51:51,Scenarios!54:54) -> 0.025 | JG7: =interpolate_look_up(JG3,Scenarios!51:51,Scenarios!54:54) -> 0.025 | JH7: =interpolate_look_up(JH3,Scenarios!51:51,Scenarios!54:54) -> 0.025 | JI7: =interpolate_look_up(JI3,Scenarios!51:51,Scenarios!54:54) -> 0.025 | JJ7: =interpolate_look_up(JJ3,Scenarios!51:51,Scenarios!54:54) -> 0.025 | JK7: =interpolate_look_up(JK3,Scenarios!51:51,Scenarios!54:54) -> 0.025 | JL7: =interpolate_look_up(JL3,Scenarios!51:51,Scenarios!54:54) -> 0.025 | JM7: =interpolate_look_up(JM3,Scenarios!51:51,Scenarios!54:54) -> 0.025 | JN7: =interpolate_look_up(JN3,Scenarios!51:51,Scenarios!54:54) -> 0.025 | JO7: =interpolate_look_up(JO3,Scenarios!51:51,Scenarios!54:54) -> 0.025 | JP7: =interpolate_look_up(JP3,Scenarios!51:51,Scenarios!54:54) -> 0.025 | JQ7: =interpolate_look_up(JQ3,Scenarios!51:51,Scenarios!54:54) -> 0.025 | JR7: =interpolate_look_up(JR3,Scenarios!51:51,Scenarios!54:54) -> 0.025 | JS7: =interpolate_look_up(JS3,Scenarios!51:51,Scenarios!54:54) -> 0.025 | JT7: =interpolate_look_up(JT3,Scenarios!51:51,Scenarios!54:54) -> 0.025 | JU7: =interpolate_look_up(JU3,Scenarios!51:51,Scenarios!54:54) -> 0.025 | JV7: =interpolate_look_up(JV3,Scenarios!51:51,Scenarios!54:54) -> 0.025 | JW7: =interpolate_look_up(JW3,Scenarios!51:51,Scenarios!54:54) -> 0.025 | JX7: =interpolate_look_up(JX3,Scenarios!51:51,Scenarios!54:54) -> 0.025 | JY7: =interpolate_look_up(JY3,Scenarios!51:51,Scenarios!54:54) -> 0.025 | JZ7: =interpolate_look_up(JZ3,Scenarios!51:51,Scenarios!54:54) -> 0.025 | KA7: =interpolate_look_up(KA3,Scenarios!51:51,Scenarios!54:54) -> 0.025 | KB7: =interpolate_look_up(KB3,Scenarios!51:51,Scenarios!54:54) -> 0.025 | KC7: =interpolate_look_up(KC3,Scenarios!51:51,Scenarios!54:54) -> 0.025 | KD7: =interpolate_look_up(KD3,Scenarios!51:51,Scenarios!54:54) -> 0.025 | KE7: =interpolate_look_up(KE3,Scenarios!51:51,Scenarios!54:54) -> 0.025 | KF7: =interpolate_look_up(KF3,Scenarios!51:51,Scenarios!54:54) -> 0.025 | KG7: =interpolate_look_up(KG3,Scenarios!51:51,Scenarios!54:54) -> 0.025 | KH7: =interpolate_look_up(KH3,Scenarios!51:51,Scenarios!54:54) -> 0.025 | KI7: =interpolate_look_up(KI3,Scenarios!51:51,Scenarios!54:54) -> 0.025 | KJ7: =interpolate_look_up(KJ3,Scenarios!51:51,Scenarios!54:54) -> 0.025 | KK7: =interpolate_look_up(KK3,Scenarios!51:51,Scenarios!54:54) -> 0.025 | KL7: =interpolate_look_up(KL3,Scenarios!51:51,Scenarios!54:54) -> 0.025 | KM7: =interpolate_look_up(KM3,Scenarios!51:51,Scenarios!54:54) -> 0.025 | KN7: =interpolate_look_up(KN3,Scenarios!51:51,Scenarios!54:54) -> 0.025 | KO7: =interpolate_look_up(KO3,Scenarios!51:51,Scenarios!54:54) -> 0.025 | KP7: =interpolate_look_up(KP3,Scenarios!51:51,Scenarios!54:54) -> 0.025 | KQ7: =interpolate_look_up(KQ3,Scenarios!51:51,Scenarios!54:54) -> 0.025 | KR7: =interpolate_look_up(KR3,Scenarios!51:51,Scenarios!54:54) -> 0.025 | KS7: =interpolate_look_up(KS3,Scenarios!51:51,Scenarios!54:54) -> 0.025 | KT7: =interpolate_look_up(KT3,Scenarios!51:51,Scenarios!54:54) -> 0.025 | KU7: =interpolate_look_up(KU3,Scenarios!51:51,Scenarios!54:54) -> 0.025 | KV7: =interpolate_look_up(KV3,Scenarios!51:51,Scenarios!54:54) -> 0.025 | KW7: =interpolate_look_up(KW3,Scenarios!51:51,Scenarios!54:54) -> 0.025 | KX7: =interpolate_look_up(KX3,Scenarios!51:51,Scenarios!54:54) -> 0.025 | KY7: =interpolate_look_up(KY3,Scenarios!51:51,Scenarios!54:54) -> 0.025 | KZ7: =interpolate_look_up(KZ3,Scenarios!51:51,Scenarios!54:54) -> 0.025 | LA7: =interpolate_look_up(LA3,Scenarios!51:51,Scenarios!54:54) -> 0.025 | LB7: =interpolate_look_up(LB3,Scenarios!51:51,Scenarios!54:54) -> 0.025 | LC7: =interpolate_look_up(LC3,Scenarios!51:51,Scenarios!54:54) -> 0.025 | LD7: =interpolate_look_up(LD3,Scenarios!51:51,Scenarios!54:54) -> 0.025 | LE7: =interpolate_look_up(LE3,Scenarios!51:51,Scenarios!54:54) -> 0.025 | LF7: =interpolate_look_up(LF3,Scenarios!51:51,Scenarios!54:54) -> 0.025 | LG7: =interpolate_look_up(LG3,Scenarios!51:51,Scenarios!54:54) -> 0.025 | LH7: =interpolate_look_up(LH3,Scenarios!51:51,Scenarios!54:54) -> 0.025 | LI7: =interpolate_look_up(LI3,Scenarios!51:51,Scenarios!54:54) -> 0.025 | LJ7: =interpolate_look_up(LJ3,Scenarios!51:51,Scenarios!54:54) -> 0.025 | LK7: =interpolate_look_up(LK3,Scenarios!51:51,Scenarios!54:54) -> 0.025 | LL7: =interpolate_look_up(LL3,Scenarios!51:51,Scenarios!54:54) -> 0.025 | LM7: =interpolate_look_up(LM3,Scenarios!51:51,Scenarios!54:54) -> 0.025 | LN7: =interpolate_look_up(LN3,Scenarios!51:51,Scenarios!54:54) -> 0.025 | LO7: =interpolate_look_up(LO3,Scenarios!51:51,Scenarios!54:54) -> 0.025 | LP7: =interpolate_look_up(LP3,Scenarios!51:51,Scenarios!54:54) -> 0.025 | LQ7: =interpolate_look_up(LQ3,Scenarios!51:51,Scenarios!54:54) -> 0.025 | LR7: =interpolate_look_up(LR3,Scenarios!51:51,Scenarios!54:54) -> 0.025 | LS7: =interpolate_look_up(LS3,Scenarios!51:51,Scenarios!54:54) -> 0.025 | LT7: =interpolate_look_up(LT3,Scenarios!51:51,Scenarios!54:54) -> 0.025 | LU7: =interpolate_look_up(LU3,Scenarios!51:51,Scenarios!54:54) -> 0.025 | LV7: =interpolate_look_up(LV3,Scenarios!51:51,Scenarios!54:54) -> 0.025 | LW7: =interpolate_look_up(LW3,Scenarios!51:51,Scenarios!54:54) -> 0.025 | LX7: =interpolate_look_up(LX3,Scenarios!51:51,Scenarios!54:54) -> 0.025 | LY7: =interpolate_look_up(LY3,Scenarios!51:51,Scenarios!54:54) -> 0.025 | LZ7: =interpolate_look_up(LZ3,Scenarios!51:51,Scenarios!54:54) -> 0.025 | MA7: =interpolate_look_up(MA3,Scenarios!51:51,Scenarios!54:54) -> 0.025 | MB7: =interpolate_look_up(MB3,Scenarios!51:51,Scenarios!54:54) -> 0.025 | MC7: =interpolate_look_up(MC3,Scenarios!51:51,Scenarios!54:54) -> 0.025 | MD7: =interpolate_look_up(MD3,Scenarios!51:51,Scenarios!54:54) -> 0.025 | ME7: =interpolate_look_up(ME3,Scenarios!51:51,Scenarios!54:54) -> 0.025 | MF7: =interpolate_look_up(MF3,Scenarios!51:51,Scenarios!54:54) -> 0.025 | MG7: =interpolate_look_up(MG3,Scenarios!51:51,Scenarios!54:54) -> 0.025 | MH7: =interpolate_look_up(MH3,Scenarios!51:51,Scenarios!54:54) -> 0.025 | MI7: =interpolate_look_up(MI3,Scenarios!51:51,Scenarios!54:54) -> 0.025 | MJ7: =interpolate_look_up(MJ3,Scenarios!51:51,Scenarios!54:54) -> 0.025 | MK7: =interpolate_look_up(MK3,Scenarios!51:51,Scenarios!54:54) -> 0.025 | ML7: =interpolate_look_up(ML3,Scenarios!51:51,Scenarios!54:54) -> 0.025 | MM7: =interpolate_look_up(MM3,Scenarios!51:51,Scenarios!54:54) -> 0.025 | MN7: =interpolate_look_up(MN3,Scenarios!51:51,Scenarios!54:54) -> 0.025 | MO7: =interpolate_look_up(MO3,Scenarios!51:51,Scenarios!54:54) -> 0.025 | MP7: =interpolate_look_up(MP3,Scenarios!51:51,Scenarios!54:54) -> 0.025 | MQ7: =interpolate_look_up(MQ3,Scenarios!51:51,Scenarios!54:54) -> 0.025 | MR7: =interpolate_look_up(MR3,Scenarios!51:51,Scenarios!54:54) -> 0.025 | MS7: =interpolate_look_up(MS3,Scenarios!51:51,Scenarios!54:54) -> 0.025 | MT7: =interpolate_look_up(MT3,Scenarios!51:51,Scenarios!54:54) -> 0.025 | MU7: =interpolate_look_up(MU3,Scenarios!51:51,Scenarios!54:54) -> 0.025 | MV7: =interpolate_look_up(MV3,Scenarios!51:51,Scenarios!54:54) -> 0.025 | MW7: =interpolate_look_up(MW3,Scenarios!51:51,Scenarios!54:54) -> 0.025 | MX7: =interpolate_look_up(MX3,Scenarios!51:51,Scenarios!54:54) -> 0.025 | MY7: =interpolate_look_up(MY3,Scenarios!51:51,Scenarios!54:54) -> 0.025 | MZ7: =interpolate_look_up(MZ3,Scenarios!51:51,Scenarios!54:54) -> 0.025 | NA7: =interpolate_look_up(NA3,Scenarios!51:51,Scenarios!54:54) -> 0.025 | NB7: =interpolate_look_up(NB3,Scenarios!51:51,Scenarios!54:54) -> 0.025 | NC7: =interpolate_look_up(NC3,Scenarios!51:51,Scenarios!54:54) -> 0.025 | ND7: =interpolate_look_up(ND3,Scenarios!51:51,Scenarios!54:54) -> 0.025 | NE7: =interpolate_look_up(NE3,Scenarios!51:51,Scenarios!54:54) -> 0.025 | NF7: =interpolate_look_up(NF3,Scenarios!51:51,Scenarios!54:54) -> 0.025 | NG7: =interpolate_look_up(NG3,Scenarios!51:51,Scenarios!54:54) -> 0.025 | NH7: =interpolate_look_up(NH3,Scenarios!51:51,Scenarios!54:54) -> 0.025 | NI7: =interpolate_look_up(NI3,Scenarios!51:51,Scenarios!54:54) -> 0.025 | NJ7: =interpolate_look_up(NJ3,Scenarios!51:51,Scenarios!54:54) -> 0.025 | NK7: =interpolate_look_up(NK3,Scenarios!51:51,Scenarios!54:54) -> 0.025 | NL7: =interpolate_look_up(NL3,Scenarios!51:51,Scenarios!54:54) -> 0.025 | NM7: =interpolate_look_up(NM3,Scenarios!51:51,Scenarios!54:54) -> 0.025 | NN7: =interpolate_look_up(NN3,Scenarios!51:51,Scenarios!54:54) -> 0.025 | NO7: =interpolate_look_up(NO3,Scenarios!51:51,Scenarios!54:54) -> 0.025 | NP7: =interpolate_look_up(NP3,Scenarios!51:51,Scenarios!54:54) -> 0.025 | NQ7: =interpolate_look_up(NQ3,Scenarios!51:51,Scenarios!54:54) -> 0.025 | NR7: =interpolate_look_up(NR3,Scenarios!51:51,Scenarios!54:54) -> 0.025 | NS7: =interpolate_look_up(NS3,Scenarios!51:51,Scenarios!54:54) -> 0.025 | NT7: =interpolate_look_up(NT3,Scenarios!51:51,Scenarios!54:54) -> 0.025 | NU7: =interpolate_look_up(NU3,Scenarios!51:51,Scenarios!54:54) -> 0.025 | NV7: =interpolate_look_up(NV3,Scenarios!51:51,Scenarios!54:54) -> 0.025 | NW7: =interpolate_look_up(NW3,Scenarios!51:51,Scenarios!54:54) -> 0.025 | NX7: =interpolate_look_up(NX3,Scenarios!51:51,Scenarios!54:54) -> 0.025 | NY7: =interpolate_look_up(NY3,Scenarios!51:51,Scenarios!54:54) -> 0.025 | NZ7: =interpolate_look_up(NZ3,Scenarios!51:51,Scenarios!54:54) -> 0.025 | OA7: =interpolate_look_up(OA3,Scenarios!51:51,Scenarios!54:54) -> 0.025 | OB7: =interpolate_look_up(OB3,Scenarios!51:51,Scenarios!54:54) -> 0.025 | OC7: =interpolate_look_up(OC3,Scenarios!51:51,Scenarios!54:54) -> 0.025 | OD7: =interpolate_look_up(OD3,Scenarios!51:51,Scenarios!54:54) -> 0.025 | OE7: =interpolate_look_up(OE3,Scenarios!51:51,Scenarios!54:54) -> 0.025 | OF7: =interpolate_look_up(OF3,Scenarios!51:51,Scenarios!54:54) -> 0.025 | OG7: =interpolate_look_up(OG3,Scenarios!51:51,Scenarios!54:54) -> 0.025 | OH7: =interpolate_look_up(OH3,Scenarios!51:51,Scenarios!54:54) -> 0.025 | OI7: =interpolate_look_up(OI3,Scenarios!51:51,Scenarios!54:54) -> 0.025 | OJ7: =interpolate_look_up(OJ3,Scenarios!51:51,Scenarios!54:54) -> 0.025 | OK7: =interpolate_look_up(OK3,Scenarios!51:51,Scenarios!54:54) -> 0.025 | OL7: =interpolate_look_up(OL3,Scenarios!51:51,Scenarios!54:54) -> 0.025 | OM7: =interpolate_look_up(OM3,Scenarios!51:51,Scenarios!54:54) -> 0.025 | ON7: =interpolate_look_up(ON3,Scenarios!51:51,Scenarios!54:54) -> 0.025 | OO7: =interpolate_look_up(OO3,Scenarios!51:51,Scenarios!54:54) -> 0.025 | OP7: =interpolate_look_up(OP3,Scenarios!51:51,Scenarios!54:54) -> 0.025 | OQ7: =interpolate_look_up(OQ3,Scenarios!51:51,Scenarios!54:54) -> 0.025 | OR7: =interpolate_look_up(OR3,Scenarios!51:51,Scenarios!54:54) -> 0.025 | OS7: =interpolate_look_up(OS3,Scenarios!51:51,Scenarios!54:54) -> 0.025 | OT7: =interpolate_look_up(OT3,Scenarios!51:51,Scenarios!54:54) -> 0.025 | OU7: =interpolate_look_up(OU3,Scenarios!51:51,Scenarios!54:54) -> 0.025 | OV7: =interpolate_look_up(OV3,Scenarios!51:51,Scenarios!54:54) -> 0.025 | OW7: =interpolate_look_up(OW3,Scenarios!51:51,Scenarios!54:54) -> 0.025 | OX7: =interpolate_look_up(OX3,Scenarios!51:51,Scenarios!54:54) -> 0.025 | OY7: =interpolate_look_up(OY3,Scenarios!51:51,Scenarios!54:54) -> 0.025 | OZ7: =interpolate_look_up(OZ3,Scenarios!51:51,Scenarios!54:54) -> 0.025 | PA7: =interpolate_look_up(PA3,Scenarios!51:51,Scenarios!54:54) -> 0.025 | PB7: =interpolate_look_up(PB3,Scenarios!51:51,Scenarios!54:54) -> 0.025 | PC7: =interpolate_look_up(PC3,Scenarios!51:51,Scenarios!54:54) -> 0.025 | PD7: =interpolate_look_up(PD3,Scenarios!51:51,Scenarios!54:54) -> 0.025 | PE7: =interpolate_look_up(PE3,Scenarios!51:51,Scenarios!54:54) -> 0.025 | PF7: =interpolate_look_up(PF3,Scenarios!51:51,Scenarios!54:54) -> 0.025 | PG7: =interpolate_look_up(PG3,Scenarios!51:51,Scenarios!54:54) -> 0.025 | PH7: =interpolate_look_up(PH3,Scenarios!51:51,Scenarios!54:54) -> 0.025 | PI7: =interpolate_look_up(PI3,Scenarios!51:51,Scenarios!54:54) -> 0.025 | PJ7: =interpolate_look_up(PJ3,Scenarios!51:51,Scenarios!54:54) -> 0.025 | PK7: =interpolate_look_up(PK3,Scenarios!51:51,Scenarios!54:54) -> 0.025 | PL7: =interpolate_look_up(PL3,Scenarios!51:51,Scenarios!54:54) -> 0.025 | PM7: =interpolate_look_up(PM3,Scenarios!51:51,Scenarios!54:54) -> 0.025 | PN7: =interpolate_look_up(PN3,Scenarios!51:51,Scenarios!54:54) -> 0.025 | PO7: =interpolate_look_up(PO3,Scenarios!51:51,Scenarios!54:54) -> 0.025 | PP7: =interpolate_look_up(PP3,Scenarios!51:51,Scenarios!54:54) -> 0.025 | PQ7: =interpolate_look_up(PQ3,Scenarios!51:51,Scenarios!54:54) -> 0.025 | PR7: =interpolate_look_up(PR3,Scenarios!51:51,Scenarios!54:54) -> 0.025 | PS7: =interpolate_look_up(PS3,Scenarios!51:51,Scenarios!54:54) -> 0.025 | PT7: =interpolate_look_up(PT3,Scenarios!51:51,Scenarios!54:54) -> 0.025 | PU7: =interpolate_look_up(PU3,Scenarios!51:51,Scenarios!54:54) -> 0.025 | PV7: =interpolate_look_up(PV3,Scenarios!51:51,Scenarios!54:54) -> 0.025 | PW7: =interpolate_look_up(PW3,Scenarios!51:51,Scenarios!54:54) -> 0.025 | PX7: =interpolate_look_up(PX3,Scenarios!51:51,Scenarios!54:54) -> 0.025 | PY7: =interpolate_look_up(PY3,Scenarios!51:51,Scenarios!54:54) -> 0.025 | PZ7: =interpolate_look_up(PZ3,Scenarios!51:51,Scenarios!54:54) -> 0.025 | QA7: =interpolate_look_up(QA3,Scenarios!51:51,Scenarios!54:54) -> 0.025 | QB7: =interpolate_look_up(QB3,Scenarios!51:51,Scenarios!54:54) -> 0.025 | QC7: =interpolate_look_up(QC3,Scenarios!51:51,Scenarios!54:54) -> 0.025 | QD7: =interpolate_look_up(QD3,Scenarios!51:51,Scenarios!54:54) -> 0.025 | QE7: =interpolate_look_up(QE3,Scenarios!51:51,Scenarios!54:54) -> 0.025 | QF7: =interpolate_look_up(QF3,Scenarios!51:51,Scenarios!54:54) -> 0.025 | QG7: =interpolate_look_up(QG3,Scenarios!51:51,Scenarios!54:54) -> 0.025 | QH7: =interpolate_look_up(QH3,Scenarios!51:51,Scenarios!54:54) -> 0.025 | QI7: =interpolate_look_up(QI3,Scenarios!51:51,Scenarios!54:54) -> 0.025 | QJ7: =interpolate_look_up(QJ3,Scenarios!51:51,Scenarios!54:54) -> 0.025 | QK7: =interpolate_look_up(QK3,Scenarios!51:51,Scenarios!54:54) -> 0.025 | QL7: =interpolate_look_up(QL3,Scenarios!51:51,Scenarios!54:54) -> 0.025 | QM7: =interpolate_look_up(QM3,Scenarios!51:51,Scenarios!54:54) -> 0.025 | QN7: =interpolate_look_up(QN3,Scenarios!51:51,Scenarios!54:54) -> 0.025 | QO7: =interpolate_look_up(QO3,Scenarios!51:51,Scenarios!54:54) -> 0.025 | QP7: =interpolate_look_up(QP3,Scenarios!51:51,Scenarios!54:54) -> 0.025 | QQ7: =interpolate_look_up(QQ3,Scenarios!51:51,Scenarios!54:54) -> 0.025 | QR7: =interpolate_look_up(QR3,Scenarios!51:51,Scenarios!54:54) -> 0.025 | QS7: =interpolate_look_up(QS3,Scenarios!51:51,Scenarios!54:54) -> 0.025 | QT7: =interpolate_look_up(QT3,Scenarios!51:51,Scenarios!54:54) -> 0.025 | QU7: =interpolate_look_up(QU3,Scenarios!51:51,Scenarios!54:54) -> 0.025 | QV7: =interpolate_look_up(QV3,Scenarios!51:51,Scenarios!54:54) -> 0.025 | QW7: =interpolate_look_up(QW3,Scenarios!51:51,Scenarios!54:54) -> 0.025 | QX7: =interpolate_look_up(QX3,Scenarios!51:51,Scenarios!54:54) -> 0.025 | QY7: =interpolate_look_up(QY3,Scenarios!51:51,Scenarios!54:54) -> 0.025 | QZ7: =interpolate_look_up(QZ3,Scenarios!51:51,Scenarios!54:54) -> 0.025 | RA7: =interpolate_look_up(RA3,Scenarios!51:51,Scenarios!54:54) -> 0.025 | RB7: =interpolate_look_up(RB3,Scenarios!51:51,Scenarios!54:54) -> 0.025 | RC7: =interpolate_look_up(RC3,Scenarios!51:51,Scenarios!54:54) -> 0.025 | RD7: =interpolate_look_up(RD3,Scenarios!51:51,Scenarios!54:54) -> 0.025 | RE7: =interpolate_look_up(RE3,Scenarios!51:51,Scenarios!54:54) -> 0.025 | RF7: =interpolate_look_up(RF3,Scenarios!51:51,Scenarios!54:54) -> 0.025 | RG7: =interpolate_look_up(RG3,Scenarios!51:51,Scenarios!54:54) -> 0.025 | RH7: =interpolate_look_up(RH3,Scenarios!51:51,Scenarios!54:54) -> 0.025 | RI7: =interpolate_look_up(RI3,Scenarios!51:51,Scenarios!54:54) -> 0.025 | RJ7: =interpolate_look_up(RJ3,Scenarios!51:51,Scenarios!54:54) -> 0.025 | RK7: =interpolate_look_up(RK3,Scenarios!51:51,Scenarios!54:54) -> 0.025 | RL7: =interpolate_look_up(RL3,Scenarios!51:51,Scenarios!54:54) -> 0.025 | RM7: =interpolate_look_up(RM3,Scenarios!51:51,Scenarios!54:54) -> 0.025 | RN7: =interpolate_look_up(RN3,Scenarios!51:51,Scenarios!54:54) -> 0.025 | RO7: =interpolate_look_up(RO3,Scenarios!51:51,Scenarios!54:54) -> 0.025 | RP7: =interpolate_look_up(RP3,Scenarios!51:51,Scenarios!54:54) -> 0.025 | RQ7: =interpolate_look_up(RQ3,Scenarios!51:51,Scenarios!54:54) -> 0.025 | RR7: =interpolate_look_up(RR3,Scenarios!51:51,Scenarios!54:54) -> 0.025 | RS7: =interpolate_look_up(RS3,Scenarios!51:51,Scenarios!54:54) -> 0.025 | RT7: =interpolate_look_up(RT3,Scenarios!51:51,Scenarios!54:54) -> 0.025 | RU7: =interpolate_look_up(RU3,Scenarios!51:51,Scenarios!54:54) -> 0.025 | RV7: =interpolate_look_up(RV3,Scenarios!51:51,Scenarios!54:54) -> 0.025 | RW7: =interpolate_look_up(RW3,Scenarios!51:51,Scenarios!54:54) -> 0.025 | RX7: =interpolate_look_up(RX3,Scenarios!51:51,Scenarios!54:54) -> 0.025 | RY7: =interpolate_look_up(RY3,Scenarios!51:51,Scenarios!54:54) -> 0.025 | RZ7: =interpolate_look_up(RZ3,Scenarios!51:51,Scenarios!54:54) -> 0.025 | SA7: =interpolate_look_up(SA3,Scenarios!51:51,Scenarios!54:54) -> 0.025 | SB7: =interpolate_look_up(SB3,Scenarios!51:51,Scenarios!54:54) -> 0.025 | SC7: =interpolate_look_up(SC3,Scenarios!51:51,Scenarios!54:54) -> 0.025 | SD7: =interpolate_look_up(SD3,Scenarios!51:51,Scenarios!54:54) -> 0.025 | SE7: =interpolate_look_up(SE3,Scenarios!51:51,Scenarios!54:54) -> 0.025 | SF7: =interpolate_look_up(SF3,Scenarios!51:51,Scenarios!54:54) -> 0.025 | SG7: =interpolate_look_up(SG3,Scenarios!51:51,Scenarios!54:54) -> 0.025 | SH7: =interpolate_look_up(SH3,Scenarios!51:51,Scenarios!54:54) -> 0.025 | SI7: =interpolate_look_up(SI3,Scenarios!51:51,Scenarios!54:54) -> 0.025 | SJ7: =interpolate_look_up(SJ3,Scenarios!51:51,Scenarios!54:54) -> 0.025 | SK7: =interpolate_look_up(SK3,Scenarios!51:51,Scenarios!54:54) -> 0.025 | SL7: =interpolate_look_up(SL3,Scenarios!51:51,Scenarios!54:54) -> 0.025 | SM7: =interpolate_look_up(SM3,Scenarios!51:51,Scenarios!54:54) -> 0.025 | SN7: =interpolate_look_up(SN3,Scenarios!51:51,Scenarios!54:54) -> 0.025 | SO7: =interpolate_look_up(SO3,Scenarios!51:51,Scenarios!54:54) -> 0.025 | SP7: =interpolate_look_up(SP3,Scenarios!51:51,Scenarios!54:54) -> 0.025 | SQ7: =interpolate_look_up(SQ3,Scenarios!51:51,Scenarios!54:54) -> 0.025 | SR7: =interpolate_look_up(SR3,Scenarios!51:51,Scenarios!54:54) -> 0.025 | SS7: =interpolate_look_up(SS3,Scenarios!51:51,Scenarios!54:54) -> 0.025 | ST7: =interpolate_look_up(ST3,Scenarios!51:51,Scenarios!54:54) -> 0.025 | SU7: =interpolate_look_up(SU3,Scenarios!51:51,Scenarios!54:54) -> 0.025 | SV7: =interpolate_look_up(SV3,Scenarios!51:51,Scenarios!54:54) -> 0.025 | SW7: =interpolate_look_up(SW3,Scenarios!51:51,Scenarios!54:54) -> 0.025 | SX7: =interpolate_look_up(SX3,Scenarios!51:51,Scenarios!54:54) -> 0.025 | SY7: =interpolate_look_up(SY3,Scenarios!51:51,Scenarios!54:54) -> 0.025 | SZ7: =interpolate_look_up(SZ3,Scenarios!51:51,Scenarios!54:54) -> 0.025 | TA7: =interpolate_look_up(TA3,Scenarios!51:51,Scenarios!54:54) -> 0.025 | TB7: =interpolate_look_up(TB3,Scenarios!51:51,Scenarios!54:54) -> 0.025 | TC7: =interpolate_look_up(TC3,Scenarios!51:51,Scenarios!54:54) -> 0.025
D8: Dividend Payout (Money Extracted) | J8: =1-K7/K6 -> 0.3846153846 | K8: =1-K7/K6 -> 0.3846153846 | L8: =1-L7/L6 -> 0.4528371046 | M8: 0.5134957446 | N8: 0.5674297499 | O8: 0.6153846154 | P8: 0.675602821 | Q8: 0.7263928227 | R8: 0.7692307692 | S8: 0.7692307692 | T8: 0.7692307692 | U8: 0.8076923077 | V8: 0.7812429759 | W8: 0.751155895 | X8: 0.7169307415 | Y8: 0.6779983793 | Z8: 0.6337113952 | AA8: 0.5833333333 | AB8: 0.5833333333 | AC8: 0.5833333333 | AD8: 0.5833333333 | AE8: 0.5833333333 | AF8: 0.5833333333 | AG8: 0.5833333333 | AH8: 0.5833333333 | AI8: 0.5833333333 | AJ8: 0.5833333333 | AK8: 0.5833333333 | AL8: 0.5833333333 | AM8: 0.5833333333 | AN8: 0.5833333333 | AO8: 0.5833333333 | AP8: 0.5833333333 | AQ8: 0.5833333333 | AR8: 0.5833333333 | AS8: 0.5833333333 | AT8: 0.5833333333 | AU8: 0.5833333333 | AV8: 0.5833333333 | AW8: 0.5833333333 | AX8: 0.5833333333 | AY8: 0.5833333333 | AZ8: 0.5833333333 | BA8: 0.5833333333 | BB8: 0.5833333333 | BC8: 0.5833333333 | BD8: 0.5833333333 | BE8: 0.5833333333 | BF8: 0.5833333333 | BG8: 0.5833333333 | BH8: 0.5833333333 | BI8: 0.5833333333 | BJ8: 0.5833333333 | BK8: 0.5833333333 | BL8: 0.5833333333 | BM8: 0.5833333333 | BN8: 0.5833333333 | BO8: 0.5833333333 | BP8: 0.5833333333 | BQ8: 0.5833333333 | BR8: 0.5833333333 | BS8: 0.5833333333 | BT8: 0.5833333333 | BU8: 0.5833333333 | BV8: 0.5833333333 | BW8: 0.5833333333 | BX8: =1-BX7/BX6 -> 0.5833333333 | BY8: 0.5833333333 | BZ8: 0.5833333333 | CA8: 0.5833333333 | CB8: 0.5833333333 | CC8: 0.5833333333 | CD8: 0.5833333333 | CE8: 0.5833333333 | CF8: 0.5833333333 | CG8: 0.5833333333 | CH8: 0.5833333333 | CI8: 0.5833333333 | CJ8: 0.5833333333 | CK8: 0.5833333333 | CL8: 0.5833333333 | CM8: 0.5833333333 | CN8: 0.5833333333 | CO8: 0.5833333333 | CP8: 0.5833333333 | CQ8: 0.5833333333 | CR8: 0.5833333333 | CS8: 0.5833333333 | CT8: 0.5833333333 | CU8: 0.5833333333 | CV8: 0.5833333333 | CW8: 0.5833333333 | CX8: 0.5833333333 | CY8: 0.5833333333 | CZ8: 0.5833333333 | DA8: 0.5833333333 | DB8: 0.5833333333 | DC8: 0.5833333333 | DD8: 0.5833333333 | DE8: 0.5833333333 | DF8: 0.5833333333 | DG8: 0.5833333333 | DH8: 0.5833333333 | DI8: 0.5833333333 | DJ8: 0.5833333333 | DK8: 0.5833333333 | DL8: 0.5833333333 | DM8: 0.5833333333 | DN8: 0.5833333333 | DO8: 0.5833333333 | DP8: 0.5833333333 | DQ8: 0.5833333333 | DR8: 0.5833333333 | DS8: 0.5833333333 | DT8: 0.5833333333 | DU8: 0.5833333333 | DV8: 0.5833333333 | DW8: 0.5833333333 | DX8: 0.5833333333 | DY8: 0.5833333333 | DZ8: 0.5833333333 | EA8: 0.5833333333 | EB8: 0.5833333333 | EC8: 0.5833333333 | ED8: 0.5833333333 | EE8: 0.5833333333 | EF8: 0.5833333333 | EG8: 0.5833333333 | EH8: 0.5833333333 | EI8: 0.5833333333 | EJ8: =1-EJ7/EJ6 -> 0.5833333333 | EK8: 0.5833333333 | EL8: 0.5833333333 | EM8: 0.5833333333 | EN8: 0.5833333333 | EO8: 0.5833333333 | EP8: 0.5833333333 | EQ8: 0.5833333333 | ER8: 0.5833333333 | ES8: 0.5833333333 | ET8: 0.5833333333 | EU8: 0.5833333333 | EV8: 0.5833333333 | EW8: 0.5833333333 | EX8: 0.5833333333 | EY8: 0.5833333333 | EZ8: 0.5833333333 | FA8: 0.5833333333 | FB8: 0.5833333333 | FC8: 0.5833333333 | FD8: 0.5833333333 | FE8: 0.5833333333 | FF8: 0.5833333333 | FG8: 0.5833333333 | FH8: 0.5833333333 | FI8: 0.5833333333 | FJ8: 0.5833333333 | FK8: 0.5833333333 | FL8: 0.5833333333 | FM8: 0.5833333333 | FN8: 0.5833333333 | FO8: 0.5833333333 | FP8: 0.5833333333 | FQ8: 0.5833333333 | FR8: 0.5833333333 | FS8: 0.5833333333 | FT8: 0.5833333333 | FU8: 0.5833333333 | FV8: 0.5833333333 | FW8: 0.5833333333 | FX8: 0.5833333333 | FY8: 0.5833333333 | FZ8: 0.5833333333 | GA8: 0.5833333333 | GB8: 0.5833333333 | GC8: 0.5833333333 | GD8: 0.5833333333 | GE8: 0.5833333333 | GF8: 0.5833333333 | GG8: 0.5833333333 | GH8: 0.5833333333 | GI8: 0.5833333333 | GJ8: 0.5833333333 | GK8: 0.5833333333 | GL8: 0.5833333333 | GM8: 0.5833333333 | GN8: 0.5833333333 | GO8: 0.5833333333 | GP8: 0.5833333333 | GQ8: 0.5833333333 | GR8: 0.5833333333 | GS8: 0.5833333333 | GT8: 0.5833333333 | GU8: 0.5833333333 | GV8: =1-GV7/GV6 -> 0.5833333333 | GW8: 0.5833333333 | GX8: 0.5833333333 | GY8: 0.5833333333 | GZ8: 0.5833333333 | HA8: 0.5833333333 | HB8: 0.5833333333 | HC8: 0.5833333333 | HD8: 0.5833333333 | HE8: 0.5833333333 | HF8: 0.5833333333 | HG8: 0.5833333333 | HH8: 0.5833333333 | HI8: 0.5833333333 | HJ8: 0.5833333333 | HK8: 0.5833333333 | HL8: 0.5833333333 | HM8: 0.5833333333 | HN8: 0.5833333333 | HO8: 0.5833333333 | HP8: 0.5833333333 | HQ8: 0.5833333333 | HR8: 0.5833333333 | HS8: 0.5833333333 | HT8: 0.5833333333 | HU8: 0.5833333333 | HV8: 0.5833333333 | HW8: 0.5833333333 | HX8: 0.5833333333 | HY8: 0.5833333333 | HZ8: 0.5833333333 | IA8: 0.5833333333 | IB8: 0.5833333333 | IC8: 0.5833333333 | ID8: 0.5833333333 | IE8: 0.5833333333 | IF8: 0.5833333333 | IG8: 0.5833333333 | IH8: 0.5833333333 | II8: 0.5833333333 | IJ8: 0.5833333333 | IK8: 0.5833333333 | IL8: 0.5833333333 | IM8: 0.5833333333 | IN8: 0.5833333333 | IO8: 0.5833333333 | IP8: 0.5833333333 | IQ8: 0.5833333333 | IR8: 0.5833333333 | IS8: 0.5833333333 | IT8: 0.5833333333 | IU8: 0.5833333333 | IV8: 0.5833333333 | IW8: 0.5833333333 | IX8: 0.5833333333 | IY8: 0.5833333333 | IZ8: 0.5833333333 | JA8: 0.5833333333 | JB8: 0.5833333333 | JC8: 0.5833333333 | JD8: 0.5833333333 | JE8: 0.5833333333 | JF8: 0.5833333333 | JG8: 0.5833333333 | JH8: =1-JH7/JH6 -> 0.5833333333 | JI8: 0.5833333333 | JJ8: 0.5833333333 | JK8: 0.5833333333 | JL8: 0.5833333333 | JM8: 0.5833333333 | JN8: 0.5833333333 | JO8: 0.5833333333 | JP8: 0.5833333333 | JQ8: 0.5833333333 | JR8: 0.5833333333 | JS8: 0.5833333333 | JT8: 0.5833333333 | JU8: 0.5833333333 | JV8: 0.5833333333 | JW8: 0.5833333333 | JX8: 0.5833333333 | JY8: 0.5833333333 | JZ8: 0.5833333333 | KA8: 0.5833333333 | KB8: 0.5833333333 | KC8: 0.5833333333 | KD8: 0.5833333333 | KE8: 0.5833333333 | KF8: 0.5833333333 | KG8: 0.5833333333 | KH8: 0.5833333333 | KI8: 0.5833333333 | KJ8: 0.5833333333 | KK8: 0.5833333333 | KL8: 0.5833333333 | KM8: 0.5833333333 | KN8: 0.5833333333 | KO8: 0.5833333333 | KP8: 0.5833333333 | KQ8: 0.5833333333 | KR8: 0.5833333333 | KS8: 0.5833333333 | KT8: 0.5833333333 | KU8: 0.5833333333 | KV8: 0.5833333333 | KW8: 0.5833333333 | KX8: 0.5833333333 | KY8: 0.5833333333 | KZ8: 0.5833333333 | LA8: 0.5833333333 | LB8: 0.5833333333 | LC8: 0.5833333333 | LD8: 0.5833333333 | LE8: 0.5833333333 | LF8: 0.5833333333 | LG8: 0.5833333333 | LH8: 0.5833333333 | LI8: 0.5833333333 | LJ8: 0.5833333333 | LK8: 0.5833333333 | LL8: 0.5833333333 | LM8: 0.5833333333 | LN8: 0.5833333333 | LO8: 0.5833333333 | LP8: 0.5833333333 | LQ8: 0.5833333333 | LR8: 0.5833333333 | LS8: 0.5833333333 | LT8: =1-LT7/LT6 -> 0.5833333333 | LU8: 0.5833333333 | LV8: 0.5833333333 | LW8: 0.5833333333 | LX8: 0.5833333333 | LY8: 0.5833333333 | LZ8: 0.5833333333 | MA8: 0.5833333333 | MB8: 0.5833333333 | MC8: 0.5833333333 | MD8: 0.5833333333 | ME8: 0.5833333333 | MF8: 0.5833333333 | MG8: 0.5833333333 | MH8: 0.5833333333 | MI8: 0.5833333333 | MJ8: 0.5833333333 | MK8: 0.5833333333 | ML8: 0.5833333333 | MM8: 0.5833333333 | MN8: 0.5833333333 | MO8: 0.5833333333 | MP8: 0.5833333333 | MQ8: 0.5833333333 | MR8: 0.5833333333 | MS8: 0.5833333333 | MT8: 0.5833333333 | MU8: 0.5833333333 | MV8: 0.5833333333 | MW8: 0.5833333333 | MX8: 0.5833333333 | MY8: 0.5833333333 | MZ8: 0.5833333333 | NA8: 0.5833333333 | NB8: 0.5833333333 | NC8: 0.5833333333 | ND8: 0.5833333333 | NE8: 0.5833333333 | NF8: 0.5833333333 | NG8: 0.5833333333 | NH8: 0.5833333333 | NI8: 0.5833333333 | NJ8: 0.5833333333 | NK8: 0.5833333333 | NL8: 0.5833333333 | NM8: 0.5833333333 | NN8: 0.5833333333 | NO8: 0.5833333333 | NP8: 0.5833333333 | NQ8: 0.5833333333 | NR8: 0.5833333333 | NS8: 0.5833333333 | NT8: 0.5833333333 | NU8: 0.5833333333 | NV8: 0.5833333333 | NW8: 0.5833333333 | NX8: 0.5833333333 | NY8: 0.5833333333 | NZ8: 0.5833333333 | OA8: 0.5833333333 | OB8: 0.5833333333 | OC8: 0.5833333333 | OD8: 0.5833333333 | OE8: 0.5833333333 | OF8: =1-OF7/OF6 -> 0.5833333333 | OG8: 0.5833333333 | OH8: 0.5833333333 | OI8: 0.5833333333 | OJ8: 0.5833333333 | OK8: 0.5833333333 | OL8: 0.5833333333 | OM8: 0.5833333333 | ON8: 0.5833333333 | OO8: 0.5833333333 | OP8: 0.5833333333 | OQ8: 0.5833333333 | OR8: 0.5833333333 | OS8: 0.5833333333 | OT8: 0.5833333333 | OU8: 0.5833333333 | OV8: 0.5833333333 | OW8: 0.5833333333 | OX8: 0.5833333333 | OY8: 0.5833333333 | OZ8: 0.5833333333 | PA8: 0.5833333333 | PB8: 0.5833333333 | PC8: 0.5833333333 | PD8: 0.5833333333 | PE8: 0.5833333333 | PF8: 0.5833333333 | PG8: 0.5833333333 | PH8: 0.5833333333 | PI8: 0.5833333333 | PJ8: 0.5833333333 | PK8: 0.5833333333 | PL8: 0.5833333333 | PM8: 0.5833333333 | PN8: 0.5833333333 | PO8: 0.5833333333 | PP8: 0.5833333333 | PQ8: 0.5833333333 | PR8: 0.5833333333 | PS8: 0.5833333333 | PT8: 0.5833333333 | PU8: 0.5833333333 | PV8: 0.5833333333 | PW8: 0.5833333333 | PX8: 0.5833333333 | PY8: 0.5833333333 | PZ8: 0.5833333333 | QA8: 0.5833333333 | QB8: 0.5833333333 | QC8: 0.5833333333 | QD8: 0.5833333333 | QE8: 0.5833333333 | QF8: 0.5833333333 | QG8: 0.5833333333 | QH8: 0.5833333333 | QI8: 0.5833333333 | QJ8: 0.5833333333 | QK8: 0.5833333333 | QL8: 0.5833333333 | QM8: 0.5833333333 | QN8: 0.5833333333 | QO8: 0.5833333333 | QP8: 0.5833333333 | QQ8: 0.5833333333 | QR8: =1-QR7/QR6 -> 0.5833333333 | QS8: 0.5833333333 | QT8: 0.5833333333 | QU8: 0.5833333333 | QV8: 0.5833333333 | QW8: 0.5833333333 | QX8: 0.5833333333 | QY8: 0.5833333333 | QZ8: 0.5833333333 | RA8: 0.5833333333 | RB8: 0.5833333333 | RC8: 0.5833333333 | RD8: 0.5833333333 | RE8: 0.5833333333 | RF8: 0.5833333333 | RG8: 0.5833333333 | RH8: 0.5833333333 | RI8: 0.5833333333 | RJ8: 0.5833333333 | RK8: 0.5833333333 | RL8: 0.5833333333 | RM8: 0.5833333333 | RN8: 0.5833333333 | RO8: 0.5833333333 | RP8: 0.5833333333 | RQ8: 0.5833333333 | RR8: 0.5833333333 | RS8: 0.5833333333 | RT8: 0.5833333333 | RU8: 0.5833333333 | RV8: 0.5833333333 | RW8: 0.5833333333 | RX8: 0.5833333333 | RY8: 0.5833333333 | RZ8: 0.5833333333 | SA8: 0.5833333333 | SB8: 0.5833333333 | SC8: 0.5833333333 | SD8: 0.5833333333 | SE8: 0.5833333333 | SF8: 0.5833333333 | SG8: 0.5833333333 | SH8: 0.5833333333 | SI8: 0.5833333333 | SJ8: 0.5833333333 | SK8: 0.5833333333 | SL8: 0.5833333333 | SM8: 0.5833333333 | SN8: 0.5833333333 | SO8: 0.5833333333 | SP8: 0.5833333333 | SQ8: 0.5833333333 | SR8: 0.5833333333 | SS8: 0.5833333333 | ST8: 0.5833333333 | SU8: 0.5833333333 | SV8: 0.5833333333 | SW8: 0.5833333333 | SX8: 0.5833333333 | SY8: 0.5833333333 | SZ8: 0.5833333333 | TA8: 0.5833333333 | TB8: 0.5833333333 | TC8: 0.5833333333
B10: Theoretical Long-term Model
D11: Opening Balance | K11: =J14 -> 100 | L11: 107.1131176 | M11: 113.887546 | N11: 120.2919134 | O11: 126.306509 | P11: 131.6330608 | Q11: 136.3151083 | R11: 140.4045616 | S11: 144.6166984 | T11: 148.9551994 | U11: 152.6790794 | V11: 157.0210301 | W11: 161.486459 | X11: 166.0788777 | Y11: 170.8018974 | Z11: 175.6592323 | AA11: 180.6547022 | AB11: 185.1710697 | AC11: 189.8003465 | AD11: 194.5453551 | AE11: 199.408989 | AF11: 204.3942137 | AG11: 209.5040691 | AH11: 214.7416708 | AI11: 220.1102126 | AJ11: 225.6129679 | AK11: 231.2532921 | AL11: 237.0346244 | AM11: 242.96049 | AN11: 249.0345022 | AO11: 255.2603648 | AP11: 261.6418739 | AQ11: 268.1829208 | AR11: 274.8874938 | AS11: 281.7596811 | AT11: 288.8036731 | AU11: 296.023765 | AV11: 303.4243591 | AW11: 311.0099681 | AX11: 318.7852173 | AY11: 326.7548477 | AZ11: 334.9237189 | BA11: 343.2968119 | BB11: 351.8792322 | BC11: 360.676213 | BD11: 369.6931183 | BE11: 378.9354463 | BF11: 388.4088324 | BG11: 398.1190532 | BH11: 408.0720296 | BI11: 418.2738303 | BJ11: 428.7306761 | BK11: 439.448943 | BL11: 450.4351665 | BM11: 461.6960457 | BN11: 473.2384468 | BO11: 485.069408 | BP11: 497.1961432 | BQ11: 509.6260468 | BR11: 522.366698 | BS11: 535.4258654 | BT11: 548.811512 | BU11: 562.5317998 | BV11: 576.5950948 | BW11: =BV14 -> 591.0099722 | BX11: 605.7852215 | BY11: 620.9298521 | BZ11: 636.4530984 | CA11: 652.3644258 | CB11: 668.6735365 | CC11: 685.3903749 | CD11: 702.5251342 | CE11: 720.0882626 | CF11: 738.0904692 | CG11: 756.5427309 | CH11: 775.4562992 | CI11: 794.8427066 | CJ11: 814.7137743 | CK11: 835.0816187 | CL11: 855.9586591 | CM11: 877.3576256 | CN11: 899.2915663 | CO11: 921.7738554 | CP11: 944.8182018 | CQ11: 968.4386568 | CR11: 992.6496233 | CS11: 1017.465864 | CT11: 1042.90251 | CU11: 1068.975073 | CV11: 1095.69945 | CW11: 1123.091936 | CX11: 1151.169235 | CY11: 1179.948466 | CZ11: 1209.447177 | DA11: 1239.683357 | DB11: 1270.675441 | DC11: 1302.442327 | DD11: 1335.003385 | DE11: 1368.378469 | DF11: 1402.587931 | DG11: 1437.652629 | DH11: 1473.593945 | DI11: 1510.433794 | DJ11: 1548.194639 | DK11: 1586.899505 | DL11: 1626.571992 | DM11: 1667.236292 | DN11: 1708.917199 | DO11: 1751.640129 | DP11: 1795.431132 | DQ11: 1840.316911 | DR11: 1886.324834 | DS11: 1933.482954 | DT11: 1981.820028 | DU11: 2031.365529 | DV11: 2082.149667 | DW11: 2134.203409 | DX11: 2187.558494 | DY11: 2242.247456 | DZ11: 2298.303643 | EA11: 2355.761234 | EB11: 2414.655265 | EC11: 2475.021646 | ED11: 2536.897188 | EE11: 2600.319617 | EF11: 2665.327608 | EG11: 2731.960798 | EH11: 2800.259818 | EI11: =EH14 -> 2870.266313 | EJ11: 2942.022971 | EK11: 3015.573545 | EL11: 3090.962884 | EM11: 3168.236956 | EN11: 3247.44288 | EO11: 3328.628952 | EP11: 3411.844676 | EQ11: 3497.140793 | ER11: 3584.569312 | ES11: 3674.183545 | ET11: 3766.038134 | EU11: 3860.189087 | EV11: 3956.693814 | EW11: 4055.61116 | EX11: 4157.001439 | EY11: 4260.926475 | EZ11: 4367.449637 | FA11: 4476.635878 | FB11: 4588.551774 | FC11: 4703.265569 | FD11: 4820.847208 | FE11: 4941.368388 | FF11: 5064.902598 | FG11: 5191.525163 | FH11: 5321.313292 | FI11: 5454.346124 | FJ11: 5590.704777 | FK11: 5730.472397 | FL11: 5873.734207 | FM11: 6020.577562 | FN11: 6171.092001 | FO11: 6325.369301 | FP11: 6483.503533 | FQ11: 6645.591122 | FR11: 6811.7309 | FS11: 6982.024172 | FT11: 7156.574777 | FU11: 7335.489146 | FV11: 7518.876375 | FW11: 7706.848284 | FX11: 7899.519491 | FY11: 8097.007478 | FZ11: 8299.432665 | GA11: 8506.918482 | GB11: 8719.591444 | GC11: 8937.58123 | GD11: 9161.020761 | GE11: 9390.04628 | GF11: 9624.797437 | GG11: 9865.417373 | GH11: 10112.05281 | GI11: 10364.85413 | GJ11: 10623.97548 | GK11: 10889.57487 | GL11: 11161.81424 | GM11: 11440.8596 | GN11: 11726.88109 | GO11: 12020.05311 | GP11: 12320.55444 | GQ11: 12628.5683 | GR11: 12944.28251 | GS11: 13267.88957 | GT11: 13599.58681 | GU11: =GT14 -> 13939.57648 | GV11: 14288.06589 | GW11: 14645.26754 | GX11: 15011.39923 | GY11: 15386.68421 | GZ11: 15771.35131 | HA11: 16165.6351 | HB11: 16569.77598 | HC11: 16984.02037 | HD11: 17408.62088 | HE11: 17843.83641 | HF11: 18289.93232 | HG11: 18747.18062 | HH11: 19215.86014 | HI11: 19696.25664 | HJ11: 20188.66306 | HK11: 20693.37964 | HL11: 21210.71413 | HM11: 21740.98198 | HN11: 22284.50653 | HO11: 22841.61919 | HP11: 23412.65967 | HQ11: 23997.97616 | HR11: 24597.92557 | HS11: 25212.87371 | HT11: 25843.19555 | HU11: 26489.27544 | HV11: 27151.50732 | HW11: 27830.29501 | HX11: 28526.05238 | HY11: 29239.20369 | HZ11: 29970.18378 | IA11: 30719.43838 | IB11: 31487.42434 | IC11: 32274.60995 | ID11: 33081.4752 | IE11: 33908.51208 | IF11: 34756.22488 | IG11: 35625.1305 | IH11: 36515.75876 | II11: 37428.65273 | IJ11: 38364.36905 | IK11: 39323.47828 | IL11: 40306.56523 | IM11: 41314.22936 | IN11: 42347.0851 | IO11: 43405.76223 | IP11: 44490.90628 | IQ11: 45603.17894 | IR11: 46743.25841 | IS11: 47911.83987 | IT11: 49109.63587 | IU11: 50337.37677 | IV11: 51595.81118 | IW11: 52885.70646 | IX11: 54207.84913 | IY11: 55563.04535 | IZ11: 56952.12149 | JA11: 58375.92452 | JB11: 59835.32264 | JC11: 61331.2057 | JD11: 62864.48585 | JE11: 64436.09799 | JF11: 66047.00044 | JG11: =JF14 -> 67698.17545 | JH11: 69390.62984 | JI11: 71125.39559 | JJ11: 72903.53048 | JK11: 74726.11874 | JL11: 76594.27171 | JM11: 78509.1285 | JN11: 80471.85671 | JO11: 82483.65313 | JP11: 84545.74446 | JQ11: 86659.38807 | JR11: 88825.87277 | JS11: 91046.51959 | JT11: 93322.68258 | JU11: 95655.74964 | JV11: 98047.14338 | JW11: 100498.322 | JX11: 103010.78 | JY11: 105586.0495 | JZ11: 108225.7008 | KA11: 110931.3433 | KB11: 113704.6269 | KC11: 116547.2425 | KD11: 119460.9236 | KE11: 122447.4467 | KF11: 125508.6328 | KG11: 128646.3487 | KH11: 131862.5074 | KI11: 135159.0701 | KJ11: 138538.0468 | KK11: 142001.498 | KL11: 145551.5354 | KM11: 149190.3238 | KN11: 152920.0819 | KO11: 156743.084 | KP11: 160661.6611 | KQ11: 164678.2026 | KR11: 168795.1577 | KS11: 173015.0366 | KT11: 177340.4125 | KU11: 181773.9228 | KV11: 186318.2709 | KW11: 190976.2277 | KX11: =KW14 -> 195750.6334 | KY11: 200644.3992 | KZ11: 205660.5092 | LA11: 210802.0219 | LB11: 216072.0725 | LC11: 221473.8743 | LD11: 227010.7211 | LE11: 232685.9892 | LF11: 238503.1389 | LG11: 244465.7174 | LH11: 250577.3603 | LI11: 256841.7943 | LJ11: 263262.8392 | LK11: 269844.4101 | LL11: 276590.5204 | LM11: 283505.2834 | LN11: 290592.9155 | LO11: 297857.7384 | LP11: 305304.1818 | LQ11: 312936.7864 | LR11: 320760.206 | LS11: 328779.2112 | LT11: 336998.6915 | LU11: 345423.6588 | LV11: 354059.2502 | LW11: 362910.7315 | LX11: 371983.4998 | LY11: 381283.0873 | LZ11: 390815.1644 | MA11: 400585.5436 | MB11: 410600.1821 | MC11: 420865.1867 | MD11: 431386.8164 | ME11: 442171.4868 | MF11: 453225.7739 | MG11: 464556.4183 | MH11: 476170.3287 | MI11: 488074.587 | MJ11: 500276.4516 | MK11: 512783.3629 | ML11: 525602.947 | MM11: 538743.0207 | MN11: 552211.5962 | MO11: 566016.8861 | MP11: 580167.3083 | MQ11: 594671.491 | MR11: 609538.2782 | MS11: 624776.7352 | MT11: 640396.1536 | MU11: 656406.0574 | MV11: 672816.2088 | MW11: 689636.6141 | MX11: 706877.5294 | MY11: 724549.4677 | MZ11: 742663.2043 | NA11: 761229.7845 | NB11: 780260.5291 | NC11: 799767.0423 | ND11: 819761.2183 | NE11: 840255.2488 | NF11: 861261.63 | NG11: 882793.1708 | NH11: 904863 | NI11: 927484.575 | NJ11: =NI14 -> 950671.6894 | NK11: 974438.4817 | NL11: 998799.4437 | NM11: 1023769.43 | NN11: 1049363.666 | NO11: 1075597.757 | NP11: 1102487.701 | NQ11: 1130049.894 | NR11: 1158301.141 | NS11: 1187258.67 | NT11: 1216940.136 | NU11: 1247363.64 | NV11: 1278547.731 | NW11: 1310511.424 | NX11: 1343274.209 | NY11: 1376856.065 | NZ11: 1411277.466 | OA11: 1446559.403 | OB11: 1482723.388 | OC11: 1519791.473 | OD11: 1557786.26 | OE11: 1596730.916 | OF11: 1636649.189 | OG11: 1677565.419 | OH11: 1719504.554 | OI11: 1762492.168 | OJ11: 1806554.472 | OK11: 1851718.334 | OL11: 1898011.292 | OM11: 1945461.575 | ON11: 1994098.114 | OO11: 2043950.567 | OP11: 2095049.331 | OQ11: 2147425.564 | OR11: 2201111.204 | OS11: 2256138.984 | OT11: 2312542.458 | OU11: 2370356.02 | OV11: 2429614.92 | OW11: 2490355.293 | OX11: 2552614.175 | OY11: 2616429.53 | OZ11: 2681840.268 | PA11: 2748886.275 | PB11: 2817608.432 | PC11: 2888048.642 | PD11: 2960249.859 | PE11: 3034256.105 | PF11: 3110112.508 | PG11: 3187865.32 | PH11: 3267561.953 | PI11: 3349251.002 | PJ11: 3432982.277 | PK11: 3518806.834 | PL11: 3606777.005 | PM11: 3696946.43 | PN11: 3789370.091 | PO11: 3884104.343 | PP11: 3981206.952 | PQ11: 4080737.125 | PR11: 4182755.554 | PS11: 4287324.442 | PT11: 4394507.554 | PU11: 4504370.242 | PV11: =PU14 -> 4616979.498 | PW11: 4732403.986 | PX11: 4850714.086 | PY11: 4971981.938 | PZ11: 5096281.486 | QA11: 5223688.523 | QB11: 5354280.736 | QC11: 5488137.755 | QD11: 5625341.199 | QE11: 5765974.729 | QF11: 5910124.097 | QG11: 6057877.199 | QH11: 6209324.129 | QI11: 6364557.232 | QJ11: 6523671.163 | QK11: 6686762.942 | QL11: 6853932.016 | QM11: 7025280.316 | QN11: 7200912.324 | QO11: 7380935.132 | QP11: 7565458.511 | QQ11: 7754594.973 | QR11: 7948459.848 | QS11: 8147171.344 | QT11: 8350850.627 | QU11: 8559621.893 | QV11: 8773612.44 | QW11: 8992952.752 | QX11: 9217776.57 | QY11: 9448220.985 | QZ11: 9684426.509 | RA11: 9926537.172 | RB11: 10174700.6 | RC11: 10429068.12 | RD11: 10689794.82 | RE11: 10957039.69 | RF11: 11230965.68 | RG11: 11511739.82 | RH11: 11799533.32 | RI11: 12094521.65 | RJ11: 12396884.69 | RK11: 12706806.81 | RL11: 13024476.98 | RM11: 13350088.91 | RN11: 13683841.13 | RO11: 14025937.16 | RP11: 14376585.59 | RQ11: 14736000.23 | RR11: 15104400.23 | RS11: 15482010.24 | RT11: 15869060.49 | RU11: 16265787.01 | RV11: 16672431.68 | RW11: 17089242.47 | RX11: 17516473.53 | RY11: 17954385.37 | RZ11: 18403245.01 | SA11: 18863326.13 | SB11: 19334909.29 | SC11: 19818282.02 | SD11: 20313739.07 | SE11: 20821582.54 | SF11: 21342122.11 | SG11: 21875675.16 | SH11: =SG14 -> 22422567.04 | SI11: 22983131.22 | SJ11: 23557709.5 | SK11: 24146652.23 | SL11: 24750318.54 | SM11: 25369076.5 | SN11: 26003303.42 | SO11: 26653386 | SP11: 27319720.65 | SQ11: 28002713.67 | SR11: 28702781.51 | SS11: 29420351.05 | ST11: 30155859.82 | SU11: 30909756.32 | SV11: 31682500.23 | SW11: 32474562.73 | SX11: 33286426.8 | SY11: 34118587.47 | SZ11: 34971552.16 | TA11: 35845840.96 | TB11: 36741986.98 | TC11: 37660536.66
D12: Add: Net Income | K12: =K11*K6 -> 13 | L12: =L11*L6 -> 13.92470529 | M12: 14.80538098 | N12: 15.63794874 | O12: 16.41984618 | P12: 17.11229791 | Q12: 17.72096409 | R12: 18.25259301 | S12: 18.8001708 | T12: 19.36417592 | U12: 19.84828032 | V12: 17.94468438 | W12: 16.22365728 | X12: 14.66768933 | Y12: 13.26095013 | Z12: 11.98912757 | AA12: 10.83928213 | AB12: 11.11026418 | AC12: 11.38802079 | AD12: 11.67272131 | AE12: 11.96453934 | AF12: 12.26365282 | AG12: 12.57024414 | AH12: 12.88450025 | AI12: 13.20661275 | AJ12: 13.53677807 | AK12: 13.87519752 | AL12: 14.22207746 | AM12: 14.5776294 | AN12: 14.94207013 | AO12: 15.31562189 | AP12: 15.69851243 | AQ12: 16.09097525 | AR12: 16.49324963 | AS12: 16.90558087 | AT12: 17.32822039 | AU12: 17.7614259 | AV12: 18.20546155 | AW12: 18.66059808 | AX12: 19.12711304 | AY12: 19.60529086 | AZ12: 20.09542313 | BA12: 20.59780871 | BB12: 21.11275393 | BC12: 21.64057278 | BD12: 22.1815871 | BE12: 22.73612678 | BF12: 23.30452995 | BG12: 23.88714319 | BH12: 24.48432177 | BI12: 25.09642982 | BJ12: 25.72384056 | BK12: 26.36693658 | BL12: 27.02610999 | BM12: 27.70176274 | BN12: 28.39430681 | BO12: 29.10416448 | BP12: 29.83176859 | BQ12: 30.57756281 | BR12: 31.34200188 | BS12: 32.12555192 | BT12: 32.92869072 | BU12: 33.75190799 | BV12: 34.59570569 | BW12: =BW11*BW6 -> 35.46059833 | BX12: 36.34711329 | BY12: 37.25579112 | BZ12: 38.1871859 | CA12: 39.14186555 | CB12: 40.12041219 | CC12: 41.12342249 | CD12: 42.15150805 | CE12: 43.20529576 | CF12: 44.28542815 | CG12: 45.39256385 | CH12: 46.52737795 | CI12: 47.6905624 | CJ12: 48.88282646 | CK12: 50.10489712 | CL12: 51.35751955 | CM12: 52.64145754 | CN12: 53.95749398 | CO12: 55.30643132 | CP12: 56.68909211 | CQ12: 58.10631941 | CR12: 59.5589774 | CS12: 61.04795183 | CT12: 62.57415063 | CU12: 64.13850439 | CV12: 65.741967 | CW12: 67.38551618 | CX12: 69.07015408 | CY12: 70.79690793 | CZ12: 72.56683063 | DA12: 74.3810014 | DB12: 76.24052643 | DC12: 78.14653959 | DD12: 80.10020308 | DE12: 82.10270816 | DF12: 84.15527586 | DG12: 86.25915776 | DH12: 88.4156367 | DI12: 90.62602762 | DJ12: 92.89167831 | DK12: 95.21397027 | DL12: 97.59431953 | DM12: 100.0341775 | DN12: 102.535032 | DO12: 105.0984078 | DP12: 107.7258679 | DQ12: 110.4190146 | DR12: 113.17949 | DS12: 116.0089773 | DT12: 118.9092017 | DU12: 121.8819317 | DV12: 124.92898 | DW12: 128.0522045 | DX12: 131.2535096 | DY12: 134.5348474 | DZ12: 137.8982186 | EA12: 141.345674 | EB12: 144.8793159 | EC12: 148.5012988 | ED12: 152.2138313 | EE12: 156.019177 | EF12: 159.9196565 | EG12: 163.9176479 | EH12: 168.0155891 | EI12: =EI11*EI6 -> 172.2159788 | EJ12: 176.5213783 | EK12: 180.9344127 | EL12: 185.457773 | EM12: 190.0942174 | EN12: 194.8465728 | EO12: 199.7177371 | EP12: 204.7106805 | EQ12: 209.8284476 | ER12: 215.0741587 | ES12: 220.4510127 | ET12: 225.962288 | EU12: 231.6113452 | EV12: 237.4016289 | EW12: 243.3366696 | EX12: 249.4200863 | EY12: 255.6555885 | EZ12: 262.0469782 | FA12: 268.5981527 | FB12: 275.3131065 | FC12: 282.1959341 | FD12: 289.2508325 | FE12: 296.4821033 | FF12: 303.8941559 | FG12: 311.4915098 | FH12: 319.2787975 | FI12: 327.2607675 | FJ12: 335.4422866 | FK12: 343.8283438 | FL12: 352.4240524 | FM12: 361.2346537 | FN12: 370.2655201 | FO12: 379.5221581 | FP12: 389.010212 | FQ12: 398.7354673 | FR12: 408.703854 | FS12: 418.9214503 | FT12: 429.3944866 | FU12: 440.1293488 | FV12: 451.1325825 | FW12: 462.410897 | FX12: 473.9711695 | FY12: 485.8204487 | FZ12: 497.9659599 | GA12: 510.4151089 | GB12: 523.1754866 | GC12: 536.2548738 | GD12: 549.6612457 | GE12: 563.4027768 | GF12: 577.4878462 | GG12: 591.9250424 | GH12: 606.7231684 | GI12: 621.8912476 | GJ12: 637.4385288 | GK12: 653.3744921 | GL12: 669.7088544 | GM12: 686.4515757 | GN12: 703.6128651 | GO12: 721.2031867 | GP12: 739.2332664 | GQ12: 757.7140981 | GR12: 776.6569505 | GS12: 796.0733743 | GT12: 815.9752086 | GU12: =GU11*GU6 -> 836.3745889 | GV12: 857.2839536 | GW12: 878.7160524 | GX12: 900.6839537 | GY12: 923.2010526 | GZ12: 946.2810789 | HA12: 969.9381059 | HB12: 994.1865585 | HC12: 1019.041222 | HD12: 1044.517253 | HE12: 1070.630184 | HF12: 1097.395939 | HG12: 1124.830837 | HH12: 1152.951608 | HI12: 1181.775399 | HJ12: 1211.319784 | HK12: 1241.602778 | HL12: 1272.642848 | HM12: 1304.458919 | HN12: 1337.070392 | HO12: 1370.497152 | HP12: 1404.75958 | HQ12: 1439.87857 | HR12: 1475.875534 | HS12: 1512.772422 | HT12: 1550.591733 | HU12: 1589.356526 | HV12: 1629.090439 | HW12: 1669.8177 | HX12: 1711.563143 | HY12: 1754.352222 | HZ12: 1798.211027 | IA12: 1843.166303 | IB12: 1889.24546 | IC12: 1936.476597 | ID12: 1984.888512 | IE12: 2034.510725 | IF12: 2085.373493 | IG12: 2137.50783 | IH12: 2190.945526 | II12: 2245.719164 | IJ12: 2301.862143 | IK12: 2359.408697 | IL12: 2418.393914 | IM12: 2478.853762 | IN12: 2540.825106 | IO12: 2604.345734 | IP12: 2669.454377 | IQ12: 2736.190736 | IR12: 2804.595505 | IS12: 2874.710392 | IT12: 2946.578152 | IU12: 3020.242606 | IV12: 3095.748671 | IW12: 3173.142388 | IX12: 3252.470948 | IY12: 3333.782721 | IZ12: 3417.127289 | JA12: 3502.555471 | JB12: 3590.119358 | JC12: 3679.872342 | JD12: 3771.869151 | JE12: 3866.16588 | JF12: 3962.820027 | JG12: =JG11*JG6 -> 4061.890527 | JH12: 4163.43779 | JI12: 4267.523735 | JJ12: 4374.211829 | JK12: 4483.567124 | JL12: 4595.656302 | JM12: 4710.54771 | JN12: 4828.311403 | JO12: 4949.019188 | JP12: 5072.744667 | JQ12: 5199.563284 | JR12: 5329.552366 | JS12: 5462.791175 | JT12: 5599.360955 | JU12: 5739.344979 | JV12: 5882.828603 | JW12: 6029.899318 | JX12: 6180.646801 | JY12: 6335.162971 | JZ12: 6493.542045 | KA12: 6655.880597 | KB12: 6822.277611 | KC12: 6992.834552 | KD12: 7167.655416 | KE12: 7346.846801 | KF12: 7530.517971 | KG12: 7718.78092 | KH12: 7911.750443 | KI12: 8109.544204 | KJ12: 8312.282809 | KK12: 8520.08988 | KL12: 8733.092127 | KM12: 8951.41943 | KN12: 9175.204916 | KO12: 9404.585038 | KP12: 9639.699664 | KQ12: 9880.692156 | KR12: 10127.70946 | KS12: 10380.9022 | KT12: 10640.42475 | KU12: 10906.43537 | KV12: 11179.09625 | KW12: 11458.57366 | KX12: =KX11*KX6 -> 11745.038 | KY12: 12038.66395 | KZ12: 12339.63055 | LA12: 12648.12131 | LB12: 12964.32435 | LC12: 13288.43246 | LD12: 13620.64327 | LE12: 13961.15935 | LF12: 14310.18833 | LG12: 14667.94304 | LH12: 15034.64162 | LI12: 15410.50766 | LJ12: 15795.77035 | LK12: 16190.66461 | LL12: 16595.43122 | LM12: 17010.317 | LN12: 17435.57493 | LO12: 17871.4643 | LP12: 18318.25091 | LQ12: 18776.20718 | LR12: 19245.61236 | LS12: 19726.75267 | LT12: 20219.92149 | LU12: 20725.41953 | LV12: 21243.55501 | LW12: 21774.64389 | LX12: 22319.00999 | LY12: 22876.98524 | LZ12: 23448.90987 | MA12: 24035.13261 | MB12: 24636.01093 | MC12: 25251.9112 | MD12: 25883.20898 | ME12: 26530.28921 | MF12: 27193.54644 | MG12: 27873.3851 | MH12: 28570.21972 | MI12: 29284.47522 | MJ12: 30016.5871 | MK12: 30767.00178 | ML12: 31536.17682 | MM12: 32324.58124 | MN12: 33132.69577 | MO12: 33961.01317 | MP12: 34810.0385 | MQ12: 35680.28946 | MR12: 36572.29669 | MS12: 37486.60411 | MT12: 38423.76921 | MU12: 39384.36344 | MV12: 40368.97253 | MW12: 41378.19684 | MX12: 42412.65177 | MY12: 43472.96806 | MZ12: 44559.79226 | NA12: 45673.78707 | NB12: 46815.63174 | NC12: 47986.02254 | ND12: 49185.6731 | NE12: 50415.31493 | NF12: 51675.6978 | NG12: 52967.59025 | NH12: 54291.78 | NI12: 55649.0745 | NJ12: =NJ11*NJ6 -> 57040.30137 | NK12: 58466.3089 | NL12: 59927.96662 | NM12: 61426.16579 | NN12: 62961.81993 | NO12: 64535.86543 | NP12: 66149.26207 | NQ12: 67802.99362 | NR12: 69498.06846 | NS12: 71235.52017 | NT12: 73016.40817 | NU12: 74841.81838 | NV12: 76712.86384 | NW12: 78630.68543 | NX12: 80596.45257 | NY12: 82611.36388 | NZ12: 84676.64798 | OA12: 86793.56418 | OB12: 88963.40329 | OC12: 91187.48837 | OD12: 93467.17558 | OE12: 95803.85497 | OF12: 98198.95134 | OG12: 100653.9251 | OH12: 103170.2733 | OI12: 105749.5301 | OJ12: 108393.2683 | OK12: 111103.1 | OL12: 113880.6775 | OM12: 116727.6945 | ON12: 119645.8868 | OO12: 122637.034 | OP12: 125702.9599 | OQ12: 128845.5339 | OR12: 132066.6722 | OS12: 135368.339 | OT12: 138752.5475 | OU12: 142221.3612 | OV12: 145776.8952 | OW12: 149421.3176 | OX12: 153156.8505 | OY12: 156985.7718 | OZ12: 160910.4161 | PA12: 164933.1765 | PB12: 169056.5059 | PC12: 173282.9185 | PD12: 177614.9915 | PE12: 182055.3663 | PF12: 186606.7505 | PG12: 191271.9192 | PH12: 196053.7172 | PI12: 200955.0601 | PJ12: 205978.9366 | PK12: 211128.41 | PL12: 216406.6203 | PM12: 221816.7858 | PN12: 227362.2055 | PO12: 233046.2606 | PP12: 238872.4171 | PQ12: 244844.2275 | PR12: 250965.3332 | PS12: 257239.4665 | PT12: 263670.4532 | PU12: 270262.2145 | PV12: =PV11*PV6 -> 277018.7699 | PW12: 283944.2392 | PX12: 291042.8451 | PY12: 298318.9163 | PZ12: 305776.8892 | QA12: 313421.3114 | QB12: 321256.8442 | QC12: 329288.2653 | QD12: 337520.4719 | QE12: 345958.4837 | QF12: 354607.4458 | QG12: 363472.632 | QH12: 372559.4478 | QI12: 381873.4339 | QJ12: 391420.2698 | QK12: 401205.7765 | QL12: 411235.921 | QM12: 421516.819 | QN12: 432054.7395 | QO12: 442856.1079 | QP12: 453927.5106 | QQ12: 465275.6984 | QR12: 476907.5909 | QS12: 488830.2806 | QT12: 501051.0376 | QU12: 513577.3136 | QV12: 526416.7464 | QW12: 539577.1651 | QX12: 553066.5942 | QY12: 566893.2591 | QZ12: 581065.5906 | RA12: 595592.2303 | RB12: 610482.0361 | RC12: 625744.087 | RD12: 641387.6891 | RE12: 657422.3814 | RF12: 673857.9409 | RG12: 690704.3894 | RH12: 707971.9992 | RI12: 725671.2991 | RJ12: 743813.0816 | RK12: 762408.4087 | RL12: 781468.6189 | RM12: 801005.3344 | RN12: 821030.4677 | RO12: 841556.2294 | RP12: 862595.1351 | RQ12: 884160.0135 | RR12: 906264.0139 | RS12: 928920.6142 | RT12: 952143.6296 | RU12: 975947.2203 | RV12: 1000345.901 | RW12: 1025354.548 | RX12: 1050988.412 | RY12: 1077263.122 | RZ12: 1104194.7 | SA12: 1131799.568 | SB12: 1160094.557 | SC12: 1189096.921 | SD12: 1218824.344 | SE12: 1249294.953 | SF12: 1280527.326 | SG12: 1312540.51 | SH12: =SH11*SH6 -> 1345354.022 | SI12: 1378987.873 | SJ12: 1413462.57 | SK12: 1448799.134 | SL12: 1485019.112 | SM12: 1522144.59 | SN12: 1560198.205 | SO12: 1599203.16 | SP12: 1639183.239 | SQ12: 1680162.82 | SR12: 1722166.891 | SS12: 1765221.063 | ST12: 1809351.589 | SU12: 1854585.379 | SV12: 1900950.014 | SW12: 1948473.764 | SX12: 1997185.608 | SY12: 2047115.248 | SZ12: 2098293.129 | TA12: 2150750.458 | TB12: 2204519.219 | TC12: 2259632.2
D13: Less Cash Flow (Dividend or Income - Cap Exp + Dep) | F13: =Scenarios!D8 -> TRUE | K13: =IF($F$13,K12*L8,K12*K8) -> 5.88688236 | L13: =IF($F$13,L12*M8,L12*L8) -> 7.150276913 | M13: 8.401013627 | N13: 9.62335307 | O13: 11.0932944 | P13: 12.43025038 | Q13: 13.63151083 | R13: 14.04045616 | S13: =IF($F$13,S12*T8,S12*S8) -> 14.46166984 | T13: 15.64029594 | U13: 15.50632958 | V13: 13.47925546 | W13: 11.63123864 | X13: 9.944669591 | Y13: 8.403615211 | Z13: 6.993657747 | AA13: 6.322914576 | AB13: 6.48098744 | AC13: 6.643012126 | AD13: 6.809087429 | AE13: 6.979314615 | AF13: 7.15379748 | AG13: 7.332642417 | AH13: 7.515958478 | AI13: 7.70385744 | AJ13: 7.896453876 | AK13: 8.093865223 | AL13: 8.296211853 | AM13: 8.503617149 | AN13: 8.716207578 | AO13: 8.934112768 | AP13: 9.157465587 | AQ13: 9.386402227 | AR13: 9.621062282 | AS13: 9.861588839 | AT13: 10.10812856 | AU13: 10.36083177 | AV13: 10.61985257 | AW13: 10.88534888 | AX13: 11.1574826 | AY13: 11.43641967 | AZ13: 11.72233016 | BA13: 12.01538842 | BB13: 12.31577313 | BC13: 12.62366745 | BD13: 12.93925914 | BE13: 13.26274062 | BF13: 13.59430913 | BG13: 13.93416686 | BH13: 14.28252103 | BI13: 14.63958406 | BJ13: 15.00557366 | BK13: 15.380713 | BL13: 15.76523083 | BM13: 16.1593616 | BN13: 16.56334564 | BO13: 16.97742928 | BP13: 17.40186501 | BQ13: 17.83691164 | BR13: 18.28283443 | BS13: 18.73990529 | BT13: 19.20840292 | BU13: 19.68861299 | BV13: 20.18082832 | BW13: 20.68534903 | BX13: =IF($F$13,BX12*BY8,BX12*BX8) -> 21.20248275 | BY13: 21.73254482 | BZ13: 22.27585844 | CA13: 22.8327549 | CB13: 23.40357378 | CC13: 23.98866312 | CD13: 24.5883797 | CE13: 25.20308919 | CF13: 25.83316642 | CG13: 26.47899558 | CH13: 27.14097047 | CI13: 27.81949473 | CJ13: 28.5149821 | CK13: 29.22785665 | CL13: 29.95855307 | CM13: 30.7075169 | CN13: 31.47520482 | CO13: 32.26208494 | CP13: 33.06863706 | CQ13: 33.89535299 | CR13: 34.74273681 | CS13: 35.61130523 | CT13: 36.50158787 | CU13: 37.41412756 | CV13: 38.34948075 | CW13: 39.30821777 | CX13: 40.29092321 | CY13: 41.29819629 | CZ13: 42.3306512 | DA13: 43.38891748 | DB13: 44.47364042 | DC13: 45.58548143 | DD13: 46.72511847 | DE13: 47.89324643 | DF13: 49.09057759 | DG13: 50.31784203 | DH13: 51.57578808 | DI13: 52.86518278 | DJ13: 54.18681235 | DK13: 55.54148266 | DL13: 56.93001972 | DM13: 58.35327022 | DN13: 59.81210197 | DO13: 61.30740452 | DP13: 62.84008964 | DQ13: 64.41109188 | DR13: 66.02136917 | DS13: 67.6719034 | DT13: 69.36370099 | DU13: 71.09779351 | DV13: 72.87523835 | DW13: 74.69711931 | DX13: 76.56454729 | DY13: 78.47866097 | DZ13: 80.4406275 | EA13: 82.45164319 | EB13: 84.51293427 | EC13: 86.62575762 | ED13: 88.79140156 | EE13: 91.0111866 | EF13: 93.28646627 | EG13: 95.61862792 | EH13: 98.00909362 | EI13: 100.459321 | EJ13: =IF($F$13,EJ12*EK8,EJ12*EJ8) -> 102.970804 | EK13: 105.5450741 | EL13: 108.1837009 | EM13: 110.8882935 | EN13: 113.6605008 | EO13: 116.5020133 | EP13: 119.4145637 | EQ13: 122.3999277 | ER13: 125.4599259 | ES13: 128.5964241 | ET13: 131.8113347 | EU13: 135.1066181 | EV13: 138.4842835 | EW13: 141.9463906 | EX13: 145.4950504 | EY13: 149.1324266 | EZ13: 152.8607373 | FA13: 156.6822557 | FB13: 160.5993121 | FC13: 164.6142949 | FD13: 168.7296523 | FE13: 172.9478936 | FF13: 177.2715909 | FG13: 181.7033807 | FH13: 186.2459652 | FI13: 190.9021143 | FJ13: 195.6746672 | FK13: 200.5665339 | FL13: 205.5806972 | FM13: 210.7202147 | FN13: 215.98822 | FO13: 221.3879255 | FP13: 226.9226237 | FQ13: 232.5956893 | FR13: 238.4105815 | FS13: 244.370846 | FT13: 250.4801172 | FU13: 256.7421201 | FV13: 263.1606731 | FW13: 269.7396899 | FX13: 276.4831822 | FY13: 283.3952617 | FZ13: 290.4801433 | GA13: 297.7421469 | GB13: 305.1857005 | GC13: 312.8153431 | GD13: 320.6357266 | GE13: 328.6516198 | GF13: 336.8679103 | GG13: 345.2896081 | GH13: 353.9218483 | GI13: 362.7698945 | GJ13: 371.8391418 | GK13: 381.1351204 | GL13: 390.6634984 | GM13: 400.4300858 | GN13: 410.440838 | GO13: 420.7018589 | GP13: 431.2194054 | GQ13: 441.9998905 | GR13: 453.0498878 | GS13: 464.376135 | GT13: 475.9855384 | GU13: 487.8851768 | GV13: =IF($F$13,GV12*GW8,GV12*GV8) -> 500.0823063 | GW13: 512.5843639 | GX13: 525.398973 | GY13: 538.5339473 | GZ13: 551.997296 | HA13: 565.7972284 | HB13: 579.9421591 | HC13: 594.4407131 | HD13: 609.3017309 | HE13: 624.5342742 | HF13: 640.1476311 | HG13: 656.1513218 | HH13: 672.5551049 | HI13: 689.3689825 | HJ13: 706.6032071 | HK13: 724.2682872 | HL13: 742.3749944 | HM13: 760.9343693 | HN13: 779.9577285 | HO13: 799.4566717 | HP13: 819.4430885 | HQ13: 839.9291657 | HR13: 860.9273949 | HS13: 882.4505798 | HT13: 904.5118443 | HU13: 927.1246404 | HV13: 950.3027564 | HW13: 974.0603253 | HX13: 998.4118334 | HY13: 1023.372129 | HZ13: 1048.956432 | IA13: 1075.180343 | IB13: 1102.059852 | IC13: 1129.611348 | ID13: 1157.851632 | IE13: 1186.797923 | IF13: 1216.467871 | IG13: 1246.879567 | IH13: 1278.051557 | II13: 1310.002846 | IJ13: 1342.752917 | IK13: 1376.32174 | IL13: 1410.729783 | IM13: 1445.998028 | IN13: 1482.147978 | IO13: 1519.201678 | IP13: 1557.18172 | IQ13: 1596.111263 | IR13: 1636.014044 | IS13: 1676.914396 | IT13: 1718.837255 | IU13: 1761.808187 | IV13: 1805.853391 | IW13: 1850.999726 | IX13: 1897.274719 | IY13: 1944.706587 | IZ13: 1993.324252 | JA13: 2043.157358 | JB13: 2094.236292 | JC13: 2146.5922 | JD13: 2200.257005 | JE13: 2255.26343 | JF13: 2311.645015 | JG13: 2369.436141 | JH13: =IF($F$13,JH12*JI8,JH12*JH8) -> 2428.672044 | JI13: 2489.388846 | JJ13: 2551.623567 | JK13: 2615.414156 | JL13: 2680.79951 | JM13: 2747.819497 | JN13: 2816.514985 | JO13: 2886.92786 | JP13: 2959.101056 | JQ13: 3033.078582 | JR13: 3108.905547 | JS13: 3186.628186 | JT13: 3266.29389 | JU13: 3347.951238 | JV13: 3431.650018 | JW13: 3517.441269 | JX13: 3605.377301 | JY13: 3695.511733 | JZ13: 3787.899526 | KA13: 3882.597015 | KB13: 3979.66194 | KC13: 4079.153489 | KD13: 4181.132326 | KE13: 4285.660634 | KF13: 4392.80215 | KG13: 4502.622203 | KH13: 4615.187759 | KI13: 4730.567453 | KJ13: 4848.831639 | KK13: 4970.05243 | KL13: 5094.303741 | KM13: 5221.661334 | KN13: 5352.202867 | KO13: 5486.007939 | KP13: 5623.158138 | KQ13: 5763.737091 | KR13: 5907.830518 | KS13: 6055.526281 | KT13: 6206.914438 | KU13: 6362.087299 | KV13: 6521.139482 | KW13: 6684.167969 | KX13: 6851.272168 | KY13: 7022.553972 | KZ13: 7198.117821 | LA13: 7378.070767 | LB13: 7562.522536 | LC13: 7751.5856 | LD13: 7945.37524 | LE13: 8144.009621 | LF13: 8347.609861 | LG13: 8556.300108 | LH13: 8770.20761 | LI13: 8989.462801 | LJ13: 9214.199371 | LK13: 9444.554355 | LL13: 9680.668214 | LM13: 9922.684919 | LN13: 10170.75204 | LO13: 10425.02084 | LP13: 10685.64636 | LQ13: 10952.78752 | LR13: 11226.60721 | LS13: 11507.27239 | LT13: =IF($F$13,LT12*LU8,LT12*LT8) -> 11794.9542 | LU13: 12089.82806 | LV13: 12392.07376 | LW13: 12701.8756 | LX13: 13019.42249 | LY13: 13344.90805 | LZ13: 13678.53076 | MA13: 14020.49402 | MB13: 14371.00637 | MC13: 14730.28153 | MD13: 15098.53857 | ME13: 15476.00204 | MF13: 15862.90209 | MG13: 16259.47464 | MH13: 16665.96151 | MI13: 17082.61054 | MJ13: 17509.67581 | MK13: 17947.4177 | ML13: 18396.10315 | MM13: 18856.00572 | MN13: 19327.40587 | MO13: 19810.59101 | MP13: 20305.85579 | MQ13: 20813.50218 | MR13: 21333.83974 | MS13: 21867.18573 | MT13: 22413.86537 | MU13: 22974.21201 | MV13: 23548.56731 | MW13: 24137.28149 | MX13: 24740.71353 | MY13: 25359.23137 | MZ13: 25993.21215 | NA13: 26643.04246 | NB13: 27309.11852 | NC13: 27991.84648 | ND13: 28691.64264 | NE13: 29408.93371 | NF13: 30144.15705 | NG13: 30897.76098 | NH13: 31670.205 | NI13: 32461.96013 | NJ13: 33273.50913 | NK13: 34105.34686 | NL13: 34957.98053 | NM13: 35831.93004 | NN13: 36727.72829 | NO13: 37645.9215 | NP13: 38587.06954 | NQ13: 39551.74628 | NR13: 40540.53993 | NS13: 41554.05343 | NT13: 42592.90477 | NU13: 43657.72739 | NV13: 44749.17057 | NW13: 45867.89984 | NX13: 47014.59733 | NY13: 48189.96227 | NZ13: 49394.71132 | OA13: 50629.57911 | OB13: 51895.31858 | OC13: 53192.70155 | OD13: 54522.51909 | OE13: 55885.58206 | OF13: =IF($F$13,OF12*OG8,OF12*OF8) -> 57282.72162 | OG13: 58714.78966 | OH13: 60182.6594 | OI13: 61687.22588 | OJ13: 63229.40653 | OK13: 64810.14169 | OL13: 66430.39523 | OM13: 68091.15512 | ON13: 69793.43399 | OO13: 71538.26984 | OP13: 73326.72659 | OQ13: 75159.89475 | OR13: 77038.89212 | OS13: 78964.86443 | OT13: 80938.98604 | OU13: 82962.46069 | OV13: 85036.5222 | OW13: 87162.43526 | OX13: 89341.49614 | OY13: 91575.03354 | OZ13: 93864.40938 | PA13: 96211.01962 | PB13: 98616.29511 | PC13: 101081.7025 | PD13: 103608.745 | PE13: 106198.9637 | PF13: 108853.9378 | PG13: 111575.2862 | PH13: 114364.6684 | PI13: 117223.7851 | PJ13: 120154.3797 | PK13: 123158.2392 | PL13: 126237.1952 | PM13: 129393.1251 | PN13: 132627.9532 | PO13: 135943.652 | PP13: 139342.2433 | PQ13: 142825.7994 | PR13: 146396.4444 | PS13: 150056.3555 | PT13: 153807.7644 | PU13: 157652.9585 | PV13: 161594.2824 | PW13: 165634.1395 | PX13: 169774.993 | PY13: 174019.3678 | PZ13: 178369.852 | QA13: 182829.0983 | QB13: 187399.8258 | QC13: 192084.8214 | QD13: 196886.942 | QE13: 201809.1155 | QF13: 206854.3434 | QG13: 212025.702 | QH13: 217326.3445 | QI13: 222759.5031 | QJ13: 228328.4907 | QK13: 234036.703 | QL13: 239887.6206 | QM13: 245884.8111 | QN13: 252031.9313 | QO13: 258332.7296 | QP13: 264791.0479 | QQ13: 271410.8241 | QR13: =IF($F$13,QR12*QS8,QR12*QR8) -> 278196.0947 | QS13: 285150.997 | QT13: 292279.772 | QU13: 299586.7663 | QV13: 307076.4354 | QW13: 314753.3463 | QX13: 322622.18 | QY13: 330687.7345 | QZ13: 338954.9278 | RA13: 347428.801 | RB13: 356114.521 | RC13: 365017.3841 | RD13: 374142.8187 | RE13: 383496.3891 | RF13: 393083.7989 | RG13: 402910.8938 | RH13: 412983.6662 | RI13: 423308.2578 | RJ13: 433890.9643 | RK13: 444738.2384 | RL13: 455856.6943 | RM13: 467253.1117 | RN13: 478934.4395 | RO13: 490907.8005 | RP13: 503180.4955 | RQ13: 515760.0079 | RR13: 528654.0081 | RS13: 541870.3583 | RT13: 555417.1172 | RU13: 569302.5452 | RV13: 583535.1088 | RW13: 598123.4865 | RX13: 613076.5737 | RY13: 628403.488 | RZ13: 644113.5752 | SA13: 660216.4146 | SB13: 676721.825 | SC13: 693639.8706 | SD13: 710980.8674 | SE13: 728755.3891 | SF13: 746974.2738 | SG13: 765648.6306 | SH13: 784789.8464 | SI13: 804409.5925 | SJ13: 824519.8324 | SK13: 845132.8282 | SL13: 866261.1489 | SM13: 887917.6776 | SN13: 910115.6195 | SO13: 932868.51 | SP13: 956190.2228 | SQ13: 980094.9783 | SR13: 1004597.353 | SS13: 1029712.287 | ST13: 1055455.094 | SU13: 1081841.471 | SV13: 1108887.508 | SW13: 1136609.696 | SX13: 1165024.938 | SY13: 1194150.561 | SZ13: 1224004.325 | TA13: 1254604.434 | TB13: 1285969.544 | TC13: =(TB13*TC8)/(F19-TC7)*(1+TC7) -> 17881456.36
D14: Closing Balance | J14: =Scenarios!D4 -> 100 | K14: =K11+K12-K13 -> 107.1131176 | L14: 113.887546 | M14: 120.2919134 | N14: 126.306509 | O14: 131.6330608 | P14: 136.3151083 | Q14: 140.4045616 | R14: 144.6166984 | S14: 148.9551994 | T14: 152.6790794 | U14: 157.0210301 | V14: 161.486459 | W14: 166.0788777 | X14: 170.8018974 | Y14: 175.6592323 | Z14: 180.6547022 | AA14: 185.1710697 | AB14: 189.8003465 | AC14: 194.5453551 | AD14: 199.408989 | AE14: 204.3942137 | AF14: 209.5040691 | AG14: 214.7416708 | AH14: 220.1102126 | AI14: 225.6129679 | AJ14: 231.2532921 | AK14: 237.0346244 | AL14: 242.96049 | AM14: 249.0345022 | AN14: 255.2603648 | AO14: 261.6418739 | AP14: 268.1829208 | AQ14: 274.8874938 | AR14: 281.7596811 | AS14: 288.8036731 | AT14: 296.023765 | AU14: 303.4243591 | AV14: 311.0099681 | AW14: 318.7852173 | AX14: 326.7548477 | AY14: 334.9237189 | AZ14: 343.2968119 | BA14: 351.8792322 | BB14: 360.676213 | BC14: 369.6931183 | BD14: 378.9354463 | BE14: 388.4088324 | BF14: 398.1190532 | BG14: 408.0720296 | BH14: 418.2738303 | BI14: 428.7306761 | BJ14: 439.448943 | BK14: 450.4351665 | BL14: 461.6960457 | BM14: 473.2384468 | BN14: 485.069408 | BO14: 497.1961432 | BP14: 509.6260468 | BQ14: 522.366698 | BR14: 535.4258654 | BS14: 548.811512 | BT14: 562.5317998 | BU14: 576.5950948 | BV14: 591.0099722 | BW14: =BW11+BW12-BW13 -> 605.7852215 | BX14: 620.9298521 | BY14: 636.4530984 | BZ14: 652.3644258 | CA14: 668.6735365 | CB14: 685.3903749 | CC14: 702.5251342 | CD14: 720.0882626 | CE14: 738.0904692 | CF14: 756.5427309 | CG14: 775.4562992 | CH14: 794.8427066 | CI14: 814.7137743 | CJ14: 835.0816187 | CK14: 855.9586591 | CL14: 877.3576256 | CM14: 899.2915663 | CN14: 921.7738554 | CO14: 944.8182018 | CP14: 968.4386568 | CQ14: 992.6496233 | CR14: 1017.465864 | CS14: 1042.90251 | CT14: 1068.975073 | CU14: 1095.69945 | CV14: 1123.091936 | CW14: 1151.169235 | CX14: 1179.948466 | CY14: 1209.447177 | CZ14: 1239.683357 | DA14: 1270.675441 | DB14: 1302.442327 | DC14: 1335.003385 | DD14: 1368.378469 | DE14: 1402.587931 | DF14: 1437.652629 | DG14: 1473.593945 | DH14: 1510.433794 | DI14: 1548.194639 | DJ14: 1586.899505 | DK14: 1626.571992 | DL14: 1667.236292 | DM14: 1708.917199 | DN14: 1751.640129 | DO14: 1795.431132 | DP14: 1840.316911 | DQ14: 1886.324834 | DR14: 1933.482954 | DS14: 1981.820028 | DT14: 2031.365529 | DU14: 2082.149667 | DV14: 2134.203409 | DW14: 2187.558494 | DX14: 2242.247456 | DY14: 2298.303643 | DZ14: 2355.761234 | EA14: 2414.655265 | EB14: 2475.021646 | EC14: 2536.897188 | ED14: 2600.319617 | EE14: 2665.327608 | EF14: 2731.960798 | EG14: 2800.259818 | EH14: 2870.266313 | EI14: =EI11+EI12-EI13 -> 2942.022971 | EJ14: 3015.573545 | EK14: 3090.962884 | EL14: 3168.236956 | EM14: 3247.44288 | EN14: 3328.628952 | EO14: 3411.844676 | EP14: 3497.140793 | EQ14: 3584.569312 | ER14: 3674.183545 | ES14: 3766.038134 | ET14: 3860.189087 | EU14: 3956.693814 | EV14: 4055.61116 | EW14: 4157.001439 | EX14: 4260.926475 | EY14: 4367.449637 | EZ14: 4476.635878 | FA14: 4588.551774 | FB14: 4703.265569 | FC14: 4820.847208 | FD14: 4941.368388 | FE14: 5064.902598 | FF14: 5191.525163 | FG14: 5321.313292 | FH14: 5454.346124 | FI14: 5590.704777 | FJ14: 5730.472397 | FK14: 5873.734207 | FL14: 6020.577562 | FM14: 6171.092001 | FN14: 6325.369301 | FO14: 6483.503533 | FP14: 6645.591122 | FQ14: 6811.7309 | FR14: 6982.024172 | FS14: 7156.574777 | FT14: 7335.489146 | FU14: 7518.876375 | FV14: 7706.848284 | FW14: 7899.519491 | FX14: 8097.007478 | FY14: 8299.432665 | FZ14: 8506.918482 | GA14: 8719.591444 | GB14: 8937.58123 | GC14: 9161.020761 | GD14: 9390.04628 | GE14: 9624.797437 | GF14: 9865.417373 | GG14: 10112.05281 | GH14: 10364.85413 | GI14: 10623.97548 | GJ14: 10889.57487 | GK14: 11161.81424 | GL14: 11440.8596 | GM14: 11726.88109 | GN14: 12020.05311 | GO14: 12320.55444 | GP14: 12628.5683 | GQ14: 12944.28251 | GR14: 13267.88957 | GS14: 13599.58681 | GT14: 13939.57648 | GU14: =GU11+GU12-GU13 -> 14288.06589 | GV14: 14645.26754 | GW14: 15011.39923 | GX14: 15386.68421 | GY14: 15771.35131 | GZ14: 16165.6351 | HA14: 16569.77598 | HB14: 16984.02037 | HC14: 17408.62088 | HD14: 17843.83641 | HE14: 18289.93232 | HF14: 18747.18062 | HG14: 19215.86014 | HH14: 19696.25664 | HI14: 20188.66306 | HJ14: 20693.37964 | HK14: 21210.71413 | HL14: 21740.98198 | HM14: 22284.50653 | HN14: 22841.61919 | HO14: 23412.65967 | HP14: 23997.97616 | HQ14: 24597.92557 | HR14: 25212.87371 | HS14: 25843.19555 | HT14: 26489.27544 | HU14: 27151.50732 | HV14: 27830.29501 | HW14: 28526.05238 | HX14: 29239.20369 | HY14: 29970.18378 | HZ14: 30719.43838 | IA14: 31487.42434 | IB14: 32274.60995 | IC14: 33081.4752 | ID14: 33908.51208 | IE14: 34756.22488 | IF14: 35625.1305 | IG14: 36515.75876 | IH14: 37428.65273 | II14: 38364.36905 | IJ14: 39323.47828 | IK14: 40306.56523 | IL14: 41314.22936 | IM14: 42347.0851 | IN14: 43405.76223 | IO14: 44490.90628 | IP14: 45603.17894 | IQ14: 46743.25841 | IR14: 47911.83987 | IS14: 49109.63587 | IT14: 50337.37677 | IU14: 51595.81118 | IV14: 52885.70646 | IW14: 54207.84913 | IX14: 55563.04535 | IY14: 56952.12149 | IZ14: 58375.92452 | JA14: 59835.32264 | JB14: 61331.2057 | JC14: 62864.48585 | JD14: 64436.09799 | JE14: 66047.00044 | JF14: 67698.17545 | JG14: =JG11+JG12-JG13 -> 69390.62984 | JH14: 71125.39559 | JI14: 72903.53048 | JJ14: 74726.11874 | JK14: 76594.27171 | JL14: 78509.1285 | JM14: 80471.85671 | JN14: 82483.65313 | JO14: 84545.74446 | JP14: 86659.38807 | JQ14: 88825.87277 | JR14: 91046.51959 | JS14: 93322.68258 | JT14: 95655.74964 | JU14: 98047.14338 | JV14: 100498.322 | JW14: 103010.78 | JX14: 105586.0495 | JY14: 108225.7008 | JZ14: 110931.3433 | KA14: 113704.6269 | KB14: 116547.2425 | KC14: 119460.9236 | KD14: 122447.4467 | KE14: 125508.6328 | KF14: 128646.3487 | KG14: 131862.5074 | KH14: 135159.0701 | KI14: 138538.0468 | KJ14: 142001.498 | KK14: 145551.5354 | KL14: 149190.3238 | KM14: 152920.0819 | KN14: 156743.084 | KO14: 160661.6611 | KP14: 164678.2026 | KQ14: 168795.1577 | KR14: 173015.0366 | KS14: 177340.4125 | KT14: 181773.9228 | KU14: 186318.2709 | KV14: 190976.2277 | KW14: 195750.6334 | KX14: =KX11+KX12-KX13 -> 200644.3992 | KY14: 205660.5092 | KZ14: 210802.0219 | LA14: 216072.0725 | LB14: 221473.8743 | LC14: 227010.7211 | LD14: 232685.9892 | LE14: 238503.1389 | LF14: 244465.7174 | LG14: 250577.3603 | LH14: 256841.7943 | LI14: 263262.8392 | LJ14: 269844.4101 | LK14: 276590.5204 | LL14: 283505.2834 | LM14: 290592.9155 | LN14: 297857.7384 | LO14: 305304.1818 | LP14: 312936.7864 | LQ14: 320760.206 | LR14: 328779.2112 | LS14: 336998.6915 | LT14: 345423.6588 | LU14: 354059.2502 | LV14: 362910.7315 | LW14: 371983.4998 | LX14: 381283.0873 | LY14: 390815.1644 | LZ14: 400585.5436 | MA14: 410600.1821 | MB14: 420865.1867 | MC14: 431386.8164 | MD14: 442171.4868 | ME14: 453225.7739 | MF14: 464556.4183 | MG14: 476170.3287 | MH14: 488074.587 | MI14: 500276.4516 | MJ14: 512783.3629 | MK14: 525602.947 | ML14: 538743.0207 | MM14: 552211.5962 | MN14: 566016.8861 | MO14: 580167.3083 | MP14: 594671.491 | MQ14: 609538.2782 | MR14: 624776.7352 | MS14: 640396.1536 | MT14: 656406.0574 | MU14: 672816.2088 | MV14: 689636.6141 | MW14: 706877.5294 | MX14: 724549.4677 | MY14: 742663.2043 | MZ14: 761229.7845 | NA14: 780260.5291 | NB14: 799767.0423 | NC14: 819761.2183 | ND14: 840255.2488 | NE14: 861261.63 | NF14: 882793.1708 | NG14: 904863 | NH14: 927484.575 | NI14: 950671.6894 | NJ14: =NJ11+NJ12-NJ13 -> 974438.4817 | NK14: 998799.4437 | NL14: 1023769.43 | NM14: 1049363.666 | NN14: 1075597.757 | NO14: 1102487.701 | NP14: 1130049.894 | NQ14: 1158301.141 | NR14: 1187258.67 | NS14: 1216940.136 | NT14: 1247363.64 | NU14: 1278547.731 | NV14: 1310511.424 | NW14: 1343274.209 | NX14: 1376856.065 | NY14: 1411277.466 | NZ14: 1446559.403 | OA14: 1482723.388 | OB14: 1519791.473 | OC14: 1557786.26 | OD14: 1596730.916 | OE14: 1636649.189 | OF14: 1677565.419 | OG14: 1719504.554 | OH14: 1762492.168 | OI14: 1806554.472 | OJ14: 1851718.334 | OK14: 1898011.292 | OL14: 1945461.575 | OM14: 1994098.114 | ON14: 2043950.567 | OO14: 2095049.331 | OP14: 2147425.564 | OQ14: 2201111.204 | OR14: 2256138.984 | OS14: 2312542.458 | OT14: 2370356.02 | OU14: 2429614.92 | OV14: 2490355.293 | OW14: 2552614.175 | OX14: 2616429.53 | OY14: 2681840.268 | OZ14: 2748886.275 | PA14: 2817608.432 | PB14: 2888048.642 | PC14: 2960249.859 | PD14: 3034256.105 | PE14: 3110112.508 | PF14: 3187865.32 | PG14: 3267561.953 | PH14: 3349251.002 | PI14: 3432982.277 | PJ14: 3518806.834 | PK14: 3606777.005 | PL14: 3696946.43 | PM14: 3789370.091 | PN14: 3884104.343 | PO14: 3981206.952 | PP14: 4080737.125 | PQ14: 4182755.554 | PR14: 4287324.442 | PS14: 4394507.554 | PT14: 4504370.242 | PU14: 4616979.498 | PV14: =PV11+PV12-PV13 -> 4732403.986 | PW14: 4850714.086 | PX14: 4971981.938 | PY14: 5096281.486 | PZ14: 5223688.523 | QA14: 5354280.736 | QB14: 5488137.755 | QC14: 5625341.199 | QD14: 5765974.729 | QE14: 5910124.097 | QF14: 6057877.199 | QG14: 6209324.129 | QH14: 6364557.232 | QI14: 6523671.163 | QJ14: 6686762.942 | QK14: 6853932.016 | QL14: 7025280.316 | QM14: 7200912.324 | QN14: 7380935.132 | QO14: 7565458.511 | QP14: 7754594.973 | QQ14: 7948459.848 | QR14: 8147171.344 | QS14: 8350850.627 | QT14: 8559621.893 | QU14: 8773612.44 | QV14: 8992952.752 | QW14: 9217776.57 | QX14: 9448220.985 | QY14: 9684426.509 | QZ14: 9926537.172 | RA14: 10174700.6 | RB14: 10429068.12 | RC14: 10689794.82 | RD14: 10957039.69 | RE14: 11230965.68 | RF14: 11511739.82 | RG14: 11799533.32 | RH14: 12094521.65 | RI14: 12396884.69 | RJ14: 12706806.81 | RK14: 13024476.98 | RL14: 13350088.91 | RM14: 13683841.13 | RN14: 14025937.16 | RO14: 14376585.59 | RP14: 14736000.23 | RQ14: 15104400.23 | RR14: 15482010.24 | RS14: 15869060.49 | RT14: 16265787.01 | RU14: 16672431.68 | RV14: 17089242.47 | RW14: 17516473.53 | RX14: 17954385.37 | RY14: 18403245.01 | RZ14: 18863326.13 | SA14: 19334909.29 | SB14: 19818282.02 | SC14: 20313739.07 | SD14: 20821582.54 | SE14: 21342122.11 | SF14: 21875675.16 | SG14: 22422567.04 | SH14: =SH11+SH12-SH13 -> 22983131.22 | SI14: 23557709.5 | SJ14: 24146652.23 | SK14: 24750318.54 | SL14: 25369076.5 | SM14: 26003303.42 | SN14: 26653386 | SO14: 27319720.65 | SP14: 28002713.67 | SQ14: 28702781.51 | SR14: 29420351.05 | SS14: 30155859.82 | ST14: 30909756.32 | SU14: 31682500.23 | SV14: 32474562.73 | SW14: 33286426.8 | SX14: 34118587.47 | SY14: 34971552.16 | SZ14: 35845840.96 | TA14: 36741986.98 | TB14: 37660536.66 | TC14: 22038712.5
D15: Change in Investment | K15: =K14-K11 -> 7.11311764 | L15: =L14-L11 -> 6.77442838 | M15: 6.404367355 | N15: 6.014595669 | O15: 5.326551778 | P15: 4.682047527 | Q15: 4.08945325 | R15: 4.212136848 | S15: 4.338500953 | T15: 3.723879985 | U15: 4.341950736 | V15: 4.465428925 | W15: 4.592418637 | X15: 4.723019736 | Y15: 4.857334922 | Z15: 4.995469819 | AA15: 4.516367554 | AB15: 4.629276743 | AC15: 4.745008661 | AD15: 4.863633878 | AE15: 4.985224725 | AF15: 5.109855343 | AG15: 5.237601727 | AH15: 5.36854177 | AI15: 5.502755314 | AJ15: 5.640324197 | AK15: 5.781332302 | AL15: 5.925865609 | AM15: 6.07401225 | AN15: 6.225862556 | AO15: 6.38150912 | AP15: 6.541046848 | AQ15: 6.704573019 | AR15: 6.872187344 | AS15: 7.043992028 | AT15: 7.220091829 | AU15: 7.400594124 | AV15: 7.585608978 | AW15: 7.775249202 | AX15: 7.969630432 | AY15: 8.168871193 | AZ15: 8.373092973 | BA15: 8.582420297 | BB15: 8.796980804 | BC15: 9.016905325 | BD15: 9.242327958 | BE15: 9.473386157 | BF15: 9.71022081 | BG15: 9.952976331 | BH15: 10.20180074 | BI15: 10.45684576 | BJ15: 10.7182669 | BK15: 10.98622357 | BL15: 11.26087916 | BM15: 11.54240114 | BN15: 11.83096117 | BO15: 12.1267352 | BP15: 12.42990358 | BQ15: 12.74065117 | BR15: 13.05916745 | BS15: 13.38564664 | BT15: 13.7202878 | BU15: 14.063295 | BV15: 14.41487737 | BW15: 14.77524931 | BX15: =BX14-BX11 -> 15.14463054 | BY15: 15.5232463 | BZ15: 15.91132746 | CA15: 16.30911065 | CB15: 16.71683841 | CC15: 17.13475937 | CD15: 17.56312836 | CE15: 18.00220657 | CF15: 18.45226173 | CG15: 18.91356827 | CH15: 19.38640748 | CI15: 19.87106767 | CJ15: 20.36784436 | CK15: 20.87704047 | CL15: 21.39896648 | CM15: 21.93394064 | CN15: 22.48228916 | CO15: 23.04434639 | CP15: 23.62045504 | CQ15: 24.21096642 | CR15: 24.81624058 | CS15: 25.4366466 | CT15: 26.07256276 | CU15: 26.72437683 | CV15: 27.39248625 | CW15: 28.07729841 | CX15: 28.77923087 | CY15: 29.49871164 | CZ15: 30.23617943 | DA15: 30.99208392 | DB15: 31.76688601 | DC15: 32.56105816 | DD15: 33.37508462 | DE15: 34.20946173 | DF15: 35.06469828 | DG15: 35.94131573 | DH15: 36.83984863 | DI15: 37.76084484 | DJ15: 38.70486596 | DK15: 39.67248761 | DL15: 40.6642998 | DM15: 41.6809073 | DN15: 42.72292998 | DO15: 43.79100323 | DP15: 44.88577831 | DQ15: 46.00792277 | DR15: 47.15812084 | DS15: 48.33707386 | DT15: 49.54550071 | DU15: 50.78413822 | DV15: 52.05374168 | DW15: 53.35508522 | DX15: 54.68896235 | DY15: 56.05618641 | DZ15: 57.45759107 | EA15: 58.89403085 | EB15: 60.36638162 | EC15: 61.87554116 | ED15: 63.42242969 | EE15: 65.00799043 | EF15: 66.63319019 | EG15: 68.29901995 | EH15: 70.00649544 | EI15: 71.75665783 | EJ15: =EJ14-EJ11 -> 73.55057428 | EK15: 75.38933863 | EL15: 77.2740721 | EM15: 79.2059239 | EN15: 81.186072 | EO15: 83.2157238 | EP15: 85.29611689 | EQ15: 87.42851982 | ER15: 89.61423281 | ES15: 91.85458863 | ET15: 94.15095335 | EU15: 96.50472718 | EV15: 98.91734536 | EW15: 101.390279 | EX15: 103.925036 | EY15: 106.5231619 | EZ15: 109.1862409 | FA15: 111.9158969 | FB15: 114.7137944 | FC15: 117.5816392 | FD15: 120.5211802 | FE15: 123.5342097 | FF15: 126.6225649 | FG15: 129.7881291 | FH15: 133.0328323 | FI15: 136.3586531 | FJ15: 139.7676194 | FK15: 143.2618099 | FL15: 146.8433552 | FM15: 150.514439 | FN15: 154.2773 | FO15: 158.1342325 | FP15: 162.0875883 | FQ15: 166.139778 | FR15: 170.2932725 | FS15: 174.5506043 | FT15: 178.9143694 | FU15: 183.3872287 | FV15: 187.9719094 | FW15: 192.6712071 | FX15: 197.4879873 | FY15: 202.425187 | FZ15: 207.4858166 | GA15: 212.6729621 | GB15: 217.9897861 | GC15: 223.4395308 | GD15: 229.025519 | GE15: 234.751157 | GF15: 240.6199359 | GG15: 246.6354343 | GH15: 252.8013202 | GI15: 259.1213532 | GJ15: 265.599387 | GK15: 272.2393717 | GL15: 279.045356 | GM15: 286.0214899 | GN15: 293.1720271 | GO15: 300.5013278 | GP15: 308.013861 | GQ15: 315.7142075 | GR15: 323.6070627 | GS15: 331.6972393 | GT15: 339.9896703 | GU15: 348.489412 | GV15: =GV14-GV11 -> 357.2016473 | GW15: 366.1316885 | GX15: 375.2849807 | GY15: 384.6671052 | GZ15: 394.2837829 | HA15: 404.1408774 | HB15: 414.2443994 | HC15: 424.6005094 | HD15: 435.2155221 | HE15: 446.0959101 | HF15: 457.2483079 | HG15: 468.6795156 | HH15: 480.3965035 | HI15: 492.4064161 | HJ15: 504.7165765 | HK15: 517.3344909 | HL15: 530.2678532 | HM15: 543.5245495 | HN15: 557.1126632 | HO15: 571.0404798 | HP15: 585.3164918 | HQ15: 599.9494041 | HR15: 614.9481392 | HS15: 630.3218427 | HT15: 646.0798888 | HU15: 662.231886 | HV15: 678.7876831 | HW15: 695.7573752 | HX15: 713.1513096 | HY15: 730.9800923 | HZ15: 749.2545946 | IA15: 767.9859595 | IB15: 787.1856085 | IC15: 806.8652487 | ID15: 827.0368799 | IE15: 847.7128019 | IF15: 868.905622 | IG15: 890.6282625 | IH15: 912.8939691 | II15: 935.7163183 | IJ15: 959.1092262 | IK15: 983.0869569 | IL15: 1007.664131 | IM15: 1032.855734 | IN15: 1058.677127 | IO15: 1085.144056 | IP15: 1112.272657 | IQ15: 1140.079473 | IR15: 1168.58146 | IS15: 1197.795997 | IT15: 1227.740897 | IU15: 1258.434419 | IV15: 1289.89528 | IW15: 1322.142662 | IX15: 1355.196228 | IY15: 1389.076134 | IZ15: 1423.803037 | JA15: 1459.398113 | JB15: 1495.883066 | JC15: 1533.280143 | JD15: 1571.612146 | JE15: 1610.90245 | JF15: 1651.175011 | JG15: 1692.454386 | JH15: =JH14-JH11 -> 1734.765746 | JI15: 1778.13489 | JJ15: 1822.588262 | JK15: 1868.152968 | JL15: 1914.856793 | JM15: 1962.728212 | JN15: 2011.796418 | JO15: 2062.091328 | JP15: 2113.643611 | JQ15: 2166.484702 | JR15: 2220.646819 | JS15: 2276.16299 | JT15: 2333.067064 | JU15: 2391.393741 | JV15: 2451.178585 | JW15: 2512.458049 | JX15: 2575.2695 | JY15: 2639.651238 | JZ15: 2705.642519 | KA15: 2773.283582 | KB15: 2842.615671 | KC15: 2913.681063 | KD15: 2986.52309 | KE15: 3061.186167 | KF15: 3137.715821 | KG15: 3216.158717 | KH15: 3296.562685 | KI15: 3378.976752 | KJ15: 3463.451171 | KK15: 3550.03745 | KL15: 3638.788386 | KM15: 3729.758096 | KN15: 3823.002048 | KO15: 3918.577099 | KP15: 4016.541527 | KQ15: 4116.955065 | KR15: 4219.878942 | KS15: 4325.375915 | KT15: 4433.510313 | KU15: 4544.348071 | KV15: 4657.956773 | KW15: 4774.405692 | KX15: =KX14-KX11 -> 4893.765834 | KY15: =KY14-KY11 -> 5016.10998 | KZ15: =KZ14-KZ11 -> 5141.51273 | LA15: =LA14-LA11 -> 5270.050548 | LB15: =LB14-LB11 -> 5401.801812 | LC15: =LC14-LC11 -> 5536.846857 | LD15: =LD14-LD11 -> 5675.268028 | LE15: =LE14-LE11 -> 5817.149729 | LF15: =LF14-LF11 -> 5962.578472 | LG15: =LG14-LG11 -> 6111.642934 | LH15: =LH14-LH11 -> 6264.434007 | LI15: =LI14-LI11 -> 6421.044858 | LJ15: =LJ14-LJ11 -> 6581.570979 | LK15: =LK14-LK11 -> 6746.110253 | LL15: =LL14-LL11 -> 6914.76301 | LM15: =LM14-LM11 -> 7087.632085 | LN15: =LN14-LN11 -> 7264.822887 | LO15: =LO14-LO11 -> 7446.443459 | LP15: =LP14-LP11 -> 7632.604546 | LQ15: =LQ14-LQ11 -> 7823.419659 | LR15: =LR14-LR11 -> 8019.005151 | LS15: =LS14-LS11 -> 8219.48028 | LT15: =LT14-LT11 -> 8424.967287 | LU15: =LU14-LU11 -> 8635.591469 | LV15: =LV14-LV11 -> 8851.481256 | LW15: =LW14-LW11 -> 9072.768287 | LX15: =LX14-LX11 -> 9299.587494 | LY15: =LY14-LY11 -> 9532.077182 | LZ15: =LZ14-LZ11 -> 9770.379111 | MA15: =MA14-MA11 -> 10014.63859 | MB15: =MB14-MB11 -> 10265.00455 | MC15: =MC14-MC11 -> 10521.62967 | MD15: =MD14-MD11 -> 10784.67041 | ME15: =ME14-ME11 -> 11054.28717 | MF15: =MF14-MF11 -> 11330.64435 | MG15: =MG14-MG11 -> 11613.91046 | MH15: =MH14-MH11 -> 11904.25822 | MI15: =MI14-MI11 -> 12201.86467 | MJ15: =MJ14-MJ11 -> 12506.91129 | MK15: =MK14-MK11 -> 12819.58407 | ML15: =ML14-ML11 -> 13140.07368 | MM15: =MM14-MM11 -> 13468.57552 | MN15: =MN14-MN11 -> 13805.2899 | MO15: =MO14-MO11 -> 14150.42215 | MP15: =MP14-MP11 -> 14504.18271 | MQ15: =MQ14-MQ11 -> 14866.78727 | MR15: =MR14-MR11 -> 15238.45696 | MS15: =MS14-MS11 -> 15619.41838 | MT15: =MT14-MT11 -> 16009.90384 | MU15: =MU14-MU11 -> 16410.15144 | MV15: =MV14-MV11 -> 16820.40522 | MW15: =MW14-MW11 -> 17240.91535 | MX15: =MX14-MX11 -> 17671.93824 | MY15: =MY14-MY11 -> 18113.73669 | MZ15: =MZ14-MZ11 -> 18566.58011 | NA15: =NA14-NA11 -> 19030.74461 | NB15: =NB14-NB11 -> 19506.51323 | NC15: =NC14-NC11 -> 19994.17606 | ND15: =ND14-ND11 -> 20494.03046 | NE15: =NE14-NE11 -> 21006.38122 | NF15: =NF14-NF11 -> 21531.54075 | NG15: =NG14-NG11 -> 22069.82927 | NH15: =NH14-NH11 -> 22621.575 | NI15: =NI14-NI11 -> 23187.11438 | NJ15: =NJ14-NJ11 -> 23766.79224 | NK15: =NK14-NK11 -> 24360.96204 | NL15: =NL14-NL11 -> 24969.98609 | NM15: =NM14-NM11 -> 25594.23574 | NN15: =NN14-NN11 -> 26234.09164 | NO15: =NO14-NO11 -> 26889.94393 | NP15: =NP14-NP11 -> 27562.19253 | NQ15: =NQ14-NQ11 -> 28251.24734 | NR15: =NR14-NR11 -> 28957.52852 | NS15: =NS14-NS11 -> 29681.46674 | NT15: =NT14-NT11 -> 30423.50341 | NU15: =NU14-NU11 -> 31184.09099 | NV15: =NV14-NV11 -> 31963.69327 | NW15: =NW14-NW11 -> 32762.7856 | NX15: =NX14-NX11 -> 33581.85524 | NY15: =NY14-NY11 -> 34421.40162 | NZ15: =NZ14-NZ11 -> 35281.93666 | OA15: =OA14-OA11 -> 36163.98508 | OB15: =OB14-OB11 -> 37068.0847 | OC15: =OC14-OC11 -> 37994.78682 | OD15: =OD14-OD11 -> 38944.65649 | OE15: =OE14-OE11 -> 39918.2729 | OF15: =OF14-OF11 -> 40916.22973 | OG15: =OG14-OG11 -> 41939.13547 | OH15: =OH14-OH11 -> 42987.61385 | OI15: =OI14-OI11 -> 44062.3042 | OJ15: =OJ14-OJ11 -> 45163.86181 | OK15: =OK14-OK11 -> 46292.95835 | OL15: =OL14-OL11 -> 47450.28231 | OM15: =OM14-OM11 -> 48636.53937 | ON15: =ON14-ON11 -> 49852.45285 | OO15: =OO14-OO11 -> 51098.76417 | OP15: =OP14-OP11 -> 52376.23328 | OQ15: =OQ14-OQ11 -> 53685.63911 | OR15: =OR14-OR11 -> 55027.78009 | OS15: =OS14-OS11 -> 56403.47459 | OT15: =OT14-OT11 -> 57813.56145 | OU15: =OU14-OU11 -> 59258.90049 | OV15: =OV14-OV11 -> 60740.373 | OW15: =OW14-OW11 -> 62258.88233 | OX15: =OX14-OX11 -> 63815.35439 | OY15: =OY14-OY11 -> 65410.73825 | OZ15: =OZ14-OZ11 -> 67046.0067 | PA15: =PA14-PA11 -> 68722.15687 | PB15: =PB14-PB11 -> 70440.21079 | PC15: =PC14-PC11 -> 72201.21606 | PD15: =PD14-PD11 -> 74006.24646 | PE15: =PE14-PE11 -> 75856.40262 | PF15: =PF14-PF11 -> 77752.81269 | PG15: =PG14-PG11 -> 79696.63301 | PH15: =PH14-PH11 -> 81689.04883 | PI15: =PI14-PI11 -> 83731.27505 | PJ15: =PJ14-PJ11 -> 85824.55693 | PK15: =PK14-PK11 -> 87970.17085 | PL15: =PL14-PL11 -> 90169.42512 | PM15: =PM14-PM11 -> 92423.66075 | PN15: =PN14-PN11 -> 94734.25227 | PO15: =PO14-PO11 -> 97102.60858 | PP15: =PP14-PP11 -> 99530.17379 | PQ15: =PQ14-PQ11 -> 102018.4281 | PR15: =PR14-PR11 -> 104568.8888 | PS15: =PS14-PS11 -> 107183.1111 | PT15: =PT14-PT11 -> 109862.6888 | PU15: =PU14-PU11 -> 112609.2561 | PV15: =PV14-PV11 -> 115424.4875 | PW15: =PW14-PW11 -> 118310.0996 | PX15: =PX14-PX11 -> 121267.8521 | PY15: =PY14-PY11 -> 124299.5484 | PZ15: =PZ14-PZ11 -> 127407.0372 | QA15: =QA14-QA11 -> 130592.2131 | QB15: =QB14-QB11 -> 133857.0184 | QC15: =QC14-QC11 -> 137203.4439 | QD15: =QD14-QD11 -> 140633.53 | QE15: =QE14-QE11 -> 144149.3682 | QF15: =QF14-QF11 -> 147753.1024 | QG15: =QG14-QG11 -> 151446.93 | QH15: =QH14-QH11 -> 155233.1032 | QI15: =QI14-QI11 -> 159113.9308 | QJ15: =QJ14-QJ11 -> 163091.7791 | QK15: =QK14-QK11 -> 167169.0736 | QL15: =QL14-QL11 -> 171348.3004 | QM15: =QM14-QM11 -> 175632.0079 | QN15: =QN14-QN11 -> 180022.8081 | QO15: =QO14-QO11 -> 184523.3783 | QP15: =QP14-QP11 -> 189136.4628 | QQ15: =QQ14-QQ11 -> 193864.8743 | QR15: =QR14-QR11 -> 198711.4962 | QS15: =QS14-QS11 -> 203679.2836 | QT15: =QT14-QT11 -> 208771.2657 | QU15: =QU14-QU11 -> 213990.5473 | QV15: =QV14-QV11 -> 219340.311 | QW15: =QW14-QW11 -> 224823.8188 | QX15: =QX14-QX11 -> 230444.4143 | QY15: =QY14-QY11 -> 236205.5246 | QZ15: =QZ14-QZ11 -> 242110.6627 | RA15: =RA14-RA11 -> 248163.4293 | RB15: =RB14-RB11 -> 254367.515 | RC15: =RC14-RC11 -> 260726.7029 | RD15: =RD14-RD11 -> 267244.8705 | RE15: =RE14-RE11 -> 273925.9922 | RF15: =RF14-RF11 -> 280774.142 | RG15: =RG14-RG11 -> 287793.4956 | RH15: =RH14-RH11 -> 294988.333 | RI15: =RI14-RI11 -> 302363.0413 | RJ15: =RJ14-RJ11 -> 309922.1173 | RK15: =RK14-RK11 -> 317670.1703 | RL15: =RL14-RL11 -> 325611.9245 | RM15: =RM14-RM11 -> 333752.2226 | RN15: =RN14-RN11 -> 342096.0282 | RO15: =RO14-RO11 -> 350648.4289 | RP15: =RP14-RP11 -> 359414.6396 | RQ15: =RQ14-RQ11 -> 368400.0056 | RR15: =RR14-RR11 -> 377610.0058 | RS15: =RS14-RS11 -> 387050.2559 | RT15: =RT14-RT11 -> 396726.5123 | RU15: =RU14-RU11 -> 406644.6751 | RV15: =RV14-RV11 -> 416810.792 | RW15: =RW14-RW11 -> 427231.0618 | RX15: =RX14-RX11 -> 437911.8383 | RY15: =RY14-RY11 -> 448859.6343 | RZ15: =RZ14-RZ11 -> 460081.1252 | SA15: =SA14-SA11 -> 471583.1533 | SB15: =SB14-SB11 -> 483372.7321 | SC15: =SC14-SC11 -> 495457.0504 | SD15: =SD14-SD11 -> 507843.4767 | SE15: =SE14-SE11 -> 520539.5636 | SF15: =SF14-SF11 -> 533553.0527 | SG15: =SG14-SG11 -> 546891.879 | SH15: =SH14-SH11 -> 560564.176 | SI15: =SI14-SI11 -> 574578.2804 | SJ15: =SJ14-SJ11 -> 588942.7374 | SK15: =SK14-SK11 -> 603666.3058 | SL15: =SL14-SL11 -> 618757.9635 | SM15: =SM14-SM11 -> 634226.9126 | SN15: =SN14-SN11 -> 650082.5854 | SO15: =SO14-SO11 -> 666334.65 | SP15: =SP14-SP11 -> 682993.0163 | SQ15: =SQ14-SQ11 -> 700067.8417 | SR15: =SR14-SR11 -> 717569.5377 | SS15: =SS14-SS11 -> 735508.7762 | ST15: =ST14-ST11 -> 753896.4956 | SU15: =SU14-SU11 -> 772743.908 | SV15: =SV14-SV11 -> 792062.5057 | SW15: =SW14-SW11 -> 811864.0683 | SX15: =SX14-SX11 -> 832160.67 | SY15: =SY14-SY11 -> 852964.6868 | SZ15: =SZ14-SZ11 -> 874288.8039 | TA15: =TA14-TA11 -> 896146.024 | TB15: =TB14-TB11 -> 918549.6746 | TC15: =TC14-TC11 -> -15621824.16
D17: Cash Flow Growth | L17: =L13/K13-1 -> 0.2146118226 | M17: =M13/L13-1 -> 0.1749214373 | N17: 0.1454990429 | O17: 0.1527473134 | P17: 0.1205192916 | Q17: 0.09664008513 | R17: 0.03 | S17: 0.03 | T17: 0.0815 | U17: -0.008565461501 | V17: -0.1307255929 | W17: -0.1371008079 | X17: -0.1450033917 | Y17: -0.1549628538 | Z17: -0.1677798696 | AA17: -0.09590734858 | AB17: 0.025 | AC17: 0.025 | AD17: 0.025 | AE17: 0.025 | AF17: 0.025 | AG17: 0.025 | AH17: 0.025 | AI17: 0.025 | AJ17: 0.025 | AK17: 0.025 | AL17: 0.025 | AM17: 0.025 | AN17: 0.025 | AO17: 0.025 | AP17: 0.025 | AQ17: 0.025 | AR17: 0.025 | AS17: 0.025 | AT17: 0.025 | AU17: 0.025 | AV17: 0.025 | AW17: 0.025 | AX17: 0.025 | AY17: 0.025 | AZ17: 0.025 | BA17: 0.025 | BB17: 0.025 | BC17: 0.025 | BD17: 0.025 | BE17: 0.025 | BF17: 0.025 | BG17: 0.025 | BH17: 0.025 | BI17: 0.025 | BJ17: 0.025 | BK17: 0.025 | BL17: 0.025 | BM17: 0.025 | BN17: 0.025 | BO17: 0.025 | BP17: 0.025 | BQ17: 0.025 | BR17: 0.025 | BS17: 0.025 | BT17: 0.025 | BU17: 0.025 | BV17: 0.025 | BW17: 0.025 | BX17: 0.025 | BY17: =BY13/BX13-1 -> 0.025 | BZ17: 0.025 | CA17: 0.025 | CB17: 0.025 | CC17: 0.025 | CD17: 0.025 | CE17: 0.025 | CF17: 0.025 | CG17: 0.025 | CH17: 0.025 | CI17: 0.025 | CJ17: 0.025 | CK17: 0.025 | CL17: 0.025 | CM17: 0.025 | CN17: 0.025 | CO17: 0.025 | CP17: 0.025 | CQ17: 0.025 | CR17: 0.025 | CS17: 0.025 | CT17: 0.025 | CU17: 0.025 | CV17: 0.025 | CW17: 0.025 | CX17: 0.025 | CY17: 0.025 | CZ17: 0.025 | DA17: 0.025 | DB17: 0.025 | DC17: 0.025 | DD17: 0.025 | DE17: 0.025 | DF17: 0.025 | DG17: 0.025 | DH17: 0.025 | DI17: 0.025 | DJ17: 0.025 | DK17: 0.025 | DL17: 0.025 | DM17: 0.025 | DN17: 0.025 | DO17: 0.025 | DP17: 0.025 | DQ17: 0.025 | DR17: 0.025 | DS17: 0.025 | DT17: 0.025 | DU17: 0.025 | DV17: 0.025 | DW17: 0.025 | DX17: 0.025 | DY17: 0.025 | DZ17: 0.025 | EA17: 0.025 | EB17: 0.025 | EC17: 0.025 | ED17: 0.025 | EE17: 0.025 | EF17: 0.025 | EG17: 0.025 | EH17: 0.025 | EI17: 0.025 | EJ17: 0.025 | EK17: =EK13/EJ13-1 -> 0.025 | EL17: 0.025 | EM17: 0.025 | EN17: 0.025 | EO17: 0.025 | EP17: 0.025 | EQ17: 0.025 | ER17: 0.025 | ES17: 0.025 | ET17: 0.025 | EU17: 0.025 | EV17: 0.025 | EW17: 0.025 | EX17: 0.025 | EY17: 0.025 | EZ17: 0.025 | FA17: 0.025 | FB17: 0.025 | FC17: 0.025 | FD17: 0.025 | FE17: 0.025 | FF17: 0.025 | FG17: 0.025 | FH17: 0.025 | FI17: 0.025 | FJ17: 0.025 | FK17: 0.025 | FL17: 0.025 | FM17: 0.025 | FN17: 0.025 | FO17: 0.025 | FP17: 0.025 | FQ17: 0.025 | FR17: 0.025 | FS17: 0.025 | FT17: 0.025 | FU17: 0.025 | FV17: 0.025 | FW17: 0.025 | FX17: 0.025 | FY17: 0.025 | FZ17: 0.025 | GA17: 0.025 | GB17: 0.025 | GC17: 0.025 | GD17: 0.025 | GE17: 0.025 | GF17: 0.025 | GG17: 0.025 | GH17: 0.025 | GI17: 0.025 | GJ17: 0.025 | GK17: 0.025 | GL17: 0.025 | GM17: 0.025 | GN17: 0.025 | GO17: 0.025 | GP17: 0.025 | GQ17: 0.025 | GR17: 0.025 | GS17: 0.025 | GT17: 0.025 | GU17: 0.025 | GV17: 0.025 | GW17: =GW13/GV13-1 -> 0.025 | GX17: 0.025 | GY17: 0.025 | GZ17: 0.025 | HA17: 0.025 | HB17: 0.025 | HC17: 0.025 | HD17: 0.025 | HE17: 0.025 | HF17: 0.025 | HG17: 0.025 | HH17: 0.025 | HI17: 0.025 | HJ17: 0.025 | HK17: 0.025 | HL17: 0.025 | HM17: 0.025 | HN17: 0.025 | HO17: 0.025 | HP17: 0.025 | HQ17: 0.025 | HR17: 0.025 | HS17: 0.025 | HT17: 0.025 | HU17: 0.025 | HV17: 0.025 | HW17: 0.025 | HX17: 0.025 | HY17: 0.025 | HZ17: 0.025 | IA17: 0.025 | IB17: 0.025 | IC17: 0.025 | ID17: 0.025 | IE17: 0.025 | IF17: 0.025 | IG17: 0.025 | IH17: 0.025 | II17: 0.025 | IJ17: 0.025 | IK17: 0.025 | IL17: 0.025 | IM17: 0.025 | IN17: 0.025 | IO17: 0.025 | IP17: 0.025 | IQ17: 0.025 | IR17: 0.025 | IS17: 0.025 | IT17: 0.025 | IU17: 0.025 | IV17: 0.025 | IW17: 0.025 | IX17: 0.025 | IY17: 0.025 | IZ17: 0.025 | JA17: 0.025 | JB17: 0.025 | JC17: 0.025 | JD17: 0.025 | JE17: 0.025 | JF17: 0.025 | JG17: 0.025 | JH17: 0.025 | JI17: =JI13/JH13-1 -> 0.025 | JJ17: 0.025 | JK17: 0.025 | JL17: 0.025 | JM17: 0.025 | JN17: 0.025 | JO17: 0.025 | JP17: 0.025 | JQ17: 0.025 | JR17: 0.025 | JS17: 0.025 | JT17: 0.025 | JU17: 0.025 | JV17: 0.025 | JW17: 0.025 | JX17: 0.025 | JY17: 0.025 | JZ17: 0.025 | KA17: 0.025 | KB17: 0.025 | KC17: 0.025 | KD17: 0.025 | KE17: 0.025 | KF17: 0.025 | KG17: 0.025 | KH17: 0.025 | KI17: 0.025 | KJ17: 0.025 | KK17: 0.025 | KL17: 0.025 | KM17: 0.025 | KN17: 0.025 | KO17: 0.025 | KP17: 0.025 | KQ17: 0.025 | KR17: 0.025 | KS17: 0.025 | KT17: 0.025 | KU17: 0.025 | KV17: 0.025 | KW17: 0.025 | KX17: 0.025 | KY17: 0.025 | KZ17: 0.025 | LA17: 0.025 | LB17: 0.025 | LC17: 0.025 | LD17: 0.025 | LE17: 0.025 | LF17: 0.025 | LG17: 0.025 | LH17: 0.025 | LI17: 0.025 | LJ17: 0.025 | LK17: 0.025 | LL17: 0.025 | LM17: 0.025 | LN17: 0.025 | LO17: 0.025 | LP17: 0.025 | LQ17: 0.025 | LR17: 0.025 | LS17: 0.025 | LT17: 0.025 | LU17: =LU13/LT13-1 -> 0.025 | LV17: 0.025 | LW17: 0.025 | LX17: 0.025 | LY17: 0.025 | LZ17: 0.025 | MA17: 0.025 | MB17: 0.025 | MC17: 0.025 | MD17: 0.025 | ME17: 0.025 | MF17: 0.025 | MG17: 0.025 | MH17: 0.025 | MI17: 0.025 | MJ17: 0.025 | MK17: 0.025 | ML17: 0.025 | MM17: 0.025 | MN17: 0.025 | MO17: 0.025 | MP17: 0.025 | MQ17: 0.025 | MR17: 0.025 | MS17: 0.025 | MT17: 0.025 | MU17: 0.025 | MV17: 0.025 | MW17: 0.025 | MX17: 0.025 | MY17: 0.025 | MZ17: 0.025 | NA17: 0.025 | NB17: 0.025 | NC17: 0.025 | ND17: 0.025 | NE17: 0.025 | NF17: 0.025 | NG17: 0.025 | NH17: 0.025 | NI17: 0.025 | NJ17: 0.025 | NK17: 0.025 | NL17: 0.025 | NM17: 0.025 | NN17: 0.025 | NO17: 0.025 | NP17: 0.025 | NQ17: 0.025 | NR17: 0.025 | NS17: 0.025 | NT17: 0.025 | NU17: 0.025 | NV17: 0.025 | NW17: 0.025 | NX17: 0.025 | NY17: 0.025 | NZ17: 0.025 | OA17: 0.025 | OB17: 0.025 | OC17: 0.025 | OD17: 0.025 | OE17: 0.025 | OF17: 0.025 | OG17: =OG13/OF13-1 -> 0.025 | OH17: 0.025 | OI17: 0.025 | OJ17: 0.025 | OK17: 0.025 | OL17: 0.025 | OM17: 0.025 | ON17: 0.025 | OO17: 0.025 | OP17: 0.025 | OQ17: 0.025 | OR17: 0.025 | OS17: 0.025 | OT17: 0.025 | OU17: 0.025 | OV17: 0.025 | OW17: 0.025 | OX17: 0.025 | OY17: 0.025 | OZ17: 0.025 | PA17: 0.025 | PB17: 0.025 | PC17: 0.025 | PD17: 0.025 | PE17: 0.025 | PF17: 0.025 | PG17: 0.025 | PH17: 0.025 | PI17: 0.025 | PJ17: 0.025 | PK17: 0.025 | PL17: 0.025 | PM17: 0.025 | PN17: 0.025 | PO17: 0.025 | PP17: 0.025 | PQ17: 0.025 | PR17: 0.025 | PS17: 0.025 | PT17: 0.025 | PU17: 0.025 | PV17: 0.025 | PW17: 0.025 | PX17: 0.025 | PY17: 0.025 | PZ17: 0.025 | QA17: 0.025 | QB17: 0.025 | QC17: 0.025 | QD17: 0.025 | QE17: 0.025 | QF17: 0.025 | QG17: 0.025 | QH17: 0.025 | QI17: 0.025 | QJ17: 0.025 | QK17: 0.025 | QL17: 0.025 | QM17: 0.025 | QN17: 0.025 | QO17: 0.025 | QP17: 0.025 | QQ17: 0.025 | QR17: 0.025 | QS17: =QS13/QR13-1 -> 0.025 | QT17: 0.025 | QU17: 0.025 | QV17: 0.025 | QW17: 0.025 | QX17: 0.025 | QY17: 0.025 | QZ17: 0.025 | RA17: 0.025 | RB17: 0.025 | RC17: 0.025 | RD17: 0.025 | RE17: 0.025 | RF17: 0.025 | RG17: 0.025 | RH17: 0.025 | RI17: 0.025 | RJ17: 0.025 | RK17: 0.025 | RL17: 0.025 | RM17: 0.025 | RN17: 0.025 | RO17: 0.025 | RP17: 0.025 | RQ17: 0.025 | RR17: 0.025 | RS17: 0.025 | RT17: 0.025 | RU17: 0.025 | RV17: 0.025 | RW17: 0.025 | RX17: 0.025 | RY17: 0.025 | RZ17: 0.025 | SA17: 0.025 | SB17: 0.025 | SC17: 0.025 | SD17: 0.025 | SE17: 0.025 | SF17: 0.025 | SG17: 0.025 | SH17: 0.025 | SI17: 0.025 | SJ17: 0.025 | SK17: 0.025 | SL17: 0.025 | SM17: 0.025 | SN17: 0.025 | SO17: 0.025 | SP17: 0.025 | SQ17: 0.025 | SR17: 0.025 | SS17: 0.025 | ST17: 0.025 | SU17: 0.025 | SV17: 0.025 | SW17: 0.025 | SX17: 0.025 | SY17: 0.025 | SZ17: 0.025 | TA17: 0.025 | TB17: 0.025 | TC17: 12.90503876
D18: Income Growth | F18: CoC | L18: =L12/K12-1 -> 0.0711311764 | M18: =M12/L12-1 -> 0.0632455532 | N18: 0.05623413252 | O18: 0.05 | P18: 0.04217163327 | Q18: 0.03556893304 | R18: 0.03 | S18: 0.03 | T18: 0.03 | U18: 0.025 | V18: -0.09590734858 | W18: -0.09590734858 | X18: -0.09590734858 | Y18: -0.09590734858 | Z18: -0.09590734858 | AA18: -0.09590734858 | AB18: 0.025 | AC18: 0.025 | AD18: 0.025 | AE18: 0.025 | AF18: 0.025 | AG18: 0.025 | AH18: 0.025 | AI18: 0.025 | AJ18: 0.025 | AK18: 0.025 | AL18: 0.025 | AM18: 0.025 | AN18: 0.025 | AO18: 0.025 | AP18: 0.025 | AQ18: 0.025 | AR18: 0.025 | AS18: 0.025 | AT18: 0.025 | AU18: 0.025 | AV18: 0.025 | AW18: 0.025 | AX18: 0.025 | AY18: 0.025 | AZ18: 0.025 | BA18: 0.025 | BB18: 0.025 | BC18: 0.025 | BD18: 0.025 | BE18: 0.025 | BF18: 0.025 | BG18: 0.025 | BH18: 0.025 | BI18: 0.025 | BJ18: 0.025 | BK18: 0.025 | BL18: 0.025 | BM18: 0.025 | BN18: 0.025 | BO18: 0.025 | BP18: 0.025 | BQ18: 0.025 | BR18: 0.025 | BS18: 0.025 | BT18: 0.025 | BU18: 0.025 | BV18: 0.025 | BW18: 0.025 | BX18: 0.025 | BY18: =BY12/BX12-1 -> 0.025 | BZ18: 0.025 | CA18: 0.025 | CB18: 0.025 | CC18: 0.025 | CD18: 0.025 | CE18: 0.025 | CF18: 0.025 | CG18: 0.025 | CH18: 0.025 | CI18: 0.025 | CJ18: 0.025 | CK18: 0.025 | CL18: 0.025 | CM18: 0.025 | CN18: 0.025 | CO18: 0.025 | CP18: 0.025 | CQ18: 0.025 | CR18: 0.025 | CS18: 0.025 | CT18: 0.025 | CU18: 0.025 | CV18: 0.025 | CW18: 0.025 | CX18: 0.025 | CY18: 0.025 | CZ18: 0.025 | DA18: 0.025 | DB18: 0.025 | DC18: 0.025 | DD18: 0.025 | DE18: 0.025 | DF18: 0.025 | DG18: 0.025 | DH18: 0.025 | DI18: 0.025 | DJ18: 0.025 | DK18: 0.025 | DL18: 0.025 | DM18: 0.025 | DN18: 0.025 | DO18: 0.025 | DP18: 0.025 | DQ18: 0.025 | DR18: 0.025 | DS18: 0.025 | DT18: 0.025 | DU18: 0.025 | DV18: 0.025 | DW18: 0.025 | DX18: 0.025 | DY18: 0.025 | DZ18: 0.025 | EA18: 0.025 | EB18: 0.025 | EC18: 0.025 | ED18: 0.025 | EE18: 0.025 | EF18: 0.025 | EG18: 0.025 | EH18: 0.025 | EI18: 0.025 | EJ18: 0.025 | EK18: =EK12/EJ12-1 -> 0.025 | EL18: 0.025 | EM18: 0.025 | EN18: 0.025 | EO18: 0.025 | EP18: 0.025 | EQ18: 0.025 | ER18: 0.025 | ES18: 0.025 | ET18: 0.025 | EU18: 0.025 | EV18: 0.025 | EW18: 0.025 | EX18: 0.025 | EY18: 0.025 | EZ18: 0.025 | FA18: 0.025 | FB18: 0.025 | FC18: 0.025 | FD18: 0.025 | FE18: 0.025 | FF18: 0.025 | FG18: 0.025 | FH18: 0.025 | FI18: 0.025 | FJ18: 0.025 | FK18: 0.025 | FL18: 0.025 | FM18: 0.025 | FN18: 0.025 | FO18: 0.025 | FP18: 0.025 | FQ18: 0.025 | FR18: 0.025 | FS18: 0.025 | FT18: 0.025 | FU18: 0.025 | FV18: 0.025 | FW18: 0.025 | FX18: 0.025 | FY18: 0.025 | FZ18: 0.025 | GA18: 0.025 | GB18: 0.025 | GC18: 0.025 | GD18: 0.025 | GE18: 0.025 | GF18: 0.025 | GG18: 0.025 | GH18: 0.025 | GI18: 0.025 | GJ18: 0.025 | GK18: 0.025 | GL18: 0.025 | GM18: 0.025 | GN18: 0.025 | GO18: 0.025 | GP18: 0.025 | GQ18: 0.025 | GR18: 0.025 | GS18: 0.025 | GT18: 0.025 | GU18: 0.025 | GV18: 0.025 | GW18: =GW12/GV12-1 -> 0.025 | GX18: 0.025 | GY18: 0.025 | GZ18: 0.025 | HA18: 0.025 | HB18: 0.025 | HC18: 0.025 | HD18: 0.025 | HE18: 0.025 | HF18: 0.025 | HG18: 0.025 | HH18: 0.025 | HI18: 0.025 | HJ18: 0.025 | HK18: 0.025 | HL18: 0.025 | HM18: 0.025 | HN18: 0.025 | HO18: 0.025 | HP18: 0.025 | HQ18: 0.025 | HR18: 0.025 | HS18: 0.025 | HT18: 0.025 | HU18: 0.025 | HV18: 0.025 | HW18: 0.025 | HX18: 0.025 | HY18: 0.025 | HZ18: 0.025 | IA18: 0.025 | IB18: 0.025 | IC18: 0.025 | ID18: 0.025 | IE18: 0.025 | IF18: 0.025 | IG18: 0.025 | IH18: 0.025 | II18: 0.025 | IJ18: 0.025 | IK18: 0.025 | IL18: 0.025 | IM18: 0.025 | IN18: 0.025 | IO18: 0.025 | IP18: 0.025 | IQ18: 0.025 | IR18: 0.025 | IS18: 0.025 | IT18: 0.025 | IU18: 0.025 | IV18: 0.025 | IW18: 0.025 | IX18: 0.025 | IY18: 0.025 | IZ18: 0.025 | JA18: 0.025 | JB18: 0.025 | JC18: 0.025 | JD18: 0.025 | JE18: 0.025 | JF18: 0.025 | JG18: 0.025 | JH18: 0.025 | JI18: =JI12/JH12-1 -> 0.025 | JJ18: 0.025 | JK18: 0.025 | JL18: 0.025 | JM18: 0.025 | JN18: 0.025 | JO18: 0.025 | JP18: 0.025 | JQ18: 0.025 | JR18: 0.025 | JS18: 0.025 | JT18: 0.025 | JU18: 0.025 | JV18: 0.025 | JW18: 0.025 | JX18: 0.025 | JY18: 0.025 | JZ18: 0.025 | KA18: 0.025 | KB18: 0.025 | KC18: 0.025 | KD18: 0.025 | KE18: 0.025 | KF18: 0.025 | KG18: 0.025 | KH18: 0.025 | KI18: 0.025 | KJ18: 0.025 | KK18: 0.025 | KL18: 0.025 | KM18: 0.025 | KN18: 0.025 | KO18: 0.025 | KP18: 0.025 | KQ18: 0.025 | KR18: 0.025 | KS18: 0.025 | KT18: 0.025 | KU18: 0.025 | KV18: 0.025 | KW18: 0.025 | KX18: 0.025 | KY18: 0.025 | KZ18: 0.025 | LA18: 0.025 | LB18: 0.025 | LC18: 0.025 | LD18: 0.025 | LE18: 0.025 | LF18: 0.025 | LG18: 0.025 | LH18: 0.025 | LI18: 0.025 | LJ18: 0.025 | LK18: 0.025 | LL18: 0.025 | LM18: 0.025 | LN18: 0.025 | LO18: 0.025 | LP18: 0.025 | LQ18: 0.025 | LR18: 0.025 | LS18: 0.025 | LT18: 0.025 | LU18: =LU12/LT12-1 -> 0.025 | LV18: 0.025 | LW18: 0.025 | LX18: 0.025 | LY18: 0.025 | LZ18: 0.025 | MA18: 0.025 | MB18: 0.025 | MC18: 0.025 | MD18: 0.025 | ME18: 0.025 | MF18: 0.025 | MG18: 0.025 | MH18: 0.025 | MI18: 0.025 | MJ18: 0.025 | MK18: 0.025 | ML18: 0.025 | MM18: 0.025 | MN18: 0.025 | MO18: 0.025 | MP18: 0.025 | MQ18: 0.025 | MR18: 0.025 | MS18: 0.025 | MT18: 0.025 | MU18: 0.025 | MV18: 0.025 | MW18: 0.025 | MX18: 0.025 | MY18: 0.025 | MZ18: 0.025 | NA18: 0.025 | NB18: 0.025 | NC18: 0.025 | ND18: 0.025 | NE18: 0.025 | NF18: 0.025 | NG18: 0.025 | NH18: 0.025 | NI18: 0.025 | NJ18: 0.025 | NK18: 0.025 | NL18: 0.025 | NM18: 0.025 | NN18: 0.025 | NO18: 0.025 | NP18: 0.025 | NQ18: 0.025 | NR18: 0.025 | NS18: 0.025 | NT18: 0.025 | NU18: 0.025 | NV18: 0.025 | NW18: 0.025 | NX18: 0.025 | NY18: 0.025 | NZ18: 0.025 | OA18: 0.025 | OB18: 0.025 | OC18: 0.025 | OD18: 0.025 | OE18: 0.025 | OF18: 0.025 | OG18: =OG12/OF12-1 -> 0.025 | OH18: 0.025 | OI18: 0.025 | OJ18: 0.025 | OK18: 0.025 | OL18: 0.025 | OM18: 0.025 | ON18: 0.025 | OO18: 0.025 | OP18: 0.025 | OQ18: 0.025 | OR18: 0.025 | OS18: 0.025 | OT18: 0.025 | OU18: 0.025 | OV18: 0.025 | OW18: 0.025 | OX18: 0.025 | OY18: 0.025 | OZ18: 0.025 | PA18: 0.025 | PB18: 0.025 | PC18: 0.025 | PD18: 0.025 | PE18: 0.025 | PF18: 0.025 | PG18: 0.025 | PH18: 0.025 | PI18: 0.025 | PJ18: 0.025 | PK18: 0.025 | PL18: 0.025 | PM18: 0.025 | PN18: 0.025 | PO18: 0.025 | PP18: 0.025 | PQ18: 0.025 | PR18: 0.025 | PS18: 0.025 | PT18: 0.025 | PU18: 0.025 | PV18: 0.025 | PW18: 0.025 | PX18: 0.025 | PY18: 0.025 | PZ18: 0.025 | QA18: 0.025 | QB18: 0.025 | QC18: 0.025 | QD18: 0.025 | QE18: 0.025 | QF18: 0.025 | QG18: 0.025 | QH18: 0.025 | QI18: 0.025 | QJ18: 0.025 | QK18: 0.025 | QL18: 0.025 | QM18: 0.025 | QN18: 0.025 | QO18: 0.025 | QP18: 0.025 | QQ18: 0.025 | QR18: 0.025 | QS18: =QS12/QR12-1 -> 0.025 | QT18: 0.025 | QU18: 0.025 | QV18: 0.025 | QW18: 0.025 | QX18: 0.025 | QY18: 0.025 | QZ18: 0.025 | RA18: 0.025 | RB18: 0.025 | RC18: 0.025 | RD18: 0.025 | RE18: 0.025 | RF18: 0.025 | RG18: 0.025 | RH18: 0.025 | RI18: 0.025 | RJ18: 0.025 | RK18: 0.025 | RL18: 0.025 | RM18: 0.025 | RN18: 0.025 | RO18: 0.025 | RP18: 0.025 | RQ18: 0.025 | RR18: 0.025 | RS18: 0.025 | RT18: 0.025 | RU18: 0.025 | RV18: 0.025 | RW18: 0.025 | RX18: 0.025 | RY18: 0.025 | RZ18: 0.025 | SA18: 0.025 | SB18: 0.025 | SC18: 0.025 | SD18: 0.025 | SE18: 0.025 | SF18: 0.025 | SG18: 0.025 | SH18: 0.025 | SI18: 0.025 | SJ18: 0.025 | SK18: 0.025 | SL18: 0.025 | SM18: 0.025 | SN18: 0.025 | SO18: 0.025 | SP18: 0.025 | SQ18: 0.025 | SR18: 0.025 | SS18: 0.025 | ST18: 0.025 | SU18: 0.025 | SV18: 0.025 | SW18: 0.025 | SX18: 0.025 | SY18: 0.025 | SZ18: 0.025 | TA18: 0.025 | TB18: 0.025 | TC18: 0.025
D19: NPV of Dividends: True Value | E19: =NPV(F19,13:13) -> 154.8719274 | F19: =Scenarios!D3 -> 0.068
D21: Price to Earnings | E21: =E19/K12 -> 11.91322518
D22: Price to Book | E22: =E19/J14 -> 1.548719274
J23: =J3 -> 0 | K23: 1 | L23: 2 | M23: 3 | N23: 4 | O23: 5 | P23: 6 | Q23: 7 | R23: 8 | S23: 9 | T23: 10 | U23: 11 | V23: 12 | W23: 13 | X23: 14 | Y23: 15 | Z23: 16 | AA23: 17 | AB23: 18 | AC23: 19 | AD23: 20 | AE23: 21 | AF23: 22 | AG23: 23 | AH23: 24 | AI23: 25 | AJ23: 26 | AK23: 27 | AL23: 28 | AM23: 29 | AN23: 30 | AO23: 31 | AP23: 32 | AQ23: 33 | AR23: 34 | AS23: 35 | AT23: 36 | AU23: 37 | AV23: 38 | AW23: 39 | AX23: 40 | AY23: 41 | AZ23: 42 | BA23: 43 | BB23: 44 | BC23: 45 | BD23: 46 | BE23: 47 | BF23: 48 | BG23: 49 | BH23: 50 | BI23: 51 | BJ23: 52 | BK23: 53 | BL23: 54 | BM23: 55 | BN23: 56 | BO23: 57 | BP23: 58 | BQ23: 59 | BR23: 60 | BS23: 61 | BT23: 62 | BU23: 63 | BV23: =BV3 -> 64 | BW23: 65 | BX23: 66 | BY23: 67 | BZ23: 68 | CA23: 69 | CB23: 70 | CC23: 71 | CD23: 72 | CE23: 73 | CF23: 74 | CG23: 75 | CH23: 76 | CI23: 77 | CJ23: 78 | CK23: 79 | CL23: 80 | CM23: 81 | CN23: 82 | CO23: 83 | CP23: 84 | CQ23: 85 | CR23: 86 | CS23: 87 | CT23: 88 | CU23: 89 | CV23: 90 | CW23: 91 | CX23: 92 | CY23: 93 | CZ23: 94 | DA23: 95 | DB23: 96 | DC23: 97 | DD23: 98 | DE23: 99 | DF23: 100 | DG23: 101 | DH23: 102 | DI23: 103 | DJ23: 104 | DK23: 105 | DL23: 106 | DM23: 107 | DN23: 108 | DO23: 109 | DP23: 110 | DQ23: 111 | DR23: 112 | DS23: 113 | DT23: 114 | DU23: 115 | DV23: 116 | DW23: 117 | DX23: 118 | DY23: 119 | DZ23: 120 | EA23: 121 | EB23: 122 | EC23: 123 | ED23: 124 | EE23: 125 | EF23: 126 | EG23: 127 | EH23: =EH3 -> 128 | EI23: 129 | EJ23: 130 | EK23: 131 | EL23: 132 | EM23: 133 | EN23: 134 | EO23: 135 | EP23: 136 | EQ23: 137 | ER23: 138 | ES23: 139 | ET23: 140 | EU23: 141 | EV23: 142 | EW23: 143 | EX23: 144 | EY23: 145 | EZ23: 146 | FA23: 147 | FB23: 148 | FC23: 149 | FD23: 150 | FE23: 151 | FF23: 152 | FG23: 153 | FH23: 154 | FI23: 155 | FJ23: 156 | FK23: 157 | FL23: 158 | FM23: 159 | FN23: 160 | FO23: 161 | FP23: 162 | FQ23: 163 | FR23: 164 | FS23: 165 | FT23: 166 | FU23: 167 | FV23: 168 | FW23: 169 | FX23: 170 | FY23: 171 | FZ23: 172 | GA23: 173 | GB23: 174 | GC23: 175 | GD23: 176 | GE23: 177 | GF23: 178 | GG23: 179 | GH23: 180 | GI23: 181 | GJ23: 182 | GK23: 183 | GL23: 184 | GM23: 185 | GN23: 186 | GO23: 187 | GP23: 188 | GQ23: 189 | GR23: 190 | GS23: 191 | GT23: =GT3 -> 192 | GU23: 193 | GV23: 194 | GW23: 195 | GX23: 196 | GY23: 197 | GZ23: 198 | HA23: 199 | HB23: 200 | HC23: 201 | HD23: 202 | HE23: 203 | HF23: 204 | HG23: 205 | HH23: 206 | HI23: 207 | HJ23: 208 | HK23: 209 | HL23: 210 | HM23: 211 | HN23: 212 | HO23: 213 | HP23: 214 | HQ23: 215 | HR23: 216 | HS23: 217 | HT23: 218 | HU23: 219 | HV23: 220 | HW23: 221 | HX23: 222 | HY23: 223 | HZ23: 224 | IA23: 225 | IB23: 226 | IC23: 227 | ID23: 228 | IE23: 229 | IF23: 230 | IG23: 231 | IH23: 232 | II23: 233 | IJ23: 234 | IK23: 235 | IL23: 236 | IM23: 237 | IN23: 238 | IO23: 239 | IP23: 240 | IQ23: 241 | IR23: 242 | IS23: 243 | IT23: 244 | IU23: 245 | IV23: 246 | IW23: 247 | IX23: 248 | IY23: 249 | IZ23: 250 | JA23: 251 | JB23: 252 | JC23: 253 | JD23: 254 | JE23: 255 | JF23: =JF3 -> 256 | JG23: 257 | JH23: 258 | JI23: 259 | JJ23: 260 | JK23: 261 | JL23: 262 | JM23: 263 | JN23: 264 | JO23: 265 | JP23: 266 | JQ23: 267 | JR23: 268 | JS23: 269 | JT23: 270 | JU23: 271 | JV23: 272 | JW23: 273 | JX23: 274 | JY23: 275 | JZ23: 276 | KA23: 277 | KB23: 278 | KC23: 279 | KD23: 280 | KE23: 281 | KF23: 282 | KG23: 283 | KH23: 284 | KI23: 285 | KJ23: 286 | KK23: 287 | KL23: 288 | KM23: 289 | KN23: 290 | KO23: 291 | KP23: 292 | KQ23: 293 | KR23: 294 | KS23: 295 | KT23: 296 | KU23: 297 | KV23: 298 | KW23: 299 | KX23: 300 | KY23: 301 | KZ23: 302 | LA23: 303 | LB23: 304 | LC23: 305 | LD23: 306 | LE23: 307 | LF23: 308 | LG23: 309 | LH23: 310 | LI23: 311 | LJ23: 312 | LK23: 313 | LL23: 314 | LM23: 315 | LN23: 316 | LO23: 317 | LP23: 318 | LQ23: 319 | LR23: =LR3 -> 320 | LS23: 321 | LT23: 322 | LU23: 323 | LV23: 324 | LW23: 325 | LX23: 326 | LY23: 327 | LZ23: 328 | MA23: 329 | MB23: 330 | MC23: 331 | MD23: 332 | ME23: 333 | MF23: 334 | MG23: 335 | MH23: 336 | MI23: 337 | MJ23: 338 | MK23: 339 | ML23: 340 | MM23: 341 | MN23: 342 | MO23: 343 | MP23: 344 | MQ23: 345 | MR23: 346 | MS23: 347 | MT23: 348 | MU23: 349 | MV23: 350 | MW23: 351 | MX23: 352 | MY23: 353 | MZ23: 354 | NA23: 355 | NB23: 356 | NC23: 357 | ND23: 358 | NE23: 359 | NF23: 360 | NG23: 361 | NH23: 362 | NI23: 363 | NJ23: 364 | NK23: 365 | NL23: 366 | NM23: 367 | NN23: 368 | NO23: 369 | NP23: 370 | NQ23: 371 | NR23: 372 | NS23: 373 | NT23: 374 | NU23: 375 | NV23: 376 | NW23: 377 | NX23: 378 | NY23: 379 | NZ23: 380 | OA23: 381 | OB23: 382 | OC23: 383 | OD23: =OD3 -> 384 | OE23: 385 | OF23: 386 | OG23: 387 | OH23: 388 | OI23: 389 | OJ23: 390 | OK23: 391 | OL23: 392 | OM23: 393 | ON23: 394 | OO23: 395 | OP23: 396 | OQ23: 397 | OR23: 398 | OS23: 399 | OT23: 400 | OU23: 401 | OV23: 402 | OW23: 403 | OX23: 404 | OY23: 405 | OZ23: 406 | PA23: 407 | PB23: 408 | PC23: 409 | PD23: 410 | PE23: 411 | PF23: 412 | PG23: 413 | PH23: 414 | PI23: 415 | PJ23: 416 | PK23: 417 | PL23: 418 | PM23: 419 | PN23: 420 | PO23: 421 | PP23: 422 | PQ23: 423 | PR23: 424 | PS23: 425 | PT23: 426 | PU23: 427 | PV23: 428 | PW23: 429 | PX23: 430 | PY23: 431 | PZ23: 432 | QA23: 433 | QB23: 434 | QC23: 435 | QD23: 436 | QE23: 437 | QF23: 438 | QG23: 439 | QH23: 440 | QI23: 441 | QJ23: 442 | QK23: 443 | QL23: 444 | QM23: 445 | QN23: 446 | QO23: 447 | QP23: =QP3 -> 448 | QQ23: 449 | QR23: 450 | QS23: 451 | QT23: 452 | QU23: 453 | QV23: 454 | QW23: 455 | QX23: 456 | QY23: 457 | QZ23: 458 | RA23: 459 | RB23: 460 | RC23: 461 | RD23: 462 | RE23: 463 | RF23: 464 | RG23: 465 | RH23: 466 | RI23: 467 | RJ23: 468 | RK23: 469 | RL23: 470 | RM23: 471 | RN23: 472 | RO23: 473 | RP23: 474 | RQ23: 475 | RR23: 476 | RS23: 477 | RT23: 478 | RU23: 479 | RV23: 480 | RW23: 481 | RX23: 482 | RY23: 483 | RZ23: 484 | SA23: 485 | SB23: 486 | SC23: 487 | SD23: 488 | SE23: 489 | SF23: 490 | SG23: 491 | SH23: 492 | SI23: 493 | SJ23: 494 | SK23: 495 | SL23: 496 | SM23: 497 | SN23: 498 | SO23: 499 | SP23: 500 | SQ23: 501 | SR23: 502 | SS23: 503 | ST23: 504 | SU23: 505 | SV23: 506 | SW23: 507 | SX23: 508 | SY23: 509 | SZ23: 510 | TA23: 511 | TB23: 512 | TC23: 513
B24: Net Income and Dividend
D25: Terminal Period Cash Flow Before Change | F25: Term g | G25: k | K25: =K13*K5 -> 0 | L25: 0 | M25: 0 | N25: 0 | O25: 0 | P25: 0 | Q25: 0 | R25: 0 | S25: 0 | T25: 15.64029594 | U25: 0 | V25: 0 | W25: 0 | X25: 0 | Y25: 0 | Z25: 0 | AA25: 0 | AB25: 0 | AC25: 0 | AD25: 0 | AE25: 0 | AF25: 0 | AG25: 0 | AH25: 0 | AI25: 0 | AJ25: 0 | AK25: 0 | AL25: 0 | AM25: 0 | AN25: 0 | AO25: 0 | AP25: 0 | AQ25: 0 | AR25: 0 | AS25: 0 | AT25: 0 | AU25: 0 | AV25: 0 | AW25: 0 | AX25: 0 | AY25: 0 | AZ25: 0 | BA25: 0 | BB25: 0 | BC25: 0 | BD25: 0 | BE25: 0 | BF25: 0 | BG25: 0 | BH25: 0 | BI25: 0 | BJ25: 0 | BK25: 0 | BL25: 0 | BM25: 0 | BN25: 0 | BO25: 0 | BP25: 0 | BQ25: 0 | BR25: 0 | BS25: 0 | BT25: 0 | BU25: 0 | BV25: 0 | BW25: =BW13*BW5 -> 0 | BX25: 0 | BY25: 0 | BZ25: 0 | CA25: 0 | CB25: 0 | CC25: 0 | CD25: 0 | CE25: 0 | CF25: 0 | CG25: 0 | CH25: 0 | CI25: 0 | CJ25: 0 | CK25: 0 | CL25: 0 | CM25: 0 | CN25: 0 | CO25: 0 | CP25: 0 | CQ25: 0 | CR25: 0 | CS25: 0 | CT25: 0 | CU25: 0 | CV25: 0 | CW25: 0 | CX25: 0 | CY25: 0 | CZ25: 0 | DA25: 0 | DB25: 0 | DC25: 0 | DD25: 0 | DE25: 0 | DF25: 0 | DG25: 0 | DH25: 0 | DI25: 0 | DJ25: 0 | DK25: 0 | DL25: 0 | DM25: 0 | DN25: 0 | DO25: 0 | DP25: 0 | DQ25: 0 | DR25: 0 | DS25: 0 | DT25: 0 | DU25: 0 | DV25: 0 | DW25: 0 | DX25: 0 | DY25: 0 | DZ25: 0 | EA25: 0 | EB25: 0 | EC25: 0 | ED25: 0 | EE25: 0 | EF25: 0 | EG25: 0 | EH25: 0 | EI25: =EI13*EI5 -> 0 | EJ25: 0 | EK25: 0 | EL25: 0 | EM25: 0 | EN25: 0 | EO25: 0 | EP25: 0 | EQ25: 0 | ER25: 0 | ES25: 0 | ET25: 0 | EU25: 0 | EV25: 0 | EW25: 0 | EX25: 0 | EY25: 0 | EZ25: 0 | FA25: 0 | FB25: 0 | FC25: 0 | FD25: 0 | FE25: 0 | FF25: 0 | FG25: 0 | FH25: 0 | FI25: 0 | FJ25: 0 | FK25: 0 | FL25: 0 | FM25: 0 | FN25: 0 | FO25: 0 | FP25: 0 | FQ25: 0 | FR25: 0 | FS25: 0 | FT25: 0 | FU25: 0 | FV25: 0 | FW25: 0 | FX25: 0 | FY25: 0 | FZ25: 0 | GA25: 0 | GB25: 0 | GC25: 0 | GD25: 0 | GE25: 0 | GF25: 0 | GG25: 0 | GH25: 0 | GI25: 0 | GJ25: 0 | GK25: 0 | GL25: 0 | GM25: 0 | GN25: 0 | GO25: 0 | GP25: 0 | GQ25: 0 | GR25: 0 | GS25: 0 | GT25: 0 | GU25: =GU13*GU5 -> 0 | GV25: 0 | GW25: 0 | GX25: 0 | GY25: 0 | GZ25: 0 | HA25: 0 | HB25: 0 | HC25: 0 | HD25: 0 | HE25: 0 | HF25: 0 | HG25: 0 | HH25: 0 | HI25: 0 | HJ25: 0 | HK25: 0 | HL25: 0 | HM25: 0 | HN25: 0 | HO25: 0 | HP25: 0 | HQ25: 0 | HR25: 0 | HS25: 0 | HT25: 0 | HU25: 0 | HV25: 0 | HW25: 0 | HX25: 0 | HY25: 0 | HZ25: 0 | IA25: 0 | IB25: 0 | IC25: 0 | ID25: 0 | IE25: 0 | IF25: 0 | IG25: 0 | IH25: 0 | II25: 0 | IJ25: 0 | IK25: 0 | IL25: 0 | IM25: 0 | IN25: 0 | IO25: 0 | IP25: 0 | IQ25: 0 | IR25: 0 | IS25: 0 | IT25: 0 | IU25: 0 | IV25: 0 | IW25: 0 | IX25: 0 | IY25: 0 | IZ25: 0 | JA25: 0 | JB25: 0 | JC25: 0 | JD25: 0 | JE25: 0 | JF25: 0 | JG25: =JG13*JG5 -> 0 | JH25: 0 | JI25: 0 | JJ25: 0 | JK25: 0 | JL25: 0 | JM25: 0 | JN25: 0 | JO25: 0 | JP25: 0 | JQ25: 0 | JR25: 0 | JS25: 0 | JT25: 0 | JU25: 0 | JV25: 0 | JW25: 0 | JX25: 0 | JY25: 0 | JZ25: 0 | KA25: 0 | KB25: 0 | KC25: 0 | KD25: 0 | KE25: 0 | KF25: 0 | KG25: 0 | KH25: 0 | KI25: 0 | KJ25: 0 | KK25: 0 | KL25: 0 | KM25: 0 | KN25: 0 | KO25: 0 | KP25: 0 | KQ25: 0 | KR25: 0 | KS25: 0 | KT25: 0 | KU25: 0 | KV25: 0 | KW25: 0 | KX25: 0 | KY25: 0 | KZ25: 0 | LA25: 0 | LB25: 0 | LC25: 0 | LD25: 0 | LE25: 0 | LF25: 0 | LG25: 0 | LH25: 0 | LI25: 0 | LJ25: 0 | LK25: 0 | LL25: 0 | LM25: 0 | LN25: 0 | LO25: 0 | LP25: 0 | LQ25: 0 | LR25: 0 | LS25: =LS13*LS5 -> 0 | LT25: 0 | LU25: 0 | LV25: 0 | LW25: 0 | LX25: 0 | LY25: 0 | LZ25: 0 | MA25: 0 | MB25: 0 | MC25: 0 | MD25: 0 | ME25: 0 | MF25: 0 | MG25: 0 | MH25: 0 | MI25: 0 | MJ25: 0 | MK25: 0 | ML25: 0 | MM25: 0 | MN25: 0 | MO25: 0 | MP25: 0 | MQ25: 0 | MR25: 0 | MS25: 0 | MT25: 0 | MU25: 0 | MV25: 0 | MW25: 0 | MX25: 0 | MY25: 0 | MZ25: 0 | NA25: 0 | NB25: 0 | NC25: 0 | ND25: 0 | NE25: 0 | NF25: 0 | NG25: 0 | NH25: 0 | NI25: 0 | NJ25: 0 | NK25: 0 | NL25: 0 | NM25: 0 | NN25: 0 | NO25: 0 | NP25: 0 | NQ25: 0 | NR25: 0 | NS25: 0 | NT25: 0 | NU25: 0 | NV25: 0 | NW25: 0 | NX25: 0 | NY25: 0 | NZ25: 0 | OA25: 0 | OB25: 0 | OC25: 0 | OD25: 0 | OE25: =OE13*OE5 -> 0 | OF25: 0 | OG25: 0 | OH25: 0 | OI25: 0 | OJ25: 0 | OK25: 0 | OL25: 0 | OM25: 0 | ON25: 0 | OO25: 0 | OP25: 0 | OQ25: 0 | OR25: 0 | OS25: 0 | OT25: 0 | OU25: 0 | OV25: 0 | OW25: 0 | OX25: 0 | OY25: 0 | OZ25: 0 | PA25: 0 | PB25: 0 | PC25: 0 | PD25: 0 | PE25: 0 | PF25: 0 | PG25: 0 | PH25: 0 | PI25: 0 | PJ25: 0 | PK25: 0 | PL25: 0 | PM25: 0 | PN25: 0 | PO25: 0 | PP25: 0 | PQ25: 0 | PR25: 0 | PS25: 0 | PT25: 0 | PU25: 0 | PV25: 0 | PW25: 0 | PX25: 0 | PY25: 0 | PZ25: 0 | QA25: 0 | QB25: 0 | QC25: 0 | QD25: 0 | QE25: 0 | QF25: 0 | QG25: 0 | QH25: 0 | QI25: 0 | QJ25: 0 | QK25: 0 | QL25: 0 | QM25: 0 | QN25: 0 | QO25: 0 | QP25: 0 | QQ25: =QQ13*QQ5 -> 0 | QR25: 0 | QS25: 0 | QT25: 0 | QU25: 0 | QV25: 0 | QW25: 0 | QX25: 0 | QY25: 0 | QZ25: 0 | RA25: 0 | RB25: 0 | RC25: 0 | RD25: 0 | RE25: 0 | RF25: 0 | RG25: 0 | RH25: 0 | RI25: 0 | RJ25: 0 | RK25: 0 | RL25: 0 | RM25: 0 | RN25: 0 | RO25: 0 | RP25: 0 | RQ25: 0 | RR25: 0 | RS25: 0 | RT25: 0 | RU25: 0 | RV25: 0 | RW25: 0 | RX25: 0 | RY25: 0 | RZ25: 0 | SA25: 0 | SB25: 0 | SC25: 0 | SD25: 0 | SE25: 0 | SF25: 0 | SG25: 0 | SH25: 0 | SI25: 0 | SJ25: 0 | SK25: 0 | SL25: 0 | SM25: 0 | SN25: 0 | SO25: 0 | SP25: 0 | SQ25: 0 | SR25: 0 | SS25: 0 | ST25: 0 | SU25: 0 | SV25: 0 | SW25: 0 | SX25: 0 | SY25: 0 | SZ25: 0 | TA25: 0 | TB25: 0 | TC25: 0
D26: Value over Explicit Period | E26: =NPV(G26,K26:KW26) -> 75.43036916 | G26: =Scenarios!D3 -> 0.068 | K26: =K13*K4 -> 5.88688236 | L26: 7.150276913 | M26: 8.401013627 | N26: 9.62335307 | O26: 11.0932944 | P26: 12.43025038 | Q26: 13.63151083 | R26: 14.04045616 | S26: 14.46166984 | T26: 15.64029594 | U26: 0 | V26: 0 | W26: 0 | X26: 0 | Y26: 0 | Z26: 0 | AA26: 0 | AB26: 0 | AC26: 0 | AD26: 0 | AE26: 0 | AF26: 0 | AG26: 0 | AH26: 0 | AI26: 0 | AJ26: 0 | AK26: 0 | AL26: 0 | AM26: 0 | AN26: 0 | AO26: 0 | AP26: 0 | AQ26: 0 | AR26: 0 | AS26: 0 | AT26: 0 | AU26: 0 | AV26: 0 | AW26: 0 | AX26: 0 | AY26: 0 | AZ26: 0 | BA26: 0 | BB26: 0 | BC26: 0 | BD26: 0 | BE26: 0 | BF26: 0 | BG26: 0 | BH26: 0 | BI26: 0 | BJ26: 0 | BK26: 0 | BL26: 0 | BM26: 0 | BN26: 0 | BO26: 0 | BP26: 0 | BQ26: 0 | BR26: 0 | BS26: 0 | BT26: 0 | BU26: 0 | BV26: 0 | BW26: =BW13*BW4 -> 0 | BX26: 0 | BY26: 0 | BZ26: 0 | CA26: 0 | CB26: 0 | CC26: 0 | CD26: 0 | CE26: 0 | CF26: 0 | CG26: 0 | CH26: 0 | CI26: 0 | CJ26: 0 | CK26: 0 | CL26: 0 | CM26: 0 | CN26: 0 | CO26: 0 | CP26: 0 | CQ26: 0 | CR26: 0 | CS26: 0 | CT26: 0 | CU26: 0 | CV26: 0 | CW26: 0 | CX26: 0 | CY26: 0 | CZ26: 0 | DA26: 0 | DB26: 0 | DC26: 0 | DD26: 0 | DE26: 0 | DF26: 0 | DG26: 0 | DH26: 0 | DI26: 0 | DJ26: 0 | DK26: 0 | DL26: 0 | DM26: 0 | DN26: 0 | DO26: 0 | DP26: 0 | DQ26: 0 | DR26: 0 | DS26: 0 | DT26: 0 | DU26: 0 | DV26: 0 | DW26: 0 | DX26: 0 | DY26: 0 | DZ26: 0 | EA26: 0 | EB26: 0 | EC26: 0 | ED26: 0 | EE26: 0 | EF26: 0 | EG26: 0 | EH26: 0 | EI26: =EI13*EI4 -> 0 | EJ26: 0 | EK26: 0 | EL26: 0 | EM26: 0 | EN26: 0 | EO26: 0 | EP26: 0 | EQ26: 0 | ER26: 0 | ES26: 0 | ET26: 0 | EU26: 0 | EV26: 0 | EW26: 0 | EX26: 0 | EY26: 0 | EZ26: 0 | FA26: 0 | FB26: 0 | FC26: 0 | FD26: 0 | FE26: 0 | FF26: 0 | FG26: 0 | FH26: 0 | FI26: 0 | FJ26: 0 | FK26: 0 | FL26: 0 | FM26: 0 | FN26: 0 | FO26: 0 | FP26: 0 | FQ26: 0 | FR26: 0 | FS26: 0 | FT26: 0 | FU26: 0 | FV26: 0 | FW26: 0 | FX26: 0 | FY26: 0 | FZ26: 0 | GA26: 0 | GB26: 0 | GC26: 0 | GD26: 0 | GE26: 0 | GF26: 0 | GG26: 0 | GH26: 0 | GI26: 0 | GJ26: 0 | GK26: 0 | GL26: 0 | GM26: 0 | GN26: 0 | GO26: 0 | GP26: 0 | GQ26: 0 | GR26: 0 | GS26: 0 | GT26: 0 | GU26: =GU13*GU4 -> 0 | GV26: 0 | GW26: 0 | GX26: 0 | GY26: 0 | GZ26: 0 | HA26: 0 | HB26: 0 | HC26: 0 | HD26: 0 | HE26: 0 | HF26: 0 | HG26: 0 | HH26: 0 | HI26: 0 | HJ26: 0 | HK26: 0 | HL26: 0 | HM26: 0 | HN26: 0 | HO26: 0 | HP26: 0 | HQ26: 0 | HR26: 0 | HS26: 0 | HT26: 0 | HU26: 0 | HV26: 0 | HW26: 0 | HX26: 0 | HY26: 0 | HZ26: 0 | IA26: 0 | IB26: 0 | IC26: 0 | ID26: 0 | IE26: 0 | IF26: 0 | IG26: 0 | IH26: 0 | II26: 0 | IJ26: 0 | IK26: 0 | IL26: 0 | IM26: 0 | IN26: 0 | IO26: 0 | IP26: 0 | IQ26: 0 | IR26: 0 | IS26: 0 | IT26: 0 | IU26: 0 | IV26: 0 | IW26: 0 | IX26: 0 | IY26: 0 | IZ26: 0 | JA26: 0 | JB26: 0 | JC26: 0 | JD26: 0 | JE26: 0 | JF26: 0 | JG26: =JG13*JG4 -> 0 | JH26: 0 | JI26: 0 | JJ26: 0 | JK26: 0 | JL26: 0 | JM26: 0 | JN26: 0 | JO26: 0 | JP26: 0 | JQ26: 0 | JR26: 0 | JS26: 0 | JT26: 0 | JU26: 0 | JV26: 0 | JW26: 0 | JX26: 0 | JY26: 0 | JZ26: 0 | KA26: 0 | KB26: 0 | KC26: 0 | KD26: 0 | KE26: 0 | KF26: 0 | KG26: 0 | KH26: 0 | KI26: 0 | KJ26: 0 | KK26: 0 | KL26: 0 | KM26: 0 | KN26: 0 | KO26: 0 | KP26: 0 | KQ26: 0 | KR26: 0 | KS26: 0 | KT26: 0 | KU26: 0 | KV26: 0 | KW26: 0 | KX26: 0 | KY26: 0 | KZ26: 0 | LA26: 0 | LB26: 0 | LC26: 0 | LD26: 0 | LE26: 0 | LF26: 0 | LG26: 0 | LH26: 0 | LI26: 0 | LJ26: 0 | LK26: 0 | LL26: 0 | LM26: 0 | LN26: 0 | LO26: 0 | LP26: 0 | LQ26: 0 | LR26: 0 | LS26: =LS13*LS4 -> 0 | LT26: 0 | LU26: 0 | LV26: 0 | LW26: 0 | LX26: 0 | LY26: 0 | LZ26: 0 | MA26: 0 | MB26: 0 | MC26: 0 | MD26: 0 | ME26: 0 | MF26: 0 | MG26: 0 | MH26: 0 | MI26: 0 | MJ26: 0 | MK26: 0 | ML26: 0 | MM26: 0 | MN26: 0 | MO26: 0 | MP26: 0 | MQ26: 0 | MR26: 0 | MS26: 0 | MT26: 0 | MU26: 0 | MV26: 0 | MW26: 0 | MX26: 0 | MY26: 0 | MZ26: 0 | NA26: 0 | NB26: 0 | NC26: 0 | ND26: 0 | NE26: 0 | NF26: 0 | NG26: 0 | NH26: 0 | NI26: 0 | NJ26: 0 | NK26: 0 | NL26: 0 | NM26: 0 | NN26: 0 | NO26: 0 | NP26: 0 | NQ26: 0 | NR26: 0 | NS26: 0 | NT26: 0 | NU26: 0 | NV26: 0 | NW26: 0 | NX26: 0 | NY26: 0 | NZ26: 0 | OA26: 0 | OB26: 0 | OC26: 0 | OD26: 0 | OE26: =OE13*OE4 -> 0 | OF26: 0 | OG26: 0 | OH26: 0 | OI26: 0 | OJ26: 0 | OK26: 0 | OL26: 0 | OM26: 0 | ON26: 0 | OO26: 0 | OP26: 0 | OQ26: 0 | OR26: 0 | OS26: 0 | OT26: 0 | OU26: 0 | OV26: 0 | OW26: 0 | OX26: 0 | OY26: 0 | OZ26: 0 | PA26: 0 | PB26: 0 | PC26: 0 | PD26: 0 | PE26: 0 | PF26: 0 | PG26: 0 | PH26: 0 | PI26: 0 | PJ26: 0 | PK26: 0 | PL26: 0 | PM26: 0 | PN26: 0 | PO26: 0 | PP26: 0 | PQ26: 0 | PR26: 0 | PS26: 0 | PT26: 0 | PU26: 0 | PV26: 0 | PW26: 0 | PX26: 0 | PY26: 0 | PZ26: 0 | QA26: 0 | QB26: 0 | QC26: 0 | QD26: 0 | QE26: 0 | QF26: 0 | QG26: 0 | QH26: 0 | QI26: 0 | QJ26: 0 | QK26: 0 | QL26: 0 | QM26: 0 | QN26: 0 | QO26: 0 | QP26: 0 | QQ26: =QQ13*QQ4 -> 0 | QR26: 0 | QS26: 0 | QT26: 0 | QU26: 0 | QV26: 0 | QW26: 0 | QX26: 0 | QY26: 0 | QZ26: 0 | RA26: 0 | RB26: 0 | RC26: 0 | RD26: 0 | RE26: 0 | RF26: 0 | RG26: 0 | RH26: 0 | RI26: 0 | RJ26: 0 | RK26: 0 | RL26: 0 | RM26: 0 | RN26: 0 | RO26: 0 | RP26: 0 | RQ26: 0 | RR26: 0 | RS26: 0 | RT26: 0 | RU26: 0 | RV26: 0 | RW26: 0 | RX26: 0 | RY26: 0 | RZ26: 0 | SA26: 0 | SB26: 0 | SC26: 0 | SD26: 0 | SE26: 0 | SF26: 0 | SG26: 0 | SH26: 0 | SI26: 0 | SJ26: 0 | SK26: 0 | SL26: 0 | SM26: 0 | SN26: 0 | SO26: 0 | SP26: 0 | SQ26: 0 | SR26: 0 | SS26: 0 | ST26: 0 | SU26: 0 | SV26: 0 | SW26: 0 | SX26: 0 | SY26: 0 | SZ26: 0 | TA26: 0 | TB26: 0 | TC26: 0
D27: Growth Rate Multiplier (1+g)/(k-g) | E27: =(1+F27)/(G27-F27) -> 23.8372093 | F27: =G83 -> 0.025 | G27: =F83 -> 0.068 | K27: =$E$27*K25 -> 0 | L27: =$E$27*L25 -> 0 | M27: 0 | N27: 0 | O27: 0 | P27: 0 | Q27: 0 | R27: 0 | S27: 0 | T27: 372.8210078 | U27: 0 | V27: 0 | W27: 0 | X27: 0 | Y27: 0 | Z27: 0 | AA27: 0 | AB27: 0 | AC27: 0 | AD27: 0 | AE27: 0 | AF27: 0 | AG27: 0 | AH27: 0 | AI27: 0 | AJ27: 0 | AK27: 0 | AL27: 0 | AM27: 0 | AN27: 0 | AO27: 0 | AP27: 0 | AQ27: 0 | AR27: 0 | AS27: 0 | AT27: 0 | AU27: 0 | AV27: 0 | AW27: 0 | AX27: 0 | AY27: 0 | AZ27: 0 | BA27: 0 | BB27: 0 | BC27: 0 | BD27: 0 | BE27: 0 | BF27: 0 | BG27: 0 | BH27: 0 | BI27: 0 | BJ27: 0 | BK27: 0 | BL27: 0 | BM27: 0 | BN27: 0 | BO27: 0 | BP27: 0 | BQ27: 0 | BR27: 0 | BS27: 0 | BT27: 0 | BU27: 0 | BV27: 0 | BW27: 0 | BX27: =$E$27*BX25 -> 0 | BY27: 0 | BZ27: 0 | CA27: 0 | CB27: 0 | CC27: 0 | CD27: 0 | CE27: 0 | CF27: 0 | CG27: 0 | CH27: 0 | CI27: 0 | CJ27: 0 | CK27: 0 | CL27: 0 | CM27: 0 | CN27: 0 | CO27: 0 | CP27: 0 | CQ27: 0 | CR27: 0 | CS27: 0 | CT27: 0 | CU27: 0 | CV27: 0 | CW27: 0 | CX27: 0 | CY27: 0 | CZ27: 0 | DA27: 0 | DB27: 0 | DC27: 0 | DD27: 0 | DE27: 0 | DF27: 0 | DG27: 0 | DH27: 0 | DI27: 0 | DJ27: 0 | DK27: 0 | DL27: 0 | DM27: 0 | DN27: 0 | DO27: 0 | DP27: 0 | DQ27: 0 | DR27: 0 | DS27: 0 | DT27: 0 | DU27: 0 | DV27: 0 | DW27: 0 | DX27: 0 | DY27: 0 | DZ27: 0 | EA27: 0 | EB27: 0 | EC27: 0 | ED27: 0 | EE27: 0 | EF27: 0 | EG27: 0 | EH27: 0 | EI27: 0 | EJ27: =$E$27*EJ25 -> 0 | EK27: 0 | EL27: 0 | EM27: 0 | EN27: 0 | EO27: 0 | EP27: 0 | EQ27: 0 | ER27: 0 | ES27: 0 | ET27: 0 | EU27: 0 | EV27: 0 | EW27: 0 | EX27: 0 | EY27: 0 | EZ27: 0 | FA27: 0 | FB27: 0 | FC27: 0 | FD27: 0 | FE27: 0 | FF27: 0 | FG27: 0 | FH27: 0 | FI27: 0 | FJ27: 0 | FK27: 0 | FL27: 0 | FM27: 0 | FN27: 0 | FO27: 0 | FP27: 0 | FQ27: 0 | FR27: 0 | FS27: 0 | FT27: 0 | FU27: 0 | FV27: 0 | FW27: 0 | FX27: 0 | FY27: 0 | FZ27: 0 | GA27: 0 | GB27: 0 | GC27: 0 | GD27: 0 | GE27: 0 | GF27: 0 | GG27: 0 | GH27: 0 | GI27: 0 | GJ27: 0 | GK27: 0 | GL27: 0 | GM27: 0 | GN27: 0 | GO27: 0 | GP27: 0 | GQ27: 0 | GR27: 0 | GS27: 0 | GT27: 0 | GU27: 0 | GV27: =$E$27*GV25 -> 0 | GW27: 0 | GX27: 0 | GY27: 0 | GZ27: 0 | HA27: 0 | HB27: 0 | HC27: 0 | HD27: 0 | HE27: 0 | HF27: 0 | HG27: 0 | HH27: 0 | HI27: 0 | HJ27: 0 | HK27: 0 | HL27: 0 | HM27: 0 | HN27: 0 | HO27: 0 | HP27: 0 | HQ27: 0 | HR27: 0 | HS27: 0 | HT27: 0 | HU27: 0 | HV27: 0 | HW27: 0 | HX27: 0 | HY27: 0 | HZ27: 0 | IA27: 0 | IB27: 0 | IC27: 0 | ID27: 0 | IE27: 0 | IF27: 0 | IG27: 0 | IH27: 0 | II27: 0 | IJ27: 0 | IK27: 0 | IL27: 0 | IM27: 0 | IN27: 0 | IO27: 0 | IP27: 0 | IQ27: 0 | IR27: 0 | IS27: 0 | IT27: 0 | IU27: 0 | IV27: 0 | IW27: 0 | IX27: 0 | IY27: 0 | IZ27: 0 | JA27: 0 | JB27: 0 | JC27: 0 | JD27: 0 | JE27: 0 | JF27: 0 | JG27: 0 | JH27: =$E$27*JH25 -> 0 | JI27: 0 | JJ27: 0 | JK27: 0 | JL27: 0 | JM27: 0 | JN27: 0 | JO27: 0 | JP27: 0 | JQ27: 0 | JR27: 0 | JS27: 0 | JT27: 0 | JU27: 0 | JV27: 0 | JW27: 0 | JX27: 0 | JY27: 0 | JZ27: 0 | KA27: 0 | KB27: 0 | KC27: 0 | KD27: 0 | KE27: 0 | KF27: 0 | KG27: 0 | KH27: 0 | KI27: 0 | KJ27: 0 | KK27: 0 | KL27: 0 | KM27: 0 | KN27: 0 | KO27: 0 | KP27: 0 | KQ27: 0 | KR27: 0 | KS27: 0 | KT27: 0 | KU27: 0 | KV27: 0 | KW27: 0 | KX27: 0 | KY27: 0 | KZ27: 0 | LA27: 0 | LB27: 0 | LC27: 0 | LD27: 0 | LE27: 0 | LF27: 0 | LG27: 0 | LH27: 0 | LI27: 0 | LJ27: 0 | LK27: 0 | LL27: 0 | LM27: 0 | LN27: 0 | LO27: 0 | LP27: 0 | LQ27: 0 | LR27: 0 | LS27: 0 | LT27: =$E$27*LT25 -> 0 | LU27: 0 | LV27: 0 | LW27: 0 | LX27: 0 | LY27: 0 | LZ27: 0 | MA27: 0 | MB27: 0 | MC27: 0 | MD27: 0 | ME27: 0 | MF27: 0 | MG27: 0 | MH27: 0 | MI27: 0 | MJ27: 0 | MK27: 0 | ML27: 0 | MM27: 0 | MN27: 0 | MO27: 0 | MP27: 0 | MQ27: 0 | MR27: 0 | MS27: 0 | MT27: 0 | MU27: 0 | MV27: 0 | MW27: 0 | MX27: 0 | MY27: 0 | MZ27: 0 | NA27: 0 | NB27: 0 | NC27: 0 | ND27: 0 | NE27: 0 | NF27: 0 | NG27: 0 | NH27: 0 | NI27: 0 | NJ27: 0 | NK27: 0 | NL27: 0 | NM27: 0 | NN27: 0 | NO27: 0 | NP27: 0 | NQ27: 0 | NR27: 0 | NS27: 0 | NT27: 0 | NU27: 0 | NV27: 0 | NW27: 0 | NX27: 0 | NY27: 0 | NZ27: 0 | OA27: 0 | OB27: 0 | OC27: 0 | OD27: 0 | OE27: 0 | OF27: =$E$27*OF25 -> 0 | OG27: 0 | OH27: 0 | OI27: 0 | OJ27: 0 | OK27: 0 | OL27: 0 | OM27: 0 | ON27: 0 | OO27: 0 | OP27: 0 | OQ27: 0 | OR27: 0 | OS27: 0 | OT27: 0 | OU27: 0 | OV27: 0 | OW27: 0 | OX27: 0 | OY27: 0 | OZ27: 0 | PA27: 0 | PB27: 0 | PC27: 0 | PD27: 0 | PE27: 0 | PF27: 0 | PG27: 0 | PH27: 0 | PI27: 0 | PJ27: 0 | PK27: 0 | PL27: 0 | PM27: 0 | PN27: 0 | PO27: 0 | PP27: 0 | PQ27: 0 | PR27: 0 | PS27: 0 | PT27: 0 | PU27: 0 | PV27: 0 | PW27: 0 | PX27: 0 | PY27: 0 | PZ27: 0 | QA27: 0 | QB27: 0 | QC27: 0 | QD27: 0 | QE27: 0 | QF27: 0 | QG27: 0 | QH27: 0 | QI27: 0 | QJ27: 0 | QK27: 0 | QL27: 0 | QM27: 0 | QN27: 0 | QO27: 0 | QP27: 0 | QQ27: 0 | QR27: =$E$27*QR25 -> 0 | QS27: 0 | QT27: 0 | QU27: 0 | QV27: 0 | QW27: 0 | QX27: 0 | QY27: 0 | QZ27: 0 | RA27: 0 | RB27: 0 | RC27: 0 | RD27: 0 | RE27: 0 | RF27: 0 | RG27: 0 | RH27: 0 | RI27: 0 | RJ27: 0 | RK27: 0 | RL27: 0 | RM27: 0 | RN27: 0 | RO27: 0 | RP27: 0 | RQ27: 0 | RR27: 0 | RS27: 0 | RT27: 0 | RU27: 0 | RV27: 0 | RW27: 0 | RX27: 0 | RY27: 0 | RZ27: 0 | SA27: 0 | SB27: 0 | SC27: 0 | SD27: 0 | SE27: 0 | SF27: 0 | SG27: 0 | SH27: 0 | SI27: 0 | SJ27: 0 | SK27: 0 | SL27: 0 | SM27: 0 | SN27: 0 | SO27: 0 | SP27: 0 | SQ27: 0 | SR27: 0 | SS27: 0 | ST27: 0 | SU27: 0 | SV27: 0 | SW27: 0 | SX27: 0 | SY27: 0 | SZ27: 0 | TA27: 0 | TB27: 0 | TC27: 0
D28: NPV of Terminal - Growth | E28: =NPV(G28,K27:KW27) -> 193.102479 | G28: =Scenarios!D3 -> 0.068
D29: Total Value | E29: =E26+E28 -> 268.5328482
B31: Value Driver Method - V =NI x (1-g/ROE)/(k-g) - Black Box | F31: g | G31: k | H31: ROC
D32: Net Income (t-1) | K32: =K12*K5 -> 0 | L32: 0 | M32: 0 | N32: 0 | O32: 0 | P32: 0 | Q32: 0 | R32: 0 | S32: 0 | T32: 19.36417592 | U32: 0 | V32: 0 | W32: 0 | X32: 0 | Y32: 0 | Z32: 0 | AA32: 0 | AB32: 0 | AC32: 0 | AD32: 0 | AE32: 0 | AF32: 0 | AG32: 0 | AH32: 0 | AI32: 0 | AJ32: 0 | AK32: 0 | AL32: 0 | AM32: 0 | AN32: 0 | AO32: 0 | AP32: 0 | AQ32: 0 | AR32: 0 | AS32: 0 | AT32: 0 | AU32: 0 | AV32: 0 | AW32: 0 | AX32: 0 | AY32: 0 | AZ32: 0 | BA32: 0 | BB32: 0 | BC32: 0 | BD32: 0 | BE32: 0 | BF32: 0 | BG32: 0 | BH32: 0 | BI32: 0 | BJ32: 0 | BK32: 0 | BL32: 0 | BM32: 0 | BN32: 0 | BO32: 0 | BP32: 0 | BQ32: 0 | BR32: 0 | BS32: 0 | BT32: 0 | BU32: 0 | BV32: 0 | BW32: =BW12*BW5 -> 0 | BX32: 0 | BY32: 0 | BZ32: 0 | CA32: 0 | CB32: 0 | CC32: 0 | CD32: 0 | CE32: 0 | CF32: 0 | CG32: 0 | CH32: 0 | CI32: 0 | CJ32: 0 | CK32: 0 | CL32: 0 | CM32: 0 | CN32: 0 | CO32: 0 | CP32: 0 | CQ32: 0 | CR32: 0 | CS32: 0 | CT32: 0 | CU32: 0 | CV32: 0 | CW32: 0 | CX32: 0 | CY32: 0 | CZ32: 0 | DA32: 0 | DB32: 0 | DC32: 0 | DD32: 0 | DE32: 0 | DF32: 0 | DG32: 0 | DH32: 0 | DI32: 0 | DJ32: 0 | DK32: 0 | DL32: 0 | DM32: 0 | DN32: 0 | DO32: 0 | DP32: 0 | DQ32: 0 | DR32: 0 | DS32: 0 | DT32: 0 | DU32: 0 | DV32: 0 | DW32: 0 | DX32: 0 | DY32: 0 | DZ32: 0 | EA32: 0 | EB32: 0 | EC32: 0 | ED32: 0 | EE32: 0 | EF32: 0 | EG32: 0 | EH32: 0 | EI32: =EI12*EI5 -> 0 | EJ32: 0 | EK32: 0 | EL32: 0 | EM32: 0 | EN32: 0 | EO32: 0 | EP32: 0 | EQ32: 0 | ER32: 0 | ES32: 0 | ET32: 0 | EU32: 0 | EV32: 0 | EW32: 0 | EX32: 0 | EY32: 0 | EZ32: 0 | FA32: 0 | FB32: 0 | FC32: 0 | FD32: 0 | FE32: 0 | FF32: 0 | FG32: 0 | FH32: 0 | FI32: 0 | FJ32: 0 | FK32: 0 | FL32: 0 | FM32: 0 | FN32: 0 | FO32: 0 | FP32: 0 | FQ32: 0 | FR32: 0 | FS32: 0 | FT32: 0 | FU32: 0 | FV32: 0 | FW32: 0 | FX32: 0 | FY32: 0 | FZ32: 0 | GA32: 0 | GB32: 0 | GC32: 0 | GD32: 0 | GE32: 0 | GF32: 0 | GG32: 0 | GH32: 0 | GI32: 0 | GJ32: 0 | GK32: 0 | GL32: 0 | GM32: 0 | GN32: 0 | GO32: 0 | GP32: 0 | GQ32: 0 | GR32: 0 | GS32: 0 | GT32: 0 | GU32: =GU12*GU5 -> 0 | GV32: 0 | GW32: 0 | GX32: 0 | GY32: 0 | GZ32: 0 | HA32: 0 | HB32: 0 | HC32: 0 | HD32: 0 | HE32: 0 | HF32: 0 | HG32: 0 | HH32: 0 | HI32: 0 | HJ32: 0 | HK32: 0 | HL32: 0 | HM32: 0 | HN32: 0 | HO32: 0 | HP32: 0 | HQ32: 0 | HR32: 0 | HS32: 0 | HT32: 0 | HU32: 0 | HV32: 0 | HW32: 0 | HX32: 0 | HY32: 0 | HZ32: 0 | IA32: 0 | IB32: 0 | IC32: 0 | ID32: 0 | IE32: 0 | IF32: 0 | IG32: 0 | IH32: 0 | II32: 0 | IJ32: 0 | IK32: 0 | IL32: 0 | IM32: 0 | IN32: 0 | IO32: 0 | IP32: 0 | IQ32: 0 | IR32: 0 | IS32: 0 | IT32: 0 | IU32: 0 | IV32: 0 | IW32: 0 | IX32: 0 | IY32: 0 | IZ32: 0 | JA32: 0 | JB32: 0 | JC32: 0 | JD32: 0 | JE32: 0 | JF32: 0 | JG32: =JG12*JG5 -> 0 | JH32: 0 | JI32: 0 | JJ32: 0 | JK32: 0 | JL32: 0 | JM32: 0 | JN32: 0 | JO32: 0 | JP32: 0 | JQ32: 0 | JR32: 0 | JS32: 0 | JT32: 0 | JU32: 0 | JV32: 0 | JW32: 0 | JX32: 0 | JY32: 0 | JZ32: 0 | KA32: 0 | KB32: 0 | KC32: 0 | KD32: 0 | KE32: 0 | KF32: 0 | KG32: 0 | KH32: 0 | KI32: 0 | KJ32: 0 | KK32: 0 | KL32: 0 | KM32: 0 | KN32: 0 | KO32: 0 | KP32: 0 | KQ32: 0 | KR32: 0 | KS32: 0 | KT32: 0 | KU32: 0 | KV32: 0 | KW32: 0 | KX32: 0 | KY32: 0 | KZ32: 0 | LA32: 0 | LB32: 0 | LC32: 0 | LD32: 0 | LE32: 0 | LF32: 0 | LG32: 0 | LH32: 0 | LI32: 0 | LJ32: 0 | LK32: 0 | LL32: 0 | LM32: 0 | LN32: 0 | LO32: 0 | LP32: 0 | LQ32: 0 | LR32: 0 | LS32: =LS12*LS5 -> 0 | LT32: 0 | LU32: 0 | LV32: 0 | LW32: 0 | LX32: 0 | LY32: 0 | LZ32: 0 | MA32: 0 | MB32: 0 | MC32: 0 | MD32: 0 | ME32: 0 | MF32: 0 | MG32: 0 | MH32: 0 | MI32: 0 | MJ32: 0 | MK32: 0 | ML32: 0 | MM32: 0 | MN32: 0 | MO32: 0 | MP32: 0 | MQ32: 0 | MR32: 0 | MS32: 0 | MT32: 0 | MU32: 0 | MV32: 0 | MW32: 0 | MX32: 0 | MY32: 0 | MZ32: 0 | NA32: 0 | NB32: 0 | NC32: 0 | ND32: 0 | NE32: 0 | NF32: 0 | NG32: 0 | NH32: 0 | NI32: 0 | NJ32: 0 | NK32: 0 | NL32: 0 | NM32: 0 | NN32: 0 | NO32: 0 | NP32: 0 | NQ32: 0 | NR32: 0 | NS32: 0 | NT32: 0 | NU32: 0 | NV32: 0 | NW32: 0 | NX32: 0 | NY32: 0 | NZ32: 0 | OA32: 0 | OB32: 0 | OC32: 0 | OD32: 0 | OE32: =OE12*OE5 -> 0 | OF32: 0 | OG32: 0 | OH32: 0 | OI32: 0 | OJ32: 0 | OK32: 0 | OL32: 0 | OM32: 0 | ON32: 0 | OO32: 0 | OP32: 0 | OQ32: 0 | OR32: 0 | OS32: 0 | OT32: 0 | OU32: 0 | OV32: 0 | OW32: 0 | OX32: 0 | OY32: 0 | OZ32: 0 | PA32: 0 | PB32: 0 | PC32: 0 | PD32: 0 | PE32: 0 | PF32: 0 | PG32: 0 | PH32: 0 | PI32: 0 | PJ32: 0 | PK32: 0 | PL32: 0 | PM32: 0 | PN32: 0 | PO32: 0 | PP32: 0 | PQ32: 0 | PR32: 0 | PS32: 0 | PT32: 0 | PU32: 0 | PV32: 0 | PW32: 0 | PX32: 0 | PY32: 0 | PZ32: 0 | QA32: 0 | QB32: 0 | QC32: 0 | QD32: 0 | QE32: 0 | QF32: 0 | QG32: 0 | QH32: 0 | QI32: 0 | QJ32: 0 | QK32: 0 | QL32: 0 | QM32: 0 | QN32: 0 | QO32: 0 | QP32: 0 | QQ32: =QQ12*QQ5 -> 0 | QR32: 0 | QS32: 0 | QT32: 0 | QU32: 0 | QV32: 0 | QW32: 0 | QX32: 0 | QY32: 0 | QZ32: 0 | RA32: 0 | RB32: 0 | RC32: 0 | RD32: 0 | RE32: 0 | RF32: 0 | RG32: 0 | RH32: 0 | RI32: 0 | RJ32: 0 | RK32: 0 | RL32: 0 | RM32: 0 | RN32: 0 | RO32: 0 | RP32: 0 | RQ32: 0 | RR32: 0 | RS32: 0 | RT32: 0 | RU32: 0 | RV32: 0 | RW32: 0 | RX32: 0 | RY32: 0 | RZ32: 0 | SA32: 0 | SB32: 0 | SC32: 0 | SD32: 0 | SE32: 0 | SF32: 0 | SG32: 0 | SH32: 0 | SI32: 0 | SJ32: 0 | SK32: 0 | SL32: 0 | SM32: 0 | SN32: 0 | SO32: 0 | SP32: 0 | SQ32: 0 | SR32: 0 | SS32: 0 | ST32: 0 | SU32: 0 | SV32: 0 | SW32: 0 | SX32: 0 | SY32: 0 | SZ32: 0 | TA32: 0 | TB32: 0 | TC32: 0
D33: Part 1 - (1-g/ROE)/(k-g) Multiple | E33: =(1-F33/H33)/(G33-F33) -> 13.56589147 | F33: =Scenarios!$H$45 -> 0.025 | G33: =Scenarios!D3 -> 0.068 | H33: =Scenarios!I53 -> 0.06 | K33: =$E$33*K4 -> 13.56589147 | L33: 13.56589147 | M33: 13.56589147 | N33: 13.56589147 | O33: 13.56589147 | P33: 13.56589147 | Q33: 13.56589147 | R33: 13.56589147 | S33: 13.56589147 | T33: 13.56589147 | U33: 0 | V33: 0 | W33: 0 | X33: 0 | Y33: 0 | Z33: 0 | AA33: 0 | AB33: 0 | AC33: 0 | AD33: 0 | AE33: 0 | AF33: 0 | AG33: 0 | AH33: 0 | AI33: 0 | AJ33: 0 | AK33: 0 | AL33: 0 | AM33: 0 | AN33: 0 | AO33: 0 | AP33: 0 | AQ33: 0 | AR33: 0 | AS33: 0 | AT33: 0 | AU33: 0 | AV33: 0 | AW33: 0 | AX33: 0 | AY33: 0 | AZ33: 0 | BA33: 0 | BB33: 0 | BC33: 0 | BD33: 0 | BE33: 0 | BF33: 0 | BG33: 0 | BH33: 0 | BI33: 0 | BJ33: 0 | BK33: 0 | BL33: 0 | BM33: 0 | BN33: 0 | BO33: 0 | BP33: 0 | BQ33: 0 | BR33: 0 | BS33: 0 | BT33: 0 | BU33: 0 | BV33: 0 | BW33: =$E$33*BW4 -> 0 | BX33: 0 | BY33: 0 | BZ33: 0 | CA33: 0 | CB33: 0 | CC33: 0 | CD33: 0 | CE33: 0 | CF33: 0 | CG33: 0 | CH33: 0 | CI33: 0 | CJ33: 0 | CK33: 0 | CL33: 0 | CM33: 0 | CN33: 0 | CO33: 0 | CP33: 0 | CQ33: 0 | CR33: 0 | CS33: 0 | CT33: 0 | CU33: 0 | CV33: 0 | CW33: 0 | CX33: 0 | CY33: 0 | CZ33: 0 | DA33: 0 | DB33: 0 | DC33: 0 | DD33: 0 | DE33: 0 | DF33: 0 | DG33: 0 | DH33: 0 | DI33: 0 | DJ33: 0 | DK33: 0 | DL33: 0 | DM33: 0 | DN33: 0 | DO33: 0 | DP33: 0 | DQ33: 0 | DR33: 0 | DS33: 0 | DT33: 0 | DU33: 0 | DV33: 0 | DW33: 0 | DX33: 0 | DY33: 0 | DZ33: 0 | EA33: 0 | EB33: 0 | EC33: 0 | ED33: 0 | EE33: 0 | EF33: 0 | EG33: 0 | EH33: 0 | EI33: =$E$33*EI4 -> 0 | EJ33: 0 | EK33: 0 | EL33: 0 | EM33: 0 | EN33: 0 | EO33: 0 | EP33: 0 | EQ33: 0 | ER33: 0 | ES33: 0 | ET33: 0 | EU33: 0 | EV33: 0 | EW33: 0 | EX33: 0 | EY33: 0 | EZ33: 0 | FA33: 0 | FB33: 0 | FC33: 0 | FD33: 0 | FE33: 0 | FF33: 0 | FG33: 0 | FH33: 0 | FI33: 0 | FJ33: 0 | FK33: 0 | FL33: 0 | FM33: 0 | FN33: 0 | FO33: 0 | FP33: 0 | FQ33: 0 | FR33: 0 | FS33: 0 | FT33: 0 | FU33: 0 | FV33: 0 | FW33: 0 | FX33: 0 | FY33: 0 | FZ33: 0 | GA33: 0 | GB33: 0 | GC33: 0 | GD33: 0 | GE33: 0 | GF33: 0 | GG33: 0 | GH33: 0 | GI33: 0 | GJ33: 0 | GK33: 0 | GL33: 0 | GM33: 0 | GN33: 0 | GO33: 0 | GP33: 0 | GQ33: 0 | GR33: 0 | GS33: 0 | GT33: 0 | GU33: =$E$33*GU4 -> 0 | GV33: 0 | GW33: 0 | GX33: 0 | GY33: 0 | GZ33: 0 | HA33: 0 | HB33: 0 | HC33: 0 | HD33: 0 | HE33: 0 | HF33: 0 | HG33: 0 | HH33: 0 | HI33: 0 | HJ33: 0 | HK33: 0 | HL33: 0 | HM33: 0 | HN33: 0 | HO33: 0 | HP33: 0 | HQ33: 0 | HR33: 0 | HS33: 0 | HT33: 0 | HU33: 0 | HV33: 0 | HW33: 0 | HX33: 0 | HY33: 0 | HZ33: 0 | IA33: 0 | IB33: 0 | IC33: 0 | ID33: 0 | IE33: 0 | IF33: 0 | IG33: 0 | IH33: 0 | II33: 0 | IJ33: 0 | IK33: 0 | IL33: 0 | IM33: 0 | IN33: 0 | IO33: 0 | IP33: 0 | IQ33: 0 | IR33: 0 | IS33: 0 | IT33: 0 | IU33: 0 | IV33: 0 | IW33: 0 | IX33: 0 | IY33: 0 | IZ33: 0 | JA33: 0 | JB33: 0 | JC33: 0 | JD33: 0 | JE33: 0 | JF33: 0 | JG33: =$E$33*JG4 -> 0 | JH33: 0 | JI33: 0 | JJ33: 0 | JK33: 0 | JL33: 0 | JM33: 0 | JN33: 0 | JO33: 0 | JP33: 0 | JQ33: 0 | JR33: 0 | JS33: 0 | JT33: 0 | JU33: 0 | JV33: 0 | JW33: 0 | JX33: 0 | JY33: 0 | JZ33: 0 | KA33: 0 | KB33: 0 | KC33: 0 | KD33: 0 | KE33: 0 | KF33: 0 | KG33: 0 | KH33: 0 | KI33: 0 | KJ33: 0 | KK33: 0 | KL33: 0 | KM33: 0 | KN33: 0 | KO33: 0 | KP33: 0 | KQ33: 0 | KR33: 0 | KS33: 0 | KT33: 0 | KU33: 0 | KV33: 0 | KW33: 0 | KX33: 0 | KY33: 0 | KZ33: 0 | LA33: 0 | LB33: 0 | LC33: 0 | LD33: 0 | LE33: 0 | LF33: 0 | LG33: 0 | LH33: 0 | LI33: 0 | LJ33: 0 | LK33: 0 | LL33: 0 | LM33: 0 | LN33: 0 | LO33: 0 | LP33: 0 | LQ33: 0 | LR33: 0 | LS33: =$E$33*LS4 -> 0 | LT33: 0 | LU33: 0 | LV33: 0 | LW33: 0 | LX33: 0 | LY33: 0 | LZ33: 0 | MA33: 0 | MB33: 0 | MC33: 0 | MD33: 0 | ME33: 0 | MF33: 0 | MG33: 0 | MH33: 0 | MI33: 0 | MJ33: 0 | MK33: 0 | ML33: 0 | MM33: 0 | MN33: 0 | MO33: 0 | MP33: 0 | MQ33: 0 | MR33: 0 | MS33: 0 | MT33: 0 | MU33: 0 | MV33: 0 | MW33: 0 | MX33: 0 | MY33: 0 | MZ33: 0 | NA33: 0 | NB33: 0 | NC33: 0 | ND33: 0 | NE33: 0 | NF33: 0 | NG33: 0 | NH33: 0 | NI33: 0 | NJ33: 0 | NK33: 0 | NL33: 0 | NM33: 0 | NN33: 0 | NO33: 0 | NP33: 0 | NQ33: 0 | NR33: 0 | NS33: 0 | NT33: 0 | NU33: 0 | NV33: 0 | NW33: 0 | NX33: 0 | NY33: 0 | NZ33: 0 | OA33: 0 | OB33: 0 | OC33: 0 | OD33: 0 | OE33: =$E$33*OE4 -> 0 | OF33: 0 | OG33: 0 | OH33: 0 | OI33: 0 | OJ33: 0 | OK33: 0 | OL33: 0 | OM33: 0 | ON33: 0 | OO33: 0 | OP33: 0 | OQ33: 0 | OR33: 0 | OS33: 0 | OT33: 0 | OU33: 0 | OV33: 0 | OW33: 0 | OX33: 0 | OY33: 0 | OZ33: 0 | PA33: 0 | PB33: 0 | PC33: 0 | PD33: 0 | PE33: 0 | PF33: 0 | PG33: 0 | PH33: 0 | PI33: 0 | PJ33: 0 | PK33: 0 | PL33: 0 | PM33: 0 | PN33: 0 | PO33: 0 | PP33: 0 | PQ33: 0 | PR33: 0 | PS33: 0 | PT33: 0 | PU33: 0 | PV33: 0 | PW33: 0 | PX33: 0 | PY33: 0 | PZ33: 0 | QA33: 0 | QB33: 0 | QC33: 0 | QD33: 0 | QE33: 0 | QF33: 0 | QG33: 0 | QH33: 0 | QI33: 0 | QJ33: 0 | QK33: 0 | QL33: 0 | QM33: 0 | QN33: 0 | QO33: 0 | QP33: 0 | QQ33: =$E$33*QQ4 -> 0 | QR33: 0 | QS33: 0 | QT33: 0 | QU33: 0 | QV33: 0 | QW33: 0 | QX33: 0 | QY33: 0 | QZ33: 0 | RA33: 0 | RB33: 0 | RC33: 0 | RD33: 0 | RE33: 0 | RF33: 0 | RG33: 0 | RH33: 0 | RI33: 0 | RJ33: 0 | RK33: 0 | RL33: 0 | RM33: 0 | RN33: 0 | RO33: 0 | RP33: 0 | RQ33: 0 | RR33: 0 | RS33: 0 | RT33: 0 | RU33: 0 | RV33: 0 | RW33: 0 | RX33: 0 | RY33: 0 | RZ33: 0 | SA33: 0 | SB33: 0 | SC33: 0 | SD33: 0 | SE33: 0 | SF33: 0 | SG33: 0 | SH33: 0 | SI33: 0 | SJ33: 0 | SK33: 0 | SL33: 0 | SM33: 0 | SN33: 0 | SO33: 0 | SP33: 0 | SQ33: 0 | SR33: 0 | SS33: 0 | ST33: 0 | SU33: 0 | SV33: 0 | SW33: 0 | SX33: 0 | SY33: 0 | SZ33: 0 | TA33: 0 | TB33: 0 | TC33: 0
D34: Part 1a - Muliply by (1+g) | E34: =E33*(1+F34) -> 13.90503876 | F34: =F33 -> 0.025 | K34: =$E$34*K4 -> 13.90503876 | L34: 13.90503876 | M34: 13.90503876 | N34: 13.90503876 | O34: 13.90503876 | P34: 13.90503876 | Q34: 13.90503876 | R34: 13.90503876 | S34: 13.90503876 | T34: 13.90503876 | U34: 0 | V34: 0 | W34: 0 | X34: 0 | Y34: 0 | Z34: 0 | AA34: 0 | AB34: 0 | AC34: 0 | AD34: 0 | AE34: 0 | AF34: 0 | AG34: 0 | AH34: 0 | AI34: 0 | AJ34: 0 | AK34: 0 | AL34: 0 | AM34: 0 | AN34: 0 | AO34: 0 | AP34: 0 | AQ34: 0 | AR34: 0 | AS34: 0 | AT34: 0 | AU34: 0 | AV34: 0 | AW34: 0 | AX34: 0 | AY34: 0 | AZ34: 0 | BA34: 0 | BB34: 0 | BC34: 0 | BD34: 0 | BE34: 0 | BF34: 0 | BG34: 0 | BH34: 0 | BI34: 0 | BJ34: 0 | BK34: 0 | BL34: 0 | BM34: 0 | BN34: 0 | BO34: 0 | BP34: 0 | BQ34: 0 | BR34: 0 | BS34: 0 | BT34: 0 | BU34: 0 | BV34: 0 | BW34: =$E$34*BW4 -> 0 | BX34: 0 | BY34: 0 | BZ34: 0 | CA34: 0 | CB34: 0 | CC34: 0 | CD34: 0 | CE34: 0 | CF34: 0 | CG34: 0 | CH34: 0 | CI34: 0 | CJ34: 0 | CK34: 0 | CL34: 0 | CM34: 0 | CN34: 0 | CO34: 0 | CP34: 0 | CQ34: 0 | CR34: 0 | CS34: 0 | CT34: 0 | CU34: 0 | CV34: 0 | CW34: 0 | CX34: 0 | CY34: 0 | CZ34: 0 | DA34: 0 | DB34: 0 | DC34: 0 | DD34: 0 | DE34: 0 | DF34: 0 | DG34: 0 | DH34: 0 | DI34: 0 | DJ34: 0 | DK34: 0 | DL34: 0 | DM34: 0 | DN34: 0 | DO34: 0 | DP34: 0 | DQ34: 0 | DR34: 0 | DS34: 0 | DT34: 0 | DU34: 0 | DV34: 0 | DW34: 0 | DX34: 0 | DY34: 0 | DZ34: 0 | EA34: 0 | EB34: 0 | EC34: 0 | ED34: 0 | EE34: 0 | EF34: 0 | EG34: 0 | EH34: 0 | EI34: =$E$34*EI4 -> 0 | EJ34: 0 | EK34: 0 | EL34: 0 | EM34: 0 | EN34: 0 | EO34: 0 | EP34: 0 | EQ34: 0 | ER34: 0 | ES34: 0 | ET34: 0 | EU34: 0 | EV34: 0 | EW34: 0 | EX34: 0 | EY34: 0 | EZ34: 0 | FA34: 0 | FB34: 0 | FC34: 0 | FD34: 0 | FE34: 0 | FF34: 0 | FG34: 0 | FH34: 0 | FI34: 0 | FJ34: 0 | FK34: 0 | FL34: 0 | FM34: 0 | FN34: 0 | FO34: 0 | FP34: 0 | FQ34: 0 | FR34: 0 | FS34: 0 | FT34: 0 | FU34: 0 | FV34: 0 | FW34: 0 | FX34: 0 | FY34: 0 | FZ34: 0 | GA34: 0 | GB34: 0 | GC34: 0 | GD34: 0 | GE34: 0 | GF34: 0 | GG34: 0 | GH34: 0 | GI34: 0 | GJ34: 0 | GK34: 0 | GL34: 0 | GM34: 0 | GN34: 0 | GO34: 0 | GP34: 0 | GQ34: 0 | GR34: 0 | GS34: 0 | GT34: 0 | GU34: =$E$34*GU4 -> 0 | GV34: 0 | GW34: 0 | GX34: 0 | GY34: 0 | GZ34: 0 | HA34: 0 | HB34: 0 | HC34: 0 | HD34: 0 | HE34: 0 | HF34: 0 | HG34: 0 | HH34: 0 | HI34: 0 | HJ34: 0 | HK34: 0 | HL34: 0 | HM34: 0 | HN34: 0 | HO34: 0 | HP34: 0 | HQ34: 0 | HR34: 0 | HS34: 0 | HT34: 0 | HU34: 0 | HV34: 0 | HW34: 0 | HX34: 0 | HY34: 0 | HZ34: 0 | IA34: 0 | IB34: 0 | IC34: 0 | ID34: 0 | IE34: 0 | IF34: 0 | IG34: 0 | IH34: 0 | II34: 0 | IJ34: 0 | IK34: 0 | IL34: 0 | IM34: 0 | IN34: 0 | IO34: 0 | IP34: 0 | IQ34: 0 | IR34: 0 | IS34: 0 | IT34: 0 | IU34: 0 | IV34: 0 | IW34: 0 | IX34: 0 | IY34: 0 | IZ34: 0 | JA34: 0 | JB34: 0 | JC34: 0 | JD34: 0 | JE34: 0 | JF34: 0 | JG34: =$E$34*JG4 -> 0 | JH34: 0 | JI34: 0 | JJ34: 0 | JK34: 0 | JL34: 0 | JM34: 0 | JN34: 0 | JO34: 0 | JP34: 0 | JQ34: 0 | JR34: 0 | JS34: 0 | JT34: 0 | JU34: 0 | JV34: 0 | JW34: 0 | JX34: 0 | JY34: 0 | JZ34: 0 | KA34: 0 | KB34: 0 | KC34: 0 | KD34: 0 | KE34: 0 | KF34: 0 | KG34: 0 | KH34: 0 | KI34: 0 | KJ34: 0 | KK34: 0 | KL34: 0 | KM34: 0 | KN34: 0 | KO34: 0 | KP34: 0 | KQ34: 0 | KR34: 0 | KS34: 0 | KT34: 0 | KU34: 0 | KV34: 0 | KW34: 0 | KX34: 0 | KY34: 0 | KZ34: 0 | LA34: 0 | LB34: 0 | LC34: 0 | LD34: 0 | LE34: 0 | LF34: 0 | LG34: 0 | LH34: 0 | LI34: 0 | LJ34: 0 | LK34: 0 | LL34: 0 | LM34: 0 | LN34: 0 | LO34: 0 | LP34: 0 | LQ34: 0 | LR34: 0 | LS34: =$E$34*LS4 -> 0 | LT34: 0 | LU34: 0 | LV34: 0 | LW34: 0 | LX34: 0 | LY34: 0 | LZ34: 0 | MA34: 0 | MB34: 0 | MC34: 0 | MD34: 0 | ME34: 0 | MF34: 0 | MG34: 0 | MH34: 0 | MI34: 0 | MJ34: 0 | MK34: 0 | ML34: 0 | MM34: 0 | MN34: 0 | MO34: 0 | MP34: 0 | MQ34: 0 | MR34: 0 | MS34: 0 | MT34: 0 | MU34: 0 | MV34: 0 | MW34: 0 | MX34: 0 | MY34: 0 | MZ34: 0 | NA34: 0 | NB34: 0 | NC34: 0 | ND34: 0 | NE34: 0 | NF34: 0 | NG34: 0 | NH34: 0 | NI34: 0 | NJ34: 0 | NK34: 0 | NL34: 0 | NM34: 0 | NN34: 0 | NO34: 0 | NP34: 0 | NQ34: 0 | NR34: 0 | NS34: 0 | NT34: 0 | NU34: 0 | NV34: 0 | NW34: 0 | NX34: 0 | NY34: 0 | NZ34: 0 | OA34: 0 | OB34: 0 | OC34: 0 | OD34: 0 | OE34: =$E$34*OE4 -> 0 | OF34: 0 | OG34: 0 | OH34: 0 | OI34: 0 | OJ34: 0 | OK34: 0 | OL34: 0 | OM34: 0 | ON34: 0 | OO34: 0 | OP34: 0 | OQ34: 0 | OR34: 0 | OS34: 0 | OT34: 0 | OU34: 0 | OV34: 0 | OW34: 0 | OX34: 0 | OY34: 0 | OZ34: 0 | PA34: 0 | PB34: 0 | PC34: 0 | PD34: 0 | PE34: 0 | PF34: 0 | PG34: 0 | PH34: 0 | PI34: 0 | PJ34: 0 | PK34: 0 | PL34: 0 | PM34: 0 | PN34: 0 | PO34: 0 | PP34: 0 | PQ34: 0 | PR34: 0 | PS34: 0 | PT34: 0 | PU34: 0 | PV34: 0 | PW34: 0 | PX34: 0 | PY34: 0 | PZ34: 0 | QA34: 0 | QB34: 0 | QC34: 0 | QD34: 0 | QE34: 0 | QF34: 0 | QG34: 0 | QH34: 0 | QI34: 0 | QJ34: 0 | QK34: 0 | QL34: 0 | QM34: 0 | QN34: 0 | QO34: 0 | QP34: 0 | QQ34: =$E$34*QQ4 -> 0 | QR34: 0 | QS34: 0 | QT34: 0 | QU34: 0 | QV34: 0 | QW34: 0 | QX34: 0 | QY34: 0 | QZ34: 0 | RA34: 0 | RB34: 0 | RC34: 0 | RD34: 0 | RE34: 0 | RF34: 0 | RG34: 0 | RH34: 0 | RI34: 0 | RJ34: 0 | RK34: 0 | RL34: 0 | RM34: 0 | RN34: 0 | RO34: 0 | RP34: 0 | RQ34: 0 | RR34: 0 | RS34: 0 | RT34: 0 | RU34: 0 | RV34: 0 | RW34: 0 | RX34: 0 | RY34: 0 | RZ34: 0 | SA34: 0 | SB34: 0 | SC34: 0 | SD34: 0 | SE34: 0 | SF34: 0 | SG34: 0 | SH34: 0 | SI34: 0 | SJ34: 0 | SK34: 0 | SL34: 0 | SM34: 0 | SN34: 0 | SO34: 0 | SP34: 0 | SQ34: 0 | SR34: 0 | SS34: 0 | ST34: 0 | SU34: 0 | SV34: 0 | SW34: 0 | SX34: 0 | SY34: 0 | SZ34: 0 | TA34: 0 | TB34: 0 | TC34: 0
D35: Part 2 - TV =Part 1 x NI | K35: =K32*K34*K5 -> 0 | L35: 0 | M35: 0 | N35: 0 | O35: 0 | P35: 0 | Q35: 0 | R35: 0 | S35: 0 | T35: 269.2596167 | U35: 0 | V35: 0 | W35: 0 | X35: 0 | Y35: 0 | Z35: 0 | AA35: 0 | AB35: 0 | AC35: 0 | AD35: 0 | AE35: 0 | AF35: 0 | AG35: 0 | AH35: 0 | AI35: 0 | AJ35: 0 | AK35: 0 | AL35: 0 | AM35: 0 | AN35: 0 | AO35: 0 | AP35: 0 | AQ35: 0 | AR35: 0 | AS35: 0 | AT35: 0 | AU35: 0 | AV35: 0 | AW35: 0 | AX35: 0 | AY35: 0 | AZ35: 0 | BA35: 0 | BB35: 0 | BC35: 0 | BD35: 0 | BE35: 0 | BF35: 0 | BG35: 0 | BH35: 0 | BI35: 0 | BJ35: 0 | BK35: 0 | BL35: 0 | BM35: 0 | BN35: 0 | BO35: 0 | BP35: 0 | BQ35: 0 | BR35: 0 | BS35: 0 | BT35: 0 | BU35: 0 | BV35: 0 | BW35: =BW32*BW34*BW5 -> 0 | BX35: 0 | BY35: 0 | BZ35: 0 | CA35: 0 | CB35: 0 | CC35: 0 | CD35: 0 | CE35: 0 | CF35: 0 | CG35: 0 | CH35: 0 | CI35: 0 | CJ35: 0 | CK35: 0 | CL35: 0 | CM35: 0 | CN35: 0 | CO35: 0 | CP35: 0 | CQ35: 0 | CR35: 0 | CS35: 0 | CT35: 0 | CU35: 0 | CV35: 0 | CW35: 0 | CX35: 0 | CY35: 0 | CZ35: 0 | DA35: 0 | DB35: 0 | DC35: 0 | DD35: 0 | DE35: 0 | DF35: 0 | DG35: 0 | DH35: 0 | DI35: 0 | DJ35: 0 | DK35: 0 | DL35: 0 | DM35: 0 | DN35: 0 | DO35: 0 | DP35: 0 | DQ35: 0 | DR35: 0 | DS35: 0 | DT35: 0 | DU35: 0 | DV35: 0 | DW35: 0 | DX35: 0 | DY35: 0 | DZ35: 0 | EA35: 0 | EB35: 0 | EC35: 0 | ED35: 0 | EE35: 0 | EF35: 0 | EG35: 0 | EH35: 0 | EI35: =EI32*EI34*EI5 -> 0 | EJ35: 0 | EK35: 0 | EL35: 0 | EM35: 0 | EN35: 0 | EO35: 0 | EP35: 0 | EQ35: 0 | ER35: 0 | ES35: 0 | ET35: 0 | EU35: 0 | EV35: 0 | EW35: 0 | EX35: 0 | EY35: 0 | EZ35: 0 | FA35: 0 | FB35: 0 | FC35: 0 | FD35: 0 | FE35: 0 | FF35: 0 | FG35: 0 | FH35: 0 | FI35: 0 | FJ35: 0 | FK35: 0 | FL35: 0 | FM35: 0 | FN35: 0 | FO35: 0 | FP35: 0 | FQ35: 0 | FR35: 0 | FS35: 0 | FT35: 0 | FU35: 0 | FV35: 0 | FW35: 0 | FX35: 0 | FY35: 0 | FZ35: 0 | GA35: 0 | GB35: 0 | GC35: 0 | GD35: 0 | GE35: 0 | GF35: 0 | GG35: 0 | GH35: 0 | GI35: 0 | GJ35: 0 | GK35: 0 | GL35: 0 | GM35: 0 | GN35: 0 | GO35: 0 | GP35: 0 | GQ35: 0 | GR35: 0 | GS35: 0 | GT35: 0 | GU35: =GU32*GU34*GU5 -> 0 | GV35: 0 | GW35: 0 | GX35: 0 | GY35: 0 | GZ35: 0 | HA35: 0 | HB35: 0 | HC35: 0 | HD35: 0 | HE35: 0 | HF35: 0 | HG35: 0 | HH35: 0 | HI35: 0 | HJ35: 0 | HK35: 0 | HL35: 0 | HM35: 0 | HN35: 0 | HO35: 0 | HP35: 0 | HQ35: 0 | HR35: 0 | HS35: 0 | HT35: 0 | HU35: 0 | HV35: 0 | HW35: 0 | HX35: 0 | HY35: 0 | HZ35: 0 | IA35: 0 | IB35: 0 | IC35: 0 | ID35: 0 | IE35: 0 | IF35: 0 | IG35: 0 | IH35: 0 | II35: 0 | IJ35: 0 | IK35: 0 | IL35: 0 | IM35: 0 | IN35: 0 | IO35: 0 | IP35: 0 | IQ35: 0 | IR35: 0 | IS35: 0 | IT35: 0 | IU35: 0 | IV35: 0 | IW35: 0 | IX35: 0 | IY35: 0 | IZ35: 0 | JA35: 0 | JB35: 0 | JC35: 0 | JD35: 0 | JE35: 0 | JF35: 0 | JG35: =JG32*JG34*JG5 -> 0 | JH35: 0 | JI35: 0 | JJ35: 0 | JK35: 0 | JL35: 0 | JM35: 0 | JN35: 0 | JO35: 0 | JP35: 0 | JQ35: 0 | JR35: 0 | JS35: 0 | JT35: 0 | JU35: 0 | JV35: 0 | JW35: 0 | JX35: 0 | JY35: 0 | JZ35: 0 | KA35: 0 | KB35: 0 | KC35: 0 | KD35: 0 | KE35: 0 | KF35: 0 | KG35: 0 | KH35: 0 | KI35: 0 | KJ35: 0 | KK35: 0 | KL35: 0 | KM35: 0 | KN35: 0 | KO35: 0 | KP35: 0 | KQ35: 0 | KR35: 0 | KS35: 0 | KT35: 0 | KU35: 0 | KV35: 0 | KW35: 0 | KX35: 0 | KY35: 0 | KZ35: 0 | LA35: 0 | LB35: 0 | LC35: 0 | LD35: 0 | LE35: 0 | LF35: 0 | LG35: 0 | LH35: 0 | LI35: 0 | LJ35: 0 | LK35: 0 | LL35: 0 | LM35: 0 | LN35: 0 | LO35: 0 | LP35: 0 | LQ35: 0 | LR35: 0 | LS35: =LS32*LS34*LS5 -> 0 | LT35: 0 | LU35: 0 | LV35: 0 | LW35: 0 | LX35: 0 | LY35: 0 | LZ35: 0 | MA35: 0 | MB35: 0 | MC35: 0 | MD35: 0 | ME35: 0 | MF35: 0 | MG35: 0 | MH35: 0 | MI35: 0 | MJ35: 0 | MK35: 0 | ML35: 0 | MM35: 0 | MN35: 0 | MO35: 0 | MP35: 0 | MQ35: 0 | MR35: 0 | MS35: 0 | MT35: 0 | MU35: 0 | MV35: 0 | MW35: 0 | MX35: 0 | MY35: 0 | MZ35: 0 | NA35: 0 | NB35: 0 | NC35: 0 | ND35: 0 | NE35: 0 | NF35: 0 | NG35: 0 | NH35: 0 | NI35: 0 | NJ35: 0 | NK35: 0 | NL35: 0 | NM35: 0 | NN35: 0 | NO35: 0 | NP35: 0 | NQ35: 0 | NR35: 0 | NS35: 0 | NT35: 0 | NU35: 0 | NV35: 0 | NW35: 0 | NX35: 0 | NY35: 0 | NZ35: 0 | OA35: 0 | OB35: 0 | OC35: 0 | OD35: 0 | OE35: =OE32*OE34*OE5 -> 0 | OF35: 0 | OG35: 0 | OH35: 0 | OI35: 0 | OJ35: 0 | OK35: 0 | OL35: 0 | OM35: 0 | ON35: 0 | OO35: 0 | OP35: 0 | OQ35: 0 | OR35: 0 | OS35: 0 | OT35: 0 | OU35: 0 | OV35: 0 | OW35: 0 | OX35: 0 | OY35: 0 | OZ35: 0 | PA35: 0 | PB35: 0 | PC35: 0 | PD35: 0 | PE35: 0 | PF35: 0 | PG35: 0 | PH35: 0 | PI35: 0 | PJ35: 0 | PK35: 0 | PL35: 0 | PM35: 0 | PN35: 0 | PO35: 0 | PP35: 0 | PQ35: 0 | PR35: 0 | PS35: 0 | PT35: 0 | PU35: 0 | PV35: 0 | PW35: 0 | PX35: 0 | PY35: 0 | PZ35: 0 | QA35: 0 | QB35: 0 | QC35: 0 | QD35: 0 | QE35: 0 | QF35: 0 | QG35: 0 | QH35: 0 | QI35: 0 | QJ35: 0 | QK35: 0 | QL35: 0 | QM35: 0 | QN35: 0 | QO35: 0 | QP35: 0 | QQ35: =QQ32*QQ34*QQ5 -> 0 | QR35: 0 | QS35: 0 | QT35: 0 | QU35: 0 | QV35: 0 | QW35: 0 | QX35: 0 | QY35: 0 | QZ35: 0 | RA35: 0 | RB35: 0 | RC35: 0 | RD35: 0 | RE35: 0 | RF35: 0 | RG35: 0 | RH35: 0 | RI35: 0 | RJ35: 0 | RK35: 0 | RL35: 0 | RM35: 0 | RN35: 0 | RO35: 0 | RP35: 0 | RQ35: 0 | RR35: 0 | RS35: 0 | RT35: 0 | RU35: 0 | RV35: 0 | RW35: 0 | RX35: 0 | RY35: 0 | RZ35: 0 | SA35: 0 | SB35: 0 | SC35: 0 | SD35: 0 | SE35: 0 | SF35: 0 | SG35: 0 | SH35: 0 | SI35: 0 | SJ35: 0 | SK35: 0 | SL35: 0 | SM35: 0 | SN35: 0 | SO35: 0 | SP35: 0 | SQ35: 0 | SR35: 0 | SS35: 0 | ST35: 0 | SU35: 0 | SV35: 0 | SW35: 0 | SX35: 0 | SY35: 0 | SZ35: 0 | TA35: 0 | TB35: 0 | TC35: =TC32*TC34*TC5 -> 0
D36: PV of Terminal Value | E36: =NPV(G36,K35:KW35) -> 139.4629015 | G36: =Scenarios!D3 -> 0.068
D37: Explict Period Value | E37: =E26 -> 75.43036916
D38: Total Value | E38: =SUM(E36:E37) -> 214.8932707
B40: Value Driver Method - Sudden Change (Multiply by Inv Cap x ROIC) | F40: g | G40: k | H40: ROC
D41: Opening Balance of Investment (Invested Capital) | K41: =K5*K11 -> 0 | L41: 0 | M41: 0 | N41: 0 | O41: 0 | P41: 0 | Q41: 0 | R41: 0 | S41: 0 | T41: 148.9551994 | U41: 0 | V41: 0 | W41: 0 | X41: 0 | Y41: 0 | Z41: 0 | AA41: 0 | AB41: 0 | AC41: 0 | AD41: 0 | AE41: 0 | AF41: 0 | AG41: 0 | AH41: 0 | AI41: 0 | AJ41: 0 | AK41: 0 | AL41: 0 | AM41: 0 | AN41: 0 | AO41: 0 | AP41: 0 | AQ41: 0 | AR41: 0 | AS41: 0 | AT41: 0 | AU41: 0 | AV41: 0 | AW41: 0 | AX41: 0 | AY41: 0 | AZ41: 0 | BA41: 0 | BB41: 0 | BC41: 0 | BD41: 0 | BE41: 0 | BF41: 0 | BG41: 0 | BH41: 0 | BI41: 0 | BJ41: 0 | BK41: 0 | BL41: 0 | BM41: 0 | BN41: 0 | BO41: 0 | BP41: 0 | BQ41: 0 | BR41: 0 | BS41: 0 | BT41: 0 | BU41: 0 | BV41: 0 | BW41: =BW5*BW11 -> 0 | BX41: 0 | BY41: 0 | BZ41: 0 | CA41: 0 | CB41: 0 | CC41: 0 | CD41: 0 | CE41: 0 | CF41: 0 | CG41: 0 | CH41: 0 | CI41: 0 | CJ41: 0 | CK41: 0 | CL41: 0 | CM41: 0 | CN41: 0 | CO41: 0 | CP41: 0 | CQ41: 0 | CR41: 0 | CS41: 0 | CT41: 0 | CU41: 0 | CV41: 0 | CW41: 0 | CX41: 0 | CY41: 0 | CZ41: 0 | DA41: 0 | DB41: 0 | DC41: 0 | DD41: 0 | DE41: 0 | DF41: 0 | DG41: 0 | DH41: 0 | DI41: 0 | DJ41: 0 | DK41: 0 | DL41: 0 | DM41: 0 | DN41: 0 | DO41: 0 | DP41: 0 | DQ41: 0 | DR41: 0 | DS41: 0 | DT41: 0 | DU41: 0 | DV41: 0 | DW41: 0 | DX41: 0 | DY41: 0 | DZ41: 0 | EA41: 0 | EB41: 0 | EC41: 0 | ED41: 0 | EE41: 0 | EF41: 0 | EG41: 0 | EH41: 0 | EI41: =EI5*EI11 -> 0 | EJ41: 0 | EK41: 0 | EL41: 0 | EM41: 0 | EN41: 0 | EO41: 0 | EP41: 0 | EQ41: 0 | ER41: 0 | ES41: 0 | ET41: 0 | EU41: 0 | EV41: 0 | EW41: 0 | EX41: 0 | EY41: 0 | EZ41: 0 | FA41: 0 | FB41: 0 | FC41: 0 | FD41: 0 | FE41: 0 | FF41: 0 | FG41: 0 | FH41: 0 | FI41: 0 | FJ41: 0 | FK41: 0 | FL41: 0 | FM41: 0 | FN41: 0 | FO41: 0 | FP41: 0 | FQ41: 0 | FR41: 0 | FS41: 0 | FT41: 0 | FU41: 0 | FV41: 0 | FW41: 0 | FX41: 0 | FY41: 0 | FZ41: 0 | GA41: 0 | GB41: 0 | GC41: 0 | GD41: 0 | GE41: 0 | GF41: 0 | GG41: 0 | GH41: 0 | GI41: 0 | GJ41: 0 | GK41: 0 | GL41: 0 | GM41: 0 | GN41: 0 | GO41: 0 | GP41: 0 | GQ41: 0 | GR41: 0 | GS41: 0 | GT41: 0 | GU41: =GU5*GU11 -> 0 | GV41: 0 | GW41: 0 | GX41: 0 | GY41: 0 | GZ41: 0 | HA41: 0 | HB41: 0 | HC41: 0 | HD41: 0 | HE41: 0 | HF41: 0 | HG41: 0 | HH41: 0 | HI41: 0 | HJ41: 0 | HK41: 0 | HL41: 0 | HM41: 0 | HN41: 0 | HO41: 0 | HP41: 0 | HQ41: 0 | HR41: 0 | HS41: 0 | HT41: 0 | HU41: 0 | HV41: 0 | HW41: 0 | HX41: 0 | HY41: 0 | HZ41: 0 | IA41: 0 | IB41: 0 | IC41: 0 | ID41: 0 | IE41: 0 | IF41: 0 | IG41: 0 | IH41: 0 | II41: 0 | IJ41: 0 | IK41: 0 | IL41: 0 | IM41: 0 | IN41: 0 | IO41: 0 | IP41: 0 | IQ41: 0 | IR41: 0 | IS41: 0 | IT41: 0 | IU41: 0 | IV41: 0 | IW41: 0 | IX41: 0 | IY41: 0 | IZ41: 0 | JA41: 0 | JB41: 0 | JC41: 0 | JD41: 0 | JE41: 0 | JF41: 0 | JG41: =JG5*JG11 -> 0 | JH41: 0 | JI41: 0 | JJ41: 0 | JK41: 0 | JL41: 0 | JM41: 0 | JN41: 0 | JO41: 0 | JP41: 0 | JQ41: 0 | JR41: 0 | JS41: 0 | JT41: 0 | JU41: 0 | JV41: 0 | JW41: 0 | JX41: 0 | JY41: 0 | JZ41: 0 | KA41: 0 | KB41: 0 | KC41: 0 | KD41: 0 | KE41: 0 | KF41: 0 | KG41: 0 | KH41: 0 | KI41: 0 | KJ41: 0 | KK41: 0 | KL41: 0 | KM41: 0 | KN41: 0 | KO41: 0 | KP41: 0 | KQ41: 0 | KR41: 0 | KS41: 0 | KT41: 0 | KU41: 0 | KV41: 0 | KW41: 0 | KX41: 0 | KY41: 0 | KZ41: 0 | LA41: 0 | LB41: 0 | LC41: 0 | LD41: 0 | LE41: 0 | LF41: 0 | LG41: 0 | LH41: 0 | LI41: 0 | LJ41: 0 | LK41: 0 | LL41: 0 | LM41: 0 | LN41: 0 | LO41: 0 | LP41: 0 | LQ41: 0 | LR41: 0 | LS41: =LS5*LS11 -> 0 | LT41: 0 | LU41: 0 | LV41: 0 | LW41: 0 | LX41: 0 | LY41: 0 | LZ41: 0 | MA41: 0 | MB41: 0 | MC41: 0 | MD41: 0 | ME41: 0 | MF41: 0 | MG41: 0 | MH41: 0 | MI41: 0 | MJ41: 0 | MK41: 0 | ML41: 0 | MM41: 0 | MN41: 0 | MO41: 0 | MP41: 0 | MQ41: 0 | MR41: 0 | MS41: 0 | MT41: 0 | MU41: 0 | MV41: 0 | MW41: 0 | MX41: 0 | MY41: 0 | MZ41: 0 | NA41: 0 | NB41: 0 | NC41: 0 | ND41: 0 | NE41: 0 | NF41: 0 | NG41: 0 | NH41: 0 | NI41: 0 | NJ41: 0 | NK41: 0 | NL41: 0 | NM41: 0 | NN41: 0 | NO41: 0 | NP41: 0 | NQ41: 0 | NR41: 0 | NS41: 0 | NT41: 0 | NU41: 0 | NV41: 0 | NW41: 0 | NX41: 0 | NY41: 0 | NZ41: 0 | OA41: 0 | OB41: 0 | OC41: 0 | OD41: 0 | OE41: =OE5*OE11 -> 0 | OF41: 0 | OG41: 0 | OH41: 0 | OI41: 0 | OJ41: 0 | OK41: 0 | OL41: 0 | OM41: 0 | ON41: 0 | OO41: 0 | OP41: 0 | OQ41: 0 | OR41: 0 | OS41: 0 | OT41: 0 | OU41: 0 | OV41: 0 | OW41: 0 | OX41: 0 | OY41: 0 | OZ41: 0 | PA41: 0 | PB41: 0 | PC41: 0 | PD41: 0 | PE41: 0 | PF41: 0 | PG41: 0 | PH41: 0 | PI41: 0 | PJ41: 0 | PK41: 0 | PL41: 0 | PM41: 0 | PN41: 0 | PO41: 0 | PP41: 0 | PQ41: 0 | PR41: 0 | PS41: 0 | PT41: 0 | PU41: 0 | PV41: 0 | PW41: 0 | PX41: 0 | PY41: 0 | PZ41: 0 | QA41: 0 | QB41: 0 | QC41: 0 | QD41: 0 | QE41: 0 | QF41: 0 | QG41: 0 | QH41: 0 | QI41: 0 | QJ41: 0 | QK41: 0 | QL41: 0 | QM41: 0 | QN41: 0 | QO41: 0 | QP41: 0 | QQ41: =QQ5*QQ11 -> 0 | QR41: 0 | QS41: 0 | QT41: 0 | QU41: 0 | QV41: 0 | QW41: 0 | QX41: 0 | QY41: 0 | QZ41: 0 | RA41: 0 | RB41: 0 | RC41: 0 | RD41: 0 | RE41: 0 | RF41: 0 | RG41: 0 | RH41: 0 | RI41: 0 | RJ41: 0 | RK41: 0 | RL41: 0 | RM41: 0 | RN41: 0 | RO41: 0 | RP41: 0 | RQ41: 0 | RR41: 0 | RS41: 0 | RT41: 0 | RU41: 0 | RV41: 0 | RW41: 0 | RX41: 0 | RY41: 0 | RZ41: 0 | SA41: 0 | SB41: 0 | SC41: 0 | SD41: 0 | SE41: 0 | SF41: 0 | SG41: 0 | SH41: 0 | SI41: 0 | SJ41: 0 | SK41: 0 | SL41: 0 | SM41: 0 | SN41: 0 | SO41: 0 | SP41: 0 | SQ41: 0 | SR41: 0 | SS41: 0 | ST41: 0 | SU41: 0 | SV41: 0 | SW41: 0 | SX41: 0 | SY41: 0 | SZ41: 0 | TA41: 0 | TB41: 0 | TC41: 0
D42: Terminal ROIC x Terminal ROIC | K42: =K41*$H$43 -> 0 | L42: =L41*$H$43 -> 0 | M42: 0 | N42: 0 | O42: 0 | P42: 0 | Q42: 0 | R42: 0 | S42: 0 | T42: 8.937311964 | U42: 0 | V42: 0 | W42: 0 | X42: 0 | Y42: 0 | Z42: 0 | AA42: 0 | AB42: 0 | AC42: 0 | AD42: 0 | AE42: 0 | AF42: 0 | AG42: 0 | AH42: 0 | AI42: 0 | AJ42: 0 | AK42: 0 | AL42: 0 | AM42: 0 | AN42: 0 | AO42: 0 | AP42: 0 | AQ42: 0 | AR42: 0 | AS42: 0 | AT42: 0 | AU42: 0 | AV42: 0 | AW42: 0 | AX42: 0 | AY42: 0 | AZ42: 0 | BA42: 0 | BB42: 0 | BC42: 0 | BD42: 0 | BE42: 0 | BF42: 0 | BG42: 0 | BH42: 0 | BI42: 0 | BJ42: 0 | BK42: 0 | BL42: 0 | BM42: 0 | BN42: 0 | BO42: 0 | BP42: 0 | BQ42: 0 | BR42: 0 | BS42: 0 | BT42: 0 | BU42: 0 | BV42: 0 | BW42: 0 | BX42: =BX41*$H$43 -> 0 | BY42: 0 | BZ42: 0 | CA42: 0 | CB42: 0 | CC42: 0 | CD42: 0 | CE42: 0 | CF42: 0 | CG42: 0 | CH42: 0 | CI42: 0 | CJ42: 0 | CK42: 0 | CL42: 0 | CM42: 0 | CN42: 0 | CO42: 0 | CP42: 0 | CQ42: 0 | CR42: 0 | CS42: 0 | CT42: 0 | CU42: 0 | CV42: 0 | CW42: 0 | CX42: 0 | CY42: 0 | CZ42: 0 | DA42: 0 | DB42: 0 | DC42: 0 | DD42: 0 | DE42: 0 | DF42: 0 | DG42: 0 | DH42: 0 | DI42: 0 | DJ42: 0 | DK42: 0 | DL42: 0 | DM42: 0 | DN42: 0 | DO42: 0 | DP42: 0 | DQ42: 0 | DR42: 0 | DS42: 0 | DT42: 0 | DU42: 0 | DV42: 0 | DW42: 0 | DX42: 0 | DY42: 0 | DZ42: 0 | EA42: 0 | EB42: 0 | EC42: 0 | ED42: 0 | EE42: 0 | EF42: 0 | EG42: 0 | EH42: 0 | EI42: 0 | EJ42: =EJ41*$H$43 -> 0 | EK42: 0 | EL42: 0 | EM42: 0 | EN42: 0 | EO42: 0 | EP42: 0 | EQ42: 0 | ER42: 0 | ES42: 0 | ET42: 0 | EU42: 0 | EV42: 0 | EW42: 0 | EX42: 0 | EY42: 0 | EZ42: 0 | FA42: 0 | FB42: 0 | FC42: 0 | FD42: 0 | FE42: 0 | FF42: 0 | FG42: 0 | FH42: 0 | FI42: 0 | FJ42: 0 | FK42: 0 | FL42: 0 | FM42: 0 | FN42: 0 | FO42: 0 | FP42: 0 | FQ42: 0 | FR42: 0 | FS42: 0 | FT42: 0 | FU42: 0 | FV42: 0 | FW42: 0 | FX42: 0 | FY42: 0 | FZ42: 0 | GA42: 0 | GB42: 0 | GC42: 0 | GD42: 0 | GE42: 0 | GF42: 0 | GG42: 0 | GH42: 0 | GI42: 0 | GJ42: 0 | GK42: 0 | GL42: 0 | GM42: 0 | GN42: 0 | GO42: 0 | GP42: 0 | GQ42: 0 | GR42: 0 | GS42: 0 | GT42: 0 | GU42: 0 | GV42: =GV41*$H$43 -> 0 | GW42: 0 | GX42: 0 | GY42: 0 | GZ42: 0 | HA42: 0 | HB42: 0 | HC42: 0 | HD42: 0 | HE42: 0 | HF42: 0 | HG42: 0 | HH42: 0 | HI42: 0 | HJ42: 0 | HK42: 0 | HL42: 0 | HM42: 0 | HN42: 0 | HO42: 0 | HP42: 0 | HQ42: 0 | HR42: 0 | HS42: 0 | HT42: 0 | HU42: 0 | HV42: 0 | HW42: 0 | HX42: 0 | HY42: 0 | HZ42: 0 | IA42: 0 | IB42: 0 | IC42: 0 | ID42: 0 | IE42: 0 | IF42: 0 | IG42: 0 | IH42: 0 | II42: 0 | IJ42: 0 | IK42: 0 | IL42: 0 | IM42: 0 | IN42: 0 | IO42: 0 | IP42: 0 | IQ42: 0 | IR42: 0 | IS42: 0 | IT42: 0 | IU42: 0 | IV42: 0 | IW42: 0 | IX42: 0 | IY42: 0 | IZ42: 0 | JA42: 0 | JB42: 0 | JC42: 0 | JD42: 0 | JE42: 0 | JF42: 0 | JG42: 0 | JH42: =JH41*$H$43 -> 0 | JI42: 0 | JJ42: 0 | JK42: 0 | JL42: 0 | JM42: 0 | JN42: 0 | JO42: 0 | JP42: 0 | JQ42: 0 | JR42: 0 | JS42: 0 | JT42: 0 | JU42: 0 | JV42: 0 | JW42: 0 | JX42: 0 | JY42: 0 | JZ42: 0 | KA42: 0 | KB42: 0 | KC42: 0 | KD42: 0 | KE42: 0 | KF42: 0 | KG42: 0 | KH42: 0 | KI42: 0 | KJ42: 0 | KK42: 0 | KL42: 0 | KM42: 0 | KN42: 0 | KO42: 0 | KP42: 0 | KQ42: 0 | KR42: 0 | KS42: 0 | KT42: 0 | KU42: 0 | KV42: 0 | KW42: 0 | KX42: 0 | KY42: 0 | KZ42: 0 | LA42: 0 | LB42: 0 | LC42: 0 | LD42: 0 | LE42: 0 | LF42: 0 | LG42: 0 | LH42: 0 | LI42: 0 | LJ42: 0 | LK42: 0 | LL42: 0 | LM42: 0 | LN42: 0 | LO42: 0 | LP42: 0 | LQ42: 0 | LR42: 0 | LS42: 0 | LT42: =LT41*$H$43 -> 0 | LU42: 0 | LV42: 0 | LW42: 0 | LX42: 0 | LY42: 0 | LZ42: 0 | MA42: 0 | MB42: 0 | MC42: 0 | MD42: 0 | ME42: 0 | MF42: 0 | MG42: 0 | MH42: 0 | MI42: 0 | MJ42: 0 | MK42: 0 | ML42: 0 | MM42: 0 | MN42: 0 | MO42: 0 | MP42: 0 | MQ42: 0 | MR42: 0 | MS42: 0 | MT42: 0 | MU42: 0 | MV42: 0 | MW42: 0 | MX42: 0 | MY42: 0 | MZ42: 0 | NA42: 0 | NB42: 0 | NC42: 0 | ND42: 0 | NE42: 0 | NF42: 0 | NG42: 0 | NH42: 0 | NI42: 0 | NJ42: 0 | NK42: 0 | NL42: 0 | NM42: 0 | NN42: 0 | NO42: 0 | NP42: 0 | NQ42: 0 | NR42: 0 | NS42: 0 | NT42: 0 | NU42: 0 | NV42: 0 | NW42: 0 | NX42: 0 | NY42: 0 | NZ42: 0 | OA42: 0 | OB42: 0 | OC42: 0 | OD42: 0 | OE42: 0 | OF42: =OF41*$H$43 -> 0 | OG42: 0 | OH42: 0 | OI42: 0 | OJ42: 0 | OK42: 0 | OL42: 0 | OM42: 0 | ON42: 0 | OO42: 0 | OP42: 0 | OQ42: 0 | OR42: 0 | OS42: 0 | OT42: 0 | OU42: 0 | OV42: 0 | OW42: 0 | OX42: 0 | OY42: 0 | OZ42: 0 | PA42: 0 | PB42: 0 | PC42: 0 | PD42: 0 | PE42: 0 | PF42: 0 | PG42: 0 | PH42: 0 | PI42: 0 | PJ42: 0 | PK42: 0 | PL42: 0 | PM42: 0 | PN42: 0 | PO42: 0 | PP42: 0 | PQ42: 0 | PR42: 0 | PS42: 0 | PT42: 0 | PU42: 0 | PV42: 0 | PW42: 0 | PX42: 0 | PY42: 0 | PZ42: 0 | QA42: 0 | QB42: 0 | QC42: 0 | QD42: 0 | QE42: 0 | QF42: 0 | QG42: 0 | QH42: 0 | QI42: 0 | QJ42: 0 | QK42: 0 | QL42: 0 | QM42: 0 | QN42: 0 | QO42: 0 | QP42: 0 | QQ42: 0 | QR42: =QR41*$H$43 -> 0 | QS42: 0 | QT42: 0 | QU42: 0 | QV42: 0 | QW42: 0 | QX42: 0 | QY42: 0 | QZ42: 0 | RA42: 0 | RB42: 0 | RC42: 0 | RD42: 0 | RE42: 0 | RF42: 0 | RG42: 0 | RH42: 0 | RI42: 0 | RJ42: 0 | RK42: 0 | RL42: 0 | RM42: 0 | RN42: 0 | RO42: 0 | RP42: 0 | RQ42: 0 | RR42: 0 | RS42: 0 | RT42: 0 | RU42: 0 | RV42: 0 | RW42: 0 | RX42: 0 | RY42: 0 | RZ42: 0 | SA42: 0 | SB42: 0 | SC42: 0 | SD42: 0 | SE42: 0 | SF42: 0 | SG42: 0 | SH42: 0 | SI42: 0 | SJ42: 0 | SK42: 0 | SL42: 0 | SM42: 0 | SN42: 0 | SO42: 0 | SP42: 0 | SQ42: 0 | SR42: 0 | SS42: 0 | ST42: 0 | SU42: 0 | SV42: 0 | SW42: 0 | SX42: 0 | SY42: 0 | SZ42: 0 | TA42: 0 | TB42: 0 | TC42: 0
D43: V =BV * ROE * (1-g/ROE)/(k-g) | E43: =(1-F43/H43)/(G43-F43) -> 13.56589147 | F43: =Scenarios!H54 -> 0.025 | G43: =Scenarios!D3 -> 0.068 | H43: =Scenarios!I28 -> 0.06 | K43: =$E$43*K5 -> 0 | L43: 0 | M43: 0 | N43: 0 | O43: 0 | P43: 0 | Q43: 0 | R43: 0 | S43: 0 | T43: 13.56589147 | U43: 0 | V43: 0 | W43: 0 | X43: 0 | Y43: 0 | Z43: 0 | AA43: 0 | AB43: 0 | AC43: 0 | AD43: 0 | AE43: 0 | AF43: 0 | AG43: 0 | AH43: 0 | AI43: 0 | AJ43: 0 | AK43: 0 | AL43: 0 | AM43: 0 | AN43: 0 | AO43: 0 | AP43: 0 | AQ43: 0 | AR43: 0 | AS43: 0 | AT43: 0 | AU43: 0 | AV43: 0 | AW43: 0 | AX43: 0 | AY43: 0 | AZ43: 0 | BA43: 0 | BB43: 0 | BC43: 0 | BD43: 0 | BE43: 0 | BF43: 0 | BG43: 0 | BH43: 0 | BI43: 0 | BJ43: 0 | BK43: 0 | BL43: 0 | BM43: 0 | BN43: 0 | BO43: 0 | BP43: 0 | BQ43: 0 | BR43: 0 | BS43: 0 | BT43: 0 | BU43: 0 | BV43: 0 | BW43: =$E$43*BW5 -> 0 | BX43: 0 | BY43: 0 | BZ43: 0 | CA43: 0 | CB43: 0 | CC43: 0 | CD43: 0 | CE43: 0 | CF43: 0 | CG43: 0 | CH43: 0 | CI43: 0 | CJ43: 0 | CK43: 0 | CL43: 0 | CM43: 0 | CN43: 0 | CO43: 0 | CP43: 0 | CQ43: 0 | CR43: 0 | CS43: 0 | CT43: 0 | CU43: 0 | CV43: 0 | CW43: 0 | CX43: 0 | CY43: 0 | CZ43: 0 | DA43: 0 | DB43: 0 | DC43: 0 | DD43: 0 | DE43: 0 | DF43: 0 | DG43: 0 | DH43: 0 | DI43: 0 | DJ43: 0 | DK43: 0 | DL43: 0 | DM43: 0 | DN43: 0 | DO43: 0 | DP43: 0 | DQ43: 0 | DR43: 0 | DS43: 0 | DT43: 0 | DU43: 0 | DV43: 0 | DW43: 0 | DX43: 0 | DY43: 0 | DZ43: 0 | EA43: 0 | EB43: 0 | EC43: 0 | ED43: 0 | EE43: 0 | EF43: 0 | EG43: 0 | EH43: 0 | EI43: =$E$43*EI5 -> 0 | EJ43: 0 | EK43: 0 | EL43: 0 | EM43: 0 | EN43: 0 | EO43: 0 | EP43: 0 | EQ43: 0 | ER43: 0 | ES43: 0 | ET43: 0 | EU43: 0 | EV43: 0 | EW43: 0 | EX43: 0 | EY43: 0 | EZ43: 0 | FA43: 0 | FB43: 0 | FC43: 0 | FD43: 0 | FE43: 0 | FF43: 0 | FG43: 0 | FH43: 0 | FI43: 0 | FJ43: 0 | FK43: 0 | FL43: 0 | FM43: 0 | FN43: 0 | FO43: 0 | FP43: 0 | FQ43: 0 | FR43: 0 | FS43: 0 | FT43: 0 | FU43: 0 | FV43: 0 | FW43: 0 | FX43: 0 | FY43: 0 | FZ43: 0 | GA43: 0 | GB43: 0 | GC43: 0 | GD43: 0 | GE43: 0 | GF43: 0 | GG43: 0 | GH43: 0 | GI43: 0 | GJ43: 0 | GK43: 0 | GL43: 0 | GM43: 0 | GN43: 0 | GO43: 0 | GP43: 0 | GQ43: 0 | GR43: 0 | GS43: 0 | GT43: 0 | GU43: =$E$43*GU5 -> 0 | GV43: 0 | GW43: 0 | GX43: 0 | GY43: 0 | GZ43: 0 | HA43: 0 | HB43: 0 | HC43: 0 | HD43: 0 | HE43: 0 | HF43: 0 | HG43: 0 | HH43: 0 | HI43: 0 | HJ43: 0 | HK43: 0 | HL43: 0 | HM43: 0 | HN43: 0 | HO43: 0 | HP43: 0 | HQ43: 0 | HR43: 0 | HS43: 0 | HT43: 0 | HU43: 0 | HV43: 0 | HW43: 0 | HX43: 0 | HY43: 0 | HZ43: 0 | IA43: 0 | IB43: 0 | IC43: 0 | ID43: 0 | IE43: 0 | IF43: 0 | IG43: 0 | IH43: 0 | II43: 0 | IJ43: 0 | IK43: 0 | IL43: 0 | IM43: 0 | IN43: 0 | IO43: 0 | IP43: 0 | IQ43: 0 | IR43: 0 | IS43: 0 | IT43: 0 | IU43: 0 | IV43: 0 | IW43: 0 | IX43: 0 | IY43: 0 | IZ43: 0 | JA43: 0 | JB43: 0 | JC43: 0 | JD43: 0 | JE43: 0 | JF43: 0 | JG43: =$E$43*JG5 -> 0 | JH43: 0 | JI43: 0 | JJ43: 0 | JK43: 0 | JL43: 0 | JM43: 0 | JN43: 0 | JO43: 0 | JP43: 0 | JQ43: 0 | JR43: 0 | JS43: 0 | JT43: 0 | JU43: 0 | JV43: 0 | JW43: 0 | JX43: 0 | JY43: 0 | JZ43: 0 | KA43: 0 | KB43: 0 | KC43: 0 | KD43: 0 | KE43: 0 | KF43: 0 | KG43: 0 | KH43: 0 | KI43: 0 | KJ43: 0 | KK43: 0 | KL43: 0 | KM43: 0 | KN43: 0 | KO43: 0 | KP43: 0 | KQ43: 0 | KR43: 0 | KS43: 0 | KT43: 0 | KU43: 0 | KV43: 0 | KW43: 0 | KX43: 0 | KY43: 0 | KZ43: 0 | LA43: 0 | LB43: 0 | LC43: 0 | LD43: 0 | LE43: 0 | LF43: 0 | LG43: 0 | LH43: 0 | LI43: 0 | LJ43: 0 | LK43: 0 | LL43: 0 | LM43: 0 | LN43: 0 | LO43: 0 | LP43: 0 | LQ43: 0 | LR43: 0 | LS43: =$E$43*LS5 -> 0 | LT43: 0 | LU43: 0 | LV43: 0 | LW43: 0 | LX43: 0 | LY43: 0 | LZ43: 0 | MA43: 0 | MB43: 0 | MC43: 0 | MD43: 0 | ME43: 0 | MF43: 0 | MG43: 0 | MH43: 0 | MI43: 0 | MJ43: 0 | MK43: 0 | ML43: 0 | MM43: 0 | MN43: 0 | MO43: 0 | MP43: 0 | MQ43: 0 | MR43: 0 | MS43: 0 | MT43: 0 | MU43: 0 | MV43: 0 | MW43: 0 | MX43: 0 | MY43: 0 | MZ43: 0 | NA43: 0 | NB43: 0 | NC43: 0 | ND43: 0 | NE43: 0 | NF43: 0 | NG43: 0 | NH43: 0 | NI43: 0 | NJ43: 0 | NK43: 0 | NL43: 0 | NM43: 0 | NN43: 0 | NO43: 0 | NP43: 0 | NQ43: 0 | NR43: 0 | NS43: 0 | NT43: 0 | NU43: 0 | NV43: 0 | NW43: 0 | NX43: 0 | NY43: 0 | NZ43: 0 | OA43: 0 | OB43: 0 | OC43: 0 | OD43: 0 | OE43: =$E$43*OE5 -> 0 | OF43: 0 | OG43: 0 | OH43: 0 | OI43: 0 | OJ43: 0 | OK43: 0 | OL43: 0 | OM43: 0 | ON43: 0 | OO43: 0 | OP43: 0 | OQ43: 0 | OR43: 0 | OS43: 0 | OT43: 0 | OU43: 0 | OV43: 0 | OW43: 0 | OX43: 0 | OY43: 0 | OZ43: 0 | PA43: 0 | PB43: 0 | PC43: 0 | PD43: 0 | PE43: 0 | PF43: 0 | PG43: 0 | PH43: 0 | PI43: 0 | PJ43: 0 | PK43: 0 | PL43: 0 | PM43: 0 | PN43: 0 | PO43: 0 | PP43: 0 | PQ43: 0 | PR43: 0 | PS43: 0 | PT43: 0 | PU43: 0 | PV43: 0 | PW43: 0 | PX43: 0 | PY43: 0 | PZ43: 0 | QA43: 0 | QB43: 0 | QC43: 0 | QD43: 0 | QE43: 0 | QF43: 0 | QG43: 0 | QH43: 0 | QI43: 0 | QJ43: 0 | QK43: 0 | QL43: 0 | QM43: 0 | QN43: 0 | QO43: 0 | QP43: 0 | QQ43: =$E$43*QQ5 -> 0 | QR43: 0 | QS43: 0 | QT43: 0 | QU43: 0 | QV43: 0 | QW43: 0 | QX43: 0 | QY43: 0 | QZ43: 0 | RA43: 0 | RB43: 0 | RC43: 0 | RD43: 0 | RE43: 0 | RF43: 0 | RG43: 0 | RH43: 0 | RI43: 0 | RJ43: 0 | RK43: 0 | RL43: 0 | RM43: 0 | RN43: 0 | RO43: 0 | RP43: 0 | RQ43: 0 | RR43: 0 | RS43: 0 | RT43: 0 | RU43: 0 | RV43: 0 | RW43: 0 | RX43: 0 | RY43: 0 | RZ43: 0 | SA43: 0 | SB43: 0 | SC43: 0 | SD43: 0 | SE43: 0 | SF43: 0 | SG43: 0 | SH43: 0 | SI43: 0 | SJ43: 0 | SK43: 0 | SL43: 0 | SM43: 0 | SN43: 0 | SO43: 0 | SP43: 0 | SQ43: 0 | SR43: 0 | SS43: 0 | ST43: 0 | SU43: 0 | SV43: 0 | SW43: 0 | SX43: 0 | SY43: 0 | SZ43: 0 | TA43: 0 | TB43: 0 | TC43: 0
D44: PV of Terminal Value x (1+g) | E44: =NPV(G44,K44:KW44) -> 64.367493 | G44: =Scenarios!D3 -> 0.068 | K44: =K43*K42*(1+$F$43) -> 0 | L44: =L43*L42*(1+$F$43) -> 0 | M44: 0 | N44: 0 | O44: 0 | P44: 0 | Q44: 0 | R44: 0 | S44: 0 | T44: 124.2736693 | U44: 0 | V44: 0 | W44: 0 | X44: 0 | Y44: 0 | Z44: 0 | AA44: 0 | AB44: 0 | AC44: 0 | AD44: 0 | AE44: 0 | AF44: 0 | AG44: 0 | AH44: 0 | AI44: 0 | AJ44: 0 | AK44: 0 | AL44: 0 | AM44: 0 | AN44: 0 | AO44: 0 | AP44: 0 | AQ44: 0 | AR44: 0 | AS44: 0 | AT44: 0 | AU44: 0 | AV44: 0 | AW44: 0 | AX44: 0 | AY44: 0 | AZ44: 0 | BA44: 0 | BB44: 0 | BC44: 0 | BD44: 0 | BE44: 0 | BF44: 0 | BG44: 0 | BH44: 0 | BI44: 0 | BJ44: 0 | BK44: 0 | BL44: 0 | BM44: 0 | BN44: 0 | BO44: 0 | BP44: 0 | BQ44: 0 | BR44: 0 | BS44: 0 | BT44: 0 | BU44: 0 | BV44: 0 | BW44: 0 | BX44: =BX43*BX42*(1+$F$43) -> 0 | BY44: 0 | BZ44: 0 | CA44: 0 | CB44: 0 | CC44: 0 | CD44: 0 | CE44: 0 | CF44: 0 | CG44: 0 | CH44: 0 | CI44: 0 | CJ44: 0 | CK44: 0 | CL44: 0 | CM44: 0 | CN44: 0 | CO44: 0 | CP44: 0 | CQ44: 0 | CR44: 0 | CS44: 0 | CT44: 0 | CU44: 0 | CV44: 0 | CW44: 0 | CX44: 0 | CY44: 0 | CZ44: 0 | DA44: 0 | DB44: 0 | DC44: 0 | DD44: 0 | DE44: 0 | DF44: 0 | DG44: 0 | DH44: 0 | DI44: 0 | DJ44: 0 | DK44: 0 | DL44: 0 | DM44: 0 | DN44: 0 | DO44: 0 | DP44: 0 | DQ44: 0 | DR44: 0 | DS44: 0 | DT44: 0 | DU44: 0 | DV44: 0 | DW44: 0 | DX44: 0 | DY44: 0 | DZ44: 0 | EA44: 0 | EB44: 0 | EC44: 0 | ED44: 0 | EE44: 0 | EF44: 0 | EG44: 0 | EH44: 0 | EI44: 0 | EJ44: =EJ43*EJ42*(1+$F$43) -> 0 | EK44: 0 | EL44: 0 | EM44: 0 | EN44: 0 | EO44: 0 | EP44: 0 | EQ44: 0 | ER44: 0 | ES44: 0 | ET44: 0 | EU44: 0 | EV44: 0 | EW44: 0 | EX44: 0 | EY44: 0 | EZ44: 0 | FA44: 0 | FB44: 0 | FC44: 0 | FD44: 0 | FE44: 0 | FF44: 0 | FG44: 0 | FH44: 0 | FI44: 0 | FJ44: 0 | FK44: 0 | FL44: 0 | FM44: 0 | FN44: 0 | FO44: 0 | FP44: 0 | FQ44: 0 | FR44: 0 | FS44: 0 | FT44: 0 | FU44: 0 | FV44: 0 | FW44: 0 | FX44: 0 | FY44: 0 | FZ44: 0 | GA44: 0 | GB44: 0 | GC44: 0 | GD44: 0 | GE44: 0 | GF44: 0 | GG44: 0 | GH44: 0 | GI44: 0 | GJ44: 0 | GK44: 0 | GL44: 0 | GM44: 0 | GN44: 0 | GO44: 0 | GP44: 0 | GQ44: 0 | GR44: 0 | GS44: 0 | GT44: 0 | GU44: 0 | GV44: =GV43*GV42*(1+$F$43) -> 0 | GW44: 0 | GX44: 0 | GY44: 0 | GZ44: 0 | HA44: 0 | HB44: 0 | HC44: 0 | HD44: 0 | HE44: 0 | HF44: 0 | HG44: 0 | HH44: 0 | HI44: 0 | HJ44: 0 | HK44: 0 | HL44: 0 | HM44: 0 | HN44: 0 | HO44: 0 | HP44: 0 | HQ44: 0 | HR44: 0 | HS44: 0 | HT44: 0 | HU44: 0 | HV44: 0 | HW44: 0 | HX44: 0 | HY44: 0 | HZ44: 0 | IA44: 0 | IB44: 0 | IC44: 0 | ID44: 0 | IE44: 0 | IF44: 0 | IG44: 0 | IH44: 0 | II44: 0 | IJ44: 0 | IK44: 0 | IL44: 0 | IM44: 0 | IN44: 0 | IO44: 0 | IP44: 0 | IQ44: 0 | IR44: 0 | IS44: 0 | IT44: 0 | IU44: 0 | IV44: 0 | IW44: 0 | IX44: 0 | IY44: 0 | IZ44: 0 | JA44: 0 | JB44: 0 | JC44: 0 | JD44: 0 | JE44: 0 | JF44: 0 | JG44: 0 | JH44: =JH43*JH42*(1+$F$43) -> 0 | JI44: 0 | JJ44: 0 | JK44: 0 | JL44: 0 | JM44: 0 | JN44: 0 | JO44: 0 | JP44: 0 | JQ44: 0 | JR44: 0 | JS44: 0 | JT44: 0 | JU44: 0 | JV44: 0 | JW44: 0 | JX44: 0 | JY44: 0 | JZ44: 0 | KA44: 0 | KB44: 0 | KC44: 0 | KD44: 0 | KE44: 0 | KF44: 0 | KG44: 0 | KH44: 0 | KI44: 0 | KJ44: 0 | KK44: 0 | KL44: 0 | KM44: 0 | KN44: 0 | KO44: 0 | KP44: 0 | KQ44: 0 | KR44: 0 | KS44: 0 | KT44: 0 | KU44: 0 | KV44: 0 | KW44: 0 | KX44: 0 | KY44: 0 | KZ44: 0 | LA44: 0 | LB44: 0 | LC44: 0 | LD44: 0 | LE44: 0 | LF44: 0 | LG44: 0 | LH44: 0 | LI44: 0 | LJ44: 0 | LK44: 0 | LL44: 0 | LM44: 0 | LN44: 0 | LO44: 0 | LP44: 0 | LQ44: 0 | LR44: 0 | LS44: 0 | LT44: =LT43*LT42*(1+$F$43) -> 0 | LU44: 0 | LV44: 0 | LW44: 0 | LX44: 0 | LY44: 0 | LZ44: 0 | MA44: 0 | MB44: 0 | MC44: 0 | MD44: 0 | ME44: 0 | MF44: 0 | MG44: 0 | MH44: 0 | MI44: 0 | MJ44: 0 | MK44: 0 | ML44: 0 | MM44: 0 | MN44: 0 | MO44: 0 | MP44: 0 | MQ44: 0 | MR44: 0 | MS44: 0 | MT44: 0 | MU44: 0 | MV44: 0 | MW44: 0 | MX44: 0 | MY44: 0 | MZ44: 0 | NA44: 0 | NB44: 0 | NC44: 0 | ND44: 0 | NE44: 0 | NF44: 0 | NG44: 0 | NH44: 0 | NI44: 0 | NJ44: 0 | NK44: 0 | NL44: 0 | NM44: 0 | NN44: 0 | NO44: 0 | NP44: 0 | NQ44: 0 | NR44: 0 | NS44: 0 | NT44: 0 | NU44: 0 | NV44: 0 | NW44: 0 | NX44: 0 | NY44: 0 | NZ44: 0 | OA44: 0 | OB44: 0 | OC44: 0 | OD44: 0 | OE44: 0 | OF44: =OF43*OF42*(1+$F$43) -> 0 | OG44: 0 | OH44: 0 | OI44: 0 | OJ44: 0 | OK44: 0 | OL44: 0 | OM44: 0 | ON44: 0 | OO44: 0 | OP44: 0 | OQ44: 0 | OR44: 0 | OS44: 0 | OT44: 0 | OU44: 0 | OV44: 0 | OW44: 0 | OX44: 0 | OY44: 0 | OZ44: 0 | PA44: 0 | PB44: 0 | PC44: 0 | PD44: 0 | PE44: 0 | PF44: 0 | PG44: 0 | PH44: 0 | PI44: 0 | PJ44: 0 | PK44: 0 | PL44: 0 | PM44: 0 | PN44: 0 | PO44: 0 | PP44: 0 | PQ44: 0 | PR44: 0 | PS44: 0 | PT44: 0 | PU44: 0 | PV44: 0 | PW44: 0 | PX44: 0 | PY44: 0 | PZ44: 0 | QA44: 0 | QB44: 0 | QC44: 0 | QD44: 0 | QE44: 0 | QF44: 0 | QG44: 0 | QH44: 0 | QI44: 0 | QJ44: 0 | QK44: 0 | QL44: 0 | QM44: 0 | QN44: 0 | QO44: 0 | QP44: 0 | QQ44: 0 | QR44: =QR43*QR42*(1+$F$43) -> 0 | QS44: 0 | QT44: 0 | QU44: 0 | QV44: 0 | QW44: 0 | QX44: 0 | QY44: 0 | QZ44: 0 | RA44: 0 | RB44: 0 | RC44: 0 | RD44: 0 | RE44: 0 | RF44: 0 | RG44: 0 | RH44: 0 | RI44: 0 | RJ44: 0 | RK44: 0 | RL44: 0 | RM44: 0 | RN44: 0 | RO44: 0 | RP44: 0 | RQ44: 0 | RR44: 0 | RS44: 0 | RT44: 0 | RU44: 0 | RV44: 0 | RW44: 0 | RX44: 0 | RY44: 0 | RZ44: 0 | SA44: 0 | SB44: 0 | SC44: 0 | SD44: 0 | SE44: 0 | SF44: 0 | SG44: 0 | SH44: 0 | SI44: 0 | SJ44: 0 | SK44: 0 | SL44: 0 | SM44: 0 | SN44: 0 | SO44: 0 | SP44: 0 | SQ44: 0 | SR44: 0 | SS44: 0 | ST44: 0 | SU44: 0 | SV44: 0 | SW44: 0 | SX44: 0 | SY44: 0 | SZ44: 0 | TA44: 0 | TB44: 0 | TC44: 0
D45: Explicit Period Value | E45: =E37 -> 75.43036916
D46: Total Value | E46: =SUM(E44:E45) -> 139.7978622
B48: Value Driver Method - Fade Period
C49: Post Exit Period | F49: =Scenarios!H15-1 -> 10 | G49: =Scenarios!$I$51 -> 17 | J49: =AND(J3>$F$49) -> FALSE | K49: FALSE | L49: FALSE | M49: FALSE | N49: FALSE | O49: FALSE | P49: FALSE | Q49: FALSE | R49: FALSE | S49: FALSE | T49: FALSE | U49: TRUE | V49: TRUE | W49: TRUE | X49: TRUE | Y49: TRUE | Z49: TRUE | AA49: TRUE | AB49: TRUE | AC49: TRUE | AD49: TRUE | AE49: TRUE | AF49: TRUE | AG49: TRUE | AH49: TRUE | AI49: TRUE | AJ49: TRUE | AK49: TRUE | AL49: TRUE | AM49: TRUE | AN49: TRUE | AO49: TRUE | AP49: TRUE | AQ49: TRUE | AR49: TRUE | AS49: TRUE | AT49: TRUE | AU49: TRUE | AV49: TRUE | AW49: TRUE | AX49: TRUE | AY49: TRUE | AZ49: TRUE | BA49: TRUE | BB49: TRUE | BC49: TRUE | BD49: TRUE | BE49: TRUE | BF49: TRUE | BG49: TRUE | BH49: TRUE | BI49: TRUE | BJ49: TRUE | BK49: TRUE | BL49: TRUE | BM49: TRUE | BN49: TRUE | BO49: TRUE | BP49: TRUE | BQ49: TRUE | BR49: TRUE | BS49: TRUE | BT49: TRUE | BU49: TRUE | BV49: =AND(BV3>$F$49) -> TRUE | BW49: TRUE | BX49: TRUE | BY49: TRUE | BZ49: TRUE | CA49: TRUE | CB49: TRUE | CC49: TRUE | CD49: TRUE | CE49: TRUE | CF49: TRUE | CG49: TRUE | CH49: TRUE | CI49: TRUE | CJ49: TRUE | CK49: TRUE | CL49: TRUE | CM49: TRUE | CN49: TRUE | CO49: TRUE | CP49: TRUE | CQ49: TRUE | CR49: TRUE | CS49: TRUE | CT49: TRUE | CU49: TRUE | CV49: TRUE | CW49: TRUE | CX49: TRUE | CY49: TRUE | CZ49: TRUE | DA49: TRUE | DB49: TRUE | DC49: TRUE | DD49: TRUE | DE49: TRUE | DF49: TRUE | DG49: TRUE | DH49: TRUE | DI49: TRUE | DJ49: TRUE | DK49: TRUE | DL49: TRUE | DM49: TRUE | DN49: TRUE | DO49: TRUE | DP49: TRUE | DQ49: TRUE | DR49: TRUE | DS49: TRUE | DT49: TRUE | DU49: TRUE | DV49: TRUE | DW49: TRUE | DX49: TRUE | DY49: TRUE | DZ49: TRUE | EA49: TRUE | EB49: TRUE | EC49: TRUE | ED49: TRUE | EE49: TRUE | EF49: TRUE | EG49: TRUE | EH49: =AND(EH3>$F$49) -> TRUE | EI49: TRUE | EJ49: TRUE | EK49: TRUE | EL49: TRUE | EM49: TRUE | EN49: TRUE | EO49: TRUE | EP49: TRUE | EQ49: TRUE | ER49: TRUE | ES49: TRUE | ET49: TRUE | EU49: TRUE | EV49: TRUE | EW49: TRUE | EX49: TRUE | EY49: TRUE | EZ49: TRUE | FA49: TRUE | FB49: TRUE | FC49: TRUE | FD49: TRUE | FE49: TRUE | FF49: TRUE | FG49: TRUE | FH49: TRUE | FI49: TRUE | FJ49: TRUE | FK49: TRUE | FL49: TRUE | FM49: TRUE | FN49: TRUE | FO49: TRUE | FP49: TRUE | FQ49: TRUE | FR49: TRUE | FS49: TRUE | FT49: TRUE | FU49: TRUE | FV49: TRUE | FW49: TRUE | FX49: TRUE | FY49: TRUE | FZ49: TRUE | GA49: TRUE | GB49: TRUE | GC49: TRUE | GD49: TRUE | GE49: TRUE | GF49: TRUE | GG49: TRUE | GH49: TRUE | GI49: TRUE | GJ49: TRUE | GK49: TRUE | GL49: TRUE | GM49: TRUE | GN49: TRUE | GO49: TRUE | GP49: TRUE | GQ49: TRUE | GR49: TRUE | GS49: TRUE | GT49: =AND(GT3>$F$49) -> TRUE | GU49: TRUE | GV49: TRUE | GW49: TRUE | GX49: TRUE | GY49: TRUE | GZ49: TRUE | HA49: TRUE | HB49: TRUE | HC49: TRUE | HD49: TRUE | HE49: TRUE | HF49: TRUE | HG49: TRUE | HH49: TRUE | HI49: TRUE | HJ49: TRUE | HK49: TRUE | HL49: TRUE | HM49: TRUE | HN49: TRUE | HO49: TRUE | HP49: TRUE | HQ49: TRUE | HR49: TRUE | HS49: TRUE | HT49: TRUE | HU49: TRUE | HV49: TRUE | HW49: TRUE | HX49: TRUE | HY49: TRUE | HZ49: TRUE | IA49: TRUE | IB49: TRUE | IC49: TRUE | ID49: TRUE | IE49: TRUE | IF49: TRUE | IG49: TRUE | IH49: TRUE | II49: TRUE | IJ49: TRUE | IK49: TRUE | IL49: TRUE | IM49: TRUE | IN49: TRUE | IO49: TRUE | IP49: TRUE | IQ49: TRUE | IR49: TRUE | IS49: TRUE | IT49: TRUE | IU49: TRUE | IV49: TRUE | IW49: TRUE | IX49: TRUE | IY49: TRUE | IZ49: TRUE | JA49: TRUE | JB49: TRUE | JC49: TRUE | JD49: TRUE | JE49: TRUE | JF49: =AND(JF3>$F$49) -> TRUE | JG49: TRUE | JH49: TRUE | JI49: TRUE | JJ49: TRUE | JK49: TRUE | JL49: TRUE | JM49: TRUE | JN49: TRUE | JO49: TRUE | JP49: TRUE | JQ49: TRUE | JR49: TRUE | JS49: TRUE | JT49: TRUE | JU49: TRUE | JV49: TRUE | JW49: TRUE | JX49: TRUE | JY49: TRUE | JZ49: TRUE | KA49: TRUE | KB49: TRUE | KC49: TRUE | KD49: TRUE | KE49: TRUE | KF49: TRUE | KG49: TRUE | KH49: TRUE | KI49: TRUE | KJ49: TRUE | KK49: TRUE | KL49: TRUE | KM49: TRUE | KN49: TRUE | KO49: TRUE | KP49: TRUE | KQ49: TRUE | KR49: TRUE | KS49: TRUE | KT49: TRUE | KU49: TRUE | KV49: TRUE | KW49: TRUE | KX49: TRUE | KY49: TRUE | KZ49: TRUE | LA49: TRUE | LB49: TRUE | LC49: TRUE | LD49: TRUE | LE49: TRUE | LF49: TRUE | LG49: TRUE | LH49: TRUE | LI49: TRUE | LJ49: TRUE | LK49: TRUE | LL49: TRUE | LM49: TRUE | LN49: TRUE | LO49: TRUE | LP49: TRUE | LQ49: TRUE | LR49: =AND(LR3>$F$49) -> TRUE | LS49: TRUE | LT49: TRUE | LU49: TRUE | LV49: TRUE | LW49: TRUE | LX49: TRUE | LY49: TRUE | LZ49: TRUE | MA49: TRUE | MB49: TRUE | MC49: TRUE | MD49: TRUE | ME49: TRUE | MF49: TRUE | MG49: TRUE | MH49: TRUE | MI49: TRUE | MJ49: TRUE | MK49: TRUE | ML49: TRUE | MM49: TRUE | MN49: TRUE | MO49: TRUE | MP49: TRUE | MQ49: TRUE | MR49: TRUE | MS49: TRUE | MT49: TRUE | MU49: TRUE | MV49: TRUE | MW49: TRUE | MX49: TRUE | MY49: TRUE | MZ49: TRUE | NA49: TRUE | NB49: TRUE | NC49: TRUE | ND49: TRUE | NE49: TRUE | NF49: TRUE | NG49: TRUE | NH49: TRUE | NI49: TRUE | NJ49: TRUE | NK49: TRUE | NL49: TRUE | NM49: TRUE | NN49: TRUE | NO49: TRUE | NP49: TRUE | NQ49: TRUE | NR49: TRUE | NS49: TRUE | NT49: TRUE | NU49: TRUE | NV49: TRUE | NW49: TRUE | NX49: TRUE | NY49: TRUE | NZ49: TRUE | OA49: TRUE | OB49: TRUE | OC49: TRUE | OD49: =AND(OD3>$F$49) -> TRUE | OE49: TRUE | OF49: TRUE | OG49: TRUE | OH49: TRUE | OI49: TRUE | OJ49: TRUE | OK49: TRUE | OL49: TRUE | OM49: TRUE | ON49: TRUE | OO49: TRUE | OP49: TRUE | OQ49: TRUE | OR49: TRUE | OS49: TRUE | OT49: TRUE | OU49: TRUE | OV49: TRUE | OW49: TRUE | OX49: TRUE | OY49: TRUE | OZ49: TRUE | PA49: TRUE | PB49: TRUE | PC49: TRUE | PD49: TRUE | PE49: TRUE | PF49: TRUE | PG49: TRUE | PH49: TRUE | PI49: TRUE | PJ49: TRUE | PK49: TRUE | PL49: TRUE | PM49: TRUE | PN49: TRUE | PO49: TRUE | PP49: TRUE | PQ49: TRUE | PR49: TRUE | PS49: TRUE | PT49: TRUE | PU49: TRUE | PV49: TRUE | PW49: TRUE | PX49: TRUE | PY49: TRUE | PZ49: TRUE | QA49: TRUE | QB49: TRUE | QC49: TRUE | QD49: TRUE | QE49: TRUE | QF49: TRUE | QG49: TRUE | QH49: TRUE | QI49: TRUE | QJ49: TRUE | QK49: TRUE | QL49: TRUE | QM49: TRUE | QN49: TRUE | QO49: TRUE | QP49: =AND(QP3>$F$49) -> TRUE | QQ49: TRUE | QR49: TRUE | QS49: TRUE | QT49: TRUE | QU49: TRUE | QV49: TRUE | QW49: TRUE | QX49: TRUE | QY49: TRUE | QZ49: TRUE | RA49: TRUE | RB49: TRUE | RC49: TRUE | RD49: TRUE | RE49: TRUE | RF49: TRUE | RG49: TRUE | RH49: TRUE | RI49: TRUE | RJ49: TRUE | RK49: TRUE | RL49: TRUE | RM49: TRUE | RN49: TRUE | RO49: TRUE | RP49: TRUE | RQ49: TRUE | RR49: TRUE | RS49: TRUE | RT49: TRUE | RU49: TRUE | RV49: TRUE | RW49: TRUE | RX49: TRUE | RY49: TRUE | RZ49: TRUE | SA49: TRUE | SB49: TRUE | SC49: TRUE | SD49: TRUE | SE49: TRUE | SF49: TRUE | SG49: TRUE | SH49: TRUE | SI49: TRUE | SJ49: TRUE | SK49: TRUE | SL49: TRUE | SM49: TRUE | SN49: TRUE | SO49: TRUE | SP49: TRUE | SQ49: TRUE | SR49: TRUE | SS49: TRUE | ST49: TRUE | SU49: TRUE | SV49: TRUE | SW49: TRUE | SX49: TRUE | SY49: TRUE | SZ49: TRUE | TA49: TRUE | TB49: TRUE | TC49: TRUE
C50: End of Fade Period | F50: =Scenarios!$I$51 -> 17 | J50: =J3=$F$50 -> FALSE | K50: FALSE | L50: FALSE | M50: FALSE | N50: FALSE | O50: FALSE | P50: FALSE | Q50: FALSE | R50: FALSE | S50: FALSE | T50: FALSE | U50: FALSE | V50: FALSE | W50: FALSE | X50: FALSE | Y50: FALSE | Z50: FALSE | AA50: TRUE | AB50: FALSE | AC50: FALSE | AD50: FALSE | AE50: FALSE | AF50: FALSE | AG50: FALSE | AH50: FALSE | AI50: FALSE | AJ50: FALSE | AK50: FALSE | AL50: FALSE | AM50: FALSE | AN50: FALSE | AO50: FALSE | AP50: FALSE | AQ50: FALSE | AR50: FALSE | AS50: FALSE | AT50: FALSE | AU50: FALSE | AV50: FALSE | AW50: FALSE | AX50: FALSE | AY50: FALSE | AZ50: FALSE | BA50: FALSE | BB50: FALSE | BC50: FALSE | BD50: FALSE | BE50: FALSE | BF50: FALSE | BG50: FALSE | BH50: FALSE | BI50: FALSE | BJ50: FALSE | BK50: FALSE | BL50: FALSE | BM50: FALSE | BN50: FALSE | BO50: FALSE | BP50: FALSE | BQ50: FALSE | BR50: FALSE | BS50: FALSE | BT50: FALSE | BU50: FALSE | BV50: =BV3=$F$50 -> FALSE | BW50: FALSE | BX50: FALSE | BY50: FALSE | BZ50: FALSE | CA50: FALSE | CB50: FALSE | CC50: FALSE | CD50: FALSE | CE50: FALSE | CF50: FALSE | CG50: FALSE | CH50: FALSE | CI50: FALSE | CJ50: FALSE | CK50: FALSE | CL50: FALSE | CM50: FALSE | CN50: FALSE | CO50: FALSE | CP50: FALSE | CQ50: FALSE | CR50: FALSE | CS50: FALSE | CT50: FALSE | CU50: FALSE | CV50: FALSE | CW50: FALSE | CX50: FALSE | CY50: FALSE | CZ50: FALSE | DA50: FALSE | DB50: FALSE | DC50: FALSE | DD50: FALSE | DE50: FALSE | DF50: FALSE | DG50: FALSE | DH50: FALSE | DI50: FALSE | DJ50: FALSE | DK50: FALSE | DL50: FALSE | DM50: FALSE | DN50: FALSE | DO50: FALSE | DP50: FALSE | DQ50: FALSE | DR50: FALSE | DS50: FALSE | DT50: FALSE | DU50: FALSE | DV50: FALSE | DW50: FALSE | DX50: FALSE | DY50: FALSE | DZ50: FALSE | EA50: FALSE | EB50: FALSE | EC50: FALSE | ED50: FALSE | EE50: FALSE | EF50: FALSE | EG50: FALSE | EH50: =EH3=$F$50 -> FALSE | EI50: FALSE | EJ50: FALSE | EK50: FALSE | EL50: FALSE | EM50: FALSE | EN50: FALSE | EO50: FALSE | EP50: FALSE | EQ50: FALSE | ER50: FALSE | ES50: FALSE | ET50: FALSE | EU50: FALSE | EV50: FALSE | EW50: FALSE | EX50: FALSE | EY50: FALSE | EZ50: FALSE | FA50: FALSE | FB50: FALSE | FC50: FALSE | FD50: FALSE | FE50: FALSE | FF50: FALSE | FG50: FALSE | FH50: FALSE | FI50: FALSE | FJ50: FALSE | FK50: FALSE | FL50: FALSE | FM50: FALSE | FN50: FALSE | FO50: FALSE | FP50: FALSE | FQ50: FALSE | FR50: FALSE | FS50: FALSE | FT50: FALSE | FU50: FALSE | FV50: FALSE | FW50: FALSE | FX50: FALSE | FY50: FALSE | FZ50: FALSE | GA50: FALSE | GB50: FALSE | GC50: FALSE | GD50: FALSE | GE50: FALSE | GF50: FALSE | GG50: FALSE | GH50: FALSE | GI50: FALSE | GJ50: FALSE | GK50: FALSE | GL50: FALSE | GM50: FALSE | GN50: FALSE | GO50: FALSE | GP50: FALSE | GQ50: FALSE | GR50: FALSE | GS50: FALSE | GT50: =GT3=$F$50 -> FALSE | GU50: FALSE | GV50: FALSE | GW50: FALSE | GX50: FALSE | GY50: FALSE | GZ50: FALSE | HA50: FALSE | HB50: FALSE | HC50: FALSE | HD50: FALSE | HE50: FALSE | HF50: FALSE | HG50: FALSE | HH50: FALSE | HI50: FALSE | HJ50: FALSE | HK50: FALSE | HL50: FALSE | HM50: FALSE | HN50: FALSE | HO50: FALSE | HP50: FALSE | HQ50: FALSE | HR50: FALSE | HS50: FALSE | HT50: FALSE | HU50: FALSE | HV50: FALSE | HW50: FALSE | HX50: FALSE | HY50: FALSE | HZ50: FALSE | IA50: FALSE | IB50: FALSE | IC50: FALSE | ID50: FALSE | IE50: FALSE | IF50: FALSE | IG50: FALSE | IH50: FALSE | II50: FALSE | IJ50: FALSE | IK50: FALSE | IL50: FALSE | IM50: FALSE | IN50: FALSE | IO50: FALSE | IP50: FALSE | IQ50: FALSE | IR50: FALSE | IS50: FALSE | IT50: FALSE | IU50: FALSE | IV50: FALSE | IW50: FALSE | IX50: FALSE | IY50: FALSE | IZ50: FALSE | JA50: FALSE | JB50: FALSE | JC50: FALSE | JD50: FALSE | JE50: FALSE | JF50: =JF3=$F$50 -> FALSE | JG50: FALSE | JH50: FALSE | JI50: FALSE | JJ50: FALSE | JK50: FALSE | JL50: FALSE | JM50: FALSE | JN50: FALSE | JO50: FALSE | JP50: FALSE | JQ50: FALSE | JR50: FALSE | JS50: FALSE | JT50: FALSE | JU50: FALSE | JV50: FALSE | JW50: FALSE | JX50: FALSE | JY50: FALSE | JZ50: FALSE | KA50: FALSE | KB50: FALSE | KC50: FALSE | KD50: FALSE | KE50: FALSE | KF50: FALSE | KG50: FALSE | KH50: FALSE | KI50: FALSE | KJ50: FALSE | KK50: FALSE | KL50: FALSE | KM50: FALSE | KN50: FALSE | KO50: FALSE | KP50: FALSE | KQ50: FALSE | KR50: FALSE | KS50: FALSE | KT50: FALSE | KU50: FALSE | KV50: FALSE | KW50: FALSE | KX50: FALSE | KY50: FALSE | KZ50: FALSE | LA50: FALSE | LB50: FALSE | LC50: FALSE | LD50: FALSE | LE50: FALSE | LF50: FALSE | LG50: FALSE | LH50: FALSE | LI50: FALSE | LJ50: FALSE | LK50: FALSE | LL50: FALSE | LM50: FALSE | LN50: FALSE | LO50: FALSE | LP50: FALSE | LQ50: FALSE | LR50: =LR3=$F$50 -> FALSE | LS50: FALSE | LT50: FALSE | LU50: FALSE | LV50: FALSE | LW50: FALSE | LX50: FALSE | LY50: FALSE | LZ50: FALSE | MA50: FALSE | MB50: FALSE | MC50: FALSE | MD50: FALSE | ME50: FALSE | MF50: FALSE | MG50: FALSE | MH50: FALSE | MI50: FALSE | MJ50: FALSE | MK50: FALSE | ML50: FALSE | MM50: FALSE | MN50: FALSE | MO50: FALSE | MP50: FALSE | MQ50: FALSE | MR50: FALSE | MS50: FALSE | MT50: FALSE | MU50: FALSE | MV50: FALSE | MW50: FALSE | MX50: FALSE | MY50: FALSE | MZ50: FALSE | NA50: FALSE | NB50: FALSE | NC50: FALSE | ND50: FALSE | NE50: FALSE | NF50: FALSE | NG50: FALSE | NH50: FALSE | NI50: FALSE | NJ50: FALSE | NK50: FALSE | NL50: FALSE | NM50: FALSE | NN50: FALSE | NO50: FALSE | NP50: FALSE | NQ50: FALSE | NR50: FALSE | NS50: FALSE | NT50: FALSE | NU50: FALSE | NV50: FALSE | NW50: FALSE | NX50: FALSE | NY50: FALSE | NZ50: FALSE | OA50: FALSE | OB50: FALSE | OC50: FALSE | OD50: =OD3=$F$50 -> FALSE | OE50: FALSE | OF50: FALSE | OG50: FALSE | OH50: FALSE | OI50: FALSE | OJ50: FALSE | OK50: FALSE | OL50: FALSE | OM50: FALSE | ON50: FALSE | OO50: FALSE | OP50: FALSE | OQ50: FALSE | OR50: FALSE | OS50: FALSE | OT50: FALSE | OU50: FALSE | OV50: FALSE | OW50: FALSE | OX50: FALSE | OY50: FALSE | OZ50: FALSE | PA50: FALSE | PB50: FALSE | PC50: FALSE | PD50: FALSE | PE50: FALSE | PF50: FALSE | PG50: FALSE | PH50: FALSE | PI50: FALSE | PJ50: FALSE | PK50: FALSE | PL50: FALSE | PM50: FALSE | PN50: FALSE | PO50: FALSE | PP50: FALSE | PQ50: FALSE | PR50: FALSE | PS50: FALSE | PT50: FALSE | PU50: FALSE | PV50: FALSE | PW50: FALSE | PX50: FALSE | PY50: FALSE | PZ50: FALSE | QA50: FALSE | QB50: FALSE | QC50: FALSE | QD50: FALSE | QE50: FALSE | QF50: FALSE | QG50: FALSE | QH50: FALSE | QI50: FALSE | QJ50: FALSE | QK50: FALSE | QL50: FALSE | QM50: FALSE | QN50: FALSE | QO50: FALSE | QP50: =QP3=$F$50 -> FALSE | QQ50: FALSE | QR50: FALSE | QS50: FALSE | QT50: FALSE | QU50: FALSE | QV50: FALSE | QW50: FALSE | QX50: FALSE | QY50: FALSE | QZ50: FALSE | RA50: FALSE | RB50: FALSE | RC50: FALSE | RD50: FALSE | RE50: FALSE | RF50: FALSE | RG50: FALSE | RH50: FALSE | RI50: FALSE | RJ50: FALSE | RK50: FALSE | RL50: FALSE | RM50: FALSE | RN50: FALSE | RO50: FALSE | RP50: FALSE | RQ50: FALSE | RR50: FALSE | RS50: FALSE | RT50: FALSE | RU50: FALSE | RV50: FALSE | RW50: FALSE | RX50: FALSE | RY50: FALSE | RZ50: FALSE | SA50: FALSE | SB50: FALSE | SC50: FALSE | SD50: FALSE | SE50: FALSE | SF50: FALSE | SG50: FALSE | SH50: FALSE | SI50: FALSE | SJ50: FALSE | SK50: FALSE | SL50: FALSE | SM50: FALSE | SN50: FALSE | SO50: FALSE | SP50: FALSE | SQ50: FALSE | SR50: FALSE | SS50: FALSE | ST50: FALSE | SU50: FALSE | SV50: FALSE | SW50: FALSE | SX50: FALSE | SY50: FALSE | SZ50: FALSE | TA50: FALSE | TB50: FALSE | TC50: FALSE
